Workbook

Sheet Bienvenida
B2: MINISTERIO DE GOBERNACIÓN Y POLICÍA MATRIZ DE FORMULACIÓN Y SEGUIMIENTO PLAN ANUAL OPERATIVO
B9: Digite el año de proceso: | E9: 2025
B11: Nombre de la Unidad / Departamento / Otro: | E11: Unidad de Planificación
B13: Nombre del colaborador / Nombre de la jefatura: | E13: Mauricio Rivas Camacho / Yenory Carrillo Cruz
B15: Seleccione una Dependencia: | E15: Imprenta.
D17: Segregados | F17: Posibles Eventos | G17: Objetivos Estrátegicos
F19: =COUNTA(Filtros!E16:E1000) -> 167 | G19: =COUNTA(Filtros!H16:H1000) -> 3
A21: Versión 24.01

Sheet Tabla_01 (hidden)
B2: Códigos de riesgo Internos | D2: _R001_Tecnologias_de_Informacion | E2: _ | F2: _R002_Presupuestario | G2: _ | H2: _R003_Operativo | I2: _ | J2: _R004_Insumos | K2: _ | L2: _R005_Estrategico | M2: _ | N2: _R006_Informacion | O2: _ | P2: _R007_Recurso_Humano | Q2: _ | R2: _R008_Ambiente | S2: _ | T2: _R009_Politicos | U2: _ | V2: _R010_Ambiental | W2: _ | X2: _R011_Financiero_ | Y2: _ | Z2: _R012_Social | AA2: _ | AB2: _R013_Legal | AC2: _ | AD2: _R014_Informacion | AE2: _ | AF2: _R015_Institucional
B3: _R001_Tecnologias_de_Informacion | D3: Integridad de las aplicaciones utilizadas en la unidad | F3: Presupuesto asignado para la operación | H3: Estructura Organizacional que responda a las necesidades | J3: Capacidad para adquirirlos | L3: Procesos de planificación claros | N3: Información operativa | P3: Salud ocupacional (mental, física y sicológica) | R3: Contaminantes químicos o biológicos | T3: Continuidad de políticas institucionales diseñadas | V3: Inundaciones, Huracanes, Terremotos, etc. | X3: Crisis económica | Z3: Seguridad Ciudadana | AB3: Ausencia de normativa | AD3: Información operativa | AF3: Organismos Internacionales que apoyan la Gestión
B4: _R002_Presupuestario | D4: Acceso a sistemas, datos e información | F4: Flujo de caja | H4: Estructura Ocupacional acorde a las necesidades. | J4: Proveedores satisfacen las necesidades institucionales | L4: Cumplimiento de la misión, visión y objetivos organizacionales | N4: Información estratégica | P4: Acoso sexual y laboral | R4: Iluminación del centro de trabajo | T4: Cambios de Gobierno | V4: Contaminación | X4: Recesión económica | Z4: Influencia de los medios de comunicación | AB4: Necesidades de Normativa | AD4: Información de gestión | AF4: Proveedores privados
B5: _R003_Operativo | D5: Disponibilidad oportuna de la aplicación creada | H5: Servicios institucionales que satisfagan las necesidades | J5: Mantenimiento continuo para la adecuada ejecución del trabajo | L5: Imagen Institucional | N5: Adecuados y eficientes canales de comunicación | P5: Trabajo rutinario y monótono | R5: Ruido del centro de trabajo | T5: Confianza extranjera | V5: Incendios | X5: Fluctuación en tasa de interés | Z5: Tolerancia a las diferencias culturales | AB5: Querellas o juicios que afectan a la institución | AD5: Información estratégica | AF5: Entes privados que administran fondos de la institución
B6: _R004_Insumos | D6: Infraestructura de información tecnológica efectiva (hardware, software, redes, entre otros) | H6: Estructuras de trabajo acordes a las necesidades demandadas por los usuarios | J6: Tener disponibilidad para atender necesidades de operación. | L6: Liderazgo en la dirección del personal | N6: Información accesible, física o digital | P6: Idoneidad del personal contratado | R6: Ventilación del centro de trabajo | T6: Conflictos políticos | V6: Acciones Humanas | X6: Inflación | Z6: Satisfacción de los usuarios | AB6: Incumplimiento de normas y regulaciones | AD6: Adecuados y eficientes canales de comunicación | AF6: Denunciantes
B7: _R005_Estrategico | D7: Relevancia de los sistemas, de las técnicas de recuperación, respaldos de la información y planes de contingencia. | H7: Manuales administrativos actualizados | J7: Acceso oportuno para todos | L7: Líneas de autoridad efectivas | P7: Adecuados programas de incentivos y compensación | R7: Incendio del centro de trabajo | T7: Políticas públicas inconsistentes | Z7: Conflictos o alianzas entre grupos | AD7: Información accesible, física o digital | AF7: Colegios de profesionales
B8: _R006_Informacion | D8: Los sistemas se ajustan a las necesidades institucionales | H8: Procedimientos lineamientos e instrucciones claros para la efectiva realización del trabajo | J8: Uso adecuado y racional | L8: Comunicación adecuada y veraz en todos los niveles | P8: Procesos constantes de capacitación | Z8: Cambios demográficos | AF8: Órganos de control externo
B9: _R007_Recurso_Humano | H9: Manipulación de máquinas y herramientas peligrosas | J9: Calidad de la materia prima | L9: Cultura organizacional | P9: Integridad en su labores | Z9: Salud de los habitantes
B10: _R008_Ambiente | H10: Manipulación de sustancias tóxicas | J10: Manejo de activos (rotulación, certificación, baja, alta, inscripción de bienes intangibles, avalúos y bienes muebles e inmuebles) | L10: Resistencia ante el cambio | P10: Acceso a cursos de inducción
H11: Definición clara del centro de trabajo | P11: Prácticas de seguridad
H12: Cumplimiento de las metas organizacionales | P12: Motivación y compensación
H13: Tiempo de entrega del producto final | P13: Programa de incentivos
H14: Seguimiento en los procesos | P14: Desarrollo de personal en todos los niveles
H15: Coordinación con los diferentes procesos | P15: Disponibilidad laboral
B16: Códigos de riesgo Externos
B17: _R009_Politicos
B18: _R010_Ambiental
B19: _R011_Financiero_
B20: _R012_Social
B21: _R013_Legal
B22: _R014_Informacion
B23: _R015_Institucional

Sheet Portafolio (hidden)
A1: Control de eventos para cada dependencia | H1: Control de Objetivos estrategicos para cada dependencia
A3: Eventos | B3: Procede | C3: Ambiente | D3: Código | E3: Riesgo | H3: Objetivos estrategicos | I3: Procede
A4: Información financiera desactualizada | B4: Financiero AC | C4: Interno | D4: R002 | E4: Presupuestario | H4: 01. Fortalecer la articulación presupuestaria y controlar la ejecución de los recursos asignados. | I4: AC / Tribunal Administrativo Migratorio / Control de propaganda
A5: Abordaje de la población migrantes | B5: DGME | C5: Interno | D5: R003 | E5: Operativo | H5: 02. Mejorar las habilidades técnicas y analíticas del personal para entregar bienes y servicios de mayor calidad. | I5: AC / Tribunal Administrativo Migratorio / Control de propaganda
A6: Acceso a cursos de inducción | B6: Metodología | C6: Externo | D6: R007 | E6: Recurso Humano | H6: 03. Fortalecer la representación gubernamental del ministerio en las distintas instancias de decisión. | I6: AC / Tribunal Administrativo Migratorio / Control de propaganda
A7: Acceso a sistemas y/o datos y/o información | B7: Metodología | C7: Interno | D7: R001 | E7: Tecnologías de Información | H7: 04. Impulsar acciones desde la competencia del MGP alineadas con los Objetivos de Desarrollo Sostenible (ODS). | I7: AC / Tribunal Administrativo Migratorio / Control de propaganda
A8: Acceso no autorizado a sistemas y/o aplicaciones | B8: DGME | C8: Interno | D8: R001 | E8: Tecnologías de Información | H8: 05. Aplicar y emitir criterio desde el marco jurídico que regule el accionar del MGP. | I8: AC / Tribunal Administrativo Migratorio / Control de propaganda
A9: Acceso oportuno para todos | B9: Metodología | C9: Interno | D9: R004 | E9: Insumos | H9: 06. Reglamentar las leyes que amparan los servicios que brinda el MGP en concordancia con el marco normativo. | I9: AC / Tribunal Administrativo Migratorio / Control de propaganda
A10: Acceso restringido áreas tecnológicas | B10: DGME | C10: Interno | D10: R001 | E10: Tecnologías de Información | H10: 07. Impulsar la estrategia de teletrabajo. | I10: AC / Tribunal Administrativo Migratorio / Control de propaganda
A11: Acceso servicios sociales para migrantes y/o refugiados | B11: DGME | C11: Externo | D11: R012 | E11: Social | H11: 08. Visualizar las responsabilidades sustantivas a partir de las competencias del MGP. | I11: AC / Tribunal Administrativo Migratorio / Control de propaganda
A12: Accidentes con vehículos institucionales | B12: DGME | C12: Interno | D12: R003 | E12: Operativo | H12: 09. Fiscalizar la administración activa conforme al marco legal- técnico en respuesta a los órganos internos y externos. | I12: AC / Tribunal Administrativo Migratorio / Control de propaganda
A13: Accidentes laborales | B13: Imprenta / DGME | C13: Interno | D13: R003 | E13: Operativo | H13: 10. Incluir buenas prácticas éticas en los procesos y procedimientos de cada unidad institucional. | I13: AC / Tribunal Administrativo Migratorio / Control de propaganda
A14: Acciones humanas | B14: Metodología | C14: Externo | D14: R010 | E14: Ambiental | H14: 01) Transformar la Imprenta Nacional en un plazo de cuatro años, mediante aplicación de cambios en la normativa e innovación de los productos y servicios que ofrece, para que estén acordes con las tendencias del mercado y con prácticas ambientalmente sostenibles. | I14: Imprenta
A15: Acciones inescrupulosas | B15: DGME | C15: Interno/Externo | D15: R016 | E15: Ética y Corrupción | H15: 02) Crear las condiciones idóneas para que las instituciones públicas y los mayores generadores de documentos para publicar en los Diarios Oficiales, puedan interconectarse con la Imprenta Nacional para agilizar el tránsito de documentos, mediante el desarrollo de interfaces y procesos que permitan el flujo de documentos a publicar en los Diarios Oficiales por sistemas telemáticos. | I15: Imprenta
A16: Acoso sexual y laboral | B16: Metodología | C16: Interno | D16: R007 | E16: Recurso Humano | H16: 03) Realizar gestión de calidad en la Imprenta Nacional mediante la documentación, estandarización y control de los procesos. | I16: Imprenta
A17: Acumulación de horas extras | B17: DGME | C17: Interno | D17: R007 | E17: Recurso Humano | H17: 01. Desarrollar las acciones con diversos tipos de entidades de Gobierno, de cooperación y de base comunal, que permitan canalizar recursos para el fortalecimiento intitucional de Dinadeco y de las organizaciones de desarrollo comunal, y evidenciar los resultados del adecuado y transparente uso de dichos recursos. | I17: DINADECO
A18: Adaptación a nuevos sistemas | B18: DGME | C18: Interno | D18: R003 | E18: Operativo | H18: 02. Diseñar e implementar actividades de capacitación para el desarrollo y mejora de las capacidades y competencias de personas afiliadas a organizaciones de desarrollo comunal, y personal de Dinadeco, que consideren la colaboración y articulación con entes educativos. | I18: DINADECO
A19: Adecuados programas de incentivos y compensación | B19: Metodología | C19: Interno | D19: R007 | E19: Recurso Humano | H19: 03. Contribuir en la mejora de condiciones económicas y sociales de las comunidades, mediante el desarrollo de programas y proyectos especìficos en materia socioproductiva, zonas vulnerables y grupos de población que requieren mayor protagonismo en el quehacer comunal. | I19: DINADECO
A20: Adecuados y eficientes canales de comunicación | B20: Metodología | C20: Interno | D20: R014 | E20: Información | H20: 04. Modernizar los sistemas sustantivos de información institucional y sus procesos asociados, que permitan una gestión eficiente y eficaz hacia el movimiento comunal y otras partes interesadas. | I20: DINADECO
A21: Adquisición de insumos de baja calidad | B21: Imprenta | C21: Interno | D21: R004 | E21: Insumos | H21: 05. Objetivo estratégico. Incorporar la ética y los valores como conceptos intervinientes en la gestión institucional. | I21: DINADECO
A22: Adulteración de información | B22: Metodología | C22: Interno/Externo | D22: R016 | E22: Ética y Corrupción | H22: 06. Modernización y mejoramiento institucional con enfoque regional. | I22: DINADECO
A23: Afectación en la operación del Centro de Procesamiento de Datos Secundario (CPDS) | B23: DGME | C23: Interno | D23: R001 | E23: Tecnologías de Información | H23: 07. Objetivo estratégico. Incorporar la ética y los valores como conceptos intervinientes en la gestión institucional. | I23: DINADECO
A24: Almacenamiento en áreas inadecuadas | B24: Imprenta | C24: Interno | D24: R004 | E24: Insumos | H24: 01. Contribuir de manera permanente en la definición y actualización de una política migratoria que responda a los objetivos nacionales y que permita la atracción de flujos migratorios que beneficien al país, así como la protección y atención oportuna de poblaciones en condición de vulnerabilidad, bajo una perspectiva de igualdad, género, etario y accesibilidad. | I24: DGME
A25: Alta demanda de citas | B25: DGME | C25: Interno | D25: R003 | E25: Operativo | H25: 02. Promover la integración y respeto de los derechos humanos de la población migrante y refugiada en la sociedad costarricense, así como los costarricenses en el exterior. | I25: DGME
A26: Alta demanda de servicios policiales | B26: DGME | C26: Interno | D26: R003 | E26: Operativo | H26: 03. Promover estrategias que coadyuven en la aplicación de un efectivo control migratorio orientado a una migración regular, ordenada y segura y el combate del crimen organizado transnacional. | I26: DGME
A27: Alteración en la planificación de la producción | B27: Imprenta | C27: Interno | D27: R005 | E27: Estratégico | H27: 04. Desarrollar nuevos modelos de gestión que faciliten la administración de los flujos migratorios y garanticen el máximo aprovechamiento de los recursos disponibles, lo que estará sustentado en la modernización institucional y la profesionalización de los recursos humanos. | I27: DGME
A28: Alteración y/o modificación y/o falsificación de los registros | B28: DGME | C28: Interno/Externo | D28: R016 | E28: Ética y Corrupción | H28: 05. Potencializar el uso de las tecnologías de información para la mejora continua de la gestión migratoria | I28: DGME
A29: Altos niveles de stress y/o carga laboral | B29: DGME | C29: Interno | D29: R007 | E29: Recurso Humano | H29: 06. Promover una estrategia de recursos humanos orientada a proporcionar la adaptación sistemática, proactiva y flexible necesarias para el desarrollo de las metas institucionales, por medio del fortalecimiento de capacidades y efectiva evaluación del desempeño. | I29: DGME
A30: Amenazas y/o agresiones | B30: DGME | C30: Interno | D30: R007 | E30: Recurso Humano | H30: 07. Impulsar un modelo de cultura organizacional sustentada en el fomento de los valores institucionales y la ética en la función pública. | I30: DGME
A31: Anteposición de intereses personales | B31: DGME | C31: Interno/Externo | D31: R016 | E31: Ética y Corrupción | H31: 08. Garantizar que el modelo de gestión institucional se sustente en un sistema de control interno consolidado y efectivo que promueva la prevención de riesgos, el uso racional de los recursos y la corrección oportuna de las debilidades que se presenten en la organización y puedan comprometer el logro de los objetivos. | I31: DGME
A32: Aparición de plagas | B32: DGME | C32: Interno | D32: R008 | E32: Ambiente | H32: 09. Implementar herramientas oportunas que faciliten la toma de decisiones, el acceso a la información por parte de los usuarios, el fortalecimiento de los servicios de control y gestión migratoria, así como la imagen institucional. | I32: DGME
A33: Apatía | B33: DGME | C33: Interno | D33: R007 | E33: Recurso Humano | H33: 10. Contar con un entorno físico saludable, seguro, amigable, accesible, que contribuya al desempeño de las y los funcionarios de la DGME y a la satisfacción del servicio por parte de las personas usuarias, así como velar por el cumplimiento de la Ley 7600 y el respeto a los derechos de la población con discapacidad. | I33: DGME
A34: Aperturas de procedimientos disciplinarios | B34: DGME | C34: Externo | D34: R003 | E34: Operativo | H34: 11. Implementar un sistema de gestión ambiental institucional que contemple las variables: sensibilización, concientización y fomento de buenas prácticas ambientales entre todo el personal de la DGME, dirigidas hacia el uso eficiente de los recursos y la prevención de los impactos ambientales que se puedan generar producto de las actividades que realiza la Institución. | I34: DGME
A35: Aplicación de la Ley 8422 | B35: DGME | C35: Interno/Externo | D35: R016 | E35: Ética y Corrupción | H35: 12. Coadyuvar al desarrollo nacional e internacional en el marco de los procesos internacionales dirigidos a población migrante y refugiada. | I35: DGME
A36: Aplicación de la normativa a conveniencia | B36: DINADECO | C36: Interno | D36: R005 | E36: Estratégico
A37: Aplicación de Ley de Género | B37: DGME | C37: Externo | D37: R013 | E37: Legal
A38: Aplicación de ordenes sanitarias | B38: DGME | C38: Interno | D38: R012 | E38: Social
A39: Aplicación de procedimientos diferenciados entre aeropuertos | B39: DGME | C39: Interno | D39: R003 | E39: Operativo
A40: Aplicación de recursos legales | B40: DGME | C40: Externo | D40: R013 | E40: Legal
A41: Aprehensión incorrecta de extranjeros | B41: DGME | C41: Interno | D41: R003 | E41: Operativo
A42: Atención de denuncias | B42: DGME | C42: Interno | D42: R005 | E42: Estratégico
A43: Atención deficiente al usuario | B43: DGME | C43: Interno | D43: R003 | E43: Operativo
A44: Atención inadecuada de casos de repatriación | B44: DGME | C44: Interno | D44: R003 | E44: Operativo
A45: Atención inadecuada de casos vulnerables | B45: DGME | C45: Interno | D45: R003 | E45: Operativo
A46: Atención inadecuada de las personas aprehendidas | B46: DGME | C46: Interno | D46: R003 | E46: Operativo
A47: Atención inoportuno de eventos | B47: DGME | C47: Interno | D47: R001 | E47: Tecnologías de Información
A48: Atraso en exoneraciones | B48: DGME | C48: Interno | D48: R003 | E48: Operativo
A49: Atraso en la confección de resoluciones | B49: DGME | C49: Interno | D49: R003 | E49: Operativo
A50: Atraso internos en la compra de boletos | B50: DGME | C50: Interno | D50: R003 | E50: Operativo
A51: Atrasos en los desembolsos de recursos | B51: DGME | C51: Interno | D51: R002 | E51: Presupuestario
A52: Aumento de aprehendidos | B52: DGME | C52: Externo | D52: R012 | E52: Social
A53: Aumento de costarricenses que retornan al país | B53: DGME | C53: Externo | D53: R012 | E53: Social
A54: Aumento de extranjeros | B54: DGME | C54: Externo | D54: R012 | E54: Social
A55: Aumento de flujos migratorios | B55: DGME | C55: Externo | D55: R012 | E55: Social
A56: Aumento de personas indocumentadas | B56: DGME | C56: Externo/interno | D56: R012 | E56: Social
A57: Aumento de puntos ciegos en la línea fronteriza | B57: DGME | C57: Externo | D57: R012 | E57: Social
A58: Aumento de situaciones de corrupción | B58: DGME | C58: Interno/Externo | D58: R016 | E58: Ética y Corrupción
A59: Aumento de sobornos | B59: DGME | C59: Interno/Externo | D59: R016 | E59: Ética y Corrupción
A60: Ausencia de albergues | B60: DGME | C60: Interno | D60: R003 | E60: Operativo
A61: Ausencia de competencias específicas | B61: Capacitación / Tribunal Administrativo Migratorio | C61: Interno | D61: R007 | E61: Recurso Humano
A62: Ausencia de estudios de clima laboral | B62: Imprenta | C62: Interno | D62: R007 | E62: Recurso Humano
A63: Ausencia de jefatura | B63: UPI AC | C63: Interno | D63: R007 | E63: Recurso Humano
A64: Ausencia de normativa | B64: DGME | C64: Interno/Externo | D64: R016 | E64: Ética y Corrupción
A65: Ausencia de normativa | B65: Metodología | C65: Externo | D65: R013 | E65: Legal
A66: Ausencia de oficiales de ciberseguridad | B66: Imprenta | C66: Interno | D66: R001 | E66: Tecnologías de Información
A67: Ausencia de registro en el sistema SIBINET | B67: Imprenta | C67: Interno | D67: R004 | E67: Insumos
A68: Ausencia de requisitos estatales de construcción | B68: DGME | C68: Externo | D68: R013 | E68: Legal
A69: Ausencia de vocación | B69: DGME | C69: Interno | D69: R007 | E69: Recurso Humano
A70: Ausencia y/o limitación de acceso a sistemas, datos e información | B70: Capacitación AC | C70: Interno | D70: R001 | E70: Tecnologías de Información
A71: Ausentismo laboral | B71: DGME | C71: Interno | D71: R007 | E71: Recurso Humano
A72: Baja capacidad instalada | B72: DGME | C72: Externo | D72: R003 | E72: Operativo
A73: Baja participación de actividades de migramóviles | B73: DGME | C73: Externo | D73: R012/R003 | E73: Social/Operativo
A74: Baja participación en actividades de capacitación | B74: Control de Propaganda | C74: Interno | D74: R007 | E74: Recurso Humano
A75: Baja participación en las capacitaciones | B75: Recursos Humanos AC | C75: Interno | D75: R007 | E75: Recurso Humano
A76: Baja recaudación económica | B76: DGME | C76: Externo | D76: R011 | E76: Financiero
A77: Bajo porcentaje de ejecución presupuestaria | B77: DGME | C77: Interno | D77: R002 | E77: Presupuestario
A78: Bajos estándares de productividad | B78: DGME | C78: Interno | D78: R003 | E78: Operativo
A79: Barrera idiomática | B79: DGME | C79: Externo | D79: R012 | E79: Social
A80: Beneficios a terceros | B80: DGME | C80: Interno/Externo | D80: R016 | E80: Ética y Corrupción
A81: Caída del sistema Avance | B81: Imprenta | C81: Interno | D81: R001 | E81: Tecnologías de Información
A82: Calidad de la materia prima | B82: Metodología | C82: Interno | D82: R004 | E82: Insumos
A83: Calidad deficiente de los documentos | B83: UPI AC | C83: Interno | D83: R014 | E83: Información
A84: Cambio climático | B84: DGME | C84: Externo | D84: R010 | E84: Ambiental
A85: Cambio de fiduciaria | B85: DGME | C85: Externo | D85: R011 | E85: Financiero
A86: Cambio en el perfil de la población migrante | B86: DGME | C86: Externo | D86: R012 | E86: Social
A87: Cambio en las prioridades institucionales | B87: Despacho AC | C87: Interno | D87: R005 | E87: Estratégico
A88: Cambio en precios del mercado | B88: DGME | C88: Externo | D88: R011 | E88: Financiero
A89: Cambios de gobierno | B89: Metodología | C89: Externo | D89: R009 | E89: Políticos
A90: Cambios de jerarquía y/o directores y/o enlaces técnicos y/o representantes | B90: Capacitación AC | C90: Interno | D90: R005 | E90: Estratégico
A91: Cambios demográficos | B91: Metodología | C91: Interno | D91: R012 | E91: Social
A92: Cambios en el sistema monetario internacional | B92: DINADECO | C92: Externo | D92: R010 | E92: Ambiental
A93: Cambios en la normativa financiera | B93: DGME | C93: Externo | D93: R011 | E93: Financiero
A94: Capacidad de respuesta limitada | B94: DGME | C94: Externo | D94: R003 | E94: Operativo
A95: Capacidad para adquirirlos | B95: Metodología | C95: Interno | D95: R004 | E95: Insumos
A96: Casos de biometría positiva | B96: DGME | C96: Interno/externo | D96: R003/R012 | E96: Operativo/ Social
A97: Causales de responsabilidad administrativa | B97: DGME | C97: Externo | D97: R013 | E97: Legal
A98: Ciberseguridad (privacidad, disponibilidad, seguridad, confidencialidad) de la información | B98: DGME | C98: Interno | D98: R001 | E98: Tecnologías de Información
A99: Cierre de consulados costarricenses | B99: DGME | C99: Externo | D99: R015 | E99: Institucional
A100: Cierre de regionales | B100: DGME | C100: Externo | D100: R015 | E100: Institucional
A101: Clasificación inadecuada y/o inclusión errónea de la información | B101: DGME | C101: Interno | D101: R001 | E101: Tecnologías de Información
A102: Clientelismo político | B102: DGME | C102: Interno/Externo | D102: R016 | E102: Ética y Corrupción
A103: Cobro indebido | B103: DGME | C103: Interno/Externo | D103: R016 | E103: Ética y Corrupción
A104: Cohecho impropio | B104: Imprenta | C104: Interno/Externo | D104: R016 | E104: Ética y Corrupción
A105: Colegios de profesionales | B105: Metodología | C105: Externo | D105: R015 | E105: Institucional
A106: Colegios profesionales | B106: Metodología | C106: Externo | D106: R015 | E106: Institucional
A107: Compra de tiquetes sin utilizar | B107: DGME | C107: Interno/externo | D107: R003/R015 | E107: Operativo/Institucional
A108: Comunicación adecuada y veraz en todos los niveles | B108: Metodología | C108: Interno | D108: R005 | E108: Estratégico
A109: Condición migratoria irregular | B109: DGME | C109: Externo | D109: R012 | E109: Social
A110: Conductas inapropiadas de los funcionarios | B110: DGME | C110: Interno/Externo | D110: R016 | E110: Ética y Corrupción
A111: Confianza extranjera | B111: Metodología | C111: Externo | D111: R009 | E111: Políticos
A112: Configuración de equipos de comunicación | B112: DGME | C112: Interno | D112: R001 | E112: Tecnologías de Información
A113: Configuración y/o falla de servidores | B113: DGME | C113: Interno | D113: R001 | E113: Tecnologías de Información
A114: Conflicto de intereses entre instituciones | B114: DGME | C114: Externo | D114: R015 | E114: Institucional
A115: Conflicto de roles | B115: DGME | C115: Interno | D115: R005 | E115: Estratégico
A116: Conflictos o alianzas entre grupos | B116: Metodología | C116: Externo | D116: R012 | E116: Social
A117: Conflictos políticos | B117: Metodología | C117: Externo | D117: R009 | E117: Políticos
A118: Confrontación geopolítica | B118: DINADECO | C118: Externo | D118: R009 | E118: Político
A119: Contagio de enfermedades | B119: DGME | C119: Interno/externo | D119: R007 | E119: Recurso Humano
A120: Contaminación | B120: Metodología | C120: Externo | D120: R010 | E120: Ambiental
A121: Contaminación de las pruebas en investigaciones policiales | B121: DGME | C121: Interno | D121: R003 | E121: Operativo
A122: Contaminantes químicos o biológicos | B122: Metodología | C122: Externo | D122: R008 | E122: Ambiente
A123: Continuidad de Políticas institucionales diseñadas | B123: Metodología | C123: Externo | D123: R009 | E123: Políticos
A124: Continuidad del servicio | B124: DGME | C124: Interno | D124: R003 | E124: Operativo
A125: Contraseñas inseguras | B125: DGME | C125: Interno | D125: R001 | E125: Tecnologías de Información
A126: Contratos no alineados a niveles de servicio (SLA) | B126: DGME | C126: Interno | D126: R003 | E126: Operativo
A127: Contratos obsoletos y/o inexistencia y/o incumplimiento y/o desiertos | B127: DGME | C127: Interno | D127: R002 | E127: Presupuestario
A128: Controles inoperantes | B128: DGME | C128: Externo | D128: R003 | E128: Operativo
A129: Coordinación con los diferentes procesos | B129: Metodología | C129: Interno | D129: R003 | E129: Operativo
A130: Corrupción | B130: DGME | C130: Interno/Externo | D130: R016 | E130: Ética y Corrupción
A131: Crecimiento de ciberdelincuencia | B131: DINADECO | C131: Interno | D131: R001 | E131: Tecnologías de Información
A132: Crisis de recursos naturales | B132: DINADECO | C132: Externo | D132: R010 | E132: Ambiental
A133: Crisis económica | B133: Metodología | C133: Externo | D133: R011 | E133: Financiero
A134: Crisis financiera | B134: DGME | C134: Externo | D134: R011 | E134: Financiero
A135: Crisis migratorias | B135: DGME | C135: Externo | D135: R012 | E135: Social
A136: Cultura organizacional | B136: Metodología | C136: Interno | D136: R005 | E136: Estratégico
A137: Cumplimiento de la misión, visión y objetivos institucionales | B137: Metodología | C137: Interno | D137: R005 | E137: Estratégico
A138: Cumplimiento de metas institucionales | B138: Metodología | C138: Interno | D138: R003 | E138: Operativo
A139: Dádivas | B139: DGME | C139: Interno/Externo | D139: R016 | E139: Ética y Corrupción
A140: Daños en el Centro de Procesamiento de Datos Alterno | B140: DGME | C140: Interno | D140: R001 | E140: Tecnologías de Información
A141: Daños en el Sistema de publicaciones de los Diarios Oficiales | B141: Imprenta | C141: Interno | D141: R006 | E141: Información
A142: Daños en escáner | B142: Imprenta | C142: Interno | D142: R004 | E142: Insumos
A143: Deber de probidad | B143: Imprenta | C143: Interno/Externo | D143: R016 | E143: Ética y Corrupción
A144: Debilitamiento del Sistema de Control interno | B144: DGME | C144: Interno | D144: R003 | E144: Operativo
A145: Deficiencia y/o deterioro en la prestación de servicios | B145: DGME | C145: Interno | D145: R003 | E145: Operativo
A146: Deficiente atención de personas menores de edad | B146: DGME | C146: Externo | D146: R012 | E146: Social
A147: Deficiente servicio de seguridad privada | B147: DGME | C147: Externo | D147: R015 | E147: Institucional
A148: Deficientes controles en ambientes de producción y/o pruebas | B148: DGME | C148: Interno | D148: R001 | E148: Tecnologías de Información
A149: Deficientes sistemas tecnológicos y de información | B149: Despacho AC | C149: Interno | D149: R001 | E149: Tecnologías de Información
A150: Definición clara del centro de trabajo | B150: Metodología | C150: Interno | D150: R003 | E150: Operativo
A151: Demanda insatisfecha | B151: DGME | C151: Interno | D151: R003 | E151: Operativo
A152: Demanda reducida en Artes Gráficas y Diarios Oficiales | B152: Imprenta | C152: Interno | D152: R005 | E152: Estratégico
A153: Denunciantes | B153: Metodología | C153: Externo | D153: R015 | E153: Institucional
A154: Denuncias por infracciones migratorias | B154: DGME | C154: Externo | D154: R012 | E154: Social
A155: Dependencia de los proveedores | B155: DGME | C155: Interno | D155: R004 | E155: Insumos
A156: Dependencia de sistemas información externos | B156: DGME | C156: Interno | D156: R001 | E156: Tecnologías de Información
A157: Deportaciones | B157: DGME | C157: Interno | D157: R003 | E157: Operativo
A158: Desactualización de antivirus | B158: Legal AC | C158: Interno | D158: R001 | E158: Tecnologías de Información
A159: Desactualización de la plataforma tecnológica y/o sistemas y/o aplicaciones | B159: DGME | C159: Interno | D159: R001 | E159: Tecnologías de Información
A160: Desactualización del Protocolo de Repatriación | B160: DGME | C160: Interno | D160: R003 | E160: Operativo
A161: Desarrollo de personal en todos los niveles | B161: Metodología | C161: Interno | D161: R007 | E161: Recurso Humano
A162: Desatención al orden jerárquico | B162: DGME | C162: Interno/Externo | D162: R016 | E162: Ética y Corrupción
A163: Desatención de delitos identificados | B163: DGME | C163: Interno | D163: R003 | E163: Operativo
A164: Desatención de las políticas tecnológicas | B164: DGME | C164: Interno | D164: R001 | E164: Tecnologías de Información
A165: Desconocimiento de lineamientos | B165: DGME | C165: Interno | D165: R003 | E165: Operativo
A166: Desconocimiento del valor público | B166: Despacho AC | C166: Interno | D166: R005 | E166: Estratégico
A167: Designación errónea de un custodio | B167: DGME | C167: Interno | D167: R003 | E167: Operativo
A168: Desinterés en las actividades | B168: RH AC /DGME | C168: Interno | D168: R003 | E168: Recurso Humano
A169: Desorden civil | B169: DGME | C169: Externo | D169: R012 | E169: Social
A170: Desperfectos eléctricos y/o mecánicos | B170: DGME | C170: Interno | D170: R003 | E170: Operativo
A171: Despilfarro de recursos | B171: DGME | C171: Externo | D171: R002 | E171: Presupuestario
A172: Deterioro de la cultura organizacional | B172: DGME | C172: Interno | D172: R005 | E172: Estratégico
A173: Deterioro de unidades móviles | B173: DGME | C173: Interno | D173: R003 | E173: Operativo
A174: Devolución de depósitos de garantía | B174: DGME | C174: Externo | D174: R011 | E174: Financiero
A175: Dificultad para obtener pasaportes | B175: DGME | C175: Externo | D175: R015 | E175: Institucional
A176: Discriminación | B176: DGME | C176: Interno | D176: R007 | E176: Recurso Humano
A177: Discriminación | B177: DGME | C177: Externo | D177: R012 | E177: Social
A178: Disponibilidad laboral | B178: Metodología | C178: Interno | D178: R007 | E178: Recurso Humano
A179: Disponibilidad oportuna de la aplicación creada | B179: Metodología | C179: Interno | D179: R001 | E179: Tecnologías de Información
A180: Documentos fraudulentos | B180: DGME | C180: Interno/Externo | D180: R016 | E180: Ética y Corrupción
A181: Electromagnetismo | B181: DGME | C181: Interno | D181: R008 | E181: Ambiente
A182: Emisión de acuerdos de viajes | B182: DGME | C182: Interno | D182: R003 | E182: Operativo
A183: Emisión de visas erróneas | B183: DGME | C183: Externo | D183: R013 | E183: Legal
A184: Enriquecimiento ilícito | B184: DGME | C184: Interno/Externo | D184: R016 | E184: Ética y Corrupción
A185: Entes privados que administran fondos de la institución | B185: Metodología | C185: Externo | D185: R015 | E185: Institucional
A186: Epidemia | B186: DGME | C186: Externo | D186: R010 | E186: Ambiental
A187: Erosión de la cohesión social y polarización social | B187: DINADECO | C187: Externo | D187: R012 | E187: Social
A188: Errores de calidad en la impresión artes gráficas y digitales | B188: Imprenta | C188: Interno | D188: R003 | E188: Operativo
A189: Errores de digitalización en las modificaciones presupuestarias | B189: Recursos Humanos AC | C189: Interno | D189: R007 | E189: Recurso Humano
A190: Errores de programación | B190: DGME | C190: Interno | D190: R001 | E190: Tecnologías de Información
A191: Espacio inadecuado para atención de audiencias | B191: Legal AC | C191: Interno | D191: R003 | E191: Operativo
A192: Estructura Ocupacional acorde a las necesidades | B192: Metodología | C192: Interno | D192: R003 | E192: Operativo
A193: Estructura Organizacional que responda a las necesidades | B193: Metodología | C193: Interno | D193: R003 | E193: Operativo
A194: Estructuras de trabajo acordes a las necesidades demandadas por los usuarios | B194: Metodología | C194: Interno | D194: R003 | E194: Operativo
A195: Estudios de mercado desactualizados | B195: DGME | C195: Externo | D195: R011 | E195: Financiero
A196: Etiquetado inadecuado de la información | B196: DGME | C196: Interno | D196: R001 | E196: Tecnologías de Información
A197: Eventos o desastres naturales | B197: DGME | C197: Externo | D197: R010 | E197: Ambiental
A198: Exceso de requisitos | B198: Imprenta | C198: Externo | D198: R013 | E198: Legal
A199: Exceso de trazabilidad en los documentos | B199: Legal AC | C199: Interno | D199: R003 | E199: Operativo
A200: Exceso en tramitología interna | B200: Control de Propaganda | C200: Interno | D200: R003 | E200: Operativo
A201: Extralimitación de funciones | B201: DGME | C201: Interno/Externo | D201: R016 | E201: Ética y Corrupción
... 289 more rows

Sheet Especiales (hidden)
B2: Para todos los cuadros se realiza un proceso de normalización, se debe verificar únicamente que el evento 1, este apropiadamente formulado ya que de este se copiaran a los demás. Cada botón ajusta todas las formulas, liberando las celdas a modificar y copiando las formulas. Está operación no daña los contenidos actuales.

Sheet Filtros (hidden)
B1: Imprenta.
A3: Ambiente | B3: Código | C3: Riesgo | D3: Eventos | E3: Procede | H3: Objetivos estrategicos | I3: Procede
E4: Metodología | I4: =CONCATENATE("*",VLOOKUP(B1,'Validaciones SEVRI'!L2:$M$13,2,FALSE),"*") -> *Imprenta*
E5: =CONCATENATE("*",VLOOKUP(B1,'Validaciones SEVRI'!L2:$M$13,2,FALSE),"*") -> *Imprenta*
A15: Ambiente | B15: Código | C15: Riesgo | D15: Eventos | E15: Procede | H15: Objetivos estrategicos | I15: Procede
A16: Externo | B16: R007 | C16: Recurso Humano | D16: Acceso a cursos de inducción | E16: Metodología | H16: 01) Transformar la Imprenta Nacional en un plazo de cuatro años, mediante aplicación de cambios en la normativa e innovación de los productos y servicios que ofrece, para que estén acordes con las tendencias del mercado y con prácticas ambientalmente sostenibles. | I16: Imprenta
A17: Interno | B17: R001 | C17: Tecnologías de Información | D17: Acceso a sistemas y/o datos y/o información | E17: Metodología | H17: 02) Crear las condiciones idóneas para que las instituciones públicas y los mayores generadores de documentos para publicar en los Diarios Oficiales, puedan interconectarse con la Imprenta Nacional para agilizar el tránsito de documentos, mediante el desarrollo de interfaces y procesos que permitan el flujo de documentos a publicar en los Diarios Oficiales por sistemas telemáticos. | I17: Imprenta
A18: Interno | B18: R004 | C18: Insumos | D18: Acceso oportuno para todos | E18: Metodología | H18: 03) Realizar gestión de calidad en la Imprenta Nacional mediante la documentación, estandarización y control de los procesos. | I18: Imprenta
A19: Interno | B19: R003 | C19: Operativo | D19: Accidentes laborales | E19: Imprenta / DGME
A20: Externo | B20: R010 | C20: Ambiental | D20: Acciones humanas | E20: Metodología
A21: Interno | B21: R007 | C21: Recurso Humano | D21: Acoso sexual y laboral | E21: Metodología
A22: Interno | B22: R007 | C22: Recurso Humano | D22: Adecuados programas de incentivos y compensación | E22: Metodología
A23: Interno | B23: R014 | C23: Información | D23: Adecuados y eficientes canales de comunicación | E23: Metodología
A24: Interno | B24: R004 | C24: Insumos | D24: Adquisición de insumos de baja calidad | E24: Imprenta
A25: Interno/Externo | B25: R016 | C25: Ética y Corrupción | D25: Adulteración de información | E25: Metodología
A26: Interno | B26: R004 | C26: Insumos | D26: Almacenamiento en áreas inadecuadas | E26: Imprenta
A27: Interno | B27: R005 | C27: Estratégico | D27: Alteración en la planificación de la producción | E27: Imprenta
A28: Interno | B28: R007 | C28: Recurso Humano | D28: Ausencia de estudios de clima laboral | E28: Imprenta
A29: Externo | B29: R013 | C29: Legal | D29: Ausencia de normativa | E29: Metodología
A30: Interno | B30: R001 | C30: Tecnologías de Información | D30: Ausencia de oficiales de ciberseguridad | E30: Imprenta
A31: Interno | B31: R004 | C31: Insumos | D31: Ausencia de registro en el sistema SIBINET | E31: Imprenta
A32: Interno | B32: R001 | C32: Tecnologías de Información | D32: Caída del sistema Avance | E32: Imprenta
A33: Interno | B33: R004 | C33: Insumos | D33: Calidad de la materia prima | E33: Metodología
A34: Externo | B34: R009 | C34: Políticos | D34: Cambios de gobierno | E34: Metodología
A35: Interno | B35: R012 | C35: Social | D35: Cambios demográficos | E35: Metodología
A36: Interno | B36: R004 | C36: Insumos | D36: Capacidad para adquirirlos | E36: Metodología
A37: Interno/Externo | B37: R016 | C37: Ética y Corrupción | D37: Cohecho impropio | E37: Imprenta
A38: Externo | B38: R015 | C38: Institucional | D38: Colegios de profesionales | E38: Metodología
A39: Externo | B39: R015 | C39: Institucional | D39: Colegios profesionales | E39: Metodología
A40: Interno | B40: R005 | C40: Estratégico | D40: Comunicación adecuada y veraz en todos los niveles | E40: Metodología
A41: Externo | B41: R009 | C41: Políticos | D41: Confianza extranjera | E41: Metodología
A42: Externo | B42: R012 | C42: Social | D42: Conflictos o alianzas entre grupos | E42: Metodología
A43: Externo | B43: R009 | C43: Políticos | D43: Conflictos políticos | E43: Metodología
A44: Externo | B44: R010 | C44: Ambiental | D44: Contaminación | E44: Metodología
A45: Externo | B45: R008 | C45: Ambiente | D45: Contaminantes químicos o biológicos | E45: Metodología
A46: Externo | B46: R009 | C46: Políticos | D46: Continuidad de Políticas institucionales diseñadas | E46: Metodología
A47: Interno | B47: R003 | C47: Operativo | D47: Coordinación con los diferentes procesos | E47: Metodología
A48: Externo | B48: R011 | C48: Financiero | D48: Crisis económica | E48: Metodología
A49: Interno | B49: R005 | C49: Estratégico | D49: Cultura organizacional | E49: Metodología
A50: Interno | B50: R005 | C50: Estratégico | D50: Cumplimiento de la misión, visión y objetivos institucionales | E50: Metodología
A51: Interno | B51: R003 | C51: Operativo | D51: Cumplimiento de metas institucionales | E51: Metodología
A52: Interno | B52: R006 | C52: Información | D52: Daños en el Sistema de publicaciones de los Diarios Oficiales | E52: Imprenta
A53: Interno | B53: R004 | C53: Insumos | D53: Daños en escáner | E53: Imprenta
A54: Interno/Externo | B54: R016 | C54: Ética y Corrupción | D54: Deber de probidad | E54: Imprenta
A55: Interno | B55: R003 | C55: Operativo | D55: Definición clara del centro de trabajo | E55: Metodología
A56: Interno | B56: R005 | C56: Estratégico | D56: Demanda reducida en Artes Gráficas y Diarios Oficiales | E56: Imprenta
A57: Externo | B57: R015 | C57: Institucional | D57: Denunciantes | E57: Metodología
A58: Interno | B58: R007 | C58: Recurso Humano | D58: Desarrollo de personal en todos los niveles | E58: Metodología
A59: Interno | B59: R007 | C59: Recurso Humano | D59: Disponibilidad laboral | E59: Metodología
A60: Interno | B60: R001 | C60: Tecnologías de Información | D60: Disponibilidad oportuna de la aplicación creada | E60: Metodología
A61: Externo | B61: R015 | C61: Institucional | D61: Entes privados que administran fondos de la institución | E61: Metodología
A62: Interno | B62: R003 | C62: Operativo | D62: Errores de calidad en la impresión artes gráficas y digitales | E62: Imprenta
A63: Interno | B63: R003 | C63: Operativo | D63: Estructura Ocupacional acorde a las necesidades | E63: Metodología
A64: Interno | B64: R003 | C64: Operativo | D64: Estructura Organizacional que responda a las necesidades | E64: Metodología
A65: Interno | B65: R003 | C65: Operativo | D65: Estructuras de trabajo acordes a las necesidades demandadas por los usuarios | E65: Metodología
A66: Externo | B66: R013 | C66: Legal | D66: Exceso de requisitos | E66: Imprenta
A67: Interno | B67: R004 | C67: Insumos | D67: Extravío y/o pérdida de activos y/o equipo | E67: Imprenta
A68: Interno | B68: R003 | C68: Operativo | D68: Fallas eléctricas y/o planta eléctrica | E68: DGME/Imprenta
A69: Interno | B69: R003 | C69: Operativo | D69: Fallas en el inventario de productos de entrega y materiales | E69: Imprenta
A70: Interno | B70: R001 | C70: Tecnologías de Información | D70: Fallas en la conexión con el VPN | E70: Imprenta
A71: Interno | B71: R003 | C71: Operativo | D71: Fallas mecánicas en las maquinarias de producción | E71: Imprenta
A72: Interno | B72: R003 | C72: Operativo | D72: Falta de automatización y/o inconsistencias en los procesos y/o trámites | E72: DGME / Imprenta
A73: Interno | B73: R003 | C73: Operativo | D73: Falta de calidad de los trabajos asignados | E73: Imprenta
A74: Interno | B74: R003 | C74: Operativo | D74: Falta de criterio legal | E74: Imprenta
A75: Interno | B75: R005 | C75: Estratégico | D75: Falta de seguimiento y/o incumplimiento de metas, objetivos e indicadores | E75: DGME / Imprenta
A76: Interno | B76: R001 | C76: Tecnologías de Información | D76: Falta y/o fallas en el Sistema Integrado de Administración Financiera | E76: Imprenta
A77: Externo | B77: R011 | C77: Financiero | D77: Fluctuación en tasa de interés | E77: Metodología
A78: Interno | B78: R002 | C78: Presupuestario | D78: Flujo de caja | E78: Metodología
A79: Interno | B79: R007 | C79: Recurso Humano | D79: Idoneidad del personal contratado | E79: Metodología
A80: Externo | B80: R008 | C80: Ambiente | D80: Iluminación del centro de trabajo | E80: Metodología
A81: Interno | B81: R005 | C81: Estratégico | D81: Imagen Institucional | E81: Metodología
A82: Interno | B82: R002 | C82: Presupuestario | D82: Inadecuada proyección de flujo de caja | E82: Imprenta
A83: Interno | B83: R003 | C83: Operativo | D83: Inadecuada resolución de problemas y/o conflictos | E83: Imprenta
A84: Interno | B84: R001 | C84: Tecnologías de Información | D84: Inadecuado traslado y custodia de los respaldos | E84: DGME/Imprenta
A85: Interno | B85: R003 | C85: Operativo | D85: Incapacidad para brindar terapia física | E85: Imprenta
A86: Interno | B86: R008 | C86: Ambiente | D86: Incendio del centro de trabajo | E86: Metodología
A87: Externo | B87: R010 | C87: Ambiental | D87: Incendios | E87: Metodología
A88: Interno | B88: R003 | C88: Operativo | D88: Inclusión errónea de los proveedores en el SIGAF | E88: Imprenta
A89: Interno | B89: R006 | C89: Información | D89: Inconsistencias de la información presupuestaria y/o planificación | E89: Imprenta/UPI
A90: Interno | B90: R004 | C90: Insumos | D90: Inconsistencias en el mantenimiento de la infraestructura | E90: Imprenta
A91: Interno | B91: R006 | C91: Información | D91: Inconsistencias en los plazos establecidos de Conservación de Documentos | E91: Imprenta
A92: Interno | B92: R007 | C92: Recurso Humano | D92: Incumplimiento de capacitación ante CECADES | E92: Imprenta
A93: Externo | B93: R013 | C93: Legal | D93: Incumplimiento de Ley 7600 | E93: DGME / Imprenta
A94: Interno | B94: R013 | C94: Legal | D94: Incumplimiento de los derechos humanos | E94: Imprenta
A95: Interno/Externo | B95: R016 | C95: Ética y Corrupción | D95: Incumplimiento de normativa de las empresas | E95: Imprenta
A96: Externo | B96: R013 | C96: Legal | D96: Incumplimiento de normativa y regulaciones | E96: Metodología
A97: Interno | B97: R003 | C97: Operativo | D97: Incumplimiento de plazos de respuesta | E97: Imprenta /DGME
A98: Interno | B98: R003 | C98: Operativo | D98: Incumplimiento de plazos en entrega de bienes y servicios | E98: Imprenta/DGME
A99: Interno | B99: R002 | C99: Presupuestario | D99: Incumplimiento del Plan de Compras | E99: Imprenta
A100: Interno | B100: R003 | C100: Operativo | D100: Incumplimiento del plazo para devolución de facturas | E100: Imprenta
A101: Interno | B101: R007 | C101: Recurso Humano | D101: Incumplimiento en el pago de un componente salarial o compensación | E101: Imprenta
A102: Interno | B102: R007 | C102: Recurso Humano | D102: Incumplimiento en la entrega de los estados financieros | E102: Imprenta
A103: Interno | B103: R003 | C103: Operativo | D103: Incumplimiento en la entrega de matrices de teletrabajo | E103: Imprenta
A104: Interno | B104: R003 | C104: Operativo | D104: Incumplimiento i/o falta Manuales de Puestos | E104: Imprenta
A105: Interno/Externo | B105: R016 | C105: Ética y Corrupción | D105: Incumplimiento y/o negligencia en las funciones | E105: Imprenta /OCP
A106: Interno | B106: R003 | C106: Operativo | D106: Incumplimiento y/o omisión en la entrega de informes y/o información | E106: Imprenta / UPI AC
A107: Externo | B107: R011 | C107: Financiero | D107: Inflación | E107: Metodología
A108: Externo | B108: R014 | C108: Información | D108: Información accesible, física o digital | E108: Metodología
A109: Externo | B109: R014 | C109: Información | D109: Información de gestión | E109: Metodología
A110: Externo | B110: R014 | C110: Información | D110: Información estratégica | E110: Metodología
A111: Interna | B111: R006 | C111: Información | D111: Información estratégica | E111: Metodología
A112: Externo | B112: R014 | C112: Información | D112: Información operativa | E112: Metodología
A113: Interna | B113: R006 | C113: Información | D113: Información operativa | E113: Metodología
A114: Interno | B114: R001 | C114: Tecnologías de Información | D114: Infraestructura de información tecnológica efectiva (hardware, software, redes, entre otros) | E114: Metodología
A115: Externo | B115: R012 | C115: Social | D115: Infuencia de los medios de comunicación | E115: Metodología
A116: Interno | B116: R003 | C116: Operativo | D116: Inicio o conato de incendio | E116: Imprenta/DGME
A117: Interno | B117: R003 | C117: Operativo | D117: Insuficiente espacio de almacenamiento | E117: Imprenta
A118: Interno | B118: R003 | C118: Operativo | D118: Insuficiente supervisión al personal | E118: Imprenta
A119: Interno | B119: R001 | C119: Tecnologías de Información | D119: Integridad de las aplicaciones utilizadas en la unidad | E119: Metodología
A120: Interno | B120: R007 | C120: Recurso Humano | D120: Integridad en su labores | E120: Metodología
A121: Interno | B121: R003 | C121: Operativo | D121: Interrupción del proceso de empaque | E121: Imprenta
A122: Interno | B122: R007 | C122: Recurso Humano | D122: Interrupción del servicio de trámites comerciales | E122: Imprenta
A123: Interno | B123: R010 | C123: Ambiental | D123: Inundaciones, huracanes, terremotos, etc. | E123: Metodología
A124: Interno | B124: R005 | C124: Estratégico | D124: Liderazgo en la dirección del personal | E124: Metodología
A125: Interno | B125: R007 | C125: Recurso Humano | D125: Limitaciones en la prevención de problemas de salud ocupacional | E125: Imprenta
A126: Interno | B126: R005 | C126: Estratégico | D126: Líneas de autoridad efectivas | E126: Metodología
A127: Interno | B127: R001 | C127: Tecnologías de Información | D127: Los sistemas se ajustan a las necesidades institucionales | E127: Metodología
A128: Interno | B128: R004 | C128: Insumos | D128: Manejo de activos (rotulación, certificación, baja, alta, inscripción de bienes intangibles, avalúos y bienes muebles e inmuebles) | E128: Metodología
A129: Interno | B129: R003 | C129: Operativo | D129: Manipulación de máquinas y herramientas peligrosas | E129: Metodología
A130: Interno | B130: R003 | C130: Operativo | D130: Manipulación de sustancias tóxicas | E130: Metodología
A131: Interno | B131: R004 | C131: Insumos | D131: Mantenimiento continuo para la adecuada ejecución del trabajo | E131: Metodología
A132: Interno | B132: R003 | C132: Operativo | D132: Manual institucional de clases desactualizado | E132: Imprenta
A133: Interno | B133: R003 | C133: Operativo | D133: Manuales administrativos actualizados | E133: Metodología
A134: Interno | B134: R003 | C134: Operativo | D134: Manuales administrativos desactualizados o no idóneos | E134: DGME/Imprenta/AC
A135: Interno | B135: R002 | C135: Presupuestario | D135: Morosidad en las cuentas | E135: Imprenta
A136: Interno | B136: R007 | C136: Recurso Humano | D136: Motivación y compensación | E136: Metodología
A137: Externo | B137: R013 | C137: Legal | D137: Necesidades de normativa | E137: Metodología
A138: Interno | B138: R003 | C138: Operativo | D138: Omisiones en el ejercicio de las funciones | E138: Imprenta
A139: Externo | B139: R015 | C139: Institucional | D139: Organismos internacionales que apoyan la Gestión | E139: Metodología
A140: Externo | B140: R015 | C140: Institucional | D140: Órganos de control externo | E140: Metodología
A141: Interno | B141: R005 | C141: Estratégico | D141: Pérdida de imagen institucional | E141: Imprenta / DGME
A142: Interno | B142: R001 | C142: Tecnologías de Información | D142: Pérdida de información histórica de las Gacetas | E142: Imprenta
A143: Interno | B143: R003 | C143: Operativo | D143: Pérdida de oportunidades para ofertar el servicio | E143: Imprenta
A144: Externo | B144: R009 | C144: Políticos | D144: Políticas públicas inconsistentes | E144: Metodología
A145: Externo | B145: R009 | C145: Político | D145: Políticas públicas inconsistentes mediante Directrices ministeriales | E145: Imprenta
A146: Interno | B146: R001 | C146: Tecnologico | D146: Posibles fallas en el SIGAF | E146: Imprenta
A147: Interno | B147: R002 | C147: Presupuestario | D147: Presupuesto asignado para la operación | E147: Metodología
A148: Interno | B148: R002 | C148: Presupuestario | D148: Presupuesto insuficiente | E148: Imprenta
A149: Interno | B149: R001 | C149: Tecnologías de Información | D149: Problemas de conectividad a internet | E149: Imprenta
A150: Interno | B150: R003 | C150: Operativo | D150: Procedimientos, lineamientos e instrucciones claros para la efectiva realización del trabajo | E150: Metodología
A151: Interno | B151: R007 | C151: Recurso Humano | D151: Procesos constantes de capacitación | E151: Metodología
A152: Interno | B152: R005 | C152: Estratégico | D152: Procesos de planificación claros | E152: Metodología
A153: Interno | B153: R007 | C153: Recurso Humano | D153: Programa de incentivos | E153: Metodología
A154: Externo | B154: R015 | C154: Institucional | D154: Proveedores privados | E154: Metodología
A155: Interno | B155: R004 | C155: Insumos | D155: Proveedores satisfacen las necesidades institucionales | E155: Metodología
A156: Externo | B156: R013 | C156: Legal | D156: Querellas o juicios que afectan a la institución | E156: Metodología
A157: Externo | B157: R011 | C157: Financiero | D157: Recesión económica | E157: Metodología
A158: Interno | B158: R007 | C158: Recurso Humano | D158: Reducción de la demanda del servicio de producción gráfica | E158: Imprenta
A159: Interno | B159: R001 | C159: Tecnologías de Información | D159: Relevancia de los sistemas, de las técnicas de recuperación, respaldos de la información y planes de contingencia | E159: Metodología
A160: Interno | B160: R005 | C160: Estratégico | D160: Resistencia ante el cambio | E160: Metodología
A161: Interno | B161: R008 | C161: Ambiente | D161: Ruido del centro de trabajo | E161: Metodología
A162: Externo | B162: R012 | C162: Social | D162: Salud de los habitantes | E162: Metodología
A163: Interno | B163: R007 | C163: Recurso Humano | D163: Salud ocupacional (mental, física y psicológica) | E163: Metodología
A164: Externo | B164: R012 | C164: Social | D164: Satisfacción de los usuarios | E164: Metodología
A165: Interno | B165: R003 | C165: Operativo | D165: Seguimiento en los procesos | E165: Metodología
A166: Externo | B166: R012 | C166: Social | D166: Seguridad ciudadana | E166: Metodología
A167: Interno | B167: R003 | C167: Operativo | D167: Servicios institucionales que satisfagan las necesidades | E167: Metodología
A168: Externo | B168: R002 | C168: Presupuestario | D168: Subejecución presupuestaria | E168: Imprenta/Despacho/DGME
A169: Interno | B169: R007 | C169: Recurso Humano | D169: Sumas pagadas de más o adeudadas en el salario | E169: Imprenta
A170: Interno | B170: R007 | C170: Recurso Humano | D170: Suspensión de concursos internos y/o ascenso directo | E170: Imprenta
A171: Interno | B171: R005 | C171: Estratégico | D171: Suspensión de contratos | E171: Imprenta
A172: Interno | B172: R003 | C172: Operativo | D172: Suspensión de fases del proceso de producción | E172: Imprenta
A173: Interno | B173: R002 | C173: Presupuestario | D173: Suspensión de servicios públicos | E173: Imprenta
A174: Interno | B174: R004 | C174: Insumos | D174: Tener disponibilidad para atender necesidades de operación | E174: Metodología
A175: Interno | B175: R003 | C175: Operativo | D175: Tiempo de entrega del producto final | E175: Metodología
A176: Externo | B176: R012 | C176: Social | D176: Tolerancia a las diferencias culturales | E176: Metodología
A177: Interno | B177: R007 | C177: Recurso Humano | D177: Trabajo rutinario y monótono | E177: Metodología
A178: Interno | B178: R003 | C178: Operativo | D178: Trámites inconclusos de contratación administrativa | E178: Imprenta
A179: Interno | B179: R004 | C179: Insumos | D179: Uso adecuado y racional | E179: Metodología
A180: Interno/Externo | B180: R016 | C180: Ética y Corrupción | D180: Uso inadecuado del patrimonio público | E180: Imprenta /DGME
A181: Interno | B181: R004 | C181: Insumos | D181: Vencimiento de plazos dados en el sistema SICOP | E181: Imprenta
A182: Interno | B182: R008 | C182: Ambiente | D182: Ventilación del centro de trabajo | E182: Metodología

Sheet Introducción (hidden)
A1: Unidad de Planificación del Ministerio de Gobernación y Policía
A2: Elaboración contenidos PAO: | F2: MSc Elma Bejarano Lichi
A3: Elaboración contenidos SEVRI: | F3: Licda. Irene Rojas Valerio
A4: Versión 1.7 Febrero_2022 | E4: Plantilla elaborado por: | F4: Máster Manuel Roberto Sánchez Portilla
E5: Fecha: | F5: 2021-03-01
A6: Descripción y observaciones sobre su uso:
A7: El presente documento tiene como fin servir como herramienta a la hora de planificar el Plan Anual Operativo y aplicar el Sistema Específico de Valoración del Riesgo Institucional de cada una de las unidades y adscritas del Ministerio de Gobernación y Policía, según corresponda.
A8: Además, integran matrices del SEVRI, en cada hoja se transcribió la información contenida en cada una de las matrices, al cúal ha sido tomada del procedimiento del SEVRI, aprobado por el Equipo Gerencial de Control Interno en el año 2014.
A9: A traves de las difentes hojas, puede modificar/incluir datos y/o contenido en las celdas que estan sombreadas con este color de fondo
A13: CONTROL DE CAMBIOS DE LA PLANTILLA
A14: Versión: | B14: 1.1 | F14: Descripción de Cambios Inlcuídos:
A15: Fecha: | B15: 2021-04-19 | F15: Se aumentan los espacios, para hasta 7 actividades por cada objetivo táctico. Se sombrean las celdas que se pueden modificar. Se automatiza la Matriz 4 de Administración y la Matriz 5 de Seguimiento
A16: Nombre | B16: Manuel Roberto Sánchez Portilla
A17: Versión: | B17: 1.2 | F17: Descripción de Cambios Inlcuídos:
A18: Fecha: | B18: 2021-06-02 | F18: Se aumenta esta versión para que puedan inlcuir hasta 120 objetivos. Se actualiza la cantidad de riesgos a incluir por cada objetivo estratégico (7 riesgos). Se actualizan todas la matrices de SEVRI para que coincidan con las todas las tablas.
A19: Nombre | B19: Manuel Roberto Sánchez Portilla
A20: Versión: | B20: 1.3 | F20: Descripción de Cambios Inlcuídos:
A21: Fecha: | B21: 20 septiembre del 2021 | F21: Sumatorias de riesgos en Matriz N°1, celda L9:M9, cuadro suma riesgos residuales en MatrizN°2 celda L9:M12.
A22: Nombre | B22: Manuel Roberto Sánchez Portilla
A23: Versión: | B23: 1.4 | F23: Descripción de Cambios Inlcuídos:
A24: Fecha: | B24: 2021-11-17 | F24: Se incluyen los cuadros y compilados para el informe en diferentes hojas.
A25: Nombre | B25: Fallon Madrigal Rovira
A26: Versión: | B26: 1.5 | F26: Descripción de Cambios Inlcuídos:
A27: Fecha: | B27: Jueves 18 de Noviembre de 2021 | F27: Ajustes a los objetivos estratégicos producto de la reformulación del PEI. Escala de valoración de objetivos táctivos. La matriz de PAO se modifica para calificar el objetivo en una sola línea.
A28: Nombre | B28: Manuel Roberto Sánchez Portilla
A29: Versión: | B29: 1.6 | F29: Descripción de Cambios Inlcuídos:
A30: Fecha: | B30: Martes 8 de febrero de 2022 | F30: Cambios en el formato de las líneas de los objetivos en las matrices 3 y 4. Cambio en las formulas para la valoración del objetivo específico.
A31: Nombre | B31: Manuel Roberto Sánchez Portilla
A32: Versión: | B32: 1.7 | F32: Descripción de Cambios Inlcuídos:
A33: Fecha: | B33: Lunes 21 de febrero de 2022 | F33: Cambios efectuados en el PAO en las columnas del I seguimiento, se desplazo la columna a la par del porcentaje. Además, se agregan columnas extras para el II Seguimiento. La columna "K" toma la información de las actividades ingresadas en el planeamiento.
A34: Nombre | B34: Manuel Roberto Sánchez Portilla
A35: Versión: | B35: 1.8 | F35: Descripción de Cambios Inlcuídos:
A36: Fecha:
A37: Nombre
A38: Versión: | B38: 1.9 | F38: Descripción de Cambios Inlcuídos:
A39: Fecha:
A40: Nombre
A41: Versión: | B41: 2 | F41: Descripción de Cambios Inlcuídos:
A42: Fecha:
A43: Nombre
A44: Versión: | B44: 2.1 | F44: Descripción de Cambios Inlcuídos:
A45: Fecha:
A46: Nombre
A47: Versión: | B47: 2.2 | F47: Descripción de Cambios Inlcuídos:
A48: Fecha:
A49: Nombre
A50: Versión: | B50: 2.3 | F50: Descripción de Cambios Inlcuídos:
A51: Fecha:
A52: Nombre
A53: Versión: | B53: 2.4 | F53: Descripción de Cambios Inlcuídos:
A54: Fecha:
A55: Nombre

Sheet PAO
A1: MINISTERIO DE GOBERNACIÓN Y POLICÍA
A2: MATRIZ DE FORMULACIÓN Y SEGUIMIENTO
A3: =CONCATENATE("PLAN ANUAL OPERATIVO AÑO ",Bienvenida!E9) -> PLAN ANUAL OPERATIVO AÑO 2025
A4: =Bienvenida!E11 -> Unidad de Planificación
A5: =Bienvenida!E13 -> Mauricio Rivas Camacho / Yenory Carrillo Cruz
A6: ETAPA DE FORMULACIÓN | G6: I SEGUIMIENTO (AGOSTO) | K6: II SEGUIMIENTO (ENERO AÑO SIGUIENTE)
A7: Objetivo Estratégico: | B7: 01) Transformar la Imprenta Nacional en un plazo de cuatro años, mediante aplicación de cambios en la normativa e innovación de los productos y servicios que ofrece, para que estén acordes con las tendencias del mercado y con prácticas ambientalmente sostenibles. | S7: I Seguimiento
A8: (a) Objetivo táctico o específico ¿Qué se pretende alcanzar y para qué? | B8: (b) Meta ¿Qué se propone? Calidad y cantidad | C8: (c) Indicador ¿Cómo medirlo? (número, cantidad, porcentaje) | D8: (d) Actividad (es) ¿Cómo lograrlo? | E8: (e) Unidad (es) responsable (s) | F8: (f) Presupuesto (en caso de contar, sino colocar N/T) | G8: (h) Justificación | H8: (i) Evidencia (oficios, actas, minutas, correos, reglamentos, manuales, etc.) | I8: (g) Porcentaje de cumplimiento | J8: (j) Estado de la meta (MC, MPC, MNC) | K8: (d) Actividad (es) Según formulación | L8: (h) Justificación | M8: (i) Evidencia (oficios, actas, minutas, correos, reglamentos, manuales, etc.) | N8: (g) Porcentaje de cumplimiento | O8: (j) Estado de la meta (MC, MPC, MNC) | S8: Total Cumplidas | T8: =COUNTIF($J$1:$J$1086,"Meta Cumplida (MC)") -> 0
A9: 1 | B9: Contar con un montacargas en óptimas condiciones para las labores que lo requieran. | C9: Montacargas en óptimas condiciones y operando. | D9: mantenimiento preventivo y correctivo del equipo (Montacargas) | E9: Almacen y Distribución | F9: 300000 | J9: =IFERROR(AVERAGE(I9),"") ->  | K9: =IF(D9<>"",D9,"") -> mantenimiento preventivo y correctivo del equipo (Montacargas) | O9: =IFERROR(AVERAGE(N9),"") ->  | S9: Total Parcialmente Cumplidas | T9: =COUNTIF($J$1:$J$1086,"Meta Parcialmente Cumplida (MPC)") -> 0
A10: Contar con los recursos que nos permita efectuar el cambio o reparación del montacargas en forma expedita cuando este sufra algun tipo de problema que le impida un normal funcionamiento. | J10: =IFERROR(VLOOKUP(J9,'Datos Validaciones PAO'!$N$2:$O$102,2,TRUE),"") ->  | K10: =IF(D10<>"",D10,"") ->  | O10: =IFERROR(VLOOKUP(O9,'Datos Validaciones PAO'!$N$2:$O$102,2,TRUE),"") ->  | S10: Total No Cumplidas | T10: =COUNTIF($J$1:$J$1086,"Meta No Cumplida (MNC)") -> 2
T11: =SUM(T8:T10) -> 2
S12: II Seguimiento
S13: Total Cumplidas | T13: =COUNTIF($O$1:$O$1086,"Meta Cumplida (MC)") -> 3
S14: Total Parcialmente Cumplidas | T14: =COUNTIF($O$1:$O$1086,"Meta Parcialmente Cumplida (MPC)") -> 0
S15: Total No Cumplidas | T15: =COUNTIF($O$1:$O$1086,"Meta No Cumplida (MNC)") -> 0
A16: Objetivo Estratégico: | B16: 01) Transformar la Imprenta Nacional en un plazo de cuatro años, mediante aplicación de cambios en la normativa e innovación de los productos y servicios que ofrece, para que estén acordes con las tendencias del mercado y con prácticas ambientalmente sostenibles. | T16: =SUM(T13:T15) -> 3
A17: (a) Objetivo táctico o específico ¿Qué se pretende alcanzar y para qué? | B17: (b) Meta ¿Qué se propone? Calidad y cantidad | C17: (c) Indicador ¿Cómo medirlo? (número, cantidad, porcentaje) | D17: (d) Actividad (es) ¿Cómo lograrlo? | E17: (e) Unidad (es) responsable (s) | F17: (f) Presupuesto (en caso de contar, sino colocar N/T) | G17: (h) Justificación | H17: (i) Evidencia (oficios, actas, minutas, correos, reglamentos, manuales, etc.) | I17: (g) Porcentaje de cumplimiento | J17: (j) Estado de la meta (MC, MPC, MNC) | K17: (d) Actividad (es) ¿Cómo lograrlo? | L17: (h) Justificación | M17: (i) Evidencia (oficios, actas, minutas, correos, reglamentos, manuales, etc.) | N17: (g) Porcentaje de cumplimiento | O17: (j) Estado de la meta (MC, MPC, MNC)
A18: =A9+1 -> 2 | B18: Mantener el equipo asegurado con la póliza correspondiente | C18: Vehículos operando y al día con los derechos de circulación. | D18: Póliza de montacargas | E18: Almacen y Distribución | F18: 300000 | J18: =IFERROR(AVERAGE(I18),"") ->  | K18: =IF(D18<>"",D18,"") -> Póliza de montacargas | N18: 1 | O18: =IFERROR(AVERAGE(N18),"") -> 1
A19: Cumplimiento del derecho de circulación. | J19: =IFERROR(VLOOKUP(J18,'Datos Validaciones PAO'!$N$2:$O$102,2,TRUE),"") ->  | K19: =IF(D19<>"",D19,"") ->  | O19: =IFERROR(VLOOKUP(O18,'Datos Validaciones PAO'!$N$2:$O$102,2,TRUE),"") -> Meta Cumplida (MC) | S19: Comprobación | T19: =IF((T11-T16)=0, "Completado", "Revisar") -> Revisar
K20: =IF(D20<>"",D20,"") -> 
A25: Objetivo Estratégico: | B25: 01) Transformar la Imprenta Nacional en un plazo de cuatro años, mediante aplicación de cambios en la normativa e innovación de los productos y servicios que ofrece, para que estén acordes con las tendencias del mercado y con prácticas ambientalmente sostenibles.
A26: (a) Objetivo táctico o específico ¿Qué se pretende alcanzar y para qué? | B26: (b) Meta ¿Qué se propone? Calidad y cantidad | C26: (c) Indicador ¿Cómo medirlo? (número, cantidad, porcentaje) | D26: (d) Actividad (es) ¿Cómo lograrlo? | E26: (e) Unidad (es) responsable (s) | F26: (f) Presupuesto (en caso de contar, sino colocar N/T) | G26: (h) Justificación | H26: (i) Evidencia (oficios, actas, minutas, correos, reglamentos, manuales, etc.) | I26: (g) Porcentaje de cumplimiento | J26: (j) Estado de la meta (MC, MPC, MNC) | K26: (d) Actividad (es) ¿Cómo lograrlo? | L26: (h) Justificación | M26: (i) Evidencia (oficios, actas, minutas, correos, reglamentos, manuales, etc.) | N26: (g) Porcentaje de cumplimiento | O26: (j) Estado de la meta (MC, MPC, MNC)
A27: =A18+1 -> 3 | B27: Realizar una semana cultural al año. | C27: Semana cultural realizada en la fecha programada | D27: Convivio cultural de los funcionarios de la Imprenta que se realiza una vez al año. | E27: Dirección General | F27: 1790000 | J27: =IFERROR(AVERAGE(I27),"") ->  | K27: =IF(D27<>"",D27,"") -> Convivio cultural de los funcionarios de la Imprenta que se realiza una vez al año. | O27: =IFERROR(AVERAGE(N27),"") -> 
A28: Garantizar el convivio cultural de los funcionarios de la Imprenta Nacional | J28: =IFERROR(VLOOKUP(J27,'Datos Validaciones PAO'!$N$2:$O$102,2,TRUE),"") ->  | K28: =IF(D28<>"",D28,"") ->  | O28: =IFERROR(VLOOKUP(O27,'Datos Validaciones PAO'!$N$2:$O$102,2,TRUE),"") -> 
A34: Objetivo Estratégico: | B34: 01) Transformar la Imprenta Nacional en un plazo de cuatro años, mediante aplicación de cambios en la normativa e innovación de los productos y servicios que ofrece, para que estén acordes con las tendencias del mercado y con prácticas ambientalmente sostenibles.
A35: (a) Objetivo táctico o específico ¿Qué se pretende alcanzar y para qué? | B35: (b) Meta ¿Qué se propone? Calidad y cantidad | C35: (c) Indicador ¿Cómo medirlo? (número, cantidad, porcentaje) | D35: (d) Actividad (es) ¿Cómo lograrlo? | E35: (e) Unidad (es) responsable (s) | F35: (f) Presupuesto (en caso de contar, sino colocar N/T) | G35: (h) Justificación | H35: (i) Evidencia (oficios, actas, minutas, correos, reglamentos, manuales, etc.) | I35: (g) Porcentaje de cumplimiento | J35: (j) Estado de la meta (MC, MPC, MNC) | K35: (d) Actividad (es) ¿Cómo lograrlo? | L35: (h) Justificación | M35: (i) Evidencia (oficios, actas, minutas, correos, reglamentos, manuales, etc.) | N35: (g) Porcentaje de cumplimiento | O35: (j) Estado de la meta (MC, MPC, MNC)
A36: =A27+1 -> 4 | B36: Gestionar o continuar con la contratación de papeles y cartulinas para comprar el material requerido. | C36: Contratación ejecutada | D36: Gestionar o continuar con la contratación | E36: Dirección de Producción | F36: 90000000 | J36: =IFERROR(AVERAGE(I36),"") ->  | K36: =IF(D36<>"",D36,"") -> Gestionar o continuar con la contratación | O36: =IFERROR(AVERAGE(N36),"") -> 
A37: Contar en inventario con distintos papeles y cartulinas para la producción de los impresos comerciales. | J37: =IFERROR(VLOOKUP(J36,'Datos Validaciones PAO'!$N$2:$O$102,2,TRUE),"") ->  | K37: =IF(D37<>"",D37,"") ->  | O37: =IFERROR(VLOOKUP(O36,'Datos Validaciones PAO'!$N$2:$O$102,2,TRUE),"") -> 
A43: Objetivo Estratégico: | B43: 01) Transformar la Imprenta Nacional en un plazo de cuatro años, mediante aplicación de cambios en la normativa e innovación de los productos y servicios que ofrece, para que estén acordes con las tendencias del mercado y con prácticas ambientalmente sostenibles.
A44: (a) Objetivo táctico o específico ¿Qué se pretende alcanzar y para qué? | B44: (b) Meta ¿Qué se propone? Calidad y cantidad | C44: (c) Indicador ¿Cómo medirlo? (número, cantidad, porcentaje) | D44: (d) Actividad (es) ¿Cómo lograrlo? | E44: (e) Unidad (es) responsable (s) | F44: (f) Presupuesto (en caso de contar, sino colocar N/T) | G44: (h) Justificación | H44: (i) Evidencia (oficios, actas, minutas, correos, reglamentos, manuales, etc.) | I44: (g) Porcentaje de cumplimiento | J44: (j) Estado de la meta (MC, MPC, MNC) | K44: (d) Actividad (es) ¿Cómo lograrlo? | L44: (h) Justificación | M44: (i) Evidencia (oficios, actas, minutas, correos, reglamentos, manuales, etc.) | N44: (g) Porcentaje de cumplimiento | O44: (j) Estado de la meta (MC, MPC, MNC)
A45: =A36+1 -> 5 | B45: El personal del taller de producción requiere a partir de lo establecido en la reglamento de trabajo y el estudio ocupacional | C45: Disponibilidad de implementos para entregar a los funcionarios | D45: Desarrollar la contratación. Dar seguimiento a esta y fiscalizar el proceso y la ejecución. | E45: Dirección de Producción | F45: 6000000 | J45: =IFERROR(AVERAGE(I45),"") ->  | K45: =IF(D45<>"",D45,"") -> Desarrollar la contratación. Dar seguimiento a esta y fiscalizar el proceso y la ejecución. | O45: =IFERROR(AVERAGE(N45),"") -> 
A46: Contar con uniformes para el área productiva | J46: =IFERROR(VLOOKUP(J45,'Datos Validaciones PAO'!$N$2:$O$102,2,TRUE),"") ->  | K46: =IF(D46<>"",D46,"") ->  | O46: =IFERROR(VLOOKUP(O45,'Datos Validaciones PAO'!$N$2:$O$102,2,TRUE),"") -> 
A52: Objetivo Estratégico: | B52: 01) Transformar la Imprenta Nacional en un plazo de cuatro años, mediante aplicación de cambios en la normativa e innovación de los productos y servicios que ofrece, para que estén acordes con las tendencias del mercado y con prácticas ambientalmente sostenibles.
A53: (a) Objetivo táctico o específico ¿Qué se pretende alcanzar y para qué? | B53: (b) Meta ¿Qué se propone? Calidad y cantidad | C53: (c) Indicador ¿Cómo medirlo? (número, cantidad, porcentaje) | D53: (d) Actividad (es) ¿Cómo lograrlo? | E53: (e) Unidad (es) responsable (s) | F53: (f) Presupuesto (en caso de contar, sino colocar N/T) | G53: (h) Justificación | H53: (i) Evidencia (oficios, actas, minutas, correos, reglamentos, manuales, etc.) | I53: (g) Porcentaje de cumplimiento | J53: (j) Estado de la meta (MC, MPC, MNC) | K53: (d) Actividad (es) ¿Cómo lograrlo? | L53: (h) Justificación | M53: (i) Evidencia (oficios, actas, minutas, correos, reglamentos, manuales, etc.) | N53: (g) Porcentaje de cumplimiento | O53: (j) Estado de la meta (MC, MPC, MNC)
A54: =A45+1 -> 6 | B54: Visitas de mantenimiento según demanda apegados al contrato por actual demanda. | C54: Contratación ejecutada. Según necesidades durante el año. | D54: Programación de visitas | E54: Pre-Prensa | F54: 12000000 | J54: =IFERROR(AVERAGE(I54),"") ->  | K54: =IF(D54<>"",D54,"") -> Programación de visitas | O54: =IFERROR(AVERAGE(N54),"") -> 
A55: Servicio de mantenimiento de CTP´s Luscher y Kodak Trenstter | J55: =IFERROR(VLOOKUP(J54,'Datos Validaciones PAO'!$N$2:$O$102,2,TRUE),"") ->  | K55: =IF(D55<>"",D55,"") ->  | O55: =IFERROR(VLOOKUP(O54,'Datos Validaciones PAO'!$N$2:$O$102,2,TRUE),"") -> 
A61: Objetivo Estratégico: | B61: 01) Transformar la Imprenta Nacional en un plazo de cuatro años, mediante aplicación de cambios en la normativa e innovación de los productos y servicios que ofrece, para que estén acordes con las tendencias del mercado y con prácticas ambientalmente sostenibles.
A62: (a) Objetivo táctico o específico ¿Qué se pretende alcanzar y para qué? | B62: (b) Meta ¿Qué se propone? Calidad y cantidad | C62: (c) Indicador ¿Cómo medirlo? (número, cantidad, porcentaje) | D62: (d) Actividad (es) ¿Cómo lograrlo? | E62: (e) Unidad (es) responsable (s) | F62: (f) Presupuesto (en caso de contar, sino colocar N/T) | G62: (h) Justificación | H62: (i) Evidencia (oficios, actas, minutas, correos, reglamentos, manuales, etc.) | I62: (g) Porcentaje de cumplimiento | J62: (j) Estado de la meta (MC, MPC, MNC) | K62: (d) Actividad (es) ¿Cómo lograrlo? | L62: (h) Justificación | M62: (i) Evidencia (oficios, actas, minutas, correos, reglamentos, manuales, etc.) | N62: (g) Porcentaje de cumplimiento | O62: (j) Estado de la meta (MC, MPC, MNC)
A63: =A54+1 -> 7 | B63: Contar al menos con cuatro contratos Anuaesl de mantenimiento y reparación activos. | C63: Mantenimientos preventivos y correctivos realizados/Mantenimientos programados | D63: Contrato de Mantenimiento preventivo y correctivo para Impresora Digital Accurio 6100 | E63: Pre-prensa | F63: 17000000 | J63: =IFERROR(AVERAGE(I63),"") ->  | K63: =IF(D63<>"",D63,"") -> Contrato de Mantenimiento preventivo y correctivo para Impresora Digital Accurio 6100 | O63: =IFERROR(AVERAGE(N63),"") -> 
A64: Mantenimiento y reparación de equipo de cómputo y sistemas de información | D64: Mantenimiento Preventivo y correctivo para las computadoras Macintosh. | F64: 3000000 | J64: =IFERROR(VLOOKUP(J63,'Datos Validaciones PAO'!$N$2:$O$102,2,TRUE),"") ->  | K64: =IF(D64<>"",D64,"") -> Mantenimiento Preventivo y correctivo para las computadoras Macintosh. | O64: =IFERROR(VLOOKUP(O63,'Datos Validaciones PAO'!$N$2:$O$102,2,TRUE),"") -> 
D65: Mantenimiento preventivo y correctivo para Impresora para pruebas y vistos buenos (Xerox C70) | F65: 1000000 | K65: Mantenimiento preventivo y correctivo para Impresora para pruebas y vistos buenos (Xerox C70)
D66: Actualización y mantenimiento de licencias de imposición Preps de Kodack | F66: 8000000 | K66: Actualización y mantenimiento de licencias de imposición Preps de Kodack
D67: Contrato de Mantenimiento de Licenciamiento de Adobe CC | F67: 16000000 | K67: Contrato de Mantenimiento de Licenciamiento de Adobe CC
A70: Objetivo Estratégico: | B70: 01) Transformar la Imprenta Nacional en un plazo de cuatro años, mediante aplicación de cambios en la normativa e innovación de los productos y servicios que ofrece, para que estén acordes con las tendencias del mercado y con prácticas ambientalmente sostenibles.
A71: (a) Objetivo táctico o específico ¿Qué se pretende alcanzar y para qué? | B71: (b) Meta ¿Qué se propone? Calidad y cantidad | C71: (c) Indicador ¿Cómo medirlo? (número, cantidad, porcentaje) | D71: (d) Actividad (es) ¿Cómo lograrlo? | E71: (e) Unidad (es) responsable (s) | F71: (f) Presupuesto (en caso de contar, sino colocar N/T) | G71: (h) Justificación | H71: (i) Evidencia (oficios, actas, minutas, correos, reglamentos, manuales, etc.) | I71: (g) Porcentaje de cumplimiento | J71: (j) Estado de la meta (MC, MPC, MNC) | K71: (d) Actividad (es) ¿Cómo lograrlo? | L71: (h) Justificación | M71: (i) Evidencia (oficios, actas, minutas, correos, reglamentos, manuales, etc.) | N71: (g) Porcentaje de cumplimiento | O71: (j) Estado de la meta (MC, MPC, MNC)
A72: =A63+1 -> 8 | B72: Estimar la necesidad de insumos a adquirir según demanda y consumo del año. | C72: Contrataciónes de insumos ejecutadas | D72: Compra de revelador de Planchas | E72: Pre-Prensa | F72: 4200000 | J72: =IFERROR(AVERAGE(I72),"") ->  | K72: =IF(D72<>"",D72,"") -> Compra de revelador de Planchas | O72: =IFERROR(AVERAGE(N72),"") -> 
A73: Producir material de artes gráficas e impresos comerciales que cumplan con los lineamientos de calidad según ordenes de pedido | D73: Fijador de Planchas | F73: 700000 | J73: =IFERROR(VLOOKUP(J72,'Datos Validaciones PAO'!$N$2:$O$102,2,TRUE),"") ->  | K73: =IF(D73<>"",D73,"") -> Fijador de Planchas | O73: =IFERROR(VLOOKUP(O72,'Datos Validaciones PAO'!$N$2:$O$102,2,TRUE),"") -> 
D74: Repuestos (Computadoras Macintosh por demanda) | F74: 2000000 | K74: Repuestos (Computadoras Macintosh por demanda)
D75: Repuestos para el CTP´s | F75: 15000000 | K75: Repuestos para el CTP´s
D76: Planchas | F76: 29000000 | K76: Planchas
A79: Objetivo Estratégico: | B79: 03) Realizar gestión de calidad en la Imprenta Nacional mediante la documentación, estandarización y control de los procesos.
A80: (a) Objetivo táctico o específico ¿Qué se pretende alcanzar y para qué? | B80: (b) Meta ¿Qué se propone? Calidad y cantidad | C80: (c) Indicador ¿Cómo medirlo? (número, cantidad, porcentaje) | D80: (d) Actividad (es) ¿Cómo lograrlo? | E80: (e) Unidad (es) responsable (s) | F80: (f) Presupuesto (en caso de contar, sino colocar N/T) | G80: (h) Justificación | H80: (i) Evidencia (oficios, actas, minutas, correos, reglamentos, manuales, etc.) | I80: (g) Porcentaje de cumplimiento | J80: (j) Estado de la meta (MC, MPC, MNC) | K80: (d) Actividad (es) ¿Cómo lograrlo? | L80: (h) Justificación | M80: (i) Evidencia (oficios, actas, minutas, correos, reglamentos, manuales, etc.) | N80: (g) Porcentaje de cumplimiento | O80: (j) Estado de la meta (MC, MPC, MNC)
A81: =A72+1 -> 9 | B81: Comprar los repuestos requeridos para ejecutar el proceso de producción según tiempos pactados y calidades | C81: Contrataciones ejecutadas | D81: Contrato de Mantenimiento Maquinas de Impresión | E81: Prensa | F81: 25000000 | J81: =IFERROR(AVERAGE(I81),"") ->  | K81: =IF(D81<>"",D81,"") -> Contrato de Mantenimiento Maquinas de Impresión | O81: =IFERROR(AVERAGE(N81),"") -> 
A82: Producir material de artes gráficas e impresos comerciales que cumplan con los lineamientos de calidad y conseguir una comunicación eficaz hacia el público. | D82: Alcohol ISO propílico | F82: 3000000 | J82: =IFERROR(VLOOKUP(J81,'Datos Validaciones PAO'!$N$2:$O$102,2,TRUE),"") ->  | K82: =IF(D82<>"",D82,"") -> Alcohol ISO propílico | O82: =IFERROR(VLOOKUP(O81,'Datos Validaciones PAO'!$N$2:$O$102,2,TRUE),"") -> 
D83: Tintas | F83: 12000000 | K83: Tintas
D84: Limpiador de Inmersores y Tuberías Speed Master | F84: 1200000 | K84: Limpiador de Inmersores y Tuberías Speed Master
D85: Repuestos Eléctricos maquinas Litograficas | F85: 6000000 | K85: Repuestos Eléctricos maquinas Litograficas
D86: Repuestos Prensas Offset | F86: 30000000 | K86: Repuestos Prensas Offset
D87: Retazos de Tela | F87: 200000 | K87: Retazos de Tela
A88: Objetivo Estratégico: | B88: 01) Transformar la Imprenta Nacional en un plazo de cuatro años, mediante aplicación de cambios en la normativa e innovación de los productos y servicios que ofrece, para que estén acordes con las tendencias del mercado y con prácticas ambientalmente sostenibles.
A89: (a) Objetivo táctico o específico ¿Qué se pretende alcanzar y para qué? | B89: (b) Meta ¿Qué se propone? Calidad y cantidad | C89: (c) Indicador ¿Cómo medirlo? (número, cantidad, porcentaje) | D89: (d) Actividad (es) ¿Cómo lograrlo? | E89: (e) Unidad (es) responsable (s) | F89: (f) Presupuesto (en caso de contar, sino colocar N/T) | G89: (h) Justificación | H89: (i) Evidencia (oficios, actas, minutas, correos, reglamentos, manuales, etc.) | I89: (g) Porcentaje de cumplimiento | J89: (j) Estado de la meta (MC, MPC, MNC) | K89: (d) Actividad (es) ¿Cómo lograrlo? | L89: (h) Justificación | M89: (i) Evidencia (oficios, actas, minutas, correos, reglamentos, manuales, etc.) | N89: (g) Porcentaje de cumplimiento | O89: (j) Estado de la meta (MC, MPC, MNC)
A90: =A81+1 -> 10 | B90: Comprar los repuestos requeridos para ejecutar el proceso de producción según tiempos pactados y calidades | C90: Contrataciones ejecutadas | D90: Crema Desengrasante y Limpiador de Planchas | E90: Prensa | F90: 900000 | J90: =IFERROR(AVERAGE(I90),"") ->  | K90: =IF(D90<>"",D90,"") -> Crema Desengrasante y Limpiador de Planchas | O90: =IFERROR(AVERAGE(N90),"") -> 
A91: Producir material de artes gráficas e impresos comerciales que cumplan con los lineamientos de calidad y conseguir una comunicación eficaz hacia el público. | J91: =IFERROR(VLOOKUP(J90,'Datos Validaciones PAO'!$N$2:$O$102,2,TRUE),"") ->  | K91: =IF(D91<>"",D91,"") ->  | O91: =IFERROR(VLOOKUP(O90,'Datos Validaciones PAO'!$N$2:$O$102,2,TRUE),"") -> 
A97: Objetivo Estratégico: | B97: 01) Transformar la Imprenta Nacional en un plazo de cuatro años, mediante aplicación de cambios en la normativa e innovación de los productos y servicios que ofrece, para que estén acordes con las tendencias del mercado y con prácticas ambientalmente sostenibles.
A98: (a) Objetivo táctico o específico ¿Qué se pretende alcanzar y para qué? | B98: (b) Meta ¿Qué se propone? Calidad y cantidad | C98: (c) Indicador ¿Cómo medirlo? (número, cantidad, porcentaje) | D98: (d) Actividad (es) ¿Cómo lograrlo? | E98: (e) Unidad (es) responsable (s) | F98: (f) Presupuesto (en caso de contar, sino colocar N/T) | G98: (h) Justificación | H98: (i) Evidencia (oficios, actas, minutas, correos, reglamentos, manuales, etc.) | I98: (g) Porcentaje de cumplimiento | J98: (j) Estado de la meta (MC, MPC, MNC) | K98: (d) Actividad (es) ¿Cómo lograrlo? | L98: (h) Justificación | M98: (i) Evidencia (oficios, actas, minutas, correos, reglamentos, manuales, etc.) | N98: (g) Porcentaje de cumplimiento | O98: (j) Estado de la meta (MC, MPC, MNC)
A99: =A90+1 -> 11 | B99: Comprar los repuestos requeridos para ejecutar el proceso de producción según tiempos pactados y calidades. | C99: Contrataciones ejecutadas | D99: Troqueles y Cliques | E99: Post-Prensa | F99: 500000 | J99: =IFERROR(AVERAGE(I99),"") ->  | K99: =IF(D99<>"",D99,"") -> Troqueles y Cliques | O99: =IFERROR(AVERAGE(N99),"") -> 
A100: Producir material de artes gráficas e impresos comerciales que cumplan con los lineamientos de calidad y conseguir una comunicación eficaz hacia el público. | D100: Afilado de Cuchillas | F100: 1200000 | J100: =IFERROR(VLOOKUP(J99,'Datos Validaciones PAO'!$N$2:$O$102,2,TRUE),"") ->  | K100: =IF(D100<>"",D100,"") -> Afilado de Cuchillas | O100: =IFERROR(VLOOKUP(O99,'Datos Validaciones PAO'!$N$2:$O$102,2,TRUE),"") -> 
D101: Contrato de Mantenimiento de maquinas dobladoras, maquinas para encudernacion y los compresores, Mantenimiento de Guillotinas | F101: 25000000 | K101: Contrato de Mantenimiento de maquinas dobladoras, maquinas para encudernacion y los compresores, Mantenimiento de Guillotinas
D102: Aceites y Lubricantes, Grasa Alta Temperatura, Aceite Perma y Aceite WD 40 Easy Slide, para la superficie de las Guillotinas | F102: 3060000 | K102: Aceites y Lubricantes, Grasa Alta Temperatura, Aceite Perma y Aceite WD 40 Easy Slide, para la superficie de las Guillotinas
D103: Rollos de alambre galvanizado de calibre variado para Grapadoras | F103: 1700000 | K103: Rollos de alambre galvanizado de calibre variado para Grapadoras
D104: Repuestos Eléctricos para las maquinas Dobladoras y Encudernadoras | F104: 6000000 | K104: Repuestos Eléctricos para las maquinas Dobladoras y Encudernadoras
D105: Plástico para Paletizar y Laminar, Fleje Plástico | F105: 6000000 | K105: Plástico para Paletizar y Laminar, Fleje Plástico
A106: Objetivo Estratégico: | B106: 01) Transformar la Imprenta Nacional en un plazo de cuatro años, mediante aplicación de cambios en la normativa e innovación de los productos y servicios que ofrece, para que estén acordes con las tendencias del mercado y con prácticas ambientalmente sostenibles.
A107: (a) Objetivo táctico o específico ¿Qué se pretende alcanzar y para qué? | B107: (b) Meta ¿Qué se propone? Calidad y cantidad | C107: (c) Indicador ¿Cómo medirlo? (número, cantidad, porcentaje) | D107: (d) Actividad (es) ¿Cómo lograrlo? | E107: (e) Unidad (es) responsable (s) | F107: (f) Presupuesto (en caso de contar, sino colocar N/T) | G107: (h) Justificación | H107: (i) Evidencia (oficios, actas, minutas, correos, reglamentos, manuales, etc.) | I107: (g) Porcentaje de cumplimiento | J107: (j) Estado de la meta (MC, MPC, MNC) | K107: (d) Actividad (es) ¿Cómo lograrlo? | L107: (h) Justificación | M107: (i) Evidencia (oficios, actas, minutas, correos, reglamentos, manuales, etc.) | N107: (g) Porcentaje de cumplimiento | O107: (j) Estado de la meta (MC, MPC, MNC)
A108: =A99+1 -> 12 | B108: Comprar los repuestos requeridos para ejecutar el proceso de producción según tiempos pactados y calidades. | C108: Contrataciones ejecutadas | D108: Lija 400 y Lija de agua | E108: Post-Prensa | F108: 50000 | J108: =IFERROR(AVERAGE(I108),"") ->  | K108: =IF(D108<>"",D108,"") -> Lija 400 y Lija de agua | O108: =IFERROR(AVERAGE(N108),"") -> 
A109: Producir material de artes gráficas e impresos comerciales que cumplan con los lineamientos de calidad y conseguir una comunicación eficaz hacia el público. | D109: Repuestos para Guillotina y maquinas Dobladoras y Encudernadoras | F109: 35000000 | J109: =IFERROR(VLOOKUP(J108,'Datos Validaciones PAO'!$N$2:$O$102,2,TRUE),"") ->  | K109: =IF(D109<>"",D109,"") -> Repuestos para Guillotina y maquinas Dobladoras y Encudernadoras | O109: =IFERROR(VLOOKUP(O108,'Datos Validaciones PAO'!$N$2:$O$102,2,TRUE),"") -> 
D110: Resortes Cola blanca, roja granulada | F110: 8000000 | K110: Resortes Cola blanca, roja granulada
D111: Fleje para empaque | F111: 500000 | K111: Fleje para empaque
D112: Brochas, rodillos, esponjas celulosas, elasticos, velcro, cinta de tela, tornillos para tapas de empaste | F112: 400000 | K112: Brochas, rodillos, esponjas celulosas, elasticos, velcro, cinta de tela, tornillos para tapas de empaste
D113: Matriz de plegado como arreglo mecanico para el encaje al troquelar y plecas de corte,dobles y perforacion. | F113: 500000 | K113: Matriz de plegado como arreglo mecanico para el encaje al troquelar y plecas de corte,dobles y perforacion.
A115: Objetivo Estratégico: | B115: 01) Transformar la Imprenta Nacional en un plazo de cuatro años, mediante aplicación de cambios en la normativa e innovación de los productos y servicios que ofrece, para que estén acordes con las tendencias del mercado y con prácticas ambientalmente sostenibles.
A116: (a) Objetivo táctico o específico ¿Qué se pretende alcanzar y para qué? | B116: (b) Meta ¿Qué se propone? Calidad y cantidad | C116: (c) Indicador ¿Cómo medirlo? (número, cantidad, porcentaje) | D116: (d) Actividad (es) ¿Cómo lograrlo? | E116: (e) Unidad (es) responsable (s) | F116: (f) Presupuesto (en caso de contar, sino colocar N/T) | G116: (h) Justificación | H116: (i) Evidencia (oficios, actas, minutas, correos, reglamentos, manuales, etc.) | I116: (g) Porcentaje de cumplimiento | J116: (j) Estado de la meta (MC, MPC, MNC) | K116: (d) Actividad (es) ¿Cómo lograrlo? | L116: (h) Justificación | M116: (i) Evidencia (oficios, actas, minutas, correos, reglamentos, manuales, etc.) | N116: (g) Porcentaje de cumplimiento | O116: (j) Estado de la meta (MC, MPC, MNC)
A117: =A108+1 -> 13 | B117: Realizar 5 salidas de residuos peligrosos y especiales por año y mantener el equipo médico en óptimas condiciones. | C117: Equipos médicos en operación. desechos bioinfecciosos correctamente desechados. | D117: Recolección de desechos bioinfecciosos | E117: Consultorio Médico | F117: 200000 | J117: =IFERROR(AVERAGE(I117),"") ->  | K117: =IF(D117<>"",D117,"") -> Recolección de desechos bioinfecciosos | O117: =IFERROR(AVERAGE(N117),"") -> 
A118: Proporcionar oportuna y eficientemente los servicios que se requieran en materia, de comunicación, transporte, archivo, seguridad y vigilancia, aseo y limpieza, mantenimiento del edificio, servicios públicos, y/o cualquier otra actividad que procure la buena marcha de las actividades operativas y administrativas que se ejecutan en la Imprenta Nacional. | D118: Reparación de equipo médico | F118: 700000 | J118: =IFERROR(VLOOKUP(J117,'Datos Validaciones PAO'!$N$2:$O$102,2,TRUE),"") ->  | K118: =IF(D118<>"",D118,"") -> Reparación de equipo médico | O118: =IFERROR(VLOOKUP(O117,'Datos Validaciones PAO'!$N$2:$O$102,2,TRUE),"") -> 
D119: Recarga del cilindro de oxigeno de Consultorio Médico | F119: 50000 | K119: Recarga del cilindro de oxigeno de Consultorio Médico
A120: Proporcionar oportuna y eficientemente los servicios que se requieran en materia, de comunicación, transporte, archivo, seguridad y vigilancia, aseo y limpieza, mantenimiento del edificio, servicios públicos, y/o cualquier otra actividad que procure la buena marcha de las actividades operativas y administrativas que se ejecutan en la Imprenta Nacional. | D120: Medicinas Varias | F120: 300000 | K120: Medicinas Varias
D121: Repuestos para Equipo Médico | F121: 500000 | K121: Repuestos para Equipo Médico
A122: Proporcionar oportuna y eficientemente los servicios que se requieran en materia, de comunicación, transporte, archivo, seguridad y vigilancia, aseo y limpieza, mantenimiento del edificio, servicios públicos, y/o cualquier otra actividad que procure la buena marcha de las actividades operativas y administrativas que se ejecutan en la Imprenta Nacional. | D122: Materiales de uso Médico Varios CM | F122: 100000 | K122: Materiales de uso Médico Varios CM
D123: Desodorante Ambiental | F123: 90000 | K123: Desodorante Ambiental
A124: Objetivo Estratégico: | B124: 01) Transformar la Imprenta Nacional en un plazo de cuatro años, mediante aplicación de cambios en la normativa e innovación de los productos y servicios que ofrece, para que estén acordes con las tendencias del mercado y con prácticas ambientalmente sostenibles.
A125: (a) Objetivo táctico o específico ¿Qué se pretende alcanzar y para qué? | B125: (b) Meta ¿Qué se propone? Calidad y cantidad | C125: (c) Indicador ¿Cómo medirlo? (número, cantidad, porcentaje) | D125: (d) Actividad (es) ¿Cómo lograrlo? | E125: (e) Unidad (es) responsable (s) | F125: (f) Presupuesto (en caso de contar, sino colocar N/T) | G125: (h) Justificación | H125: (i) Evidencia (oficios, actas, minutas, correos, reglamentos, manuales, etc.) | I125: (g) Porcentaje de cumplimiento | J125: (j) Estado de la meta (MC, MPC, MNC) | K125: (d) Actividad (es) ¿Cómo lograrlo? | L125: (h) Justificación | M125: (i) Evidencia (oficios, actas, minutas, correos, reglamentos, manuales, etc.) | N125: (g) Porcentaje de cumplimiento | O125: (j) Estado de la meta (MC, MPC, MNC)
A126: =A117+1 -> 14 | B126: Realizar los matenimientos a los equipos según la programación de mantenimientos anual. | C126: Montos de ordenes de pedido ejecutadas / Presupuesto asignado | D126: Sistema de bombeo, presión de agua potable y limpieza del tanque de reserva de agua | E126: Mantenimiento | F126: 1500000 | J126: =IFERROR(AVERAGE(I126),"") ->  | K126: =IF(D126<>"",D126,"") -> Sistema de bombeo, presión de agua potable y limpieza del tanque de reserva de agua | O126: =IFERROR(AVERAGE(N126),"") -> 
A127: Proporcionar oportuna y eficientemente los servicios que se requieran en materia, de comunicación, transporte, archivo, seguridad y vigilancia, aseo y limpieza, mantenimiento del edificio, servicios públicos, y/o cualquier otra actividad que procure la buena marcha de las actividades operativas y administrativas que se ejecutan en la Imprenta Nacional. | D127: Mantenimiento de sistemas de aire comprimido y compresores | F127: 3500000 | J127: =IFERROR(VLOOKUP(J126,'Datos Validaciones PAO'!$N$2:$O$102,2,TRUE),"") ->  | K127: =IF(D127<>"",D127,"") -> Mantenimiento de sistemas de aire comprimido y compresores | O127: =IFERROR(VLOOKUP(O126,'Datos Validaciones PAO'!$N$2:$O$102,2,TRUE),"") -> 
D128: Mantenimiento de sistemas de extracción de aire | F128: 3500000 | K128: Mantenimiento de sistemas de extracción de aire
D129: Mantenimiento de elevador eléctrico y elevador del edificio | F129: 1000000 | K129: Mantenimiento de elevador eléctrico y elevador del edificio
D130: Mantenimiento de la planta eléctrica | F130: 3500000 | K130: Mantenimiento de la planta eléctrica
D131: Mantenimiento de Aires Acondicionados | F131: 6000000 | K131: Mantenimiento de Aires Acondicionados
D132: Mantenimiento de UPS´s | F132: 8500000 | K132: Mantenimiento de UPS´s
A133: Objetivo Estratégico: | B133: 01) Transformar la Imprenta Nacional en un plazo de cuatro años, mediante aplicación de cambios en la normativa e innovación de los productos y servicios que ofrece, para que estén acordes con las tendencias del mercado y con prácticas ambientalmente sostenibles.
A134: (a) Objetivo táctico o específico ¿Qué se pretende alcanzar y para qué? | B134: (b) Meta ¿Qué se propone? Calidad y cantidad | C134: (c) Indicador ¿Cómo medirlo? (número, cantidad, porcentaje) | D134: (d) Actividad (es) ¿Cómo lograrlo? | E134: (e) Unidad (es) responsable (s) | F134: (f) Presupuesto (en caso de contar, sino colocar N/T) | G134: (h) Justificación | H134: (i) Evidencia (oficios, actas, minutas, correos, reglamentos, manuales, etc.) | I134: (g) Porcentaje de cumplimiento | J134: (j) Estado de la meta (MC, MPC, MNC) | K134: (d) Actividad (es) ¿Cómo lograrlo? | L134: (h) Justificación | M134: (i) Evidencia (oficios, actas, minutas, correos, reglamentos, manuales, etc.) | N134: (g) Porcentaje de cumplimiento | O134: (j) Estado de la meta (MC, MPC, MNC)
A135: =A126+1 -> 15 | B135: Realizar los matenimientos a los equipos según la programación de mantenimientos anual. | C135: Montos de ordenes de pedido ejecutadas / Presupuesto asignado | D135: Pinturas y Diluyentes | E135: Mantenimiento | F135: 1000000 | J135: =IFERROR(AVERAGE(I135),"") ->  | K135: =IF(D135<>"",D135,"") -> Pinturas y Diluyentes | O135: =IFERROR(AVERAGE(N135),"") -> 
A136: Proporcionar oportuna y eficientemente los servicios que se requieran en materia, de comunicación, transporte, archivo, seguridad y vigilancia, aseo y limpieza, mantenimiento del edificio, servicios públicos, y/o cualquier otra actividad que procure la buena marcha de las actividades operativas y administrativas que se ejecutan en la Imprenta Nacional. | D136: Mantenimiento | F136: 500000 | J136: =IFERROR(VLOOKUP(J135,'Datos Validaciones PAO'!$N$2:$O$102,2,TRUE),"") ->  | K136: =IF(D136<>"",D136,"") -> Mantenimiento | O136: =IFERROR(VLOOKUP(O135,'Datos Validaciones PAO'!$N$2:$O$102,2,TRUE),"") -> 
D137: Mantenimiento | F137: 500000 | K137: Mantenimiento
D138: Mantenimiento | F138: 200000 | K138: Mantenimiento
D139: Materiales electricos | F139: 1000000 | K139: Materiales electricos
D140: Mantenimiento | F140: 250000 | K140: Mantenimiento
D141: Mantenimiento | F141: 500000 | K141: Mantenimiento
A142: Objetivo Estratégico: | B142: 01) Transformar la Imprenta Nacional en un plazo de cuatro años, mediante aplicación de cambios en la normativa e innovación de los productos y servicios que ofrece, para que estén acordes con las tendencias del mercado y con prácticas ambientalmente sostenibles.
A143: (a) Objetivo táctico o específico ¿Qué se pretende alcanzar y para qué? | B143: (b) Meta ¿Qué se propone? Calidad y cantidad | C143: (c) Indicador ¿Cómo medirlo? (número, cantidad, porcentaje) | D143: (d) Actividad (es) ¿Cómo lograrlo? | E143: (e) Unidad (es) responsable (s) | F143: (f) Presupuesto (en caso de contar, sino colocar N/T) | G143: (h) Justificación | H143: (i) Evidencia (oficios, actas, minutas, correos, reglamentos, manuales, etc.) | I143: (g) Porcentaje de cumplimiento | J143: (j) Estado de la meta (MC, MPC, MNC) | K143: (d) Actividad (es) ¿Cómo lograrlo? | L143: (h) Justificación | M143: (i) Evidencia (oficios, actas, minutas, correos, reglamentos, manuales, etc.) | N143: (g) Porcentaje de cumplimiento | O143: (j) Estado de la meta (MC, MPC, MNC)
A144: =A135+1 -> 16 | B144: Realizar los matenimientos a los equipos según programación | C144: Montos de ordenes de pedido ejecutadas / Presupuesto asignado | D144: Mantenimiento | E144: Mantenimiento | F144: 500000 | J144: =IFERROR(AVERAGE(I144),"") ->  | K144: =IF(D144<>"",D144,"") -> Mantenimiento | O144: =IFERROR(AVERAGE(N144),"") -> 
A145: Proporcionar oportuna y eficientemente los servicios que se requieran en materia, de comunicación, transporte, archivo, seguridad y vigilancia, aseo y limpieza, mantenimiento del edificio, servicios públicos, y/o cualquier otra actividad que procure la buena marcha de las actividades operativas y administrativas que se ejecutan en la Imprenta Nacional. | D145: Mantenimiento | F145: 500000 | J145: =IFERROR(VLOOKUP(J144,'Datos Validaciones PAO'!$N$2:$O$102,2,TRUE),"") ->  | K145: =IF(D145<>"",D145,"") -> Mantenimiento | O145: =IFERROR(VLOOKUP(O144,'Datos Validaciones PAO'!$N$2:$O$102,2,TRUE),"") -> 
D146: UPS Baterias | F146: 6000000 | K146: UPS Baterias
A151: Objetivo Estratégico: | B151: 01) Transformar la Imprenta Nacional en un plazo de cuatro años, mediante aplicación de cambios en la normativa e innovación de los productos y servicios que ofrece, para que estén acordes con las tendencias del mercado y con prácticas ambientalmente sostenibles.
A152: (a) Objetivo táctico o específico ¿Qué se pretende alcanzar y para qué? | B152: (b) Meta ¿Qué se propone? Calidad y cantidad | C152: (c) Indicador ¿Cómo medirlo? (número, cantidad, porcentaje) | D152: (d) Actividad (es) ¿Cómo lograrlo? | E152: (e) Unidad (es) responsable (s) | F152: (f) Presupuesto (en caso de contar, sino colocar N/T) | G152: (h) Justificación | H152: (i) Evidencia (oficios, actas, minutas, correos, reglamentos, manuales, etc.) | I152: (g) Porcentaje de cumplimiento | J152: (j) Estado de la meta (MC, MPC, MNC) | K152: (d) Actividad (es) ¿Cómo lograrlo? | L152: (h) Justificación | M152: (i) Evidencia (oficios, actas, minutas, correos, reglamentos, manuales, etc.) | N152: (g) Porcentaje de cumplimiento | O152: (j) Estado de la meta (MC, MPC, MNC)
A153: =A144+1 -> 17 | B153: Realizar los pagos por servicios brindados durante los 12 meses del año | C153: servicio pagado / Servicio facturado. | D153: Revisión técnica vehículos | E153: Transportes | F153: 240000 | J153: =IFERROR(AVERAGE(I153),"") ->  | K153: =IF(D153<>"",D153,"") -> Revisión técnica vehículos | O153: =IFERROR(AVERAGE(N153),"") -> 
A154: Proporcionar oportuna y eficientemente los servicios que se requieran en materia, de comunicación, transporte, archivo, seguridad y vigilancia, aseo y limpieza, mantenimiento del edificio, servicios públicos, y/o cualquier otra actividad que procure la buena marcha de las actividades operativas y administrativas que se ejecutan en la Imprenta Nacional. | D154: Póliza de seguros Flotilla Vehicular | F154: 5000000 | J154: =IFERROR(VLOOKUP(J153,'Datos Validaciones PAO'!$N$2:$O$102,2,TRUE),"") ->  | K154: =IF(D154<>"",D154,"") -> Póliza de seguros Flotilla Vehicular | O154: =IFERROR(VLOOKUP(O153,'Datos Validaciones PAO'!$N$2:$O$102,2,TRUE),"") -> 
D155: Contratación de un Taller automotriz | F155: 2800000 | K155: Contratación de un Taller automotriz
D156: Marchamos Vehículos y Monta Cargas | F156: 350000 | K156: Marchamos Vehículos y Monta Cargas
D157: Deducibles | F157: 200000 | K157: Deducibles
D158: Combustibles Flotilla de Vehículos, Monta Cargas Y Planta Electrica | F158: 3000000 | K158: Combustibles Flotilla de Vehículos, Monta Cargas Y Planta Electrica
D159: Artículos de Limpieza para los Vehículos | F159: 80000 | K159: Artículos de Limpieza para los Vehículos
A160: Objetivo Estratégico: | B160: 01) Transformar la Imprenta Nacional en un plazo de cuatro años, mediante aplicación de cambios en la normativa e innovación de los productos y servicios que ofrece, para que estén acordes con las tendencias del mercado y con prácticas ambientalmente sostenibles.
A161: (a) Objetivo táctico o específico ¿Qué se pretende alcanzar y para qué? | B161: (b) Meta ¿Qué se propone? Calidad y cantidad | C161: (c) Indicador ¿Cómo medirlo? (número, cantidad, porcentaje) | D161: (d) Actividad (es) ¿Cómo lograrlo? | E161: (e) Unidad (es) responsable (s) | F161: (f) Presupuesto (en caso de contar, sino colocar N/T) | G161: (h) Justificación | H161: (i) Evidencia (oficios, actas, minutas, correos, reglamentos, manuales, etc.) | I161: (g) Porcentaje de cumplimiento | J161: (j) Estado de la meta (MC, MPC, MNC) | K161: (d) Actividad (es) ¿Cómo lograrlo? | L161: (h) Justificación | M161: (i) Evidencia (oficios, actas, minutas, correos, reglamentos, manuales, etc.) | N161: (g) Porcentaje de cumplimiento | O161: (j) Estado de la meta (MC, MPC, MNC)
A162: =A153+1 -> 18 | B162: Realizar los pagos por servicios brindados durante los 12 meses del año | C162: servicio pagado / Servicio facturado | D162: Servicios de Agua y Alcantarillado | E162: Servicios Generales | F162: 6000000 | J162: =IFERROR(AVERAGE(I162),"") ->  | K162: =IF(D162<>"",D162,"") -> Servicios de Agua y Alcantarillado | O162: =IFERROR(AVERAGE(N162),"") -> 
A163: Proporcionar oportuna y eficientemente los servicios que se requieran en materia, de comunicación, transporte, archivo, seguridad y vigilancia, aseo y limpieza, mantenimiento del edificio, servicios públicos, y/o cualquier otra actividad que procure la buena marcha de las actividades operativas y administrativas que se ejecutan en la Imprenta Nacional. | D163: Servicios Eléctricos | F163: 70000000 | J163: =IFERROR(VLOOKUP(J162,'Datos Validaciones PAO'!$N$2:$O$102,2,TRUE),"") ->  | K163: =IF(D163<>"",D163,"") -> Servicios Eléctricos | O163: =IFERROR(VLOOKUP(O162,'Datos Validaciones PAO'!$N$2:$O$102,2,TRUE),"") -> 
D164: Continuidad de Planes Telefónicos | F164: 2000000 | K164: Continuidad de Planes Telefónicos
D165: Pago de Celulares | F165: 1000000 | K165: Pago de Celulares
D166: Servicios Telefónicos | F166: 2000000 | K166: Servicios Telefónicos
D167: Pagos Servicios Municipales | F167: 4500000 | K167: Pagos Servicios Municipales
D168: Plataforma en la nube de telefonia IP | F168: 5000000 | K168: Plataforma en la nube de telefonia IP
A169: Objetivo Estratégico: | B169: 01) Transformar la Imprenta Nacional en un plazo de cuatro años, mediante aplicación de cambios en la normativa e innovación de los productos y servicios que ofrece, para que estén acordes con las tendencias del mercado y con prácticas ambientalmente sostenibles.
A170: (a) Objetivo táctico o específico ¿Qué se pretende alcanzar y para qué? | B170: (b) Meta ¿Qué se propone? Calidad y cantidad | C170: (c) Indicador ¿Cómo medirlo? (número, cantidad, porcentaje) | D170: (d) Actividad (es) ¿Cómo lograrlo? | E170: (e) Unidad (es) responsable (s) | F170: (f) Presupuesto (en caso de contar, sino colocar N/T) | G170: (h) Justificación | H170: (i) Evidencia (oficios, actas, minutas, correos, reglamentos, manuales, etc.) | I170: (g) Porcentaje de cumplimiento | J170: (j) Estado de la meta (MC, MPC, MNC) | K170: (d) Actividad (es) ¿Cómo lograrlo? | L170: (h) Justificación | M170: (i) Evidencia (oficios, actas, minutas, correos, reglamentos, manuales, etc.) | N170: (g) Porcentaje de cumplimiento | O170: (j) Estado de la meta (MC, MPC, MNC)
A171: =A162+1 -> 19 | B171: Realizar los pagos por servicios brindados durante los 12 meses del año | C171: servicio pagado / Servicio facturado | D171: Servicio de Vigilancia | E171: Servicios Generales | F171: 82000000 | G171: No se recibió información | I171: 0 | J171: =IFERROR(AVERAGE(I171),"") -> 0 | K171: =IF(D171<>"",D171,"") -> Servicio de Vigilancia | L171: Se realizaron todas las gestiones para contar con los servicios requeridos durante el año y se ejecutó el presupuesto asignado. Se atendieron los distintos mantenimientos y se cancelaron los servicios públicos, polizas y otros asociadas a esta actividad. | M171: Procesos de contratación gestionados en AVANCE y SICOP. Ejecución presupuestaria reportada superior al 90% (oficio DVG-MLA-028-2024). Ejecución de los contratos y los servicios. | N171: 1 | O171: =IFERROR(AVERAGE(N171),"") -> 1
A172: Proporcionar oportuna y eficientemente los servicios que se requieran en materia, de comunicación, transporte, archivo, seguridad y vigilancia, aseo y limpieza, mantenimiento del edificio, servicios públicos, y/o cualquier otra actividad que procure la buena marcha de las actividades operativas y administrativas que se ejecutan en la Imprenta Nacional. | D172: Aseo y Limpieza | F172: 53000000 | J172: =IFERROR(VLOOKUP(J171,'Datos Validaciones PAO'!$N$2:$O$102,2,TRUE),"") -> Meta No Cumplida (MNC) | K172: =IF(D172<>"",D172,"") -> Aseo y Limpieza | O172: =IFERROR(VLOOKUP(O171,'Datos Validaciones PAO'!$N$2:$O$102,2,TRUE),"") -> Meta Cumplida (MC)
D173: Servicio de Guarda Documentos | F173: 1000000 | K173: Servicio de Guarda Documentos
D174: Servicio de Fumigación | F174: 1000000 | K174: Servicio de Fumigación
D175: Seguros Incendio | F175: 15000000 | K175: Seguros Incendio
D176: Póliza de seguros para el equipo electronico | F176: 5000000 | K176: Póliza de seguros para el equipo electronico
D177: Póliza de responsabilidad civil | F177: 1000000 | K177: Póliza de responsabilidad civil
A178: Objetivo Estratégico: | B178: 01) Transformar la Imprenta Nacional en un plazo de cuatro años, mediante aplicación de cambios en la normativa e innovación de los productos y servicios que ofrece, para que estén acordes con las tendencias del mercado y con prácticas ambientalmente sostenibles.
A179: (a) Objetivo táctico o específico ¿Qué se pretende alcanzar y para qué? | B179: (b) Meta ¿Qué se propone? Calidad y cantidad | C179: (c) Indicador ¿Cómo medirlo? (número, cantidad, porcentaje) | D179: (d) Actividad (es) ¿Cómo lograrlo? | E179: (e) Unidad (es) responsable (s) | F179: (f) Presupuesto (en caso de contar, sino colocar N/T) | G179: (h) Justificación | H179: (i) Evidencia (oficios, actas, minutas, correos, reglamentos, manuales, etc.) | I179: (g) Porcentaje de cumplimiento | J179: (j) Estado de la meta (MC, MPC, MNC) | K179: (d) Actividad (es) ¿Cómo lograrlo? | L179: (h) Justificación | M179: (i) Evidencia (oficios, actas, minutas, correos, reglamentos, manuales, etc.) | N179: (g) Porcentaje de cumplimiento | O179: (j) Estado de la meta (MC, MPC, MNC)
A180: =A171+1 -> 20 | B180: Realizar los pagos por servicios brindados durante los 12 meses del año | C180: servicio pagado / Servicio facturado | D180: Servicio Medico | E180: Servicios Generales | F180: 10000000 | J180: =IFERROR(AVERAGE(I180),"") ->  | K180: =IF(D180<>"",D180,"") -> Servicio Medico | O180: =IFERROR(AVERAGE(N180),"") -> 
A181: Proporcionar oportuna y eficientemente los servicios que se requieran en materia, de comunicación, transporte, archivo, seguridad y vigilancia, aseo y limpieza, mantenimiento del edificio, servicios públicos, y/o cualquier otra actividad que procure la buena marcha de las actividades operativas y administrativas que se ejecutan en la Imprenta Nacional. | D181: Servicio de Vigilancia | F181: 94000000 | J181: =IFERROR(VLOOKUP(J180,'Datos Validaciones PAO'!$N$2:$O$102,2,TRUE),"") ->  | K181: =IF(D181<>"",D181,"") -> Servicio de Vigilancia | O181: =IFERROR(VLOOKUP(O180,'Datos Validaciones PAO'!$N$2:$O$102,2,TRUE),"") -> 
D182: Aseo y Limpieza | F182: 65000000 | K182: Aseo y Limpieza
D183: Servicio de Guarda Documentos | F183: 2000000 | K183: Servicio de Guarda Documentos
D184: Servicio de Fumigación | F184: 1000000 | K184: Servicio de Fumigación
D185: Seguros Incendio | F185: 15000000 | K185: Seguros Incendio
D186: Póliza de seguros para el equipo electronico | F186: 6000000 | K186: Póliza de seguros para el equipo electronico
A187: Objetivo Estratégico: | B187: 01) Transformar la Imprenta Nacional en un plazo de cuatro años, mediante aplicación de cambios en la normativa e innovación de los productos y servicios que ofrece, para que estén acordes con las tendencias del mercado y con prácticas ambientalmente sostenibles.
A188: (a) Objetivo táctico o específico ¿Qué se pretende alcanzar y para qué? | B188: (b) Meta ¿Qué se propone? Calidad y cantidad | C188: (c) Indicador ¿Cómo medirlo? (número, cantidad, porcentaje) | D188: (d) Actividad (es) ¿Cómo lograrlo? | E188: (e) Unidad (es) responsable (s) | F188: (f) Presupuesto (en caso de contar, sino colocar N/T) | G188: (h) Justificación | H188: (i) Evidencia (oficios, actas, minutas, correos, reglamentos, manuales, etc.) | I188: (g) Porcentaje de cumplimiento | J188: (j) Estado de la meta (MC, MPC, MNC) | K188: (d) Actividad (es) ¿Cómo lograrlo? | L188: (h) Justificación | M188: (i) Evidencia (oficios, actas, minutas, correos, reglamentos, manuales, etc.) | N188: (g) Porcentaje de cumplimiento | O188: (j) Estado de la meta (MC, MPC, MNC)
A189: =A180+1 -> 21 | B189: Realizar los pagos por servicios de mantenimiento | C189: Servicio facturado/servicio pagado | D189: Póliza de responsabilidad civil | E189: Servicios Generales | F189: 750000 | G189: No se recibió información | I189: 0 | J189: =IFERROR(AVERAGE(I189),"") -> 0 | K189: =IF(D189<>"",D189,"") -> Póliza de responsabilidad civil | L189: Se realizaron todas las gestiones para contar con los servicios requeridos durante el año y se ejecutó el presupuesto asignado. Se atendieron los distintos mantenimientos y se cancelaron los servicios públicos, polizas y otros asociadas a esta actividad. | M189: Procesos de contratación gestionados en AVANCE y SICOP. Ejecución presupuestaria reportada superior al 90% (oficio DVG-MLA-028-2024). Ejecución de los contratos y los servicios. | N189: 1 | O189: =IFERROR(AVERAGE(N189),"") -> 1
A190: Proporcionar oportuna y eficientemente los servicios que se requieran en materia, de comunicación, transporte, archivo, seguridad y vigilancia, aseo y limpieza, mantenimiento del edificio, servicios públicos, y/o cualquier otra actividad que procure la buena marcha de las actividades operativas y administrativas que se ejecutan en la Imprenta Nacional. | D190: Empresa que brinde los servicios de mantenimiento al edificio | F190: 30000000 | J190: =IFERROR(VLOOKUP(J189,'Datos Validaciones PAO'!$N$2:$O$102,2,TRUE),"") -> Meta No Cumplida (MNC) | K190: =IF(D190<>"",D190,"") -> Empresa que brinde los servicios de mantenimiento al edificio | O190: =IFERROR(VLOOKUP(O189,'Datos Validaciones PAO'!$N$2:$O$102,2,TRUE),"") -> Meta Cumplida (MC)
D191: Mantenimiento de orinales (mingitorios) | F191: 700000 | K191: Mantenimiento de orinales (mingitorios)
D192: Mantenimiento de Circuito Cerrado | F192: 2800000 | K192: Mantenimiento de Circuito Cerrado
D193: Repuestos Circuito Cerrado y Central Telefónica | F193: 1000000 | K193: Repuestos Circuito Cerrado y Central Telefónica
D194: Filtros para fuentes de agua y orinales | F194: 500000 | K194: Filtros para fuentes de agua y orinales
D195: Utiles y Materiales de Oficina | F195: 200000 | K195: Utiles y Materiales de Oficina
A196: Objetivo Estratégico: | B196: 03) Realizar gestión de calidad en la Imprenta Nacional mediante la documentación, estandarización y control de los procesos.
A197: (a) Objetivo táctico o específico ¿Qué se pretende alcanzar y para qué? | B197: (b) Meta ¿Qué se propone? Calidad y cantidad | C197: (c) Indicador ¿Cómo medirlo? (número, cantidad, porcentaje) | D197: (d) Actividad (es) ¿Cómo lograrlo? | E197: (e) Unidad (es) responsable (s) | F197: (f) Presupuesto (en caso de contar, sino colocar N/T) | G197: (h) Justificación | H197: (i) Evidencia (oficios, actas, minutas, correos, reglamentos, manuales, etc.) | I197: (g) Porcentaje de cumplimiento | J197: (j) Estado de la meta (MC, MPC, MNC) | K197: (d) Actividad (es) ¿Cómo lograrlo? | L197: (h) Justificación | M197: (i) Evidencia (oficios, actas, minutas, correos, reglamentos, manuales, etc.) | N197: (g) Porcentaje de cumplimiento | O197: (j) Estado de la meta (MC, MPC, MNC)
A198: =A189+1 -> 22 | B198: Contar con los insumos suficientes para el buen accionar institucional | C198: Compras anuales | D198: Papel Higiénico -Tollas para secado de manos en la entradas de la Institución -Papel para camillas | E198: Servicios Generales | F198: 200000 | J198: =IFERROR(AVERAGE(I198),"") ->  | K198: =IF(D198<>"",D198,"") -> Papel Higiénico -Tollas para secado de manos en la entradas de la Institución -Papel para camillas | O198: =IFERROR(AVERAGE(N198),"") -> 
A199: Proporcionar oportuna y eficientemente los servicios que se requieran en materia, de comunicación, transporte, archivo, seguridad y vigilancia, aseo y limpieza, mantenimiento del edificio, servicios públicos, y/o cualquier otra actividad que procure la buena marcha de las actividades operativas y administrativas que se ejecutan en la Imprenta Nacional. | D199: Banderas y Tela Negra para lazos | F199: 400000 | J199: =IFERROR(VLOOKUP(J198,'Datos Validaciones PAO'!$N$2:$O$102,2,TRUE),"") ->  | K199: =IF(D199<>"",D199,"") -> Banderas y Tela Negra para lazos | O199: =IFERROR(VLOOKUP(O198,'Datos Validaciones PAO'!$N$2:$O$102,2,TRUE),"") -> 
D200: Jabón Liquido | F200: 300000 | K200: Jabón Liquido
D201: Cámaras, Componentes del Circuito Cerrado y Central Telefónica | K201: Cámaras, Componentes del Circuito Cerrado y Central Telefónica
A205: Objetivo Estratégico: | B205: 01) Transformar la Imprenta Nacional en un plazo de cuatro años, mediante aplicación de cambios en la normativa e innovación de los productos y servicios que ofrece, para que estén acordes con las tendencias del mercado y con prácticas ambientalmente sostenibles.
A206: (a) Objetivo táctico o específico ¿Qué se pretende alcanzar y para qué? | B206: (b) Meta ¿Qué se propone? Calidad y cantidad | C206: (c) Indicador ¿Cómo medirlo? (número, cantidad, porcentaje) | D206: (d) Actividad (es) ¿Cómo lograrlo? | E206: (e) Unidad (es) responsable (s) | F206: (f) Presupuesto (en caso de contar, sino colocar N/T) | G206: (h) Justificación | H206: (i) Evidencia (oficios, actas, minutas, correos, reglamentos, manuales, etc.) | I206: (g) Porcentaje de cumplimiento | J206: (j) Estado de la meta (MC, MPC, MNC) | K206: (d) Actividad (es) ¿Cómo lograrlo? | L206: (h) Justificación | M206: (i) Evidencia (oficios, actas, minutas, correos, reglamentos, manuales, etc.) | N206: (g) Porcentaje de cumplimiento | O206: (j) Estado de la meta (MC, MPC, MNC)
A207: =A198+1 -> 23 | B207: Realizar de manera oportuna, eficiente y eficaz todas las actividades necesarias para impulsar la demanda de productos y servicios así como la imagen institucional | C207: Porcentaje de cumplimiento de actividades programadas en Plan de Trabajo Anual | D207: Servicio de Encomienda corporativa para entrega de productos | E207: Promoción y divulgación | F207: 500000 | J207: =IFERROR(AVERAGE(I207),"") ->  | K207: =IF(D207<>"",D207,"") -> Servicio de Encomienda corporativa para entrega de productos | O207: =IFERROR(AVERAGE(N207),"") -> 
A208: Impulsar la demanda de los productos y servicios de la Imprenta Nacional, así como la imagen institucional. | D208: Rótulos Exteriores | E208: Promoción y divulgación | F208: 2000000 | J208: =IFERROR(VLOOKUP(J207,'Datos Validaciones PAO'!$N$2:$O$102,2,TRUE),"") ->  | K208: =IF(D208<>"",D208,"") -> Rótulos Exteriores | O208: =IFERROR(VLOOKUP(O207,'Datos Validaciones PAO'!$N$2:$O$102,2,TRUE),"") -> 
D209: Propaganda Campaña Publicitaria | E209: Promoción y divulgación | F209: 0 | K209: Propaganda Campaña Publicitaria
D210: Poliza Mercadería en Transito | E210: Promoción y divulgación | F210: 300000 | K210: Poliza Mercadería en Transito
D211: Mantenimiento preventivo, correctivo y evolutivo de la web y app | E211: Promoción y divulgación | F211: 30000000 | K211: Mantenimiento preventivo, correctivo y evolutivo de la web y app
D212: Palillos de madera para banderas promocionales | E212: Promoción y divulgación | F212: 250000 | K212: Palillos de madera para banderas promocionales
D213: Garantías de Participación en Concursos por medio de SICOP | E213: Promoción y divulgación | F213: 3000000 | K213: Garantías de Participación en Concursos por medio de SICOP
A214: Objetivo Estratégico: | B214: 01) Transformar la Imprenta Nacional en un plazo de cuatro años, mediante aplicación de cambios en la normativa e innovación de los productos y servicios que ofrece, para que estén acordes con las tendencias del mercado y con prácticas ambientalmente sostenibles.
A215: (a) Objetivo táctico o específico ¿Qué se pretende alcanzar y para qué? | B215: (b) Meta ¿Qué se propone? Calidad y cantidad | C215: (c) Indicador ¿Cómo medirlo? (número, cantidad, porcentaje) | D215: (d) Actividad (es) ¿Cómo lograrlo? | E215: (e) Unidad (es) responsable (s) | F215: (f) Presupuesto (en caso de contar, sino colocar N/T) | G215: (h) Justificación | H215: (i) Evidencia (oficios, actas, minutas, correos, reglamentos, manuales, etc.) | I215: (g) Porcentaje de cumplimiento | J215: (j) Estado de la meta (MC, MPC, MNC) | K215: (d) Actividad (es) ¿Cómo lograrlo? | L215: (h) Justificación | M215: (i) Evidencia (oficios, actas, minutas, correos, reglamentos, manuales, etc.) | N215: (g) Porcentaje de cumplimiento | O215: (j) Estado de la meta (MC, MPC, MNC)
A216: =A207+1 -> 24 | B216: Al tratarse de un servicio contratado por demanda, se realiza cada vez que los funcionarios requieran del mismo durante el año 2024, se tiene estimado 8 renovaciones | C216: Actualización de firmas efectivas / actualizaciones programadas | D216: Actualización Firma digital | E216: Dirección Administrativa-Financiera | F216: 1300000 | J216: =IFERROR(AVERAGE(I216),"") ->  | K216: =IF(D216<>"",D216,"") -> Actualización Firma digital | O216: =IFERROR(AVERAGE(N216),"") -> 
A217: Continuar con la contratación de firmas digitales, cuyo objetivo consiste en el servicio por demanda de firma digital certificada bajo el sistema nacional de certificaciones digitales,tarjeta y dispositivo para lectura | J217: =IFERROR(VLOOKUP(J216,'Datos Validaciones PAO'!$N$2:$O$102,2,TRUE),"") ->  | K217: =IF(D217<>"",D217,"") ->  | O217: =IFERROR(VLOOKUP(O216,'Datos Validaciones PAO'!$N$2:$O$102,2,TRUE),"") -> 
A223: Objetivo Estratégico: | B223: 03) Realizar gestión de calidad en la Imprenta Nacional mediante la documentación, estandarización y control de los procesos.
A224: (a) Objetivo táctico o específico ¿Qué se pretende alcanzar y para qué? | B224: (b) Meta ¿Qué se propone? Calidad y cantidad | C224: (c) Indicador ¿Cómo medirlo? (número, cantidad, porcentaje) | D224: (d) Actividad (es) ¿Cómo lograrlo? | E224: (e) Unidad (es) responsable (s) | F224: (f) Presupuesto (en caso de contar, sino colocar N/T) | G224: (h) Justificación | H224: (i) Evidencia (oficios, actas, minutas, correos, reglamentos, manuales, etc.) | I224: (g) Porcentaje de cumplimiento | J224: (j) Estado de la meta (MC, MPC, MNC) | K224: (d) Actividad (es) ¿Cómo lograrlo? | L224: (h) Justificación | M224: (i) Evidencia (oficios, actas, minutas, correos, reglamentos, manuales, etc.) | N224: (g) Porcentaje de cumplimiento | O224: (j) Estado de la meta (MC, MPC, MNC)
A225: =A216+1 -> 25 | B225: Mantener actualizados el 100% de los contratos que se requieren para mantener la infraestructura y los sistemas informáticos habilitados | C225: Contratos actualizados / contratos rescindidos. | D225: Contrato de Servicios por renting para renovación de tecnologías del Datacenter, esto incluye equipamiento y software con sus licencias y servicios relacionados | E225: Informática | F225: 80000000 | J225: =IFERROR(AVERAGE(I225),"") ->  | K225: =IF(D225<>"",D225,"") -> Contrato de Servicios por renting para renovación de tecnologías del Datacenter, esto incluye equipamiento y software con sus licencias y servicios relacionados | O225: =IFERROR(AVERAGE(N225),"") -> 
A226: Desarrollar acciones con los elementos tecnológicos que se requieren para mantener la Infraestructura y los sistemas informáticos habilitados, por medio de las actividades de soporte e implementación de mejoras para la gestión de las diferentes áreas de la Imprenta Nacional usuarias de los sistemas de información. | D226: Contrato de Alquiler (Leasing y renting) de Equipo de Cómputo, Impresoras, Scanners y Seguridad | F226: 79500000 | J226: =IFERROR(VLOOKUP(J225,'Datos Validaciones PAO'!$N$2:$O$102,2,TRUE),"") ->  | K226: =IF(D226<>"",D226,"") -> Contrato de Alquiler (Leasing y renting) de Equipo de Cómputo, Impresoras, Scanners y Seguridad | O226: =IFERROR(VLOOKUP(O225,'Datos Validaciones PAO'!$N$2:$O$102,2,TRUE),"") -> 
D227: Contrato primera línea de Acceso a Internet banda ancha | F227: 9500000 | K227: Contrato primera línea de Acceso a Internet banda ancha
D228: Contrato de segunda línea internet banda ancha | F228: 9000000 | K228: Contrato de segunda línea internet banda ancha
D229: Contrato de servicio líneas en oficina del Registro Nacional | F229: 8500000 | K229: Contrato de servicio líneas en oficina del Registro Nacional
D230: Continuidad al Sistema de Mensajería de Texto | F230: 1000000 | K230: Continuidad al Sistema de Mensajería de Texto
D231: Contratación de Infraestructura Tecnológica como servicio para continuidad del Negocio de la Institución, que incluye nube híbrida para Diarios Oficiales y Sistemas Oracle internos | F231: 120000000 | K231: Contratación de Infraestructura Tecnológica como servicio para continuidad del Negocio de la Institución, que incluye nube híbrida para Diarios Oficiales y Sistemas Oracle internos
A232: Objetivo Estratégico: | B232: 02) Crear las condiciones idóneas para que las instituciones públicas y los mayores generadores de documentos para publicar en los Diarios Oficiales, puedan interconectarse con la Imprenta Nacional para agilizar el tránsito de documentos, mediante el desarrollo de interfaces y procesos que permitan el flujo de documentos a publicar en los Diarios Oficiales por sistemas telemáticos.
A233: (a) Objetivo táctico o específico ¿Qué se pretende alcanzar y para qué? | B233: (b) Meta ¿Qué se propone? Calidad y cantidad | C233: (c) Indicador ¿Cómo medirlo? (número, cantidad, porcentaje) | D233: (d) Actividad (es) ¿Cómo lograrlo? | E233: (e) Unidad (es) responsable (s) | F233: (f) Presupuesto (en caso de contar, sino colocar N/T) | G233: (h) Justificación | H233: (i) Evidencia (oficios, actas, minutas, correos, reglamentos, manuales, etc.) | I233: (g) Porcentaje de cumplimiento | J233: (j) Estado de la meta (MC, MPC, MNC) | K233: (d) Actividad (es) ¿Cómo lograrlo? | L233: (h) Justificación | M233: (i) Evidencia (oficios, actas, minutas, correos, reglamentos, manuales, etc.) | N233: (g) Porcentaje de cumplimiento | O233: (j) Estado de la meta (MC, MPC, MNC)
A234: =A225+1 -> 26 | B234: Mantener actualizados el 100% de los contratos que se requieren para mantener la infraestructura y los sistemas informáticos habilitados | C234: Contratos actualizados / contratos rescindidos. | D234: Mantenimiento Infraestructura Oracle y Soporte de Bases de Datos y Servidores de Aplicaciones | E234: Informática | F234: 8000000 | J234: =IFERROR(AVERAGE(I234),"") ->  | K234: =IF(D234<>"",D234,"") -> Mantenimiento Infraestructura Oracle y Soporte de Bases de Datos y Servidores de Aplicaciones | O234: =IFERROR(AVERAGE(N234),"") -> 
A235: Desarrollar acciones con los elementos tecnológicos que se requieren para mantener la Infraestructura y los sistemas informáticos habilitados, por medio de las actividades de soporte e implementación de mejoras para la gestión de las diferentes áreas de la Imprenta Nacional usuarias de los sistemas de información. | D235: Soporte y Mantenimiento a los mecanismos de implementación de las Normas Técnicas de Tecnologías de Información | F235: 16000000 | J235: =IFERROR(VLOOKUP(J234,'Datos Validaciones PAO'!$N$2:$O$102,2,TRUE),"") ->  | K235: =IF(D235<>"",D235,"") -> Soporte y Mantenimiento a los mecanismos de implementación de las Normas Técnicas de Tecnologías de Información | O235: =IFERROR(VLOOKUP(O234,'Datos Validaciones PAO'!$N$2:$O$102,2,TRUE),"") -> 
D236: Mantenimiento preventivo-correctivo y evolutivo para sistemas integrados ERP | F236: 21000000 | K236: Mantenimiento preventivo-correctivo y evolutivo para sistemas integrados ERP
D237: Contrato Servicio de Respaldos y Custodia de Datos e Información Institucional | F237: 4000000 | K237: Contrato Servicio de Respaldos y Custodia de Datos e Información Institucional
D238: Contrato para servicio de sofware de mesa de ayuda en nube Fresh Desk Interhand | F238: 2300000 | K238: Contrato para servicio de sofware de mesa de ayuda en nube Fresh Desk Interhand
D239: Contrato de Mantenimiento elementos del Data Center y redes de datos (Artic-Bunker,Aire AC. de Presición y UPS ) | F239: 7000000 | K239: Contrato de Mantenimiento elementos del Data Center y redes de datos (Artic-Bunker,Aire AC. de Presición y UPS )
D240: Cable UTP, conectores y materiales para redes | F240: 500000 | K240: Cable UTP, conectores y materiales para redes
A241: Objetivo Estratégico: | B241: 02) Crear las condiciones idóneas para que las instituciones públicas y los mayores generadores de documentos para publicar en los Diarios Oficiales, puedan interconectarse con la Imprenta Nacional para agilizar el tránsito de documentos, mediante el desarrollo de interfaces y procesos que permitan el flujo de documentos a publicar en los Diarios Oficiales por sistemas telemáticos.
A242: (a) Objetivo táctico o específico ¿Qué se pretende alcanzar y para qué? | B242: (b) Meta ¿Qué se propone? Calidad y cantidad | C242: (c) Indicador ¿Cómo medirlo? (número, cantidad, porcentaje) | D242: (d) Actividad (es) ¿Cómo lograrlo? | E242: (e) Unidad (es) responsable (s) | F242: (f) Presupuesto (en caso de contar, sino colocar N/T) | G242: (h) Justificación | H242: (i) Evidencia (oficios, actas, minutas, correos, reglamentos, manuales, etc.) | I242: (g) Porcentaje de cumplimiento | J242: (j) Estado de la meta (MC, MPC, MNC) | K242: (d) Actividad (es) ¿Cómo lograrlo? | L242: (h) Justificación | M242: (i) Evidencia (oficios, actas, minutas, correos, reglamentos, manuales, etc.) | N242: (g) Porcentaje de cumplimiento | O242: (j) Estado de la meta (MC, MPC, MNC)
A243: =A234+1 -> 27 | B243: Mantener actualizados el 100% de los contratos que se requieren para mantener la infraestructura y los sistemas informáticos habilitados | C243: Equipo de la red de voz y datos certificada con cableado estructurado operando. | D243: Herramientas e instrumentos | E243: Informática | F243: 500000 | J243: =IFERROR(AVERAGE(I243),"") ->  | K243: =IF(D243<>"",D243,"") -> Herramientas e instrumentos | O243: =IFERROR(AVERAGE(N243),"") -> 
A244: Desarrollar acciones con los elementos tecnológicos que se requieren para mantener la Infraestructura y los sistemas informáticos habilitados, por medio de las actividades de soporte e implementación de mejoras para la gestión de las diferentes áreas de la Imprenta Nacional usuarias de los sistemas de información. | D244: Repuestos equipo de computo | F244: 500000 | J244: =IFERROR(VLOOKUP(J243,'Datos Validaciones PAO'!$N$2:$O$102,2,TRUE),"") ->  | K244: =IF(D244<>"",D244,"") -> Repuestos equipo de computo | O244: =IFERROR(VLOOKUP(O243,'Datos Validaciones PAO'!$N$2:$O$102,2,TRUE),"") -> 
D245: Compra de equipos complementario de cómputo | F245: 1000000 | K245: Compra de equipos complementario de cómputo
D246: Adquisición y actualización de antivirus | F246: 2000000 | K246: Adquisición y actualización de antivirus
... 380 more rows

Sheet Datos Validaciones PAO (hidden)
A1: Objetivos estratégicos del PEI MGP 2020 - 2025 | N1: Porcentaje de Cumplimiento
A2: =IF(Filtros!H16<>"",Filtros!H16,"") -> 01) Transformar la Imprenta Nacional en un plazo de cuatro años, mediante aplicación de cambios en la normativa e innovación de los productos y servicios que ofrece, para que estén acordes con las tendencias del mercado y con prácticas ambientalmente sostenibles. | N2: 0 | O2: Meta No Cumplida (MNC)
A3: =IF(Filtros!H17<>"",Filtros!H17,"") -> 02) Crear las condiciones idóneas para que las instituciones públicas y los mayores generadores de documentos para publicar en los Diarios Oficiales, puedan interconectarse con la Imprenta Nacional para agilizar el tránsito de documentos, mediante el desarrollo de interfaces y procesos que permitan el flujo de documentos a publicar en los Diarios Oficiales por sistemas telemáticos. | N3: 0.01 | O3: Meta Parcialmente Cumplida (MPC)
A4: =IF(Filtros!H18<>"",Filtros!H18,"") -> 03) Realizar gestión de calidad en la Imprenta Nacional mediante la documentación, estandarización y control de los procesos. | N4: 0.02 | O4: Meta Parcialmente Cumplida (MPC)
A5: =IF(Filtros!H19<>"",Filtros!H19,"") ->  | N5: 0.03 | O5: Meta Parcialmente Cumplida (MPC)
A6: =IF(Filtros!H20<>"",Filtros!H20,"") ->  | N6: 0.04 | O6: Meta Parcialmente Cumplida (MPC)
A7: =IF(Filtros!H21<>"",Filtros!H21,"") ->  | N7: 0.05 | O7: Meta Parcialmente Cumplida (MPC)
A8: =IF(Filtros!H22<>"",Filtros!H22,"") ->  | N8: 0.06 | O8: Meta Parcialmente Cumplida (MPC)
A9: =IF(Filtros!H23<>"",Filtros!H23,"") ->  | N9: 0.07 | O9: Meta Parcialmente Cumplida (MPC)
A10: =IF(Filtros!H24<>"",Filtros!H24,"") ->  | N10: 0.08 | O10: Meta Parcialmente Cumplida (MPC)
A11: =IF(Filtros!H25<>"",Filtros!H25,"") ->  | N11: 0.09 | O11: Meta Parcialmente Cumplida (MPC)
A12: =IF(Filtros!H26<>"",Filtros!H26,"") ->  | N12: 0.1 | O12: Meta Parcialmente Cumplida (MPC)
A13: =IF(Filtros!H27<>"",Filtros!H27,"") ->  | N13: 0.11 | O13: Meta Parcialmente Cumplida (MPC)
A14: =IF(Filtros!H28<>"",Filtros!H28,"") ->  | N14: 0.12 | O14: Meta Parcialmente Cumplida (MPC)
A15: =IF(Filtros!H29<>"",Filtros!H29,"") ->  | N15: 0.13 | O15: Meta Parcialmente Cumplida (MPC)
A16: =IF(Filtros!H30<>"",Filtros!H30,"") ->  | N16: 0.14 | O16: Meta Parcialmente Cumplida (MPC)
A17: =IF(Filtros!H31<>"",Filtros!H31,"") ->  | N17: 0.15 | O17: Meta Parcialmente Cumplida (MPC)
A18: =IF(Filtros!H32<>"",Filtros!H32,"") ->  | N18: 0.16 | O18: Meta Parcialmente Cumplida (MPC)
A19: =IF(Filtros!H33<>"",Filtros!H33,"") ->  | N19: 0.17 | O19: Meta Parcialmente Cumplida (MPC)
A20: =IF(Filtros!H34<>"",Filtros!H34,"") ->  | N20: 0.18 | O20: Meta Parcialmente Cumplida (MPC)
A21: =IF(Filtros!H35<>"",Filtros!H35,"") ->  | N21: 0.19 | O21: Meta Parcialmente Cumplida (MPC)
A22: =IF(Filtros!H36<>"",Filtros!H36,"") ->  | N22: 0.2 | O22: Meta Parcialmente Cumplida (MPC)
A23: =IF(Filtros!H37<>"",Filtros!H37,"") ->  | N23: 0.21 | O23: Meta Parcialmente Cumplida (MPC)
A24: =IF(Filtros!H38<>"",Filtros!H38,"") ->  | N24: 0.22 | O24: Meta Parcialmente Cumplida (MPC)
A25: =IF(Filtros!H39<>"",Filtros!H39,"") ->  | N25: 0.23 | O25: Meta Parcialmente Cumplida (MPC)
A26: =IF(Filtros!H40<>"",Filtros!H40,"") ->  | N26: 0.24 | O26: Meta Parcialmente Cumplida (MPC)
A27: =IF(Filtros!H41<>"",Filtros!H41,"") ->  | N27: 0.25 | O27: Meta Parcialmente Cumplida (MPC)
A28: =IF(Filtros!H42<>"",Filtros!H42,"") ->  | N28: 0.26 | O28: Meta Parcialmente Cumplida (MPC)
A29: =IF(Filtros!H43<>"",Filtros!H43,"") ->  | N29: 0.27 | O29: Meta Parcialmente Cumplida (MPC)
A30: =IF(Filtros!H44<>"",Filtros!H44,"") ->  | N30: 0.28 | O30: Meta Parcialmente Cumplida (MPC)
A31: =IF(Filtros!H45<>"",Filtros!H45,"") ->  | N31: 0.29 | O31: Meta Parcialmente Cumplida (MPC)
A32: =IF(Filtros!H46<>"",Filtros!H46,"") ->  | N32: 0.3 | O32: Meta Parcialmente Cumplida (MPC)
A33: =IF(Filtros!H47<>"",Filtros!H47,"") ->  | N33: 0.31 | O33: Meta Parcialmente Cumplida (MPC)
A34: =IF(Filtros!H48<>"",Filtros!H48,"") ->  | N34: 0.32 | O34: Meta Parcialmente Cumplida (MPC)
A35: =IF(Filtros!H49<>"",Filtros!H49,"") ->  | N35: 0.33 | O35: Meta Parcialmente Cumplida (MPC)
A36: =IF(Filtros!H50<>"",Filtros!H50,"") ->  | N36: 0.34 | O36: Meta Parcialmente Cumplida (MPC)
A37: =IF(Filtros!H51<>"",Filtros!H51,"") ->  | N37: 0.35 | O37: Meta Parcialmente Cumplida (MPC)
A38: =IF(Filtros!H52<>"",Filtros!H52,"") ->  | N38: 0.36 | O38: Meta Parcialmente Cumplida (MPC)
A39: =IF(Filtros!H53<>"",Filtros!H53,"") ->  | N39: 0.37 | O39: Meta Parcialmente Cumplida (MPC)
A40: =IF(Filtros!H54<>"",Filtros!H54,"") ->  | N40: 0.38 | O40: Meta Parcialmente Cumplida (MPC)
A41: =IF(Filtros!H55<>"",Filtros!H55,"") ->  | N41: 0.39 | O41: Meta Parcialmente Cumplida (MPC)
A42: =IF(Filtros!H56<>"",Filtros!H56,"") ->  | N42: 0.4 | O42: Meta Parcialmente Cumplida (MPC)
A43: =IF(Filtros!H57<>"",Filtros!H57,"") ->  | N43: 0.41 | O43: Meta Parcialmente Cumplida (MPC)
A44: =IF(Filtros!H58<>"",Filtros!H58,"") ->  | N44: 0.42 | O44: Meta Parcialmente Cumplida (MPC)
A45: =IF(Filtros!H59<>"",Filtros!H59,"") ->  | N45: 0.43 | O45: Meta Parcialmente Cumplida (MPC)
A46: =IF(Filtros!H60<>"",Filtros!H60,"") ->  | N46: 0.44 | O46: Meta Parcialmente Cumplida (MPC)
A47: =IF(Filtros!H61<>"",Filtros!H61,"") ->  | N47: 0.45 | O47: Meta Parcialmente Cumplida (MPC)
A48: =IF(Filtros!H62<>"",Filtros!H62,"") ->  | N48: 0.46 | O48: Meta Parcialmente Cumplida (MPC)
A49: =IF(Filtros!H63<>"",Filtros!H63,"") ->  | N49: 0.47 | O49: Meta Parcialmente Cumplida (MPC)
A50: =IF(Filtros!H64<>"",Filtros!H64,"") ->  | N50: 0.48 | O50: Meta Parcialmente Cumplida (MPC)
A51: =IF(Filtros!H65<>"",Filtros!H65,"") ->  | N51: 0.49 | O51: Meta Parcialmente Cumplida (MPC)
N52: 0.5 | O52: Meta Parcialmente Cumplida (MPC)
N53: 0.51 | O53: Meta Parcialmente Cumplida (MPC)
N54: 0.52 | O54: Meta Parcialmente Cumplida (MPC)
J55: (e) Estados de la meta | N55: 0.53 | O55: Meta Parcialmente Cumplida (MPC)
J56: Meta Cumplida (MC) | N56: 0.54 | O56: Meta Parcialmente Cumplida (MPC)
J57: Meta Parcialmente Cumplida (MPC) | N57: 0.55 | O57: Meta Parcialmente Cumplida (MPC)
J58: Meta No Cumplida (MNC) | N58: 0.56 | O58: Meta Parcialmente Cumplida (MPC)
N59: 0.57 | O59: Meta Parcialmente Cumplida (MPC)
N60: 0.58 | O60: Meta Parcialmente Cumplida (MPC)
N61: 0.59 | O61: Meta Parcialmente Cumplida (MPC)
N62: 0.6 | O62: Meta Parcialmente Cumplida (MPC)
N63: 0.61 | O63: Meta Parcialmente Cumplida (MPC)
N64: 0.62 | O64: Meta Parcialmente Cumplida (MPC)
N65: 0.63 | O65: Meta Parcialmente Cumplida (MPC)
N66: 0.64 | O66: Meta Parcialmente Cumplida (MPC)
N67: 0.65 | O67: Meta Parcialmente Cumplida (MPC)
N68: 0.66 | O68: Meta Parcialmente Cumplida (MPC)
N69: 0.67 | O69: Meta Parcialmente Cumplida (MPC)
N70: 0.68 | O70: Meta Parcialmente Cumplida (MPC)
N71: 0.69 | O71: Meta Parcialmente Cumplida (MPC)
N72: 0.7 | O72: Meta Parcialmente Cumplida (MPC)
N73: 0.71 | O73: Meta Parcialmente Cumplida (MPC)
N74: 0.72 | O74: Meta Parcialmente Cumplida (MPC)
N75: 0.73 | O75: Meta Parcialmente Cumplida (MPC)
N76: 0.74 | O76: Meta Parcialmente Cumplida (MPC)
N77: 0.75 | O77: Meta Parcialmente Cumplida (MPC)
N78: 0.76 | O78: Meta Parcialmente Cumplida (MPC)
N79: 0.77 | O79: Meta Parcialmente Cumplida (MPC)
N80: 0.78 | O80: Meta Parcialmente Cumplida (MPC)
N81: 0.79 | O81: Meta Parcialmente Cumplida (MPC)
N82: 0.8 | O82: Meta Parcialmente Cumplida (MPC)
N83: 0.81 | O83: Meta Parcialmente Cumplida (MPC)
N84: 0.82 | O84: Meta Parcialmente Cumplida (MPC)
N85: 0.83 | O85: Meta Parcialmente Cumplida (MPC)
N86: 0.84 | O86: Meta Parcialmente Cumplida (MPC)
N87: 0.85 | O87: Meta Parcialmente Cumplida (MPC)
N88: 0.86 | O88: Meta Parcialmente Cumplida (MPC)
N89: 0.87 | O89: Meta Parcialmente Cumplida (MPC)
N90: 0.88 | O90: Meta Parcialmente Cumplida (MPC)
N91: 0.89 | O91: Meta Parcialmente Cumplida (MPC)
N92: 0.9 | O92: Meta Parcialmente Cumplida (MPC)
N93: 0.91 | O93: Meta Parcialmente Cumplida (MPC)
N94: 0.92 | O94: Meta Parcialmente Cumplida (MPC)
N95: 0.93 | O95: Meta Parcialmente Cumplida (MPC)
N96: 0.94 | O96: Meta Parcialmente Cumplida (MPC)
N97: 0.95 | O97: Meta Parcialmente Cumplida (MPC)
N98: 0.96 | O98: Meta Parcialmente Cumplida (MPC)
N99: 0.97 | O99: Meta Parcialmente Cumplida (MPC)
N100: 0.98 | O100: Meta Parcialmente Cumplida (MPC)
N101: 0.99 | O101: Meta Parcialmente Cumplida (MPC)
N102: 1 | O102: Meta Cumplida (MC)
N103: 1.01 | O103: VALOR NO ADMITIDO
N104: 1.02
N105: 1.03
N106: 1.04
N107: 1.05
N108: 1.06
N109: 1.07
N110: 1.08
N111: 1.09
N112: 1.1
N113: 1.11
N114: 1.12
N115: 1.13

Sheet Validaciones SEVRI (hidden)
A1: Ambiente | B1: Código relacionado | C1: Riesgo | D1: Posibles eventos que originen el riesgo (Catálogo de riesgos_revisar_) | E1: Concatenado | F1: Ambientes | G1: Códigos + Naturaleza del Riesgo | H1: Naturaleza del Riesgo | I1: Estado de cumplimiento | J1: Sí o No | L1: Dependencia | M1: Logo | O1: Años válidos
A2: =IF(Filtros!A16<>"",Filtros!A16,"") -> Externo | B2: =IF(Filtros!B16<>"",Filtros!B16,"") -> R007 | C2: =IF(Filtros!C16<>"",Filtros!C16,"") -> Recurso Humano | D2: =IF(Filtros!D16<>"",Filtros!D16,"") -> Acceso a cursos de inducción | E2: =IF(A2<>"",CONCATENATE(B2," ",C2),"") -> R007 Recurso Humano | F2: Interno | G2: R001 Tecnologías de Información | H2: Tecnologías de Información | I2: TOTAL | J2: SÍ | L2: Dinadeco. | M2: DINADECO | O2: 2023
A3: =IF(Filtros!A17<>"",Filtros!A17,"") -> Interno | B3: =IF(Filtros!B17<>"",Filtros!B17,"") -> R001 | C3: =IF(Filtros!C17<>"",Filtros!C17,"") -> Tecnologías de Información | D3: =IF(Filtros!D17<>"",Filtros!D17,"") -> Acceso a sistemas y/o datos y/o información | E3: =IF(A3<>"",CONCATENATE(B3," ",C3),"") -> R001 Tecnologías de Información | F3: Interno | G3: R002 Presupuestario | H3: Presupuestario | I3: PARCIAL | J3: NO | L3: Gobernación - Actividad Central. | M3: AC | O3: 2024
A4: =IF(Filtros!A18<>"",Filtros!A18,"") -> Interno | B4: =IF(Filtros!B18<>"",Filtros!B18,"") -> R004 | C4: =IF(Filtros!C18<>"",Filtros!C18,"") -> Insumos | D4: =IF(Filtros!D18<>"",Filtros!D18,"") -> Acceso oportuno para todos | E4: R004 Insumos | F4: Interno | G4: R003 Operativo | H4: Operativo | I4: NADA | L4: Control de Propaganda. | M4: Control de propaganda | O4: 2025
A5: =IF(Filtros!A19<>"",Filtros!A19,"") -> Interno | B5: =IF(Filtros!B19<>"",Filtros!B19,"") -> R003 | C5: =IF(Filtros!C19<>"",Filtros!C19,"") -> Operativo | D5: =IF(Filtros!D19<>"",Filtros!D19,"") -> Accidentes laborales | E5: R003 Operativo | F5: Interno | G5: R004 Insumos | H5: Insumos | L5: Dirección General de Migración y Extranjería. | M5: DGME | O5: 2026
A6: =IF(Filtros!A20<>"",Filtros!A20,"") -> Externo | B6: =IF(Filtros!B20<>"",Filtros!B20,"") -> R010 | C6: =IF(Filtros!C20<>"",Filtros!C20,"") -> Ambiental | D6: =IF(Filtros!D20<>"",Filtros!D20,"") -> Acciones humanas | E6: R010 Ambiental | F6: Interno | G6: R005 Estratégico | H6: Estratégico | L6: Imprenta. | M6: Imprenta | O6: 2027
A7: =IF(Filtros!A21<>"",Filtros!A21,"") -> Interno | B7: =IF(Filtros!B21<>"",Filtros!B21,"") -> R007 | C7: =IF(Filtros!C21<>"",Filtros!C21,"") -> Recurso Humano | D7: =IF(Filtros!D21<>"",Filtros!D21,"") -> Acoso sexual y laboral | E7: R007 Recurso Humano | F7: Interno | G7: R006 Información | H7: Información | L7: Tribunal Administrativo Migratorio. | M7: Tribunal Administrativo Migratorio | O7: 2028
A8: =IF(Filtros!A22<>"",Filtros!A22,"") -> Interno | B8: =IF(Filtros!B22<>"",Filtros!B22,"") -> R007 | C8: =IF(Filtros!C22<>"",Filtros!C22,"") -> Recurso Humano | D8: =IF(Filtros!D22<>"",Filtros!D22,"") -> Adecuados programas de incentivos y compensación | E8: R007 Recurso Humano | F8: Interno | G8: R007 Recurso Humano | H8: Recurso Humano | O8: 2029
A9: =IF(Filtros!A23<>"",Filtros!A23,"") -> Interno | B9: =IF(Filtros!B23<>"",Filtros!B23,"") -> R014 | C9: =IF(Filtros!C23<>"",Filtros!C23,"") -> Información | D9: =IF(Filtros!D23<>"",Filtros!D23,"") -> Adecuados y eficientes canales de comunicación | E9: R014 Información | F9: Interno | G9: R008 Ambiente | H9: Ambiente | O9: 2030
A10: =IF(Filtros!A24<>"",Filtros!A24,"") -> Interno | B10: =IF(Filtros!B24<>"",Filtros!B24,"") -> R004 | C10: =IF(Filtros!C24<>"",Filtros!C24,"") -> Insumos | D10: =IF(Filtros!D24<>"",Filtros!D24,"") -> Adquisición de insumos de baja calidad | E10: R004 Insumos | F10: Externo | G10: R009 Políticos | H10: Políticos
A11: =IF(Filtros!A25<>"",Filtros!A25,"") -> Interno/Externo | B11: =IF(Filtros!B25<>"",Filtros!B25,"") -> R016 | C11: =IF(Filtros!C25<>"",Filtros!C25,"") -> Ética y Corrupción | D11: =IF(Filtros!D25<>"",Filtros!D25,"") -> Adulteración de información | E11: R016 Ética y Corrupción | F11: Externo | G11: R010 Ambiental | H11: Ambiental
A12: =IF(Filtros!A26<>"",Filtros!A26,"") -> Interno | B12: =IF(Filtros!B26<>"",Filtros!B26,"") -> R004 | C12: =IF(Filtros!C26<>"",Filtros!C26,"") -> Insumos | D12: =IF(Filtros!D26<>"",Filtros!D26,"") -> Almacenamiento en áreas inadecuadas | E12: R004 Insumos | F12: Externo | G12: R011 Financiero | H12: Financiero
A13: =IF(Filtros!A27<>"",Filtros!A27,"") -> Interno | B13: =IF(Filtros!B27<>"",Filtros!B27,"") -> R005 | C13: =IF(Filtros!C27<>"",Filtros!C27,"") -> Estratégico | D13: =IF(Filtros!D27<>"",Filtros!D27,"") -> Alteración en la planificación de la producción | E13: R005 Estratégico | F13: Externo | G13: R012 Social | H13: Social
A14: =IF(Filtros!A28<>"",Filtros!A28,"") -> Interno | B14: =IF(Filtros!B28<>"",Filtros!B28,"") -> R007 | C14: =IF(Filtros!C28<>"",Filtros!C28,"") -> Recurso Humano | D14: =IF(Filtros!D28<>"",Filtros!D28,"") -> Ausencia de estudios de clima laboral | E14: R007 Recurso Humano | F14: Externo | G14: R013 Legal | H14: Legal
A15: =IF(Filtros!A29<>"",Filtros!A29,"") -> Externo | B15: =IF(Filtros!B29<>"",Filtros!B29,"") -> R013 | C15: =IF(Filtros!C29<>"",Filtros!C29,"") -> Legal | D15: =IF(Filtros!D29<>"",Filtros!D29,"") -> Ausencia de normativa | E15: R013 Legal | F15: Externo | G15: R014 Información | H15: Información
A16: =IF(Filtros!A30<>"",Filtros!A30,"") -> Interno | B16: =IF(Filtros!B30<>"",Filtros!B30,"") -> R001 | C16: =IF(Filtros!C30<>"",Filtros!C30,"") -> Tecnologías de Información | D16: =IF(Filtros!D30<>"",Filtros!D30,"") -> Ausencia de oficiales de ciberseguridad | E16: R001 Tecnologías de Información | F16: Externo | G16: R015 Institucional | H16: Institucional
A17: =IF(Filtros!A31<>"",Filtros!A31,"") -> Interno | B17: =IF(Filtros!B31<>"",Filtros!B31,"") -> R004 | C17: =IF(Filtros!C31<>"",Filtros!C31,"") -> Insumos | D17: =IF(Filtros!D31<>"",Filtros!D31,"") -> Ausencia de registro en el sistema SIBINET | E17: R004 Insumos
A18: =IF(Filtros!A32<>"",Filtros!A32,"") -> Interno | B18: =IF(Filtros!B32<>"",Filtros!B32,"") -> R001 | C18: =IF(Filtros!C32<>"",Filtros!C32,"") -> Tecnologías de Información | D18: =IF(Filtros!D32<>"",Filtros!D32,"") -> Caída del sistema Avance | E18: R001 Tecnologías de Información
A19: =IF(Filtros!A33<>"",Filtros!A33,"") -> Interno | B19: =IF(Filtros!B33<>"",Filtros!B33,"") -> R004 | C19: =IF(Filtros!C33<>"",Filtros!C33,"") -> Insumos | D19: =IF(Filtros!D33<>"",Filtros!D33,"") -> Calidad de la materia prima | E19: R004 Insumos
A20: =IF(Filtros!A34<>"",Filtros!A34,"") -> Externo | B20: =IF(Filtros!B34<>"",Filtros!B34,"") -> R009 | C20: =IF(Filtros!C34<>"",Filtros!C34,"") -> Políticos | D20: =IF(Filtros!D34<>"",Filtros!D34,"") -> Cambios de gobierno | E20: R009 Políticos
A21: =IF(Filtros!A35<>"",Filtros!A35,"") -> Interno | B21: =IF(Filtros!B35<>"",Filtros!B35,"") -> R012 | C21: =IF(Filtros!C35<>"",Filtros!C35,"") -> Social | D21: =IF(Filtros!D35<>"",Filtros!D35,"") -> Cambios demográficos | E21: R012 Social
A22: =IF(Filtros!A36<>"",Filtros!A36,"") -> Interno | B22: =IF(Filtros!B36<>"",Filtros!B36,"") -> R004 | C22: =IF(Filtros!C36<>"",Filtros!C36,"") -> Insumos | D22: =IF(Filtros!D36<>"",Filtros!D36,"") -> Capacidad para adquirirlos | E22: R004 Insumos
A23: =IF(Filtros!A37<>"",Filtros!A37,"") -> Interno/Externo | B23: =IF(Filtros!B37<>"",Filtros!B37,"") -> R016 | C23: =IF(Filtros!C37<>"",Filtros!C37,"") -> Ética y Corrupción | D23: =IF(Filtros!D37<>"",Filtros!D37,"") -> Cohecho impropio | E23: R016 Ética y Corrupción
A24: =IF(Filtros!A38<>"",Filtros!A38,"") -> Externo | B24: =IF(Filtros!B38<>"",Filtros!B38,"") -> R015 | C24: =IF(Filtros!C38<>"",Filtros!C38,"") -> Institucional | D24: =IF(Filtros!D38<>"",Filtros!D38,"") -> Colegios de profesionales | E24: R015 Institucional
A25: =IF(Filtros!A39<>"",Filtros!A39,"") -> Externo | B25: =IF(Filtros!B39<>"",Filtros!B39,"") -> R015 | C25: =IF(Filtros!C39<>"",Filtros!C39,"") -> Institucional | D25: =IF(Filtros!D39<>"",Filtros!D39,"") -> Colegios profesionales | E25: R015 Institucional
A26: =IF(Filtros!A40<>"",Filtros!A40,"") -> Interno | B26: =IF(Filtros!B40<>"",Filtros!B40,"") -> R005 | C26: =IF(Filtros!C40<>"",Filtros!C40,"") -> Estratégico | D26: =IF(Filtros!D40<>"",Filtros!D40,"") -> Comunicación adecuada y veraz en todos los niveles | E26: R005 Estratégico
A27: =IF(Filtros!A41<>"",Filtros!A41,"") -> Externo | B27: =IF(Filtros!B41<>"",Filtros!B41,"") -> R009 | C27: =IF(Filtros!C41<>"",Filtros!C41,"") -> Políticos | D27: =IF(Filtros!D41<>"",Filtros!D41,"") -> Confianza extranjera | E27: R009 Políticos | F27: Externo | G27: R013 Legal | H27: Legal
A28: =IF(Filtros!A42<>"",Filtros!A42,"") -> Externo | B28: =IF(Filtros!B42<>"",Filtros!B42,"") -> R012 | C28: =IF(Filtros!C42<>"",Filtros!C42,"") -> Social | D28: =IF(Filtros!D42<>"",Filtros!D42,"") -> Conflictos o alianzas entre grupos | E28: R012 Social
A29: =IF(Filtros!A43<>"",Filtros!A43,"") -> Externo | B29: =IF(Filtros!B43<>"",Filtros!B43,"") -> R009 | C29: =IF(Filtros!C43<>"",Filtros!C43,"") -> Políticos | D29: =IF(Filtros!D43<>"",Filtros!D43,"") -> Conflictos políticos | E29: R009 Políticos
A30: =IF(Filtros!A44<>"",Filtros!A44,"") -> Externo | B30: =IF(Filtros!B44<>"",Filtros!B44,"") -> R010 | C30: =IF(Filtros!C44<>"",Filtros!C44,"") -> Ambiental | D30: =IF(Filtros!D44<>"",Filtros!D44,"") -> Contaminación | E30: R010 Ambiental
A31: =IF(Filtros!A45<>"",Filtros!A45,"") -> Externo | B31: =IF(Filtros!B45<>"",Filtros!B45,"") -> R008 | C31: =IF(Filtros!C45<>"",Filtros!C45,"") -> Ambiente | D31: =IF(Filtros!D45<>"",Filtros!D45,"") -> Contaminantes químicos o biológicos | E31: R008 Ambiente
A32: =IF(Filtros!A46<>"",Filtros!A46,"") -> Externo | B32: =IF(Filtros!B46<>"",Filtros!B46,"") -> R009 | C32: =IF(Filtros!C46<>"",Filtros!C46,"") -> Políticos | D32: =IF(Filtros!D46<>"",Filtros!D46,"") -> Continuidad de Políticas institucionales diseñadas | E32: R009 Políticos
A33: =IF(Filtros!A47<>"",Filtros!A47,"") -> Interno | B33: =IF(Filtros!B47<>"",Filtros!B47,"") -> R003 | C33: =IF(Filtros!C47<>"",Filtros!C47,"") -> Operativo | D33: =IF(Filtros!D47<>"",Filtros!D47,"") -> Coordinación con los diferentes procesos | E33: R003 Operativo
A34: =IF(Filtros!A48<>"",Filtros!A48,"") -> Externo | B34: =IF(Filtros!B48<>"",Filtros!B48,"") -> R011 | C34: =IF(Filtros!C48<>"",Filtros!C48,"") -> Financiero | D34: =IF(Filtros!D48<>"",Filtros!D48,"") -> Crisis económica | E34: R011 Financiero
A35: =IF(Filtros!A49<>"",Filtros!A49,"") -> Interno | B35: =IF(Filtros!B49<>"",Filtros!B49,"") -> R005 | C35: =IF(Filtros!C49<>"",Filtros!C49,"") -> Estratégico | D35: =IF(Filtros!D49<>"",Filtros!D49,"") -> Cultura organizacional | E35: R005 Estratégico
A36: =IF(Filtros!A50<>"",Filtros!A50,"") -> Interno | B36: =IF(Filtros!B50<>"",Filtros!B50,"") -> R005 | C36: =IF(Filtros!C50<>"",Filtros!C50,"") -> Estratégico | D36: =IF(Filtros!D50<>"",Filtros!D50,"") -> Cumplimiento de la misión, visión y objetivos institucionales | E36: R005 Estratégico
A37: =IF(Filtros!A51<>"",Filtros!A51,"") -> Interno | B37: =IF(Filtros!B51<>"",Filtros!B51,"") -> R003 | C37: =IF(Filtros!C51<>"",Filtros!C51,"") -> Operativo | D37: =IF(Filtros!D51<>"",Filtros!D51,"") -> Cumplimiento de metas institucionales | E37: R003 Operativo
A38: =IF(Filtros!A52<>"",Filtros!A52,"") -> Interno | B38: =IF(Filtros!B52<>"",Filtros!B52,"") -> R006 | C38: =IF(Filtros!C52<>"",Filtros!C52,"") -> Información | D38: =IF(Filtros!D52<>"",Filtros!D52,"") -> Daños en el Sistema de publicaciones de los Diarios Oficiales | E38: R006 Información
A39: =IF(Filtros!A53<>"",Filtros!A53,"") -> Interno | B39: =IF(Filtros!B53<>"",Filtros!B53,"") -> R004 | C39: =IF(Filtros!C53<>"",Filtros!C53,"") -> Insumos | D39: =IF(Filtros!D53<>"",Filtros!D53,"") -> Daños en escáner | E39: R004 Insumos
A40: =IF(Filtros!A54<>"",Filtros!A54,"") -> Interno/Externo | B40: =IF(Filtros!B54<>"",Filtros!B54,"") -> R016 | C40: =IF(Filtros!C54<>"",Filtros!C54,"") -> Ética y Corrupción | D40: =IF(Filtros!D54<>"",Filtros!D54,"") -> Deber de probidad | E40: R016 Ética y Corrupción
A41: =IF(Filtros!A55<>"",Filtros!A55,"") -> Interno | B41: =IF(Filtros!B55<>"",Filtros!B55,"") -> R003 | C41: =IF(Filtros!C55<>"",Filtros!C55,"") -> Operativo | D41: =IF(Filtros!D55<>"",Filtros!D55,"") -> Definición clara del centro de trabajo | E41: R003 Operativo
A42: =IF(Filtros!A56<>"",Filtros!A56,"") -> Interno | B42: =IF(Filtros!B56<>"",Filtros!B56,"") -> R005 | C42: =IF(Filtros!C56<>"",Filtros!C56,"") -> Estratégico | D42: =IF(Filtros!D56<>"",Filtros!D56,"") -> Demanda reducida en Artes Gráficas y Diarios Oficiales | E42: R005 Estratégico
A43: =IF(Filtros!A57<>"",Filtros!A57,"") -> Externo | B43: =IF(Filtros!B57<>"",Filtros!B57,"") -> R015 | C43: =IF(Filtros!C57<>"",Filtros!C57,"") -> Institucional | D43: =IF(Filtros!D57<>"",Filtros!D57,"") -> Denunciantes | E43: R015 Institucional
A44: =IF(Filtros!A58<>"",Filtros!A58,"") -> Interno | B44: =IF(Filtros!B58<>"",Filtros!B58,"") -> R007 | C44: =IF(Filtros!C58<>"",Filtros!C58,"") -> Recurso Humano | D44: =IF(Filtros!D58<>"",Filtros!D58,"") -> Desarrollo de personal en todos los niveles | E44: R007 Recurso Humano
A45: =IF(Filtros!A59<>"",Filtros!A59,"") -> Interno | B45: =IF(Filtros!B59<>"",Filtros!B59,"") -> R007 | C45: =IF(Filtros!C59<>"",Filtros!C59,"") -> Recurso Humano | D45: =IF(Filtros!D59<>"",Filtros!D59,"") -> Disponibilidad laboral | E45: R007 Recurso Humano
A46: =IF(Filtros!A60<>"",Filtros!A60,"") -> Interno | B46: =IF(Filtros!B60<>"",Filtros!B60,"") -> R001 | C46: =IF(Filtros!C60<>"",Filtros!C60,"") -> Tecnologías de Información | D46: =IF(Filtros!D60<>"",Filtros!D60,"") -> Disponibilidad oportuna de la aplicación creada | E46: R001 Tecnologías de Información
A47: =IF(Filtros!A61<>"",Filtros!A61,"") -> Externo | B47: =IF(Filtros!B61<>"",Filtros!B61,"") -> R015 | C47: =IF(Filtros!C61<>"",Filtros!C61,"") -> Institucional | D47: =IF(Filtros!D61<>"",Filtros!D61,"") -> Entes privados que administran fondos de la institución | E47: R015 Institucional
A48: =IF(Filtros!A62<>"",Filtros!A62,"") -> Interno | B48: =IF(Filtros!B62<>"",Filtros!B62,"") -> R003 | C48: =IF(Filtros!C62<>"",Filtros!C62,"") -> Operativo | D48: =IF(Filtros!D62<>"",Filtros!D62,"") -> Errores de calidad en la impresión artes gráficas y digitales | E48: R003 Operativo
A49: =IF(Filtros!A63<>"",Filtros!A63,"") -> Interno | B49: =IF(Filtros!B63<>"",Filtros!B63,"") -> R003 | C49: =IF(Filtros!C63<>"",Filtros!C63,"") -> Operativo | D49: =IF(Filtros!D63<>"",Filtros!D63,"") -> Estructura Ocupacional acorde a las necesidades | E49: R003 Operativo
A50: =IF(Filtros!A64<>"",Filtros!A64,"") -> Interno | B50: =IF(Filtros!B64<>"",Filtros!B64,"") -> R003 | C50: =IF(Filtros!C64<>"",Filtros!C64,"") -> Operativo | D50: =IF(Filtros!D64<>"",Filtros!D64,"") -> Estructura Organizacional que responda a las necesidades | E50: R003 Operativo
A51: =IF(Filtros!A65<>"",Filtros!A65,"") -> Interno | B51: =IF(Filtros!B65<>"",Filtros!B65,"") -> R003 | C51: =IF(Filtros!C65<>"",Filtros!C65,"") -> Operativo | D51: =IF(Filtros!D65<>"",Filtros!D65,"") -> Estructuras de trabajo acordes a las necesidades demandadas por los usuarios | E51: R003 Operativo
A52: =IF(Filtros!A66<>"",Filtros!A66,"") -> Externo | B52: =IF(Filtros!B66<>"",Filtros!B66,"") -> R013 | C52: =IF(Filtros!C66<>"",Filtros!C66,"") -> Legal | D52: =IF(Filtros!D66<>"",Filtros!D66,"") -> Exceso de requisitos | E52: R013 Legal
A53: =IF(Filtros!A67<>"",Filtros!A67,"") -> Interno | B53: =IF(Filtros!B67<>"",Filtros!B67,"") -> R004 | C53: =IF(Filtros!C67<>"",Filtros!C67,"") -> Insumos | D53: =IF(Filtros!D67<>"",Filtros!D67,"") -> Extravío y/o pérdida de activos y/o equipo | E53: R004 Insumos
A54: =IF(Filtros!A68<>"",Filtros!A68,"") -> Interno | B54: =IF(Filtros!B68<>"",Filtros!B68,"") -> R003 | C54: =IF(Filtros!C68<>"",Filtros!C68,"") -> Operativo | D54: =IF(Filtros!D68<>"",Filtros!D68,"") -> Fallas eléctricas y/o planta eléctrica | E54: R003 Operativo
A55: =IF(Filtros!A69<>"",Filtros!A69,"") -> Interno | B55: =IF(Filtros!B69<>"",Filtros!B69,"") -> R003 | C55: =IF(Filtros!C69<>"",Filtros!C69,"") -> Operativo | D55: =IF(Filtros!D69<>"",Filtros!D69,"") -> Fallas en el inventario de productos de entrega y materiales | E55: R003 Operativo
A56: =IF(Filtros!A70<>"",Filtros!A70,"") -> Interno | B56: =IF(Filtros!B70<>"",Filtros!B70,"") -> R001 | C56: =IF(Filtros!C70<>"",Filtros!C70,"") -> Tecnologías de Información | D56: =IF(Filtros!D70<>"",Filtros!D70,"") -> Fallas en la conexión con el VPN | E56: R001 Tecnologías de Información
A57: =IF(Filtros!A71<>"",Filtros!A71,"") -> Interno | B57: =IF(Filtros!B71<>"",Filtros!B71,"") -> R003 | C57: =IF(Filtros!C71<>"",Filtros!C71,"") -> Operativo | D57: =IF(Filtros!D71<>"",Filtros!D71,"") -> Fallas mecánicas en las maquinarias de producción | E57: R003 Operativo
A58: =IF(Filtros!A72<>"",Filtros!A72,"") -> Interno | B58: =IF(Filtros!B72<>"",Filtros!B72,"") -> R003 | C58: =IF(Filtros!C72<>"",Filtros!C72,"") -> Operativo | D58: =IF(Filtros!D72<>"",Filtros!D72,"") -> Falta de automatización y/o inconsistencias en los procesos y/o trámites | E58: R003 Operativo
A59: =IF(Filtros!A73<>"",Filtros!A73,"") -> Interno | B59: =IF(Filtros!B73<>"",Filtros!B73,"") -> R003 | C59: =IF(Filtros!C73<>"",Filtros!C73,"") -> Operativo | D59: =IF(Filtros!D73<>"",Filtros!D73,"") -> Falta de calidad de los trabajos asignados | E59: R003 Operativo
A60: =IF(Filtros!A74<>"",Filtros!A74,"") -> Interno | B60: =IF(Filtros!B74<>"",Filtros!B74,"") -> R003 | C60: =IF(Filtros!C74<>"",Filtros!C74,"") -> Operativo | D60: =IF(Filtros!D74<>"",Filtros!D74,"") -> Falta de criterio legal | E60: R003 Operativo
A61: =IF(Filtros!A75<>"",Filtros!A75,"") -> Interno | B61: =IF(Filtros!B75<>"",Filtros!B75,"") -> R005 | C61: =IF(Filtros!C75<>"",Filtros!C75,"") -> Estratégico | D61: =IF(Filtros!D75<>"",Filtros!D75,"") -> Falta de seguimiento y/o incumplimiento de metas, objetivos e indicadores | E61: R005 Estratégico
A62: =IF(Filtros!A76<>"",Filtros!A76,"") -> Interno | B62: =IF(Filtros!B76<>"",Filtros!B76,"") -> R001 | C62: =IF(Filtros!C76<>"",Filtros!C76,"") -> Tecnologías de Información | D62: =IF(Filtros!D76<>"",Filtros!D76,"") -> Falta y/o fallas en el Sistema Integrado de Administración Financiera | E62: R001 Tecnologías de Información
A63: =IF(Filtros!A77<>"",Filtros!A77,"") -> Externo | B63: =IF(Filtros!B77<>"",Filtros!B77,"") -> R011 | C63: =IF(Filtros!C77<>"",Filtros!C77,"") -> Financiero | D63: =IF(Filtros!D77<>"",Filtros!D77,"") -> Fluctuación en tasa de interés | E63: R011 Financiero
A64: =IF(Filtros!A78<>"",Filtros!A78,"") -> Interno | B64: =IF(Filtros!B78<>"",Filtros!B78,"") -> R002 | C64: =IF(Filtros!C78<>"",Filtros!C78,"") -> Presupuestario | D64: =IF(Filtros!D78<>"",Filtros!D78,"") -> Flujo de caja | E64: R002 Presupuestario
A65: =IF(Filtros!A79<>"",Filtros!A79,"") -> Interno | B65: =IF(Filtros!B79<>"",Filtros!B79,"") -> R007 | C65: =IF(Filtros!C79<>"",Filtros!C79,"") -> Recurso Humano | D65: =IF(Filtros!D79<>"",Filtros!D79,"") -> Idoneidad del personal contratado | E65: R007 Recurso Humano
A66: =IF(Filtros!A80<>"",Filtros!A80,"") -> Externo | B66: =IF(Filtros!B80<>"",Filtros!B80,"") -> R008 | C66: =IF(Filtros!C80<>"",Filtros!C80,"") -> Ambiente | D66: =IF(Filtros!D80<>"",Filtros!D80,"") -> Iluminación del centro de trabajo | E66: R008 Ambiente
A67: =IF(Filtros!A81<>"",Filtros!A81,"") -> Interno | B67: =IF(Filtros!B81<>"",Filtros!B81,"") -> R005 | C67: =IF(Filtros!C81<>"",Filtros!C81,"") -> Estratégico | D67: =IF(Filtros!D81<>"",Filtros!D81,"") -> Imagen Institucional | E67: =IF(A67<>"",CONCATENATE(B67," ",C67),"") -> R005 Estratégico
A68: =IF(Filtros!A82<>"",Filtros!A82,"") -> Interno | B68: =IF(Filtros!B82<>"",Filtros!B82,"") -> R002 | C68: =IF(Filtros!C82<>"",Filtros!C82,"") -> Presupuestario | D68: =IF(Filtros!D82<>"",Filtros!D82,"") -> Inadecuada proyección de flujo de caja | E68: R002 Presupuestario
A69: =IF(Filtros!A83<>"",Filtros!A83,"") -> Interno | B69: =IF(Filtros!B83<>"",Filtros!B83,"") -> R003 | C69: =IF(Filtros!C83<>"",Filtros!C83,"") -> Operativo | D69: =IF(Filtros!D83<>"",Filtros!D83,"") -> Inadecuada resolución de problemas y/o conflictos | E69: R003 Operativo
A70: =IF(Filtros!A84<>"",Filtros!A84,"") -> Interno | B70: =IF(Filtros!B84<>"",Filtros!B84,"") -> R001 | C70: =IF(Filtros!C84<>"",Filtros!C84,"") -> Tecnologías de Información | D70: =IF(Filtros!D84<>"",Filtros!D84,"") -> Inadecuado traslado y custodia de los respaldos | E70: R001 Tecnologías de Información
A71: =IF(Filtros!A85<>"",Filtros!A85,"") -> Interno | B71: =IF(Filtros!B85<>"",Filtros!B85,"") -> R003 | C71: =IF(Filtros!C85<>"",Filtros!C85,"") -> Operativo | D71: =IF(Filtros!D85<>"",Filtros!D85,"") -> Incapacidad para brindar terapia física | E71: R003 Operativo
A72: =IF(Filtros!A86<>"",Filtros!A86,"") -> Interno | B72: =IF(Filtros!B86<>"",Filtros!B86,"") -> R008 | C72: =IF(Filtros!C86<>"",Filtros!C86,"") -> Ambiente | D72: =IF(Filtros!D86<>"",Filtros!D86,"") -> Incendio del centro de trabajo | E72: R008 Ambiente
A73: =IF(Filtros!A87<>"",Filtros!A87,"") -> Externo | B73: =IF(Filtros!B87<>"",Filtros!B87,"") -> R010 | C73: =IF(Filtros!C87<>"",Filtros!C87,"") -> Ambiental | D73: =IF(Filtros!D87<>"",Filtros!D87,"") -> Incendios | E73: R010 Ambiental
A74: =IF(Filtros!A88<>"",Filtros!A88,"") -> Interno | B74: =IF(Filtros!B88<>"",Filtros!B88,"") -> R003 | C74: =IF(Filtros!C88<>"",Filtros!C88,"") -> Operativo | D74: =IF(Filtros!D88<>"",Filtros!D88,"") -> Inclusión errónea de los proveedores en el SIGAF | E74: R003 Operativo
A75: =IF(Filtros!A89<>"",Filtros!A89,"") -> Interno | B75: =IF(Filtros!B89<>"",Filtros!B89,"") -> R006 | C75: =IF(Filtros!C89<>"",Filtros!C89,"") -> Información | D75: =IF(Filtros!D89<>"",Filtros!D89,"") -> Inconsistencias de la información presupuestaria y/o planificación | E75: R006 Información
A76: =IF(Filtros!A90<>"",Filtros!A90,"") -> Interno | B76: =IF(Filtros!B90<>"",Filtros!B90,"") -> R004 | C76: =IF(Filtros!C90<>"",Filtros!C90,"") -> Insumos | D76: =IF(Filtros!D90<>"",Filtros!D90,"") -> Inconsistencias en el mantenimiento de la infraestructura | E76: R004 Insumos
A77: =IF(Filtros!A91<>"",Filtros!A91,"") -> Interno | B77: =IF(Filtros!B91<>"",Filtros!B91,"") -> R006 | C77: =IF(Filtros!C91<>"",Filtros!C91,"") -> Información | D77: =IF(Filtros!D91<>"",Filtros!D91,"") -> Inconsistencias en los plazos establecidos de Conservación de Documentos | E77: R006 Información
A78: =IF(Filtros!A92<>"",Filtros!A92,"") -> Interno | B78: =IF(Filtros!B92<>"",Filtros!B92,"") -> R007 | C78: =IF(Filtros!C92<>"",Filtros!C92,"") -> Recurso Humano | D78: =IF(Filtros!D92<>"",Filtros!D92,"") -> Incumplimiento de capacitación ante CECADES | E78: R007 Recurso Humano
A79: =IF(Filtros!A93<>"",Filtros!A93,"") -> Externo | B79: =IF(Filtros!B93<>"",Filtros!B93,"") -> R013 | C79: =IF(Filtros!C93<>"",Filtros!C93,"") -> Legal | D79: =IF(Filtros!D93<>"",Filtros!D93,"") -> Incumplimiento de Ley 7600 | E79: R013 Legal
A80: =IF(Filtros!A94<>"",Filtros!A94,"") -> Interno | B80: =IF(Filtros!B94<>"",Filtros!B94,"") -> R013 | C80: =IF(Filtros!C94<>"",Filtros!C94,"") -> Legal | D80: =IF(Filtros!D94<>"",Filtros!D94,"") -> Incumplimiento de los derechos humanos | E80: R013 Legal
A81: =IF(Filtros!A95<>"",Filtros!A95,"") -> Interno/Externo | B81: =IF(Filtros!B95<>"",Filtros!B95,"") -> R016 | C81: =IF(Filtros!C95<>"",Filtros!C95,"") -> Ética y Corrupción | D81: =IF(Filtros!D95<>"",Filtros!D95,"") -> Incumplimiento de normativa de las empresas | E81: R016 Ética y Corrupción
A82: =IF(Filtros!A96<>"",Filtros!A96,"") -> Externo | B82: =IF(Filtros!B96<>"",Filtros!B96,"") -> R013 | C82: =IF(Filtros!C96<>"",Filtros!C96,"") -> Legal | D82: =IF(Filtros!D96<>"",Filtros!D96,"") -> Incumplimiento de normativa y regulaciones | E82: R013 Legal
A83: =IF(Filtros!A97<>"",Filtros!A97,"") -> Interno | B83: =IF(Filtros!B97<>"",Filtros!B97,"") -> R003 | C83: =IF(Filtros!C97<>"",Filtros!C97,"") -> Operativo | D83: =IF(Filtros!D97<>"",Filtros!D97,"") -> Incumplimiento de plazos de respuesta | E83: R003 Operativo
A84: =IF(Filtros!A98<>"",Filtros!A98,"") -> Interno | B84: =IF(Filtros!B98<>"",Filtros!B98,"") -> R003 | C84: =IF(Filtros!C98<>"",Filtros!C98,"") -> Operativo | D84: =IF(Filtros!D98<>"",Filtros!D98,"") -> Incumplimiento de plazos en entrega de bienes y servicios | E84: R003 Operativo
A85: =IF(Filtros!A99<>"",Filtros!A99,"") -> Interno | B85: =IF(Filtros!B99<>"",Filtros!B99,"") -> R002 | C85: =IF(Filtros!C99<>"",Filtros!C99,"") -> Presupuestario | D85: =IF(Filtros!D99<>"",Filtros!D99,"") -> Incumplimiento del Plan de Compras | E85: R002 Presupuestario
A86: =IF(Filtros!A100<>"",Filtros!A100,"") -> Interno | B86: =IF(Filtros!B100<>"",Filtros!B100,"") -> R003 | C86: =IF(Filtros!C100<>"",Filtros!C100,"") -> Operativo | D86: =IF(Filtros!D100<>"",Filtros!D100,"") -> Incumplimiento del plazo para devolución de facturas | E86: R003 Operativo
A87: =IF(Filtros!A101<>"",Filtros!A101,"") -> Interno | B87: =IF(Filtros!B101<>"",Filtros!B101,"") -> R007 | C87: =IF(Filtros!C101<>"",Filtros!C101,"") -> Recurso Humano | D87: =IF(Filtros!D101<>"",Filtros!D101,"") -> Incumplimiento en el pago de un componente salarial o compensación | E87: R007 Recurso Humano
A88: =IF(Filtros!A102<>"",Filtros!A102,"") -> Interno | B88: =IF(Filtros!B102<>"",Filtros!B102,"") -> R007 | C88: =IF(Filtros!C102<>"",Filtros!C102,"") -> Recurso Humano | D88: =IF(Filtros!D102<>"",Filtros!D102,"") -> Incumplimiento en la entrega de los estados financieros | E88: R007 Recurso Humano
A89: =IF(Filtros!A103<>"",Filtros!A103,"") -> Interno | B89: =IF(Filtros!B103<>"",Filtros!B103,"") -> R003 | C89: =IF(Filtros!C103<>"",Filtros!C103,"") -> Operativo | D89: =IF(Filtros!D103<>"",Filtros!D103,"") -> Incumplimiento en la entrega de matrices de teletrabajo | E89: R003 Operativo
A90: =IF(Filtros!A104<>"",Filtros!A104,"") -> Interno | B90: =IF(Filtros!B104<>"",Filtros!B104,"") -> R003 | C90: =IF(Filtros!C104<>"",Filtros!C104,"") -> Operativo | D90: =IF(Filtros!D104<>"",Filtros!D104,"") -> Incumplimiento i/o falta Manuales de Puestos | E90: R003 Operativo
A91: =IF(Filtros!A105<>"",Filtros!A105,"") -> Interno/Externo | B91: =IF(Filtros!B105<>"",Filtros!B105,"") -> R016 | C91: =IF(Filtros!C105<>"",Filtros!C105,"") -> Ética y Corrupción | D91: =IF(Filtros!D105<>"",Filtros!D105,"") -> Incumplimiento y/o negligencia en las funciones | E91: R016 Ética y Corrupción
A92: =IF(Filtros!A106<>"",Filtros!A106,"") -> Interno | B92: =IF(Filtros!B106<>"",Filtros!B106,"") -> R003 | C92: =IF(Filtros!C106<>"",Filtros!C106,"") -> Operativo | D92: =IF(Filtros!D106<>"",Filtros!D106,"") -> Incumplimiento y/o omisión en la entrega de informes y/o información | E92: R003 Operativo
A93: =IF(Filtros!A107<>"",Filtros!A107,"") -> Externo | B93: =IF(Filtros!B107<>"",Filtros!B107,"") -> R011 | C93: =IF(Filtros!C107<>"",Filtros!C107,"") -> Financiero | D93: =IF(Filtros!D107<>"",Filtros!D107,"") -> Inflación | E93: R011 Financiero
A94: =IF(Filtros!A108<>"",Filtros!A108,"") -> Externo | B94: =IF(Filtros!B108<>"",Filtros!B108,"") -> R014 | C94: =IF(Filtros!C108<>"",Filtros!C108,"") -> Información | D94: =IF(Filtros!D108<>"",Filtros!D108,"") -> Información accesible, física o digital | E94: R014 Información
A95: =IF(Filtros!A109<>"",Filtros!A109,"") -> Externo | B95: =IF(Filtros!B109<>"",Filtros!B109,"") -> R014 | C95: =IF(Filtros!C109<>"",Filtros!C109,"") -> Información | D95: =IF(Filtros!D109<>"",Filtros!D109,"") -> Información de gestión | E95: R014 Información
A96: =IF(Filtros!A110<>"",Filtros!A110,"") -> Externo | B96: =IF(Filtros!B110<>"",Filtros!B110,"") -> R014 | C96: =IF(Filtros!C110<>"",Filtros!C110,"") -> Información | D96: =IF(Filtros!D110<>"",Filtros!D110,"") -> Información estratégica | E96: R014 Información
A97: =IF(Filtros!A111<>"",Filtros!A111,"") -> Interna | B97: =IF(Filtros!B111<>"",Filtros!B111,"") -> R006 | C97: =IF(Filtros!C111<>"",Filtros!C111,"") -> Información | D97: =IF(Filtros!D111<>"",Filtros!D111,"") -> Información estratégica | E97: R006 Información
A98: =IF(Filtros!A112<>"",Filtros!A112,"") -> Externo | B98: =IF(Filtros!B112<>"",Filtros!B112,"") -> R014 | C98: =IF(Filtros!C112<>"",Filtros!C112,"") -> Información | D98: =IF(Filtros!D112<>"",Filtros!D112,"") -> Información operativa | E98: R014 Información
A99: =IF(Filtros!A113<>"",Filtros!A113,"") -> Interna | B99: =IF(Filtros!B113<>"",Filtros!B113,"") -> R006 | C99: =IF(Filtros!C113<>"",Filtros!C113,"") -> Información | D99: =IF(Filtros!D113<>"",Filtros!D113,"") -> Información operativa | E99: R006 Información
A100: =IF(Filtros!A114<>"",Filtros!A114,"") -> Interno | B100: =IF(Filtros!B114<>"",Filtros!B114,"") -> R001 | C100: =IF(Filtros!C114<>"",Filtros!C114,"") -> Tecnologías de Información | D100: =IF(Filtros!D114<>"",Filtros!D114,"") -> Infraestructura de información tecnológica efectiva (hardware, software, redes, entre otros) | E100: R001 Tecnologías de Información
A101: =IF(Filtros!A115<>"",Filtros!A115,"") -> Externo | B101: =IF(Filtros!B115<>"",Filtros!B115,"") -> R012 | C101: =IF(Filtros!C115<>"",Filtros!C115,"") -> Social | D101: =IF(Filtros!D115<>"",Filtros!D115,"") -> Infuencia de los medios de comunicación | E101: R012 Social
A102: =IF(Filtros!A116<>"",Filtros!A116,"") -> Interno | B102: =IF(Filtros!B116<>"",Filtros!B116,"") -> R003 | C102: =IF(Filtros!C116<>"",Filtros!C116,"") -> Operativo | D102: =IF(Filtros!D116<>"",Filtros!D116,"") -> Inicio o conato de incendio | E102: R003 Operativo
A103: =IF(Filtros!A117<>"",Filtros!A117,"") -> Interno | B103: =IF(Filtros!B117<>"",Filtros!B117,"") -> R003 | C103: =IF(Filtros!C117<>"",Filtros!C117,"") -> Operativo | D103: =IF(Filtros!D117<>"",Filtros!D117,"") -> Insuficiente espacio de almacenamiento | E103: R003 Operativo
A104: =IF(Filtros!A118<>"",Filtros!A118,"") -> Interno | B104: =IF(Filtros!B118<>"",Filtros!B118,"") -> R003 | C104: =IF(Filtros!C118<>"",Filtros!C118,"") -> Operativo | D104: =IF(Filtros!D118<>"",Filtros!D118,"") -> Insuficiente supervisión al personal | E104: R003 Operativo
A105: =IF(Filtros!A119<>"",Filtros!A119,"") -> Interno | B105: =IF(Filtros!B119<>"",Filtros!B119,"") -> R001 | C105: =IF(Filtros!C119<>"",Filtros!C119,"") -> Tecnologías de Información | D105: =IF(Filtros!D119<>"",Filtros!D119,"") -> Integridad de las aplicaciones utilizadas en la unidad | E105: R001 Tecnologías de Información
A106: =IF(Filtros!A120<>"",Filtros!A120,"") -> Interno | B106: =IF(Filtros!B120<>"",Filtros!B120,"") -> R007 | C106: =IF(Filtros!C120<>"",Filtros!C120,"") -> Recurso Humano | D106: =IF(Filtros!D120<>"",Filtros!D120,"") -> Integridad en su labores | E106: R007 Recurso Humano
A107: =IF(Filtros!A121<>"",Filtros!A121,"") -> Interno | B107: =IF(Filtros!B121<>"",Filtros!B121,"") -> R003 | C107: =IF(Filtros!C121<>"",Filtros!C121,"") -> Operativo | D107: =IF(Filtros!D121<>"",Filtros!D121,"") -> Interrupción del proceso de empaque | E107: R003 Operativo
A108: =IF(Filtros!A122<>"",Filtros!A122,"") -> Interno | B108: =IF(Filtros!B122<>"",Filtros!B122,"") -> R007 | C108: =IF(Filtros!C122<>"",Filtros!C122,"") -> Recurso Humano | D108: =IF(Filtros!D122<>"",Filtros!D122,"") -> Interrupción del servicio de trámites comerciales | E108: R007 Recurso Humano
A109: =IF(Filtros!A123<>"",Filtros!A123,"") -> Interno | B109: =IF(Filtros!B123<>"",Filtros!B123,"") -> R010 | C109: =IF(Filtros!C123<>"",Filtros!C123,"") -> Ambiental | D109: =IF(Filtros!D123<>"",Filtros!D123,"") -> Inundaciones, huracanes, terremotos, etc. | E109: R010 Ambiental
A110: =IF(Filtros!A124<>"",Filtros!A124,"") -> Interno | B110: =IF(Filtros!B124<>"",Filtros!B124,"") -> R005 | C110: =IF(Filtros!C124<>"",Filtros!C124,"") -> Estratégico | D110: =IF(Filtros!D124<>"",Filtros!D124,"") -> Liderazgo en la dirección del personal | E110: R005 Estratégico
A111: =IF(Filtros!A125<>"",Filtros!A125,"") -> Interno | B111: =IF(Filtros!B125<>"",Filtros!B125,"") -> R007 | C111: =IF(Filtros!C125<>"",Filtros!C125,"") -> Recurso Humano | D111: =IF(Filtros!D125<>"",Filtros!D125,"") -> Limitaciones en la prevención de problemas de salud ocupacional | E111: R007 Recurso Humano
A112: =IF(Filtros!A126<>"",Filtros!A126,"") -> Interno | B112: =IF(Filtros!B126<>"",Filtros!B126,"") -> R005 | C112: =IF(Filtros!C126<>"",Filtros!C126,"") -> Estratégico | D112: =IF(Filtros!D126<>"",Filtros!D126,"") -> Líneas de autoridad efectivas | E112: R005 Estratégico
A113: =IF(Filtros!A127<>"",Filtros!A127,"") -> Interno | B113: =IF(Filtros!B127<>"",Filtros!B127,"") -> R001 | C113: =IF(Filtros!C127<>"",Filtros!C127,"") -> Tecnologías de Información | D113: =IF(Filtros!D127<>"",Filtros!D127,"") -> Los sistemas se ajustan a las necesidades institucionales | E113: R001 Tecnologías de Información
A114: =IF(Filtros!A128<>"",Filtros!A128,"") -> Interno | B114: =IF(Filtros!B128<>"",Filtros!B128,"") -> R004 | C114: =IF(Filtros!C128<>"",Filtros!C128,"") -> Insumos | D114: =IF(Filtros!D128<>"",Filtros!D128,"") -> Manejo de activos (rotulación, certificación, baja, alta, inscripción de bienes intangibles, avalúos y bienes muebles e inmuebles) | E114: R004 Insumos
A115: =IF(Filtros!A129<>"",Filtros!A129,"") -> Interno | B115: =IF(Filtros!B129<>"",Filtros!B129,"") -> R003 | C115: =IF(Filtros!C129<>"",Filtros!C129,"") -> Operativo | D115: =IF(Filtros!D129<>"",Filtros!D129,"") -> Manipulación de máquinas y herramientas peligrosas | E115: R003 Operativo
A116: =IF(Filtros!A130<>"",Filtros!A130,"") -> Interno | B116: =IF(Filtros!B130<>"",Filtros!B130,"") -> R003 | C116: =IF(Filtros!C130<>"",Filtros!C130,"") -> Operativo | D116: =IF(Filtros!D130<>"",Filtros!D130,"") -> Manipulación de sustancias tóxicas | E116: R003 Operativo
A117: =IF(Filtros!A131<>"",Filtros!A131,"") -> Interno | B117: =IF(Filtros!B131<>"",Filtros!B131,"") -> R004 | C117: =IF(Filtros!C131<>"",Filtros!C131,"") -> Insumos | D117: =IF(Filtros!D131<>"",Filtros!D131,"") -> Mantenimiento continuo para la adecuada ejecución del trabajo | E117: R004 Insumos
A118: =IF(Filtros!A132<>"",Filtros!A132,"") -> Interno | B118: =IF(Filtros!B132<>"",Filtros!B132,"") -> R003 | C118: =IF(Filtros!C132<>"",Filtros!C132,"") -> Operativo | D118: =IF(Filtros!D132<>"",Filtros!D132,"") -> Manual institucional de clases desactualizado | E118: R003 Operativo
A119: =IF(Filtros!A133<>"",Filtros!A133,"") -> Interno | B119: =IF(Filtros!B133<>"",Filtros!B133,"") -> R003 | C119: =IF(Filtros!C133<>"",Filtros!C133,"") -> Operativo | D119: =IF(Filtros!D133<>"",Filtros!D133,"") -> Manuales administrativos actualizados | E119: R003 Operativo
A120: =IF(Filtros!A134<>"",Filtros!A134,"") -> Interno | B120: =IF(Filtros!B134<>"",Filtros!B134,"") -> R003 | C120: =IF(Filtros!C134<>"",Filtros!C134,"") -> Operativo | D120: =IF(Filtros!D134<>"",Filtros!D134,"") -> Manuales administrativos desactualizados o no idóneos | E120: R003 Operativo
A121: =IF(Filtros!A135<>"",Filtros!A135,"") -> Interno | B121: =IF(Filtros!B135<>"",Filtros!B135,"") -> R002 | C121: =IF(Filtros!C135<>"",Filtros!C135,"") -> Presupuestario | D121: =IF(Filtros!D135<>"",Filtros!D135,"") -> Morosidad en las cuentas | E121: R002 Presupuestario
A122: =IF(Filtros!A136<>"",Filtros!A136,"") -> Interno | B122: =IF(Filtros!B136<>"",Filtros!B136,"") -> R007 | C122: =IF(Filtros!C136<>"",Filtros!C136,"") -> Recurso Humano | D122: =IF(Filtros!D136<>"",Filtros!D136,"") -> Motivación y compensación | E122: R007 Recurso Humano
A123: =IF(Filtros!A137<>"",Filtros!A137,"") -> Externo | B123: =IF(Filtros!B137<>"",Filtros!B137,"") -> R013 | C123: =IF(Filtros!C137<>"",Filtros!C137,"") -> Legal | D123: =IF(Filtros!D137<>"",Filtros!D137,"") -> Necesidades de normativa | E123: R013 Legal
A124: =IF(Filtros!A138<>"",Filtros!A138,"") -> Interno | B124: =IF(Filtros!B138<>"",Filtros!B138,"") -> R003 | C124: =IF(Filtros!C138<>"",Filtros!C138,"") -> Operativo | D124: =IF(Filtros!D138<>"",Filtros!D138,"") -> Omisiones en el ejercicio de las funciones | E124: R003 Operativo
A125: =IF(Filtros!A139<>"",Filtros!A139,"") -> Externo | B125: =IF(Filtros!B139<>"",Filtros!B139,"") -> R015 | C125: =IF(Filtros!C139<>"",Filtros!C139,"") -> Institucional | D125: =IF(Filtros!D139<>"",Filtros!D139,"") -> Organismos internacionales que apoyan la Gestión | E125: R015 Institucional
A126: =IF(Filtros!A140<>"",Filtros!A140,"") -> Externo | B126: =IF(Filtros!B140<>"",Filtros!B140,"") -> R015 | C126: =IF(Filtros!C140<>"",Filtros!C140,"") -> Institucional | D126: =IF(Filtros!D140<>"",Filtros!D140,"") -> Órganos de control externo | E126: R015 Institucional
A127: =IF(Filtros!A141<>"",Filtros!A141,"") -> Interno | B127: =IF(Filtros!B141<>"",Filtros!B141,"") -> R005 | C127: =IF(Filtros!C141<>"",Filtros!C141,"") -> Estratégico | D127: =IF(Filtros!D141<>"",Filtros!D141,"") -> Pérdida de imagen institucional | E127: R005 Estratégico
A128: =IF(Filtros!A142<>"",Filtros!A142,"") -> Interno | B128: =IF(Filtros!B142<>"",Filtros!B142,"") -> R001 | C128: =IF(Filtros!C142<>"",Filtros!C142,"") -> Tecnologías de Información | D128: =IF(Filtros!D142<>"",Filtros!D142,"") -> Pérdida de información histórica de las Gacetas | E128: R001 Tecnologías de Información
A129: =IF(Filtros!A143<>"",Filtros!A143,"") -> Interno | B129: =IF(Filtros!B143<>"",Filtros!B143,"") -> R003 | C129: =IF(Filtros!C143<>"",Filtros!C143,"") -> Operativo | D129: =IF(Filtros!D143<>"",Filtros!D143,"") -> Pérdida de oportunidades para ofertar el servicio | E129: R003 Operativo
A130: =IF(Filtros!A144<>"",Filtros!A144,"") -> Externo | B130: =IF(Filtros!B144<>"",Filtros!B144,"") -> R009 | C130: =IF(Filtros!C144<>"",Filtros!C144,"") -> Políticos | D130: =IF(Filtros!D144<>"",Filtros!D144,"") -> Políticas públicas inconsistentes | E130: R009 Políticos
A131: =IF(Filtros!A145<>"",Filtros!A145,"") -> Externo | B131: =IF(Filtros!B145<>"",Filtros!B145,"") -> R009 | C131: =IF(Filtros!C145<>"",Filtros!C145,"") -> Político | D131: =IF(Filtros!D145<>"",Filtros!D145,"") -> Políticas públicas inconsistentes mediante Directrices ministeriales | E131: =IF(A131<>"",CONCATENATE(B131," ",C131),"") -> R009 Político
A132: =IF(Filtros!A146<>"",Filtros!A146,"") -> Interno | B132: =IF(Filtros!B146<>"",Filtros!B146,"") -> R001 | C132: =IF(Filtros!C146<>"",Filtros!C146,"") -> Tecnologico | D132: =IF(Filtros!D146<>"",Filtros!D146,"") -> Posibles fallas en el SIGAF | E132: R001 Tecnologico
A133: =IF(Filtros!A147<>"",Filtros!A147,"") -> Interno | B133: =IF(Filtros!B147<>"",Filtros!B147,"") -> R002 | C133: =IF(Filtros!C147<>"",Filtros!C147,"") -> Presupuestario | D133: =IF(Filtros!D147<>"",Filtros!D147,"") -> Presupuesto asignado para la operación | E133: R002 Presupuestario
A134: =IF(Filtros!A148<>"",Filtros!A148,"") -> Interno | B134: =IF(Filtros!B148<>"",Filtros!B148,"") -> R002 | C134: =IF(Filtros!C148<>"",Filtros!C148,"") -> Presupuestario | D134: =IF(Filtros!D148<>"",Filtros!D148,"") -> Presupuesto insuficiente | E134: R002 Presupuestario
A135: =IF(Filtros!A149<>"",Filtros!A149,"") -> Interno | B135: =IF(Filtros!B149<>"",Filtros!B149,"") -> R001 | C135: =IF(Filtros!C149<>"",Filtros!C149,"") -> Tecnologías de Información | D135: =IF(Filtros!D149<>"",Filtros!D149,"") -> Problemas de conectividad a internet | E135: R001 Tecnologías de Información
A136: =IF(Filtros!A150<>"",Filtros!A150,"") -> Interno | B136: =IF(Filtros!B150<>"",Filtros!B150,"") -> R003 | C136: =IF(Filtros!C150<>"",Filtros!C150,"") -> Operativo | D136: =IF(Filtros!D150<>"",Filtros!D150,"") -> Procedimientos, lineamientos e instrucciones claros para la efectiva realización del trabajo | E136: R003 Operativo
A137: =IF(Filtros!A151<>"",Filtros!A151,"") -> Interno | B137: =IF(Filtros!B151<>"",Filtros!B151,"") -> R007 | C137: =IF(Filtros!C151<>"",Filtros!C151,"") -> Recurso Humano | D137: =IF(Filtros!D151<>"",Filtros!D151,"") -> Procesos constantes de capacitación | E137: R007 Recurso Humano
A138: =IF(Filtros!A152<>"",Filtros!A152,"") -> Interno | B138: =IF(Filtros!B152<>"",Filtros!B152,"") -> R005 | C138: =IF(Filtros!C152<>"",Filtros!C152,"") -> Estratégico | D138: =IF(Filtros!D152<>"",Filtros!D152,"") -> Procesos de planificación claros | E138: R005 Estratégico
A139: =IF(Filtros!A153<>"",Filtros!A153,"") -> Interno | B139: =IF(Filtros!B153<>"",Filtros!B153,"") -> R007 | C139: =IF(Filtros!C153<>"",Filtros!C153,"") -> Recurso Humano | D139: =IF(Filtros!D153<>"",Filtros!D153,"") -> Programa de incentivos | E139: R007 Recurso Humano
A140: =IF(Filtros!A154<>"",Filtros!A154,"") -> Externo | B140: =IF(Filtros!B154<>"",Filtros!B154,"") -> R015 | C140: =IF(Filtros!C154<>"",Filtros!C154,"") -> Institucional | D140: =IF(Filtros!D154<>"",Filtros!D154,"") -> Proveedores privados | E140: R015 Institucional
A141: =IF(Filtros!A155<>"",Filtros!A155,"") -> Interno | B141: =IF(Filtros!B155<>"",Filtros!B155,"") -> R004 | C141: =IF(Filtros!C155<>"",Filtros!C155,"") -> Insumos | D141: =IF(Filtros!D155<>"",Filtros!D155,"") -> Proveedores satisfacen las necesidades institucionales | E141: R004 Insumos
A142: =IF(Filtros!A156<>"",Filtros!A156,"") -> Externo | B142: =IF(Filtros!B156<>"",Filtros!B156,"") -> R013 | C142: =IF(Filtros!C156<>"",Filtros!C156,"") -> Legal | D142: =IF(Filtros!D156<>"",Filtros!D156,"") -> Querellas o juicios que afectan a la institución | E142: R013 Legal
A143: =IF(Filtros!A157<>"",Filtros!A157,"") -> Externo | B143: =IF(Filtros!B157<>"",Filtros!B157,"") -> R011 | C143: =IF(Filtros!C157<>"",Filtros!C157,"") -> Financiero | D143: =IF(Filtros!D157<>"",Filtros!D157,"") -> Recesión económica | E143: R011 Financiero
A144: =IF(Filtros!A158<>"",Filtros!A158,"") -> Interno | B144: =IF(Filtros!B158<>"",Filtros!B158,"") -> R007 | C144: =IF(Filtros!C158<>"",Filtros!C158,"") -> Recurso Humano | D144: =IF(Filtros!D158<>"",Filtros!D158,"") -> Reducción de la demanda del servicio de producción gráfica | E144: R007 Recurso Humano
A145: =IF(Filtros!A159<>"",Filtros!A159,"") -> Interno | B145: =IF(Filtros!B159<>"",Filtros!B159,"") -> R001 | C145: =IF(Filtros!C159<>"",Filtros!C159,"") -> Tecnologías de Información | D145: =IF(Filtros!D159<>"",Filtros!D159,"") -> Relevancia de los sistemas, de las técnicas de recuperación, respaldos de la información y planes de contingencia | E145: R001 Tecnologías de Información
A146: =IF(Filtros!A160<>"",Filtros!A160,"") -> Interno | B146: =IF(Filtros!B160<>"",Filtros!B160,"") -> R005 | C146: =IF(Filtros!C160<>"",Filtros!C160,"") -> Estratégico | D146: =IF(Filtros!D160<>"",Filtros!D160,"") -> Resistencia ante el cambio | E146: R005 Estratégico
A147: =IF(Filtros!A161<>"",Filtros!A161,"") -> Interno | B147: =IF(Filtros!B161<>"",Filtros!B161,"") -> R008 | C147: =IF(Filtros!C161<>"",Filtros!C161,"") -> Ambiente | D147: =IF(Filtros!D161<>"",Filtros!D161,"") -> Ruido del centro de trabajo | E147: R008 Ambiente
A148: =IF(Filtros!A162<>"",Filtros!A162,"") -> Externo | B148: =IF(Filtros!B162<>"",Filtros!B162,"") -> R012 | C148: =IF(Filtros!C162<>"",Filtros!C162,"") -> Social | D148: =IF(Filtros!D162<>"",Filtros!D162,"") -> Salud de los habitantes | E148: R012 Social
A149: =IF(Filtros!A163<>"",Filtros!A163,"") -> Interno | B149: =IF(Filtros!B163<>"",Filtros!B163,"") -> R007 | C149: =IF(Filtros!C163<>"",Filtros!C163,"") -> Recurso Humano | D149: =IF(Filtros!D163<>"",Filtros!D163,"") -> Salud ocupacional (mental, física y psicológica) | E149: R007 Recurso Humano
A150: =IF(Filtros!A164<>"",Filtros!A164,"") -> Externo | B150: =IF(Filtros!B164<>"",Filtros!B164,"") -> R012 | C150: =IF(Filtros!C164<>"",Filtros!C164,"") -> Social | D150: =IF(Filtros!D164<>"",Filtros!D164,"") -> Satisfacción de los usuarios | E150: R012 Social
A151: =IF(Filtros!A165<>"",Filtros!A165,"") -> Interno | B151: =IF(Filtros!B165<>"",Filtros!B165,"") -> R003 | C151: =IF(Filtros!C165<>"",Filtros!C165,"") -> Operativo | D151: =IF(Filtros!D165<>"",Filtros!D165,"") -> Seguimiento en los procesos | E151: R003 Operativo
A152: =IF(Filtros!A166<>"",Filtros!A166,"") -> Externo | B152: =IF(Filtros!B166<>"",Filtros!B166,"") -> R012 | C152: =IF(Filtros!C166<>"",Filtros!C166,"") -> Social | D152: =IF(Filtros!D166<>"",Filtros!D166,"") -> Seguridad ciudadana | E152: R012 Social
A153: =IF(Filtros!A167<>"",Filtros!A167,"") -> Interno | B153: =IF(Filtros!B167<>"",Filtros!B167,"") -> R003 | C153: =IF(Filtros!C167<>"",Filtros!C167,"") -> Operativo | D153: =IF(Filtros!D167<>"",Filtros!D167,"") -> Servicios institucionales que satisfagan las necesidades | E153: R003 Operativo
A154: =IF(Filtros!A168<>"",Filtros!A168,"") -> Externo | B154: =IF(Filtros!B168<>"",Filtros!B168,"") -> R002 | C154: =IF(Filtros!C168<>"",Filtros!C168,"") -> Presupuestario | D154: =IF(Filtros!D168<>"",Filtros!D168,"") -> Subejecución presupuestaria | E154: R002 Presupuestario
A155: =IF(Filtros!A169<>"",Filtros!A169,"") -> Interno | B155: =IF(Filtros!B169<>"",Filtros!B169,"") -> R007 | C155: =IF(Filtros!C169<>"",Filtros!C169,"") -> Recurso Humano | D155: =IF(Filtros!D169<>"",Filtros!D169,"") -> Sumas pagadas de más o adeudadas en el salario | E155: R007 Recurso Humano
A156: =IF(Filtros!A170<>"",Filtros!A170,"") -> Interno | B156: =IF(Filtros!B170<>"",Filtros!B170,"") -> R007 | C156: =IF(Filtros!C170<>"",Filtros!C170,"") -> Recurso Humano | D156: =IF(Filtros!D170<>"",Filtros!D170,"") -> Suspensión de concursos internos y/o ascenso directo | E156: R007 Recurso Humano
A157: =IF(Filtros!A171<>"",Filtros!A171,"") -> Interno | B157: =IF(Filtros!B171<>"",Filtros!B171,"") -> R005 | C157: =IF(Filtros!C171<>"",Filtros!C171,"") -> Estratégico | D157: =IF(Filtros!D171<>"",Filtros!D171,"") -> Suspensión de contratos | E157: R005 Estratégico
A158: =IF(Filtros!A172<>"",Filtros!A172,"") -> Interno | B158: =IF(Filtros!B172<>"",Filtros!B172,"") -> R003 | C158: =IF(Filtros!C172<>"",Filtros!C172,"") -> Operativo | D158: =IF(Filtros!D172<>"",Filtros!D172,"") -> Suspensión de fases del proceso de producción | E158: R003 Operativo
A159: =IF(Filtros!A173<>"",Filtros!A173,"") -> Interno | B159: =IF(Filtros!B173<>"",Filtros!B173,"") -> R002 | C159: =IF(Filtros!C173<>"",Filtros!C173,"") -> Presupuestario | D159: =IF(Filtros!D173<>"",Filtros!D173,"") -> Suspensión de servicios públicos | E159: R002 Presupuestario
A160: =IF(Filtros!A174<>"",Filtros!A174,"") -> Interno | B160: =IF(Filtros!B174<>"",Filtros!B174,"") -> R004 | C160: =IF(Filtros!C174<>"",Filtros!C174,"") -> Insumos | D160: =IF(Filtros!D174<>"",Filtros!D174,"") -> Tener disponibilidad para atender necesidades de operación | E160: R004 Insumos
A161: =IF(Filtros!A175<>"",Filtros!A175,"") -> Interno | B161: =IF(Filtros!B175<>"",Filtros!B175,"") -> R003 | C161: =IF(Filtros!C175<>"",Filtros!C175,"") -> Operativo | D161: =IF(Filtros!D175<>"",Filtros!D175,"") -> Tiempo de entrega del producto final | E161: R003 Operativo
A162: =IF(Filtros!A176<>"",Filtros!A176,"") -> Externo | B162: =IF(Filtros!B176<>"",Filtros!B176,"") -> R012 | C162: =IF(Filtros!C176<>"",Filtros!C176,"") -> Social | D162: =IF(Filtros!D176<>"",Filtros!D176,"") -> Tolerancia a las diferencias culturales | E162: R012 Social
A163: =IF(Filtros!A177<>"",Filtros!A177,"") -> Interno | B163: =IF(Filtros!B177<>"",Filtros!B177,"") -> R007 | C163: =IF(Filtros!C177<>"",Filtros!C177,"") -> Recurso Humano | D163: =IF(Filtros!D177<>"",Filtros!D177,"") -> Trabajo rutinario y monótono | E163: R007 Recurso Humano
A164: =IF(Filtros!A178<>"",Filtros!A178,"") -> Interno | B164: =IF(Filtros!B178<>"",Filtros!B178,"") -> R003 | C164: =IF(Filtros!C178<>"",Filtros!C178,"") -> Operativo | D164: =IF(Filtros!D178<>"",Filtros!D178,"") -> Trámites inconclusos de contratación administrativa | E164: R003 Operativo
A165: =IF(Filtros!A179<>"",Filtros!A179,"") -> Interno | B165: =IF(Filtros!B179<>"",Filtros!B179,"") -> R004 | C165: =IF(Filtros!C179<>"",Filtros!C179,"") -> Insumos | D165: =IF(Filtros!D179<>"",Filtros!D179,"") -> Uso adecuado y racional | E165: R004 Insumos
A166: =IF(Filtros!A180<>"",Filtros!A180,"") -> Interno/Externo | B166: =IF(Filtros!B180<>"",Filtros!B180,"") -> R016 | C166: =IF(Filtros!C180<>"",Filtros!C180,"") -> Ética y Corrupción | D166: =IF(Filtros!D180<>"",Filtros!D180,"") -> Uso inadecuado del patrimonio público | E166: R016 Ética y Corrupción
A167: =IF(Filtros!A181<>"",Filtros!A181,"") -> Interno | B167: =IF(Filtros!B181<>"",Filtros!B181,"") -> R004 | C167: =IF(Filtros!C181<>"",Filtros!C181,"") -> Insumos | D167: =IF(Filtros!D181<>"",Filtros!D181,"") -> Vencimiento de plazos dados en el sistema SICOP | E167: R004 Insumos
A168: =IF(Filtros!A182<>"",Filtros!A182,"") -> Interno | B168: =IF(Filtros!B182<>"",Filtros!B182,"") -> R008 | C168: =IF(Filtros!C182<>"",Filtros!C182,"") -> Ambiente | D168: =IF(Filtros!D182<>"",Filtros!D182,"") -> Ventilación del centro de trabajo | E168: R008 Ambiente
A169: =IF(Filtros!A183<>"",Filtros!A183,"") ->  | B169: =IF(Filtros!B183<>"",Filtros!B183,"") ->  | C169: =IF(Filtros!C183<>"",Filtros!C183,"") ->  | D169: =IF(Filtros!D183<>"",Filtros!D183,"") -> 
A170: =IF(Filtros!A184<>"",Filtros!A184,"") ->  | B170: =IF(Filtros!B184<>"",Filtros!B184,"") ->  | C170: =IF(Filtros!C184<>"",Filtros!C184,"") ->  | D170: =IF(Filtros!D184<>"",Filtros!D184,"") -> 
A171: =IF(Filtros!A185<>"",Filtros!A185,"") ->  | B171: =IF(Filtros!B185<>"",Filtros!B185,"") ->  | C171: =IF(Filtros!C185<>"",Filtros!C185,"") ->  | D171: =IF(Filtros!D185<>"",Filtros!D185,"") -> 
A172: =IF(Filtros!A186<>"",Filtros!A186,"") ->  | B172: =IF(Filtros!B186<>"",Filtros!B186,"") ->  | C172: =IF(Filtros!C186<>"",Filtros!C186,"") ->  | D172: =IF(Filtros!D186<>"",Filtros!D186,"") -> 
A173: =IF(Filtros!A187<>"",Filtros!A187,"") ->  | B173: =IF(Filtros!B187<>"",Filtros!B187,"") ->  | C173: =IF(Filtros!C187<>"",Filtros!C187,"") ->  | D173: =IF(Filtros!D187<>"",Filtros!D187,"") -> 
A174: =IF(Filtros!A188<>"",Filtros!A188,"") ->  | B174: =IF(Filtros!B188<>"",Filtros!B188,"") ->  | C174: =IF(Filtros!C188<>"",Filtros!C188,"") ->  | D174: =IF(Filtros!D188<>"",Filtros!D188,"") -> 
A175: =IF(Filtros!A189<>"",Filtros!A189,"") ->  | B175: =IF(Filtros!B189<>"",Filtros!B189,"") ->  | C175: =IF(Filtros!C189<>"",Filtros!C189,"") ->  | D175: =IF(Filtros!D189<>"",Filtros!D189,"") -> 
A176: =IF(Filtros!A190<>"",Filtros!A190,"") ->  | B176: =IF(Filtros!B190<>"",Filtros!B190,"") ->  | C176: =IF(Filtros!C190<>"",Filtros!C190,"") ->  | D176: =IF(Filtros!D190<>"",Filtros!D190,"") -> 
A177: =IF(Filtros!A191<>"",Filtros!A191,"") ->  | B177: =IF(Filtros!B191<>"",Filtros!B191,"") ->  | C177: =IF(Filtros!C191<>"",Filtros!C191,"") ->  | D177: =IF(Filtros!D191<>"",Filtros!D191,"") -> 
A178: =IF(Filtros!A192<>"",Filtros!A192,"") ->  | B178: =IF(Filtros!B192<>"",Filtros!B192,"") ->  | C178: =IF(Filtros!C192<>"",Filtros!C192,"") ->  | D178: =IF(Filtros!D192<>"",Filtros!D192,"") -> 
A179: =IF(Filtros!A193<>"",Filtros!A193,"") ->  | B179: =IF(Filtros!B193<>"",Filtros!B193,"") ->  | C179: =IF(Filtros!C193<>"",Filtros!C193,"") ->  | D179: =IF(Filtros!D193<>"",Filtros!D193,"") -> 
A180: =IF(Filtros!A194<>"",Filtros!A194,"") ->  | B180: =IF(Filtros!B194<>"",Filtros!B194,"") ->  | C180: =IF(Filtros!C194<>"",Filtros!C194,"") ->  | D180: =IF(Filtros!D194<>"",Filtros!D194,"") -> 
A181: =IF(Filtros!A195<>"",Filtros!A195,"") ->  | B181: =IF(Filtros!B195<>"",Filtros!B195,"") ->  | C181: =IF(Filtros!C195<>"",Filtros!C195,"") ->  | D181: =IF(Filtros!D195<>"",Filtros!D195,"") -> 
A182: =IF(Filtros!A196<>"",Filtros!A196,"") ->  | B182: =IF(Filtros!B196<>"",Filtros!B196,"") ->  | C182: =IF(Filtros!C196<>"",Filtros!C196,"") ->  | D182: =IF(Filtros!D196<>"",Filtros!D196,"") -> 
A183: =IF(Filtros!A197<>"",Filtros!A197,"") ->  | B183: =IF(Filtros!B197<>"",Filtros!B197,"") ->  | C183: =IF(Filtros!C197<>"",Filtros!C197,"") ->  | D183: =IF(Filtros!D197<>"",Filtros!D197,"") -> 
A184: =IF(Filtros!A198<>"",Filtros!A198,"") ->  | B184: =IF(Filtros!B198<>"",Filtros!B198,"") ->  | C184: =IF(Filtros!C198<>"",Filtros!C198,"") ->  | D184: =IF(Filtros!D198<>"",Filtros!D198,"") -> 
A185: =IF(Filtros!A199<>"",Filtros!A199,"") ->  | B185: =IF(Filtros!B199<>"",Filtros!B199,"") ->  | C185: =IF(Filtros!C199<>"",Filtros!C199,"") ->  | D185: =IF(Filtros!D199<>"",Filtros!D199,"") -> 
A186: =IF(Filtros!A200<>"",Filtros!A200,"") ->  | B186: =IF(Filtros!B200<>"",Filtros!B200,"") ->  | C186: =IF(Filtros!C200<>"",Filtros!C200,"") ->  | D186: =IF(Filtros!D200<>"",Filtros!D200,"") -> 
A187: =IF(Filtros!A201<>"",Filtros!A201,"") ->  | B187: =IF(Filtros!B201<>"",Filtros!B201,"") ->  | C187: =IF(Filtros!C201<>"",Filtros!C201,"") ->  | D187: =IF(Filtros!D201<>"",Filtros!D201,"") -> 
A188: =IF(Filtros!A202<>"",Filtros!A202,"") ->  | B188: =IF(Filtros!B202<>"",Filtros!B202,"") ->  | C188: =IF(Filtros!C202<>"",Filtros!C202,"") ->  | D188: =IF(Filtros!D202<>"",Filtros!D202,"") -> 
A189: =IF(Filtros!A203<>"",Filtros!A203,"") ->  | B189: =IF(Filtros!B203<>"",Filtros!B203,"") ->  | C189: =IF(Filtros!C203<>"",Filtros!C203,"") ->  | D189: =IF(Filtros!D203<>"",Filtros!D203,"") -> 
A190: =IF(Filtros!A204<>"",Filtros!A204,"") ->  | B190: =IF(Filtros!B204<>"",Filtros!B204,"") ->  | C190: =IF(Filtros!C204<>"",Filtros!C204,"") ->  | D190: =IF(Filtros!D204<>"",Filtros!D204,"") -> 
A191: =IF(Filtros!A205<>"",Filtros!A205,"") ->  | B191: =IF(Filtros!B205<>"",Filtros!B205,"") ->  | C191: =IF(Filtros!C205<>"",Filtros!C205,"") ->  | D191: =IF(Filtros!D205<>"",Filtros!D205,"") -> 
A192: =IF(Filtros!A206<>"",Filtros!A206,"") ->  | B192: =IF(Filtros!B206<>"",Filtros!B206,"") ->  | C192: =IF(Filtros!C206<>"",Filtros!C206,"") ->  | D192: =IF(Filtros!D206<>"",Filtros!D206,"") -> 
A193: =IF(Filtros!A207<>"",Filtros!A207,"") ->  | B193: =IF(Filtros!B207<>"",Filtros!B207,"") ->  | C193: =IF(Filtros!C207<>"",Filtros!C207,"") ->  | D193: =IF(Filtros!D207<>"",Filtros!D207,"") -> 
A194: =IF(Filtros!A208<>"",Filtros!A208,"") ->  | B194: =IF(Filtros!B208<>"",Filtros!B208,"") ->  | C194: =IF(Filtros!C208<>"",Filtros!C208,"") ->  | D194: =IF(Filtros!D208<>"",Filtros!D208,"") -> 
A195: =IF(Filtros!A209<>"",Filtros!A209,"") ->  | B195: =IF(Filtros!B209<>"",Filtros!B209,"") ->  | C195: =IF(Filtros!C209<>"",Filtros!C209,"") ->  | D195: =IF(Filtros!D209<>"",Filtros!D209,"") ->  | E195: =IF(A195<>"",CONCATENATE(B195," ",C195),"") -> 
A196: =IF(Filtros!A210<>"",Filtros!A210,"") ->  | B196: =IF(Filtros!B210<>"",Filtros!B210,"") ->  | C196: =IF(Filtros!C210<>"",Filtros!C210,"") ->  | D196: =IF(Filtros!D210<>"",Filtros!D210,"") -> 
A197: =IF(Filtros!A211<>"",Filtros!A211,"") ->  | B197: =IF(Filtros!B211<>"",Filtros!B211,"") ->  | C197: =IF(Filtros!C211<>"",Filtros!C211,"") ->  | D197: =IF(Filtros!D211<>"",Filtros!D211,"") -> 
A198: =IF(Filtros!A212<>"",Filtros!A212,"") ->  | B198: =IF(Filtros!B212<>"",Filtros!B212,"") ->  | C198: =IF(Filtros!C212<>"",Filtros!C212,"") ->  | D198: =IF(Filtros!D212<>"",Filtros!D212,"") -> 
A199: =IF(Filtros!A213<>"",Filtros!A213,"") ->  | B199: =IF(Filtros!B213<>"",Filtros!B213,"") ->  | C199: =IF(Filtros!C213<>"",Filtros!C213,"") ->  | D199: =IF(Filtros!D213<>"",Filtros!D213,"") -> 
A200: =IF(Filtros!A214<>"",Filtros!A214,"") ->  | B200: =IF(Filtros!B214<>"",Filtros!B214,"") ->  | C200: =IF(Filtros!C214<>"",Filtros!C214,"") ->  | D200: =IF(Filtros!D214<>"",Filtros!D214,"") -> 
... 301 more rows

Sheet Matriz Nº1 Identificación
A1: MINISTERIO DE GOBERNACIÓN Y POLICÍA
A2: SISTEMA ESPECÍFICO DE VALORACIÓN DE RIESGO INSTITUCIONAL
A3: =PAO!A4 -> Unidad de Planificación
A4: Matriz Nº 1
A5: Identificación de Riesgos
A6: N° Riesgo/Evento | B6: a) Evento | C6: b) Causas | D6: c) Consecuencias | E6: Medidas de administración existentes | F6: Clasificación de acuerdo a la estructura de riesgo institucional | H6: Unidad administrativa | I6: Evidencias
F7: Código | G7: Riesgo
A8: Objetivo Estratégico: | B8: =+PAO!B7 -> 01) Transformar la Imprenta Nacional en un plazo de cuatro años, mediante aplicación de cambios en la normativa e innovación de los productos y servicios que ofrece, para que estén acordes con las tendencias del mercado y con prácticas ambientalmente sostenibles.
A9: Objetivo táctico | B9: =CONCATENATE(PAO!A9,". ",PAO!A10) -> 1. Contar con los recursos que nos permita efectuar el cambio o reparación del montacargas en forma expedita cuando este sufra algun tipo de problema que le impida un normal funcionamiento.
A10: =CONCATENATE(PAO!A9,". ", "1") -> 1. 1 | F10: =IFERROR(VLOOKUP(B10,'Validaciones SEVRI'!$D$2:$E$1000,2,FALSE),"") ->  | K10: =IF(B10<1,0, 1) -> 0 | L10: =A3 -> Unidad de Planificación
A11: =CONCATENATE(PAO!A9,". ", "2") -> 1. 2 | F11: =IFERROR(VLOOKUP(B11,'Validaciones SEVRI'!$D$2:$E$1000,2,FALSE),"") ->  | K11: 1 | L11: SUMATORIA DE RIESGOS | M11: =K1088 -> 1
A12: =CONCATENATE(PAO!A9,". ","3") -> 1. 3 | F12: =IFERROR(VLOOKUP(B12,'Validaciones SEVRI'!$D$2:$E$1000,2,FALSE),"") ->  | K12: 0
A13: =CONCATENATE(PAO!A9,". ", "4") -> 1. 4 | F13: =IFERROR(VLOOKUP(B13,'Validaciones SEVRI'!$D$2:$E$1000,2,FALSE),"") ->  | K13: 0
A14: =CONCATENATE(PAO!A9,". ", "5") -> 1. 5 | F14: =IFERROR(VLOOKUP(B14,'Validaciones SEVRI'!$D$2:$E$1000,2,FALSE),"") ->  | K14: 0
A15: =CONCATENATE(PAO!A9,". ", "6") -> 1. 6 | F15: =IFERROR(VLOOKUP(B15,'Validaciones SEVRI'!$D$2:$E$1000,2,FALSE),"") ->  | K15: 0
A16: =CONCATENATE(PAO!A9,". ", "7") -> 1. 7 | F16: =IFERROR(VLOOKUP(B16,'Validaciones SEVRI'!$D$2:$E$1000,2,FALSE),"") ->  | K16: 0
A17: Objetivo Estratégico: | B17: =+PAO!B16 -> 01) Transformar la Imprenta Nacional en un plazo de cuatro años, mediante aplicación de cambios en la normativa e innovación de los productos y servicios que ofrece, para que estén acordes con las tendencias del mercado y con prácticas ambientalmente sostenibles.
A18: Objetivo táctico | B18: =CONCATENATE(PAO!A18,". ",PAO!A19) -> 2. Cumplimiento del derecho de circulación.
A19: =CONCATENATE(PAO!A18,". ", "1") -> 2. 1 | F19: =IFERROR(VLOOKUP(B19,'Validaciones SEVRI'!$D$2:$E$1000,2,FALSE),"") ->  | K19: =IF(B19<1,0, 1) -> 0
A20: =CONCATENATE(PAO!A18,". ", "2") -> 2. 2 | F20: =IFERROR(VLOOKUP(B20,'Validaciones SEVRI'!$D$2:$E$1000,2,FALSE),"") ->  | K20: 0
A21: =CONCATENATE(PAO!A18,". ","3") -> 2. 3 | F21: =IFERROR(VLOOKUP(B21,'Validaciones SEVRI'!$D$2:$E$1000,2,FALSE),"") ->  | K21: 0
A22: =CONCATENATE(PAO!A18,". ", "4") -> 2. 4 | F22: =IFERROR(VLOOKUP(B22,'Validaciones SEVRI'!$D$2:$E$1000,2,FALSE),"") ->  | K22: 0
A23: =CONCATENATE(PAO!A18,". ", "5") -> 2. 5 | F23: =IFERROR(VLOOKUP(B23,'Validaciones SEVRI'!$D$2:$E$1000,2,FALSE),"") ->  | K23: 0
A24: =CONCATENATE(PAO!A18,". ", "6") -> 2. 6 | F24: =IFERROR(VLOOKUP(B24,'Validaciones SEVRI'!$D$2:$E$1000,2,FALSE),"") ->  | K24: 0
A25: =CONCATENATE(PAO!A18,". ", "7") -> 2. 7 | F25: =IFERROR(VLOOKUP(B25,'Validaciones SEVRI'!$D$2:$E$1000,2,FALSE),"") ->  | K25: 0
A26: Objetivo Estratégico: | B26: =+PAO!B25 -> 01) Transformar la Imprenta Nacional en un plazo de cuatro años, mediante aplicación de cambios en la normativa e innovación de los productos y servicios que ofrece, para que estén acordes con las tendencias del mercado y con prácticas ambientalmente sostenibles.
A27: Objetivo táctico | B27: =CONCATENATE(PAO!A27,". ",PAO!A28) -> 3. Garantizar el convivio cultural de los funcionarios de la Imprenta Nacional
A28: =CONCATENATE(PAO!A27,". ", "1") -> 3. 1 | F28: =IFERROR(VLOOKUP(B28,'Validaciones SEVRI'!$D$2:$E$1000,2,FALSE),"") ->  | K28: =IF(B28<1,0, 1) -> 0
A29: =CONCATENATE(PAO!A27,". ", "2") -> 3. 2 | F29: =IFERROR(VLOOKUP(B29,'Validaciones SEVRI'!$D$2:$E$1000,2,FALSE),"") ->  | K29: 0
A30: =CONCATENATE(PAO!A27,". ","3") -> 3. 3 | F30: =IFERROR(VLOOKUP(B30,'Validaciones SEVRI'!$D$2:$E$1000,2,FALSE),"") ->  | K30: 0
A31: =CONCATENATE(PAO!A27,". ", "4") -> 3. 4 | F31: =IFERROR(VLOOKUP(B31,'Validaciones SEVRI'!$D$2:$E$1000,2,FALSE),"") ->  | K31: 0
A32: =CONCATENATE(PAO!A27,". ", "5") -> 3. 5 | F32: =IFERROR(VLOOKUP(B32,'Validaciones SEVRI'!$D$2:$E$1000,2,FALSE),"") ->  | K32: 0
A33: =CONCATENATE(PAO!A27,". ", "6") -> 3. 6 | F33: =IFERROR(VLOOKUP(B33,'Validaciones SEVRI'!$D$2:$E$1000,2,FALSE),"") ->  | K33: 0
A34: =CONCATENATE(PAO!A27,". ", "7") -> 3. 7 | F34: =IFERROR(VLOOKUP(B34,'Validaciones SEVRI'!$D$2:$E$1000,2,FALSE),"") ->  | K34: 0
A35: Objetivo Estratégico: | B35: =+PAO!B34 -> 01) Transformar la Imprenta Nacional en un plazo de cuatro años, mediante aplicación de cambios en la normativa e innovación de los productos y servicios que ofrece, para que estén acordes con las tendencias del mercado y con prácticas ambientalmente sostenibles.
A36: Objetivo táctico | B36: =CONCATENATE(PAO!A36,". ",PAO!A37) -> 4. Contar en inventario con distintos papeles y cartulinas para la producción de los impresos comerciales.
A37: =CONCATENATE(PAO!A36,". ", "1") -> 4. 1 | F37: =IFERROR(VLOOKUP(B37,'Validaciones SEVRI'!$D$2:$E$1000,2,FALSE),"") ->  | K37: =IF(B37<1,0, 1) -> 0
A38: =CONCATENATE(PAO!A36,". ", "2") -> 4. 2 | F38: =IFERROR(VLOOKUP(B38,'Validaciones SEVRI'!$D$2:$E$1000,2,FALSE),"") ->  | K38: 0
A39: =CONCATENATE(PAO!A36,". ","3") -> 4. 3 | F39: =IFERROR(VLOOKUP(B39,'Validaciones SEVRI'!$D$2:$E$1000,2,FALSE),"") ->  | K39: 0
A40: =CONCATENATE(PAO!A36,". ", "4") -> 4. 4 | F40: =IFERROR(VLOOKUP(B40,'Validaciones SEVRI'!$D$2:$E$1000,2,FALSE),"") ->  | K40: 0
A41: =CONCATENATE(PAO!A36,". ", "5") -> 4. 5 | F41: =IFERROR(VLOOKUP(B41,'Validaciones SEVRI'!$D$2:$E$1000,2,FALSE),"") ->  | K41: 0
A42: =CONCATENATE(PAO!A36,". ", "6") -> 4. 6 | F42: =IFERROR(VLOOKUP(B42,'Validaciones SEVRI'!$D$2:$E$1000,2,FALSE),"") ->  | K42: 0
A43: =CONCATENATE(PAO!A36,". ", "7") -> 4. 7 | F43: =IFERROR(VLOOKUP(B43,'Validaciones SEVRI'!$D$2:$E$1000,2,FALSE),"") ->  | K43: 0
A44: Objetivo Estratégico: | B44: =+PAO!B43 -> 01) Transformar la Imprenta Nacional en un plazo de cuatro años, mediante aplicación de cambios en la normativa e innovación de los productos y servicios que ofrece, para que estén acordes con las tendencias del mercado y con prácticas ambientalmente sostenibles.
A45: Objetivo táctico | B45: =CONCATENATE(PAO!A45,". ",PAO!A46) -> 5. Contar con uniformes para el área productiva
A46: =CONCATENATE(PAO!A45,". ", "1") -> 5. 1 | F46: =IFERROR(VLOOKUP(B46,'Validaciones SEVRI'!$D$2:$E$1000,2,FALSE),"") ->  | K46: =IF(B46<1,0, 1) -> 0
A47: =CONCATENATE(PAO!A45,". ", "2") -> 5. 2 | F47: =IFERROR(VLOOKUP(B47,'Validaciones SEVRI'!$D$2:$E$1000,2,FALSE),"") ->  | K47: 0
A48: =CONCATENATE(PAO!A45,". ","3") -> 5. 3 | F48: =IFERROR(VLOOKUP(B48,'Validaciones SEVRI'!$D$2:$E$1000,2,FALSE),"") ->  | K48: 0
A49: =CONCATENATE(PAO!A45,". ", "4") -> 5. 4 | F49: =IFERROR(VLOOKUP(B49,'Validaciones SEVRI'!$D$2:$E$1000,2,FALSE),"") ->  | K49: 0
A50: =CONCATENATE(PAO!A45,". ", "5") -> 5. 5 | F50: =IFERROR(VLOOKUP(B50,'Validaciones SEVRI'!$D$2:$E$1000,2,FALSE),"") ->  | K50: 0
A51: =CONCATENATE(PAO!A45,". ", "6") -> 5. 6 | F51: =IFERROR(VLOOKUP(B51,'Validaciones SEVRI'!$D$2:$E$1000,2,FALSE),"") ->  | K51: 0
A52: =CONCATENATE(PAO!A45,". ", "7") -> 5. 7 | F52: =IFERROR(VLOOKUP(B52,'Validaciones SEVRI'!$D$2:$E$1000,2,FALSE),"") ->  | K52: 0
A53: Objetivo Estratégico: | B53: =+PAO!B52 -> 01) Transformar la Imprenta Nacional en un plazo de cuatro años, mediante aplicación de cambios en la normativa e innovación de los productos y servicios que ofrece, para que estén acordes con las tendencias del mercado y con prácticas ambientalmente sostenibles.
A54: Objetivo táctico | B54: =CONCATENATE(PAO!A54,". ",PAO!A55) -> 6. Servicio de mantenimiento de CTP´s Luscher y Kodak Trenstter
A55: =CONCATENATE(PAO!A54,". ", "1") -> 6. 1 | F55: =IFERROR(VLOOKUP(B55,'Validaciones SEVRI'!$D$2:$E$1000,2,FALSE),"") ->  | K55: =IF(B55<1,0, 1) -> 0
A56: =CONCATENATE(PAO!A54,". ", "2") -> 6. 2 | F56: =IFERROR(VLOOKUP(B56,'Validaciones SEVRI'!$D$2:$E$1000,2,FALSE),"") ->  | K56: 0
A57: =CONCATENATE(PAO!A54,". ","3") -> 6. 3 | F57: =IFERROR(VLOOKUP(B57,'Validaciones SEVRI'!$D$2:$E$1000,2,FALSE),"") ->  | K57: 0
A58: =CONCATENATE(PAO!A54,". ", "4") -> 6. 4 | F58: =IFERROR(VLOOKUP(B58,'Validaciones SEVRI'!$D$2:$E$1000,2,FALSE),"") ->  | K58: 0
A59: =CONCATENATE(PAO!A54,". ", "5") -> 6. 5 | F59: =IFERROR(VLOOKUP(B59,'Validaciones SEVRI'!$D$2:$E$1000,2,FALSE),"") ->  | K59: 0
A60: =CONCATENATE(PAO!A54,". ", "6") -> 6. 6 | F60: =IFERROR(VLOOKUP(B60,'Validaciones SEVRI'!$D$2:$E$1000,2,FALSE),"") ->  | K60: 0
A61: =CONCATENATE(PAO!A54,". ", "7") -> 6. 7 | F61: =IFERROR(VLOOKUP(B61,'Validaciones SEVRI'!$D$2:$E$1000,2,FALSE),"") ->  | K61: 0
A62: Objetivo Estratégico: | B62: =+PAO!B61 -> 01) Transformar la Imprenta Nacional en un plazo de cuatro años, mediante aplicación de cambios en la normativa e innovación de los productos y servicios que ofrece, para que estén acordes con las tendencias del mercado y con prácticas ambientalmente sostenibles.
A63: Objetivo táctico | B63: =CONCATENATE(PAO!A63,". ",PAO!A64) -> 7. Mantenimiento y reparación de equipo de cómputo y sistemas de información
A64: =CONCATENATE(PAO!A63,". ", "1") -> 7. 1 | F64: =IFERROR(VLOOKUP(B64,'Validaciones SEVRI'!$D$2:$E$1000,2,FALSE),"") ->  | K64: =IF(B64<1,0, 1) -> 0
A65: =CONCATENATE(PAO!A63,". ", "2") -> 7. 2 | F65: =IFERROR(VLOOKUP(B65,'Validaciones SEVRI'!$D$2:$E$1000,2,FALSE),"") ->  | K65: 0
A66: =CONCATENATE(PAO!A63,". ","3") -> 7. 3 | F66: =IFERROR(VLOOKUP(B66,'Validaciones SEVRI'!$D$2:$E$1000,2,FALSE),"") ->  | K66: 0
A67: =CONCATENATE(PAO!A63,". ", "4") -> 7. 4 | F67: =IFERROR(VLOOKUP(B67,'Validaciones SEVRI'!$D$2:$E$1000,2,FALSE),"") ->  | K67: 0
A68: =CONCATENATE(PAO!A63,". ", "5") -> 7. 5 | F68: =IFERROR(VLOOKUP(B68,'Validaciones SEVRI'!$D$2:$E$1000,2,FALSE),"") ->  | K68: 0
A69: =CONCATENATE(PAO!A63,". ", "6") -> 7. 6 | F69: =IFERROR(VLOOKUP(B69,'Validaciones SEVRI'!$D$2:$E$1000,2,FALSE),"") ->  | K69: 0
A70: =CONCATENATE(PAO!A63,". ", "7") -> 7. 7 | F70: =IFERROR(VLOOKUP(B70,'Validaciones SEVRI'!$D$2:$E$1000,2,FALSE),"") ->  | K70: 0
A71: Objetivo Estratégico: | B71: =+PAO!B70 -> 01) Transformar la Imprenta Nacional en un plazo de cuatro años, mediante aplicación de cambios en la normativa e innovación de los productos y servicios que ofrece, para que estén acordes con las tendencias del mercado y con prácticas ambientalmente sostenibles.
A72: Objetivo táctico | B72: =CONCATENATE(PAO!A72,". ",PAO!A73) -> 8. Producir material de artes gráficas e impresos comerciales que cumplan con los lineamientos de calidad según ordenes de pedido
A73: =CONCATENATE(PAO!A72,". ", "1") -> 8. 1 | F73: =IFERROR(VLOOKUP(B73,'Validaciones SEVRI'!$D$2:$E$1000,2,FALSE),"") ->  | K73: =IF(B73<1,0, 1) -> 0
A74: =CONCATENATE(PAO!A72,". ", "2") -> 8. 2 | F74: =IFERROR(VLOOKUP(B74,'Validaciones SEVRI'!$D$2:$E$1000,2,FALSE),"") ->  | K74: 0
A75: =CONCATENATE(PAO!A72,". ","3") -> 8. 3 | F75: =IFERROR(VLOOKUP(B75,'Validaciones SEVRI'!$D$2:$E$1000,2,FALSE),"") ->  | K75: 0
A76: =CONCATENATE(PAO!A72,". ", "4") -> 8. 4 | F76: =IFERROR(VLOOKUP(B76,'Validaciones SEVRI'!$D$2:$E$1000,2,FALSE),"") ->  | K76: 0
A77: =CONCATENATE(PAO!A72,". ", "5") -> 8. 5 | F77: =IFERROR(VLOOKUP(B77,'Validaciones SEVRI'!$D$2:$E$1000,2,FALSE),"") ->  | K77: 0
A78: =CONCATENATE(PAO!A72,". ", "6") -> 8. 6 | F78: =IFERROR(VLOOKUP(B78,'Validaciones SEVRI'!$D$2:$E$1000,2,FALSE),"") ->  | K78: 0
A79: =CONCATENATE(PAO!A72,". ", "7") -> 8. 7 | F79: =IFERROR(VLOOKUP(B79,'Validaciones SEVRI'!$D$2:$E$1000,2,FALSE),"") ->  | K79: 0
A80: Objetivo Estratégico: | B80: =+PAO!B79 -> 03) Realizar gestión de calidad en la Imprenta Nacional mediante la documentación, estandarización y control de los procesos.
A81: Objetivo táctico | B81: =CONCATENATE(PAO!A81,". ",PAO!A82) -> 9. Producir material de artes gráficas e impresos comerciales que cumplan con los lineamientos de calidad y conseguir una comunicación eficaz hacia el público.
A82: =CONCATENATE(PAO!A81,". ", "1") -> 9. 1 | F82: =IFERROR(VLOOKUP(B82,'Validaciones SEVRI'!$D$2:$E$1000,2,FALSE),"") ->  | K82: =IF(B82<1,0, 1) -> 0
A83: =CONCATENATE(PAO!A81,". ", "2") -> 9. 2 | F83: =IFERROR(VLOOKUP(B83,'Validaciones SEVRI'!$D$2:$E$1000,2,FALSE),"") ->  | K83: 0
A84: =CONCATENATE(PAO!A81,". ","3") -> 9. 3 | F84: =IFERROR(VLOOKUP(B84,'Validaciones SEVRI'!$D$2:$E$1000,2,FALSE),"") ->  | K84: 0
A85: =CONCATENATE(PAO!A81,". ", "4") -> 9. 4 | F85: =IFERROR(VLOOKUP(B85,'Validaciones SEVRI'!$D$2:$E$1000,2,FALSE),"") ->  | K85: 0
A86: =CONCATENATE(PAO!A81,". ", "5") -> 9. 5 | F86: =IFERROR(VLOOKUP(B86,'Validaciones SEVRI'!$D$2:$E$1000,2,FALSE),"") ->  | K86: 0
A87: =CONCATENATE(PAO!A81,". ", "6") -> 9. 6 | F87: =IFERROR(VLOOKUP(B87,'Validaciones SEVRI'!$D$2:$E$1000,2,FALSE),"") ->  | K87: 0
A88: =CONCATENATE(PAO!A81,". ", "7") -> 9. 7 | F88: =IFERROR(VLOOKUP(B88,'Validaciones SEVRI'!$D$2:$E$1000,2,FALSE),"") ->  | K88: 0
A89: Objetivo Estratégico: | B89: =+PAO!B88 -> 01) Transformar la Imprenta Nacional en un plazo de cuatro años, mediante aplicación de cambios en la normativa e innovación de los productos y servicios que ofrece, para que estén acordes con las tendencias del mercado y con prácticas ambientalmente sostenibles.
A90: Objetivo táctico | B90: =CONCATENATE(PAO!A90,". ",PAO!A91) -> 10. Producir material de artes gráficas e impresos comerciales que cumplan con los lineamientos de calidad y conseguir una comunicación eficaz hacia el público.
A91: =CONCATENATE(PAO!A90,". ", "1") -> 10. 1 | F91: =IFERROR(VLOOKUP(B91,'Validaciones SEVRI'!$D$2:$E$1000,2,FALSE),"") ->  | K91: =IF(B91<1,0, 1) -> 0
A92: =CONCATENATE(PAO!A90,". ", "2") -> 10. 2 | F92: =IFERROR(VLOOKUP(B92,'Validaciones SEVRI'!$D$2:$E$1000,2,FALSE),"") ->  | K92: 0
A93: =CONCATENATE(PAO!A90,". ","3") -> 10. 3 | F93: =IFERROR(VLOOKUP(B93,'Validaciones SEVRI'!$D$2:$E$1000,2,FALSE),"") ->  | K93: 0
A94: =CONCATENATE(PAO!A90,". ", "4") -> 10. 4 | F94: =IFERROR(VLOOKUP(B94,'Validaciones SEVRI'!$D$2:$E$1000,2,FALSE),"") ->  | K94: 0
A95: =CONCATENATE(PAO!A90,". ", "5") -> 10. 5 | F95: =IFERROR(VLOOKUP(B95,'Validaciones SEVRI'!$D$2:$E$1000,2,FALSE),"") ->  | K95: 0
A96: =CONCATENATE(PAO!A90,". ", "6") -> 10. 6 | F96: =IFERROR(VLOOKUP(B96,'Validaciones SEVRI'!$D$2:$E$1000,2,FALSE),"") ->  | K96: 0
A97: =CONCATENATE(PAO!A90,". ", "7") -> 10. 7 | F97: =IFERROR(VLOOKUP(B97,'Validaciones SEVRI'!$D$2:$E$1000,2,FALSE),"") ->  | K97: 0
A98: Objetivo Estratégico: | B98: =+PAO!B97 -> 01) Transformar la Imprenta Nacional en un plazo de cuatro años, mediante aplicación de cambios en la normativa e innovación de los productos y servicios que ofrece, para que estén acordes con las tendencias del mercado y con prácticas ambientalmente sostenibles.
A99: Objetivo táctico | B99: =CONCATENATE(PAO!A99,". ",PAO!A100) -> 11. Producir material de artes gráficas e impresos comerciales que cumplan con los lineamientos de calidad y conseguir una comunicación eficaz hacia el público.
A100: =CONCATENATE(PAO!A99,". ", "1") -> 11. 1 | F100: =IFERROR(VLOOKUP(B100,'Validaciones SEVRI'!$D$2:$E$1000,2,FALSE),"") ->  | K100: =IF(B100<1,0, 1) -> 0
A101: =CONCATENATE(PAO!A99,". ", "2") -> 11. 2 | F101: =IFERROR(VLOOKUP(B101,'Validaciones SEVRI'!$D$2:$E$1000,2,FALSE),"") ->  | K101: 0
A102: =CONCATENATE(PAO!A99,". ","3") -> 11. 3 | F102: =IFERROR(VLOOKUP(B102,'Validaciones SEVRI'!$D$2:$E$1000,2,FALSE),"") ->  | K102: 0
A103: =CONCATENATE(PAO!A99,". ", "4") -> 11. 4 | F103: =IFERROR(VLOOKUP(B103,'Validaciones SEVRI'!$D$2:$E$1000,2,FALSE),"") ->  | K103: 0
A104: =CONCATENATE(PAO!A99,". ", "5") -> 11. 5 | F104: =IFERROR(VLOOKUP(B104,'Validaciones SEVRI'!$D$2:$E$1000,2,FALSE),"") ->  | K104: 0
A105: =CONCATENATE(PAO!A99,". ", "6") -> 11. 6 | F105: =IFERROR(VLOOKUP(B105,'Validaciones SEVRI'!$D$2:$E$1000,2,FALSE),"") ->  | K105: 0
A106: =CONCATENATE(PAO!A99,". ", "7") -> 11. 7 | F106: =IFERROR(VLOOKUP(B106,'Validaciones SEVRI'!$D$2:$E$1000,2,FALSE),"") ->  | K106: 0
A107: Objetivo Estratégico: | B107: =+PAO!B106 -> 01) Transformar la Imprenta Nacional en un plazo de cuatro años, mediante aplicación de cambios en la normativa e innovación de los productos y servicios que ofrece, para que estén acordes con las tendencias del mercado y con prácticas ambientalmente sostenibles.
A108: Objetivo táctico | B108: =CONCATENATE(PAO!A108,". ",PAO!A109) -> 12. Producir material de artes gráficas e impresos comerciales que cumplan con los lineamientos de calidad y conseguir una comunicación eficaz hacia el público.
A109: =CONCATENATE(PAO!A108,". ", "1") -> 12. 1 | F109: =IFERROR(VLOOKUP(B109,'Validaciones SEVRI'!$D$2:$E$1000,2,FALSE),"") ->  | K109: =IF(B109<1,0, 1) -> 0
A110: =CONCATENATE(PAO!A108,". ", "2") -> 12. 2 | F110: =IFERROR(VLOOKUP(B110,'Validaciones SEVRI'!$D$2:$E$1000,2,FALSE),"") ->  | K110: 0
A111: =CONCATENATE(PAO!A108,". ","3") -> 12. 3 | F111: =IFERROR(VLOOKUP(B111,'Validaciones SEVRI'!$D$2:$E$1000,2,FALSE),"") ->  | K111: 0
A112: =CONCATENATE(PAO!A108,". ", "4") -> 12. 4 | F112: =IFERROR(VLOOKUP(B112,'Validaciones SEVRI'!$D$2:$E$1000,2,FALSE),"") ->  | K112: 0
A113: =CONCATENATE(PAO!A108,". ", "5") -> 12. 5 | F113: =IFERROR(VLOOKUP(B113,'Validaciones SEVRI'!$D$2:$E$1000,2,FALSE),"") ->  | K113: 0
A114: =CONCATENATE(PAO!A108,". ", "6") -> 12. 6 | F114: =IFERROR(VLOOKUP(B114,'Validaciones SEVRI'!$D$2:$E$1000,2,FALSE),"") ->  | K114: 0
A115: =CONCATENATE(PAO!A108,". ", "7") -> 12. 7 | F115: =IFERROR(VLOOKUP(B115,'Validaciones SEVRI'!$D$2:$E$1000,2,FALSE),"") ->  | K115: 0
A116: Objetivo Estratégico: | B116: =+PAO!B115 -> 01) Transformar la Imprenta Nacional en un plazo de cuatro años, mediante aplicación de cambios en la normativa e innovación de los productos y servicios que ofrece, para que estén acordes con las tendencias del mercado y con prácticas ambientalmente sostenibles.
A117: Objetivo táctico | B117: =CONCATENATE(PAO!A117,". ",PAO!A118) -> 13. Proporcionar oportuna y eficientemente los servicios que se requieran en materia, de comunicación, transporte, archivo, seguridad y vigilancia, aseo y limpieza, mantenimiento del edificio, servicios públicos, y/o cualquier otra actividad que procure la buena marcha de las actividades operativas y administrativas que se ejecutan en la Imprenta Nacional.
A118: =CONCATENATE(PAO!A117,". ", "1") -> 13. 1 | F118: =IFERROR(VLOOKUP(B118,'Validaciones SEVRI'!$D$2:$E$1000,2,FALSE),"") ->  | K118: =IF(B118<1,0, 1) -> 0
A119: =CONCATENATE(PAO!A117,". ", "2") -> 13. 2 | F119: =IFERROR(VLOOKUP(B119,'Validaciones SEVRI'!$D$2:$E$1000,2,FALSE),"") ->  | K119: 0
A120: =CONCATENATE(PAO!A117,". ","3") -> 13. 3 | F120: =IFERROR(VLOOKUP(B120,'Validaciones SEVRI'!$D$2:$E$1000,2,FALSE),"") ->  | K120: 0
A121: =CONCATENATE(PAO!A117,". ", "4") -> 13. 4 | F121: =IFERROR(VLOOKUP(B121,'Validaciones SEVRI'!$D$2:$E$1000,2,FALSE),"") ->  | K121: 0
A122: =CONCATENATE(PAO!A117,". ", "5") -> 13. 5 | F122: =IFERROR(VLOOKUP(B122,'Validaciones SEVRI'!$D$2:$E$1000,2,FALSE),"") ->  | K122: 0
A123: =CONCATENATE(PAO!A117,". ", "6") -> 13. 6 | F123: =IFERROR(VLOOKUP(B123,'Validaciones SEVRI'!$D$2:$E$1000,2,FALSE),"") ->  | K123: 0
A124: =CONCATENATE(PAO!A117,". ", "7") -> 13. 7 | F124: =IFERROR(VLOOKUP(B124,'Validaciones SEVRI'!$D$2:$E$1000,2,FALSE),"") ->  | K124: 0
A125: Objetivo Estratégico: | B125: =+PAO!B124 -> 01) Transformar la Imprenta Nacional en un plazo de cuatro años, mediante aplicación de cambios en la normativa e innovación de los productos y servicios que ofrece, para que estén acordes con las tendencias del mercado y con prácticas ambientalmente sostenibles.
A126: Objetivo táctico | B126: =CONCATENATE(PAO!A126,". ",PAO!A127) -> 14. Proporcionar oportuna y eficientemente los servicios que se requieran en materia, de comunicación, transporte, archivo, seguridad y vigilancia, aseo y limpieza, mantenimiento del edificio, servicios públicos, y/o cualquier otra actividad que procure la buena marcha de las actividades operativas y administrativas que se ejecutan en la Imprenta Nacional.
A127: =CONCATENATE(PAO!A126,". ", "1") -> 14. 1 | F127: =IFERROR(VLOOKUP(B127,'Validaciones SEVRI'!$D$2:$E$1000,2,FALSE),"") ->  | K127: =IF(B127<1,0, 1) -> 0
A128: =CONCATENATE(PAO!A126,". ", "2") -> 14. 2 | F128: =IFERROR(VLOOKUP(B128,'Validaciones SEVRI'!$D$2:$E$1000,2,FALSE),"") ->  | K128: 0
A129: =CONCATENATE(PAO!A126,". ","3") -> 14. 3 | F129: =IFERROR(VLOOKUP(B129,'Validaciones SEVRI'!$D$2:$E$1000,2,FALSE),"") ->  | K129: 0
A130: =CONCATENATE(PAO!A126,". ", "4") -> 14. 4 | F130: =IFERROR(VLOOKUP(B130,'Validaciones SEVRI'!$D$2:$E$1000,2,FALSE),"") ->  | K130: 0
A131: =CONCATENATE(PAO!A126,". ", "5") -> 14. 5 | F131: =IFERROR(VLOOKUP(B131,'Validaciones SEVRI'!$D$2:$E$1000,2,FALSE),"") ->  | K131: 0
A132: =CONCATENATE(PAO!A126,". ", "6") -> 14. 6 | F132: =IFERROR(VLOOKUP(B132,'Validaciones SEVRI'!$D$2:$E$1000,2,FALSE),"") ->  | K132: 0
A133: =CONCATENATE(PAO!A126,". ", "7") -> 14. 7 | F133: =IFERROR(VLOOKUP(B133,'Validaciones SEVRI'!$D$2:$E$1000,2,FALSE),"") ->  | K133: 0
A134: Objetivo Estratégico: | B134: =+PAO!B133 -> 01) Transformar la Imprenta Nacional en un plazo de cuatro años, mediante aplicación de cambios en la normativa e innovación de los productos y servicios que ofrece, para que estén acordes con las tendencias del mercado y con prácticas ambientalmente sostenibles.
A135: Objetivo táctico | B135: =CONCATENATE(PAO!A135,". ",PAO!A136) -> 15. Proporcionar oportuna y eficientemente los servicios que se requieran en materia, de comunicación, transporte, archivo, seguridad y vigilancia, aseo y limpieza, mantenimiento del edificio, servicios públicos, y/o cualquier otra actividad que procure la buena marcha de las actividades operativas y administrativas que se ejecutan en la Imprenta Nacional.
A136: =CONCATENATE(PAO!A135,". ", "1") -> 15. 1 | F136: =IFERROR(VLOOKUP(B136,'Validaciones SEVRI'!$D$2:$E$1000,2,FALSE),"") ->  | K136: =IF(B136<1,0, 1) -> 0
A137: =CONCATENATE(PAO!A135,". ", "2") -> 15. 2 | F137: =IFERROR(VLOOKUP(B137,'Validaciones SEVRI'!$D$2:$E$1000,2,FALSE),"") ->  | K137: 0
A138: =CONCATENATE(PAO!A135,". ","3") -> 15. 3 | F138: =IFERROR(VLOOKUP(B138,'Validaciones SEVRI'!$D$2:$E$1000,2,FALSE),"") ->  | K138: 0
A139: =CONCATENATE(PAO!A135,". ", "4") -> 15. 4 | F139: =IFERROR(VLOOKUP(B139,'Validaciones SEVRI'!$D$2:$E$1000,2,FALSE),"") ->  | K139: 0
A140: =CONCATENATE(PAO!A135,". ", "5") -> 15. 5 | F140: =IFERROR(VLOOKUP(B140,'Validaciones SEVRI'!$D$2:$E$1000,2,FALSE),"") ->  | K140: 0
A141: =CONCATENATE(PAO!A135,". ", "6") -> 15. 6 | F141: =IFERROR(VLOOKUP(B141,'Validaciones SEVRI'!$D$2:$E$1000,2,FALSE),"") ->  | K141: 0
A142: =CONCATENATE(PAO!A135,". ", "7") -> 15. 7 | F142: =IFERROR(VLOOKUP(B142,'Validaciones SEVRI'!$D$2:$E$1000,2,FALSE),"") ->  | K142: 0
A143: Objetivo Estratégico: | B143: =+PAO!B142 -> 01) Transformar la Imprenta Nacional en un plazo de cuatro años, mediante aplicación de cambios en la normativa e innovación de los productos y servicios que ofrece, para que estén acordes con las tendencias del mercado y con prácticas ambientalmente sostenibles.
A144: Objetivo táctico | B144: =CONCATENATE(PAO!A144,". ",PAO!A145) -> 16. Proporcionar oportuna y eficientemente los servicios que se requieran en materia, de comunicación, transporte, archivo, seguridad y vigilancia, aseo y limpieza, mantenimiento del edificio, servicios públicos, y/o cualquier otra actividad que procure la buena marcha de las actividades operativas y administrativas que se ejecutan en la Imprenta Nacional.
A145: =CONCATENATE(PAO!A144,". ", "1") -> 16. 1 | F145: =IFERROR(VLOOKUP(B145,'Validaciones SEVRI'!$D$2:$E$1000,2,FALSE),"") ->  | K145: =IF(B145<1,0, 1) -> 0
A146: =CONCATENATE(PAO!A144,". ", "2") -> 16. 2 | F146: =IFERROR(VLOOKUP(B146,'Validaciones SEVRI'!$D$2:$E$1000,2,FALSE),"") ->  | K146: 0
A147: =CONCATENATE(PAO!A144,". ","3") -> 16. 3 | F147: =IFERROR(VLOOKUP(B147,'Validaciones SEVRI'!$D$2:$E$1000,2,FALSE),"") ->  | K147: 0
A148: =CONCATENATE(PAO!A144,". ", "4") -> 16. 4 | F148: =IFERROR(VLOOKUP(B148,'Validaciones SEVRI'!$D$2:$E$1000,2,FALSE),"") ->  | K148: 0
A149: =CONCATENATE(PAO!A144,". ", "5") -> 16. 5 | F149: =IFERROR(VLOOKUP(B149,'Validaciones SEVRI'!$D$2:$E$1000,2,FALSE),"") ->  | K149: 0
A150: =CONCATENATE(PAO!A144,". ", "6") -> 16. 6 | F150: =IFERROR(VLOOKUP(B150,'Validaciones SEVRI'!$D$2:$E$1000,2,FALSE),"") ->  | K150: 0
A151: =CONCATENATE(PAO!A144,". ", "7") -> 16. 7 | F151: =IFERROR(VLOOKUP(B151,'Validaciones SEVRI'!$D$2:$E$1000,2,FALSE),"") ->  | K151: 0
A152: Objetivo Estratégico: | B152: =+PAO!B151 -> 01) Transformar la Imprenta Nacional en un plazo de cuatro años, mediante aplicación de cambios en la normativa e innovación de los productos y servicios que ofrece, para que estén acordes con las tendencias del mercado y con prácticas ambientalmente sostenibles.
A153: Objetivo táctico | B153: =CONCATENATE(PAO!A153,". ",PAO!A154) -> 17. Proporcionar oportuna y eficientemente los servicios que se requieran en materia, de comunicación, transporte, archivo, seguridad y vigilancia, aseo y limpieza, mantenimiento del edificio, servicios públicos, y/o cualquier otra actividad que procure la buena marcha de las actividades operativas y administrativas que se ejecutan en la Imprenta Nacional.
A154: =CONCATENATE(PAO!A153,". ", "1") -> 17. 1 | F154: =IFERROR(VLOOKUP(B154,'Validaciones SEVRI'!$D$2:$E$1000,2,FALSE),"") ->  | K154: =IF(B154<1,0, 1) -> 0
A155: =CONCATENATE(PAO!A153,". ", "2") -> 17. 2 | F155: =IFERROR(VLOOKUP(B155,'Validaciones SEVRI'!$D$2:$E$1000,2,FALSE),"") ->  | K155: 0
A156: =CONCATENATE(PAO!A153,". ","3") -> 17. 3 | F156: =IFERROR(VLOOKUP(B156,'Validaciones SEVRI'!$D$2:$E$1000,2,FALSE),"") ->  | K156: 0
A157: =CONCATENATE(PAO!A153,". ", "4") -> 17. 4 | F157: =IFERROR(VLOOKUP(B157,'Validaciones SEVRI'!$D$2:$E$1000,2,FALSE),"") ->  | K157: 0
A158: =CONCATENATE(PAO!A153,". ", "5") -> 17. 5 | F158: =IFERROR(VLOOKUP(B158,'Validaciones SEVRI'!$D$2:$E$1000,2,FALSE),"") ->  | K158: 0
A159: =CONCATENATE(PAO!A153,". ", "6") -> 17. 6 | F159: =IFERROR(VLOOKUP(B159,'Validaciones SEVRI'!$D$2:$E$1000,2,FALSE),"") ->  | K159: 0
A160: =CONCATENATE(PAO!A153,". ", "7") -> 17. 7 | F160: =IFERROR(VLOOKUP(B160,'Validaciones SEVRI'!$D$2:$E$1000,2,FALSE),"") ->  | K160: 0
A161: Objetivo Estratégico: | B161: =+PAO!B160 -> 01) Transformar la Imprenta Nacional en un plazo de cuatro años, mediante aplicación de cambios en la normativa e innovación de los productos y servicios que ofrece, para que estén acordes con las tendencias del mercado y con prácticas ambientalmente sostenibles.
A162: Objetivo táctico | B162: =CONCATENATE(PAO!A162,". ",PAO!A163) -> 18. Proporcionar oportuna y eficientemente los servicios que se requieran en materia, de comunicación, transporte, archivo, seguridad y vigilancia, aseo y limpieza, mantenimiento del edificio, servicios públicos, y/o cualquier otra actividad que procure la buena marcha de las actividades operativas y administrativas que se ejecutan en la Imprenta Nacional.
A163: =CONCATENATE(PAO!A162,". ", "1") -> 18. 1 | F163: =IFERROR(VLOOKUP(B163,'Validaciones SEVRI'!$D$2:$E$1000,2,FALSE),"") ->  | K163: =IF(B163<1,0, 1) -> 0
A164: =CONCATENATE(PAO!A162,". ", "2") -> 18. 2 | F164: =IFERROR(VLOOKUP(B164,'Validaciones SEVRI'!$D$2:$E$1000,2,FALSE),"") ->  | K164: 0
A165: =CONCATENATE(PAO!A162,". ","3") -> 18. 3 | F165: =IFERROR(VLOOKUP(B165,'Validaciones SEVRI'!$D$2:$E$1000,2,FALSE),"") ->  | K165: 0
A166: =CONCATENATE(PAO!A162,". ", "4") -> 18. 4 | F166: =IFERROR(VLOOKUP(B166,'Validaciones SEVRI'!$D$2:$E$1000,2,FALSE),"") ->  | K166: 0
A167: =CONCATENATE(PAO!A162,". ", "5") -> 18. 5 | F167: =IFERROR(VLOOKUP(B167,'Validaciones SEVRI'!$D$2:$E$1000,2,FALSE),"") ->  | K167: 0
A168: =CONCATENATE(PAO!A162,". ", "6") -> 18. 6 | F168: =IFERROR(VLOOKUP(B168,'Validaciones SEVRI'!$D$2:$E$1000,2,FALSE),"") ->  | K168: 0
A169: =CONCATENATE(PAO!A162,". ", "7") -> 18. 7 | F169: =IFERROR(VLOOKUP(B169,'Validaciones SEVRI'!$D$2:$E$1000,2,FALSE),"") ->  | K169: 0
A170: Objetivo Estratégico: | B170: =+PAO!B169 -> 01) Transformar la Imprenta Nacional en un plazo de cuatro años, mediante aplicación de cambios en la normativa e innovación de los productos y servicios que ofrece, para que estén acordes con las tendencias del mercado y con prácticas ambientalmente sostenibles.
A171: Objetivo táctico | B171: =CONCATENATE(PAO!A171,". ",PAO!A172) -> 19. Proporcionar oportuna y eficientemente los servicios que se requieran en materia, de comunicación, transporte, archivo, seguridad y vigilancia, aseo y limpieza, mantenimiento del edificio, servicios públicos, y/o cualquier otra actividad que procure la buena marcha de las actividades operativas y administrativas que se ejecutan en la Imprenta Nacional.
A172: =CONCATENATE(PAO!A171,". ", "1") -> 19. 1 | F172: =IFERROR(VLOOKUP(B172,'Validaciones SEVRI'!$D$2:$E$1000,2,FALSE),"") ->  | K172: =IF(B172<1,0, 1) -> 0
A173: =CONCATENATE(PAO!A171,". ", "2") -> 19. 2 | F173: =IFERROR(VLOOKUP(B173,'Validaciones SEVRI'!$D$2:$E$1000,2,FALSE),"") ->  | K173: 0
A174: =CONCATENATE(PAO!A171,". ","3") -> 19. 3 | F174: =IFERROR(VLOOKUP(B174,'Validaciones SEVRI'!$D$2:$E$1000,2,FALSE),"") ->  | K174: 0
A175: =CONCATENATE(PAO!A171,". ", "4") -> 19. 4 | F175: =IFERROR(VLOOKUP(B175,'Validaciones SEVRI'!$D$2:$E$1000,2,FALSE),"") ->  | K175: 0
A176: =CONCATENATE(PAO!A171,". ", "5") -> 19. 5 | F176: =IFERROR(VLOOKUP(B176,'Validaciones SEVRI'!$D$2:$E$1000,2,FALSE),"") ->  | K176: 0
A177: =CONCATENATE(PAO!A171,". ", "6") -> 19. 6 | F177: =IFERROR(VLOOKUP(B177,'Validaciones SEVRI'!$D$2:$E$1000,2,FALSE),"") ->  | K177: 0
A178: =CONCATENATE(PAO!A171,". ", "7") -> 19. 7 | F178: =IFERROR(VLOOKUP(B178,'Validaciones SEVRI'!$D$2:$E$1000,2,FALSE),"") ->  | K178: 0
A179: Objetivo Estratégico: | B179: =+PAO!B178 -> 01) Transformar la Imprenta Nacional en un plazo de cuatro años, mediante aplicación de cambios en la normativa e innovación de los productos y servicios que ofrece, para que estén acordes con las tendencias del mercado y con prácticas ambientalmente sostenibles.
A180: Objetivo táctico | B180: =CONCATENATE(PAO!A180,". ",PAO!A181) -> 20. Proporcionar oportuna y eficientemente los servicios que se requieran en materia, de comunicación, transporte, archivo, seguridad y vigilancia, aseo y limpieza, mantenimiento del edificio, servicios públicos, y/o cualquier otra actividad que procure la buena marcha de las actividades operativas y administrativas que se ejecutan en la Imprenta Nacional.
A181: =CONCATENATE(PAO!A180,". ", "1") -> 20. 1 | F181: =IFERROR(VLOOKUP(B181,'Validaciones SEVRI'!$D$2:$E$1000,2,FALSE),"") ->  | K181: =IF(B181<1,0, 1) -> 0
A182: =CONCATENATE(PAO!A180,". ", "2") -> 20. 2 | F182: =IFERROR(VLOOKUP(B182,'Validaciones SEVRI'!$D$2:$E$1000,2,FALSE),"") ->  | K182: 0
A183: =CONCATENATE(PAO!A180,". ","3") -> 20. 3 | F183: =IFERROR(VLOOKUP(B183,'Validaciones SEVRI'!$D$2:$E$1000,2,FALSE),"") ->  | K183: 0
A184: =CONCATENATE(PAO!A180,". ", "4") -> 20. 4 | F184: =IFERROR(VLOOKUP(B184,'Validaciones SEVRI'!$D$2:$E$1000,2,FALSE),"") ->  | K184: 0
A185: =CONCATENATE(PAO!A180,". ", "5") -> 20. 5 | F185: =IFERROR(VLOOKUP(B185,'Validaciones SEVRI'!$D$2:$E$1000,2,FALSE),"") ->  | K185: 0
A186: =CONCATENATE(PAO!A180,". ", "6") -> 20. 6 | F186: =IFERROR(VLOOKUP(B186,'Validaciones SEVRI'!$D$2:$E$1000,2,FALSE),"") ->  | K186: 0
A187: =CONCATENATE(PAO!A180,". ", "7") -> 20. 7 | F187: =IFERROR(VLOOKUP(B187,'Validaciones SEVRI'!$D$2:$E$1000,2,FALSE),"") ->  | K187: 0
A188: Objetivo Estratégico: | B188: =+PAO!B187 -> 01) Transformar la Imprenta Nacional en un plazo de cuatro años, mediante aplicación de cambios en la normativa e innovación de los productos y servicios que ofrece, para que estén acordes con las tendencias del mercado y con prácticas ambientalmente sostenibles.
A189: Objetivo táctico | B189: =CONCATENATE(PAO!A189,". ",PAO!A190) -> 21. Proporcionar oportuna y eficientemente los servicios que se requieran en materia, de comunicación, transporte, archivo, seguridad y vigilancia, aseo y limpieza, mantenimiento del edificio, servicios públicos, y/o cualquier otra actividad que procure la buena marcha de las actividades operativas y administrativas que se ejecutan en la Imprenta Nacional.
A190: =CONCATENATE(PAO!A189,". ", "1") -> 21. 1 | F190: =IFERROR(VLOOKUP(B190,'Validaciones SEVRI'!$D$2:$E$1000,2,FALSE),"") ->  | K190: =IF(B190<1,0, 1) -> 0
A191: =CONCATENATE(PAO!A189,". ", "2") -> 21. 2 | F191: =IFERROR(VLOOKUP(B191,'Validaciones SEVRI'!$D$2:$E$1000,2,FALSE),"") ->  | K191: 0
A192: =CONCATENATE(PAO!A189,". ","3") -> 21. 3 | F192: =IFERROR(VLOOKUP(B192,'Validaciones SEVRI'!$D$2:$E$1000,2,FALSE),"") ->  | K192: 0
A193: =CONCATENATE(PAO!A189,". ", "4") -> 21. 4 | F193: =IFERROR(VLOOKUP(B193,'Validaciones SEVRI'!$D$2:$E$1000,2,FALSE),"") ->  | K193: 0
A194: =CONCATENATE(PAO!A189,". ", "5") -> 21. 5 | F194: =IFERROR(VLOOKUP(B194,'Validaciones SEVRI'!$D$2:$E$1000,2,FALSE),"") ->  | K194: 0
A195: =CONCATENATE(PAO!A189,". ", "6") -> 21. 6 | F195: =IFERROR(VLOOKUP(B195,'Validaciones SEVRI'!$D$2:$E$1000,2,FALSE),"") ->  | K195: 0
A196: =CONCATENATE(PAO!A189,". ", "7") -> 21. 7 | F196: =IFERROR(VLOOKUP(B196,'Validaciones SEVRI'!$D$2:$E$1000,2,FALSE),"") ->  | K196: 0
A197: Objetivo Estratégico: | B197: =+PAO!B196 -> 03) Realizar gestión de calidad en la Imprenta Nacional mediante la documentación, estandarización y control de los procesos.
A198: Objetivo táctico | B198: =CONCATENATE(PAO!A198,". ",PAO!A199) -> 22. Proporcionar oportuna y eficientemente los servicios que se requieran en materia, de comunicación, transporte, archivo, seguridad y vigilancia, aseo y limpieza, mantenimiento del edificio, servicios públicos, y/o cualquier otra actividad que procure la buena marcha de las actividades operativas y administrativas que se ejecutan en la Imprenta Nacional.
A199: =CONCATENATE(PAO!A198,". ", "1") -> 22. 1 | F199: =IFERROR(VLOOKUP(B199,'Validaciones SEVRI'!$D$2:$E$1000,2,FALSE),"") ->  | K199: =IF(B199<1,0, 1) -> 0
A200: =CONCATENATE(PAO!A198,". ", "2") -> 22. 2 | F200: =IFERROR(VLOOKUP(B200,'Validaciones SEVRI'!$D$2:$E$1000,2,FALSE),"") ->  | K200: 0
... 888 more rows

Sheet Matriz Nº2 Análisis
A1: =+'Matriz Nº1 Identificación'!A1:H1 -> MINISTERIO DE GOBERNACIÓN Y POLICÍA
A2: =+'Matriz Nº1 Identificación'!A2:H2 -> SISTEMA ESPECÍFICO DE VALORACIÓN DE RIESGO INSTITUCIONAL
A3: =+'Matriz Nº1 Identificación'!A3:H3 -> Unidad de Planificación | K3: =IF(M14= 0,"","Los datos que se deben registrar estan incompletos, por favor verifique y ajuste.") -> Los datos que se deben registrar estan incompletos, por favor verifique y ajuste.
A4: Matriz Nº 2
A5: Análisis de Riesgo
A6: SIN medidas administración | F6: CON medidas de administración existentes
A7: Nº | B7: Código y riesgo (matriz #1) | C7: Probabilidad | D7: Magnitud | E7: Nivel de riesgo inherente | F7: Medidas administración existentes | G7: Probabilidad | H7: Magnitud | I7: Nivel de riesgo residual
A8: ='Matriz Nº1 Identificación'!A8 -> Objetivo Estratégico: | B8: =+'Matriz Nº1 Identificación'!B8:H8 -> 01) Transformar la Imprenta Nacional en un plazo de cuatro años, mediante aplicación de cambios en la normativa e innovación de los productos y servicios que ofrece, para que estén acordes con las tendencias del mercado y con prácticas ambientalmente sostenibles. | L8: =A3 -> Unidad de Planificación
A9: ='Matriz Nº1 Identificación'!A9 -> Objetivo táctico | B9: =+'Matriz Nº1 Identificación'!B9:H9 -> 1. Contar con los recursos que nos permita efectuar el cambio o reparación del montacargas en forma expedita cuando este sufra algun tipo de problema que le impida un normal funcionamiento. | L9: Nivel Riesgo Residual
A10: ='Matriz Nº1 Identificación'!A10 -> 1. 1 | B10: =IF('Matriz Nº1 Identificación'!B10<>"",'Matriz Nº1 Identificación'!F10,"") ->  | C10: MEDIA | D10: MEDIA | E10: =IFERROR(IF((VLOOKUP(C10,'Tabla 2-3-4-5'!$C$11:$D$13,2,FALSE)*(VLOOKUP('Matriz Nº2 Análisis'!D10,'Tabla 2-3-4-5'!$C$11:$D$13,2,FALSE)))<3,"BAJO",IF((VLOOKUP(C10,'Tabla 2-3-4-5'!$C$11:$D$13,2,FALSE)*(VLOOKUP('Matriz Nº2 Análisis'!D10,'Tabla 2-3-4-5'!$C$11:$D$13,2,FALSE)))>5,"ALTO","MEDIO")),"") -> MEDIO | F10: =IF(B10<>"",'Matriz Nº1 Identificación'!E10,"") ->  | G10: BAJA | H10: MEDIA | I10: =IFERROR(IF((VLOOKUP(G10,'Tabla 2-3-4-5'!$C$11:$D$13,2,FALSE)*(VLOOKUP('Matriz Nº2 Análisis'!H10,'Tabla 2-3-4-5'!$C$11:$D$13,2,FALSE)))<3,"BAJO",IF((VLOOKUP(G10,'Tabla 2-3-4-5'!$C$11:$D$13,2,FALSE)*(VLOOKUP('Matriz Nº2 Análisis'!H10,'Tabla 2-3-4-5'!$C$11:$D$13,2,FALSE)))>5,"ALTO","MEDIO")),"") -> BAJO | L10: Alto | M10: =I1089 -> 1
A11: ='Matriz Nº1 Identificación'!A11 -> 1. 2 | B11: =IF('Matriz Nº1 Identificación'!B11<>"",'Matriz Nº1 Identificación'!F11,"") ->  | E11: =IFERROR(IF((VLOOKUP(C11,'Tabla 2-3-4-5'!$C$11:$D$13,2,FALSE)*(VLOOKUP('Matriz Nº2 Análisis'!D11,'Tabla 2-3-4-5'!$C$11:$D$13,2,FALSE)))<3,"BAJO",IF((VLOOKUP(C11,'Tabla 2-3-4-5'!$C$11:$D$13,2,FALSE)*(VLOOKUP('Matriz Nº2 Análisis'!D11,'Tabla 2-3-4-5'!$C$11:$D$13,2,FALSE)))>5,"ALTO","MEDIO")),"") ->  | F11: =IF(B11<>"",'Matriz Nº1 Identificación'!E11,"") ->  | I11: =IFERROR(IF((VLOOKUP(G11,'Tabla 2-3-4-5'!$C$11:$D$13,2,FALSE)*(VLOOKUP('Matriz Nº2 Análisis'!H11,'Tabla 2-3-4-5'!$C$11:$D$13,2,FALSE)))<3,"BAJO",IF((VLOOKUP(G11,'Tabla 2-3-4-5'!$C$11:$D$13,2,FALSE)*(VLOOKUP('Matriz Nº2 Análisis'!H11,'Tabla 2-3-4-5'!$C$11:$D$13,2,FALSE)))>5,"ALTO","MEDIO")),"") ->  | L11: Medio | M11: =I1090 -> 1
A12: ='Matriz Nº1 Identificación'!A12 -> 1. 3 | B12: =IF('Matriz Nº1 Identificación'!B12<>"",'Matriz Nº1 Identificación'!F12,"") ->  | E12: =IFERROR(IF((VLOOKUP(C12,'Tabla 2-3-4-5'!$C$11:$D$13,2,FALSE)*(VLOOKUP('Matriz Nº2 Análisis'!D12,'Tabla 2-3-4-5'!$C$11:$D$13,2,FALSE)))<3,"BAJO",IF((VLOOKUP(C12,'Tabla 2-3-4-5'!$C$11:$D$13,2,FALSE)*(VLOOKUP('Matriz Nº2 Análisis'!D12,'Tabla 2-3-4-5'!$C$11:$D$13,2,FALSE)))>5,"ALTO","MEDIO")),"") ->  | F12: =IF(B12<>"",'Matriz Nº1 Identificación'!E12,"") ->  | I12: =IFERROR(IF((VLOOKUP(G12,'Tabla 2-3-4-5'!$C$11:$D$13,2,FALSE)*(VLOOKUP('Matriz Nº2 Análisis'!H12,'Tabla 2-3-4-5'!$C$11:$D$13,2,FALSE)))<3,"BAJO",IF((VLOOKUP(G12,'Tabla 2-3-4-5'!$C$11:$D$13,2,FALSE)*(VLOOKUP('Matriz Nº2 Análisis'!H12,'Tabla 2-3-4-5'!$C$11:$D$13,2,FALSE)))>5,"ALTO","MEDIO")),"") ->  | L12: Bajo | M12: =I1091 -> 29
A13: ='Matriz Nº1 Identificación'!A13 -> 1. 4 | B13: =IF('Matriz Nº1 Identificación'!B13<>"",'Matriz Nº1 Identificación'!F13,"") ->  | E13: =IFERROR(IF((VLOOKUP(C13,'Tabla 2-3-4-5'!$C$11:$D$13,2,FALSE)*(VLOOKUP('Matriz Nº2 Análisis'!D13,'Tabla 2-3-4-5'!$C$11:$D$13,2,FALSE)))<3,"BAJO",IF((VLOOKUP(C13,'Tabla 2-3-4-5'!$C$11:$D$13,2,FALSE)*(VLOOKUP('Matriz Nº2 Análisis'!D13,'Tabla 2-3-4-5'!$C$11:$D$13,2,FALSE)))>5,"ALTO","MEDIO")),"") ->  | F13: =IF(B13<>"",'Matriz Nº1 Identificación'!E13,"") ->  | I13: =IFERROR(IF((VLOOKUP(G13,'Tabla 2-3-4-5'!$C$11:$D$13,2,FALSE)*(VLOOKUP('Matriz Nº2 Análisis'!H13,'Tabla 2-3-4-5'!$C$11:$D$13,2,FALSE)))<3,"BAJO",IF((VLOOKUP(G13,'Tabla 2-3-4-5'!$C$11:$D$13,2,FALSE)*(VLOOKUP('Matriz Nº2 Análisis'!H13,'Tabla 2-3-4-5'!$C$11:$D$13,2,FALSE)))>5,"ALTO","MEDIO")),"") ->  | L13: Total Riesgos: | M13: =SUM(M10:M12) -> 31
A14: ='Matriz Nº1 Identificación'!A14 -> 1. 5 | B14: =IF('Matriz Nº1 Identificación'!B14<>"",'Matriz Nº1 Identificación'!F14,"") ->  | E14: =IFERROR(IF((VLOOKUP(C14,'Tabla 2-3-4-5'!$C$11:$D$13,2,FALSE)*(VLOOKUP('Matriz Nº2 Análisis'!D14,'Tabla 2-3-4-5'!$C$11:$D$13,2,FALSE)))<3,"BAJO",IF((VLOOKUP(C14,'Tabla 2-3-4-5'!$C$11:$D$13,2,FALSE)*(VLOOKUP('Matriz Nº2 Análisis'!D14,'Tabla 2-3-4-5'!$C$11:$D$13,2,FALSE)))>5,"ALTO","MEDIO")),"") ->  | F14: =IF(B14<>"",'Matriz Nº1 Identificación'!E14,"") ->  | I14: =IFERROR(IF((VLOOKUP(G14,'Tabla 2-3-4-5'!$C$11:$D$13,2,FALSE)*(VLOOKUP('Matriz Nº2 Análisis'!H14,'Tabla 2-3-4-5'!$C$11:$D$13,2,FALSE)))<3,"BAJO",IF((VLOOKUP(G14,'Tabla 2-3-4-5'!$C$11:$D$13,2,FALSE)*(VLOOKUP('Matriz Nº2 Análisis'!H14,'Tabla 2-3-4-5'!$C$11:$D$13,2,FALSE)))>5,"ALTO","MEDIO")),"") ->  | L14: Comprobación con Matriz 1: | M14: =M13-'Matriz Nº1 Identificación'!M11 -> 30
A15: ='Matriz Nº1 Identificación'!A15 -> 1. 6 | B15: =IF('Matriz Nº1 Identificación'!B15<>"",'Matriz Nº1 Identificación'!F15,"") ->  | E15: =IFERROR(IF((VLOOKUP(C15,'Tabla 2-3-4-5'!$C$11:$D$13,2,FALSE)*(VLOOKUP('Matriz Nº2 Análisis'!D15,'Tabla 2-3-4-5'!$C$11:$D$13,2,FALSE)))<3,"BAJO",IF((VLOOKUP(C15,'Tabla 2-3-4-5'!$C$11:$D$13,2,FALSE)*(VLOOKUP('Matriz Nº2 Análisis'!D15,'Tabla 2-3-4-5'!$C$11:$D$13,2,FALSE)))>5,"ALTO","MEDIO")),"") ->  | F15: =IF(B15<>"",'Matriz Nº1 Identificación'!E15,"") ->  | I15: =IFERROR(IF((VLOOKUP(G15,'Tabla 2-3-4-5'!$C$11:$D$13,2,FALSE)*(VLOOKUP('Matriz Nº2 Análisis'!H15,'Tabla 2-3-4-5'!$C$11:$D$13,2,FALSE)))<3,"BAJO",IF((VLOOKUP(G15,'Tabla 2-3-4-5'!$C$11:$D$13,2,FALSE)*(VLOOKUP('Matriz Nº2 Análisis'!H15,'Tabla 2-3-4-5'!$C$11:$D$13,2,FALSE)))>5,"ALTO","MEDIO")),"") -> 
A16: ='Matriz Nº1 Identificación'!A16 -> 1. 7 | B16: =IF('Matriz Nº1 Identificación'!B16<>"",'Matriz Nº1 Identificación'!F16,"") ->  | E16: =IFERROR(IF((VLOOKUP(C16,'Tabla 2-3-4-5'!$C$11:$D$13,2,FALSE)*(VLOOKUP('Matriz Nº2 Análisis'!D16,'Tabla 2-3-4-5'!$C$11:$D$13,2,FALSE)))<3,"BAJO",IF((VLOOKUP(C16,'Tabla 2-3-4-5'!$C$11:$D$13,2,FALSE)*(VLOOKUP('Matriz Nº2 Análisis'!D16,'Tabla 2-3-4-5'!$C$11:$D$13,2,FALSE)))>5,"ALTO","MEDIO")),"") ->  | F16: =IF(B16<>"",'Matriz Nº1 Identificación'!E16,"") ->  | I16: =IFERROR(IF((VLOOKUP(G16,'Tabla 2-3-4-5'!$C$11:$D$13,2,FALSE)*(VLOOKUP('Matriz Nº2 Análisis'!H16,'Tabla 2-3-4-5'!$C$11:$D$13,2,FALSE)))<3,"BAJO",IF((VLOOKUP(G16,'Tabla 2-3-4-5'!$C$11:$D$13,2,FALSE)*(VLOOKUP('Matriz Nº2 Análisis'!H16,'Tabla 2-3-4-5'!$C$11:$D$13,2,FALSE)))>5,"ALTO","MEDIO")),"") -> 
A17: ='Matriz Nº1 Identificación'!A17 -> Objetivo Estratégico: | B17: =+'Matriz Nº1 Identificación'!B17:H17 -> 01) Transformar la Imprenta Nacional en un plazo de cuatro años, mediante aplicación de cambios en la normativa e innovación de los productos y servicios que ofrece, para que estén acordes con las tendencias del mercado y con prácticas ambientalmente sostenibles.
A18: ='Matriz Nº1 Identificación'!A18 -> Objetivo táctico | B18: =+'Matriz Nº1 Identificación'!B18:H18 -> 2. Cumplimiento del derecho de circulación.
A19: ='Matriz Nº1 Identificación'!A19 -> 2. 1 | B19: =IF('Matriz Nº1 Identificación'!B19<>"",'Matriz Nº1 Identificación'!F19,"") ->  | C19: MEDIA | D19: MEDIA | E19: =IFERROR(IF((VLOOKUP(C19,'Tabla 2-3-4-5'!$C$11:$D$13,2,FALSE)*(VLOOKUP('Matriz Nº2 Análisis'!D19,'Tabla 2-3-4-5'!$C$11:$D$13,2,FALSE)))<3,"BAJO",IF((VLOOKUP(C19,'Tabla 2-3-4-5'!$C$11:$D$13,2,FALSE)*(VLOOKUP('Matriz Nº2 Análisis'!D19,'Tabla 2-3-4-5'!$C$11:$D$13,2,FALSE)))>5,"ALTO","MEDIO")),"") -> MEDIO | F19: =IF(B19<>"",'Matriz Nº1 Identificación'!E19,"") ->  | G19: BAJA | H19: MEDIA | I19: =IFERROR(IF((VLOOKUP(G19,'Tabla 2-3-4-5'!$C$11:$D$13,2,FALSE)*(VLOOKUP('Matriz Nº2 Análisis'!H19,'Tabla 2-3-4-5'!$C$11:$D$13,2,FALSE)))<3,"BAJO",IF((VLOOKUP(G19,'Tabla 2-3-4-5'!$C$11:$D$13,2,FALSE)*(VLOOKUP('Matriz Nº2 Análisis'!H19,'Tabla 2-3-4-5'!$C$11:$D$13,2,FALSE)))>5,"ALTO","MEDIO")),"") -> BAJO
A20: ='Matriz Nº1 Identificación'!A20 -> 2. 2 | B20: =IF('Matriz Nº1 Identificación'!B20<>"",'Matriz Nº1 Identificación'!F20,"") ->  | E20: =IFERROR(IF((VLOOKUP(C20,'Tabla 2-3-4-5'!$C$11:$D$13,2,FALSE)*(VLOOKUP('Matriz Nº2 Análisis'!D20,'Tabla 2-3-4-5'!$C$11:$D$13,2,FALSE)))<3,"BAJO",IF((VLOOKUP(C20,'Tabla 2-3-4-5'!$C$11:$D$13,2,FALSE)*(VLOOKUP('Matriz Nº2 Análisis'!D20,'Tabla 2-3-4-5'!$C$11:$D$13,2,FALSE)))>5,"ALTO","MEDIO")),"") ->  | F20: =IF(B20<>"",'Matriz Nº1 Identificación'!E20,"") ->  | I20: =IFERROR(IF((VLOOKUP(G20,'Tabla 2-3-4-5'!$C$11:$D$13,2,FALSE)*(VLOOKUP('Matriz Nº2 Análisis'!H20,'Tabla 2-3-4-5'!$C$11:$D$13,2,FALSE)))<3,"BAJO",IF((VLOOKUP(G20,'Tabla 2-3-4-5'!$C$11:$D$13,2,FALSE)*(VLOOKUP('Matriz Nº2 Análisis'!H20,'Tabla 2-3-4-5'!$C$11:$D$13,2,FALSE)))>5,"ALTO","MEDIO")),"") -> 
A21: ='Matriz Nº1 Identificación'!A21 -> 2. 3 | B21: =IF('Matriz Nº1 Identificación'!B21<>"",'Matriz Nº1 Identificación'!F21,"") ->  | E21: =IFERROR(IF((VLOOKUP(C21,'Tabla 2-3-4-5'!$C$11:$D$13,2,FALSE)*(VLOOKUP('Matriz Nº2 Análisis'!D21,'Tabla 2-3-4-5'!$C$11:$D$13,2,FALSE)))<3,"BAJO",IF((VLOOKUP(C21,'Tabla 2-3-4-5'!$C$11:$D$13,2,FALSE)*(VLOOKUP('Matriz Nº2 Análisis'!D21,'Tabla 2-3-4-5'!$C$11:$D$13,2,FALSE)))>5,"ALTO","MEDIO")),"") ->  | F21: =IF(B21<>"",'Matriz Nº1 Identificación'!E21,"") ->  | I21: =IFERROR(IF((VLOOKUP(G21,'Tabla 2-3-4-5'!$C$11:$D$13,2,FALSE)*(VLOOKUP('Matriz Nº2 Análisis'!H21,'Tabla 2-3-4-5'!$C$11:$D$13,2,FALSE)))<3,"BAJO",IF((VLOOKUP(G21,'Tabla 2-3-4-5'!$C$11:$D$13,2,FALSE)*(VLOOKUP('Matriz Nº2 Análisis'!H21,'Tabla 2-3-4-5'!$C$11:$D$13,2,FALSE)))>5,"ALTO","MEDIO")),"") -> 
A22: ='Matriz Nº1 Identificación'!A22 -> 2. 4 | B22: =IF('Matriz Nº1 Identificación'!B22<>"",'Matriz Nº1 Identificación'!F22,"") ->  | E22: =IFERROR(IF((VLOOKUP(C22,'Tabla 2-3-4-5'!$C$11:$D$13,2,FALSE)*(VLOOKUP('Matriz Nº2 Análisis'!D22,'Tabla 2-3-4-5'!$C$11:$D$13,2,FALSE)))<3,"BAJO",IF((VLOOKUP(C22,'Tabla 2-3-4-5'!$C$11:$D$13,2,FALSE)*(VLOOKUP('Matriz Nº2 Análisis'!D22,'Tabla 2-3-4-5'!$C$11:$D$13,2,FALSE)))>5,"ALTO","MEDIO")),"") ->  | F22: =IF(B22<>"",'Matriz Nº1 Identificación'!E22,"") ->  | I22: =IFERROR(IF((VLOOKUP(G22,'Tabla 2-3-4-5'!$C$11:$D$13,2,FALSE)*(VLOOKUP('Matriz Nº2 Análisis'!H22,'Tabla 2-3-4-5'!$C$11:$D$13,2,FALSE)))<3,"BAJO",IF((VLOOKUP(G22,'Tabla 2-3-4-5'!$C$11:$D$13,2,FALSE)*(VLOOKUP('Matriz Nº2 Análisis'!H22,'Tabla 2-3-4-5'!$C$11:$D$13,2,FALSE)))>5,"ALTO","MEDIO")),"") -> 
A23: ='Matriz Nº1 Identificación'!A23 -> 2. 5 | B23: =IF('Matriz Nº1 Identificación'!B23<>"",'Matriz Nº1 Identificación'!F23,"") ->  | E23: =IFERROR(IF((VLOOKUP(C23,'Tabla 2-3-4-5'!$C$11:$D$13,2,FALSE)*(VLOOKUP('Matriz Nº2 Análisis'!D23,'Tabla 2-3-4-5'!$C$11:$D$13,2,FALSE)))<3,"BAJO",IF((VLOOKUP(C23,'Tabla 2-3-4-5'!$C$11:$D$13,2,FALSE)*(VLOOKUP('Matriz Nº2 Análisis'!D23,'Tabla 2-3-4-5'!$C$11:$D$13,2,FALSE)))>5,"ALTO","MEDIO")),"") ->  | F23: =IF(B23<>"",'Matriz Nº1 Identificación'!E23,"") ->  | I23: =IFERROR(IF((VLOOKUP(G23,'Tabla 2-3-4-5'!$C$11:$D$13,2,FALSE)*(VLOOKUP('Matriz Nº2 Análisis'!H23,'Tabla 2-3-4-5'!$C$11:$D$13,2,FALSE)))<3,"BAJO",IF((VLOOKUP(G23,'Tabla 2-3-4-5'!$C$11:$D$13,2,FALSE)*(VLOOKUP('Matriz Nº2 Análisis'!H23,'Tabla 2-3-4-5'!$C$11:$D$13,2,FALSE)))>5,"ALTO","MEDIO")),"") -> 
A24: ='Matriz Nº1 Identificación'!A24 -> 2. 6 | B24: =IF('Matriz Nº1 Identificación'!B24<>"",'Matriz Nº1 Identificación'!F24,"") ->  | E24: =IFERROR(IF((VLOOKUP(C24,'Tabla 2-3-4-5'!$C$11:$D$13,2,FALSE)*(VLOOKUP('Matriz Nº2 Análisis'!D24,'Tabla 2-3-4-5'!$C$11:$D$13,2,FALSE)))<3,"BAJO",IF((VLOOKUP(C24,'Tabla 2-3-4-5'!$C$11:$D$13,2,FALSE)*(VLOOKUP('Matriz Nº2 Análisis'!D24,'Tabla 2-3-4-5'!$C$11:$D$13,2,FALSE)))>5,"ALTO","MEDIO")),"") ->  | F24: =IF(B24<>"",'Matriz Nº1 Identificación'!E24,"") ->  | I24: =IFERROR(IF((VLOOKUP(G24,'Tabla 2-3-4-5'!$C$11:$D$13,2,FALSE)*(VLOOKUP('Matriz Nº2 Análisis'!H24,'Tabla 2-3-4-5'!$C$11:$D$13,2,FALSE)))<3,"BAJO",IF((VLOOKUP(G24,'Tabla 2-3-4-5'!$C$11:$D$13,2,FALSE)*(VLOOKUP('Matriz Nº2 Análisis'!H24,'Tabla 2-3-4-5'!$C$11:$D$13,2,FALSE)))>5,"ALTO","MEDIO")),"") -> 
A25: ='Matriz Nº1 Identificación'!A25 -> 2. 7 | B25: =IF('Matriz Nº1 Identificación'!B25<>"",'Matriz Nº1 Identificación'!F25,"") ->  | E25: =IFERROR(IF((VLOOKUP(C25,'Tabla 2-3-4-5'!$C$11:$D$13,2,FALSE)*(VLOOKUP('Matriz Nº2 Análisis'!D25,'Tabla 2-3-4-5'!$C$11:$D$13,2,FALSE)))<3,"BAJO",IF((VLOOKUP(C25,'Tabla 2-3-4-5'!$C$11:$D$13,2,FALSE)*(VLOOKUP('Matriz Nº2 Análisis'!D25,'Tabla 2-3-4-5'!$C$11:$D$13,2,FALSE)))>5,"ALTO","MEDIO")),"") ->  | F25: =IF(B25<>"",'Matriz Nº1 Identificación'!E25,"") ->  | I25: =IFERROR(IF((VLOOKUP(G25,'Tabla 2-3-4-5'!$C$11:$D$13,2,FALSE)*(VLOOKUP('Matriz Nº2 Análisis'!H25,'Tabla 2-3-4-5'!$C$11:$D$13,2,FALSE)))<3,"BAJO",IF((VLOOKUP(G25,'Tabla 2-3-4-5'!$C$11:$D$13,2,FALSE)*(VLOOKUP('Matriz Nº2 Análisis'!H25,'Tabla 2-3-4-5'!$C$11:$D$13,2,FALSE)))>5,"ALTO","MEDIO")),"") -> 
A26: ='Matriz Nº1 Identificación'!A26 -> Objetivo Estratégico: | B26: =+'Matriz Nº1 Identificación'!B26:H26 -> 01) Transformar la Imprenta Nacional en un plazo de cuatro años, mediante aplicación de cambios en la normativa e innovación de los productos y servicios que ofrece, para que estén acordes con las tendencias del mercado y con prácticas ambientalmente sostenibles.
A27: ='Matriz Nº1 Identificación'!A27 -> Objetivo táctico | B27: =+'Matriz Nº1 Identificación'!B27:H27 -> 3. Garantizar el convivio cultural de los funcionarios de la Imprenta Nacional
A28: ='Matriz Nº1 Identificación'!A28 -> 3. 1 | B28: =IF('Matriz Nº1 Identificación'!B28<>"",'Matriz Nº1 Identificación'!F28,"") ->  | C28: ALTA | D28: MEDIA | E28: =IFERROR(IF((VLOOKUP(C28,'Tabla 2-3-4-5'!$C$11:$D$13,2,FALSE)*(VLOOKUP('Matriz Nº2 Análisis'!D28,'Tabla 2-3-4-5'!$C$11:$D$13,2,FALSE)))<3,"BAJO",IF((VLOOKUP(C28,'Tabla 2-3-4-5'!$C$11:$D$13,2,FALSE)*(VLOOKUP('Matriz Nº2 Análisis'!D28,'Tabla 2-3-4-5'!$C$11:$D$13,2,FALSE)))>5,"ALTO","MEDIO")),"") -> ALTO | F28: =IF(B28<>"",'Matriz Nº1 Identificación'!E28,"") ->  | G28: BAJA | H28: MEDIA | I28: =IFERROR(IF((VLOOKUP(G28,'Tabla 2-3-4-5'!$C$11:$D$13,2,FALSE)*(VLOOKUP('Matriz Nº2 Análisis'!H28,'Tabla 2-3-4-5'!$C$11:$D$13,2,FALSE)))<3,"BAJO",IF((VLOOKUP(G28,'Tabla 2-3-4-5'!$C$11:$D$13,2,FALSE)*(VLOOKUP('Matriz Nº2 Análisis'!H28,'Tabla 2-3-4-5'!$C$11:$D$13,2,FALSE)))>5,"ALTO","MEDIO")),"") -> BAJO
A29: ='Matriz Nº1 Identificación'!A29 -> 3. 2 | B29: =IF('Matriz Nº1 Identificación'!B29<>"",'Matriz Nº1 Identificación'!F29,"") ->  | E29: =IFERROR(IF((VLOOKUP(C29,'Tabla 2-3-4-5'!$C$11:$D$13,2,FALSE)*(VLOOKUP('Matriz Nº2 Análisis'!D29,'Tabla 2-3-4-5'!$C$11:$D$13,2,FALSE)))<3,"BAJO",IF((VLOOKUP(C29,'Tabla 2-3-4-5'!$C$11:$D$13,2,FALSE)*(VLOOKUP('Matriz Nº2 Análisis'!D29,'Tabla 2-3-4-5'!$C$11:$D$13,2,FALSE)))>5,"ALTO","MEDIO")),"") ->  | F29: =IF(B29<>"",'Matriz Nº1 Identificación'!E29,"") ->  | I29: =IFERROR(IF((VLOOKUP(G29,'Tabla 2-3-4-5'!$C$11:$D$13,2,FALSE)*(VLOOKUP('Matriz Nº2 Análisis'!H29,'Tabla 2-3-4-5'!$C$11:$D$13,2,FALSE)))<3,"BAJO",IF((VLOOKUP(G29,'Tabla 2-3-4-5'!$C$11:$D$13,2,FALSE)*(VLOOKUP('Matriz Nº2 Análisis'!H29,'Tabla 2-3-4-5'!$C$11:$D$13,2,FALSE)))>5,"ALTO","MEDIO")),"") -> 
A30: ='Matriz Nº1 Identificación'!A30 -> 3. 3 | B30: =IF('Matriz Nº1 Identificación'!B30<>"",'Matriz Nº1 Identificación'!F30,"") ->  | E30: =IFERROR(IF((VLOOKUP(C30,'Tabla 2-3-4-5'!$C$11:$D$13,2,FALSE)*(VLOOKUP('Matriz Nº2 Análisis'!D30,'Tabla 2-3-4-5'!$C$11:$D$13,2,FALSE)))<3,"BAJO",IF((VLOOKUP(C30,'Tabla 2-3-4-5'!$C$11:$D$13,2,FALSE)*(VLOOKUP('Matriz Nº2 Análisis'!D30,'Tabla 2-3-4-5'!$C$11:$D$13,2,FALSE)))>5,"ALTO","MEDIO")),"") ->  | F30: =IF(B30<>"",'Matriz Nº1 Identificación'!E30,"") ->  | I30: =IFERROR(IF((VLOOKUP(G30,'Tabla 2-3-4-5'!$C$11:$D$13,2,FALSE)*(VLOOKUP('Matriz Nº2 Análisis'!H30,'Tabla 2-3-4-5'!$C$11:$D$13,2,FALSE)))<3,"BAJO",IF((VLOOKUP(G30,'Tabla 2-3-4-5'!$C$11:$D$13,2,FALSE)*(VLOOKUP('Matriz Nº2 Análisis'!H30,'Tabla 2-3-4-5'!$C$11:$D$13,2,FALSE)))>5,"ALTO","MEDIO")),"") -> 
A31: ='Matriz Nº1 Identificación'!A31 -> 3. 4 | B31: =IF('Matriz Nº1 Identificación'!B31<>"",'Matriz Nº1 Identificación'!F31,"") ->  | E31: =IFERROR(IF((VLOOKUP(C31,'Tabla 2-3-4-5'!$C$11:$D$13,2,FALSE)*(VLOOKUP('Matriz Nº2 Análisis'!D31,'Tabla 2-3-4-5'!$C$11:$D$13,2,FALSE)))<3,"BAJO",IF((VLOOKUP(C31,'Tabla 2-3-4-5'!$C$11:$D$13,2,FALSE)*(VLOOKUP('Matriz Nº2 Análisis'!D31,'Tabla 2-3-4-5'!$C$11:$D$13,2,FALSE)))>5,"ALTO","MEDIO")),"") ->  | F31: =IF(B31<>"",'Matriz Nº1 Identificación'!E31,"") ->  | I31: =IFERROR(IF((VLOOKUP(G31,'Tabla 2-3-4-5'!$C$11:$D$13,2,FALSE)*(VLOOKUP('Matriz Nº2 Análisis'!H31,'Tabla 2-3-4-5'!$C$11:$D$13,2,FALSE)))<3,"BAJO",IF((VLOOKUP(G31,'Tabla 2-3-4-5'!$C$11:$D$13,2,FALSE)*(VLOOKUP('Matriz Nº2 Análisis'!H31,'Tabla 2-3-4-5'!$C$11:$D$13,2,FALSE)))>5,"ALTO","MEDIO")),"") -> 
A32: ='Matriz Nº1 Identificación'!A32 -> 3. 5 | B32: =IF('Matriz Nº1 Identificación'!B32<>"",'Matriz Nº1 Identificación'!F32,"") ->  | E32: =IFERROR(IF((VLOOKUP(C32,'Tabla 2-3-4-5'!$C$11:$D$13,2,FALSE)*(VLOOKUP('Matriz Nº2 Análisis'!D32,'Tabla 2-3-4-5'!$C$11:$D$13,2,FALSE)))<3,"BAJO",IF((VLOOKUP(C32,'Tabla 2-3-4-5'!$C$11:$D$13,2,FALSE)*(VLOOKUP('Matriz Nº2 Análisis'!D32,'Tabla 2-3-4-5'!$C$11:$D$13,2,FALSE)))>5,"ALTO","MEDIO")),"") ->  | F32: =IF(B32<>"",'Matriz Nº1 Identificación'!E32,"") ->  | I32: =IFERROR(IF((VLOOKUP(G32,'Tabla 2-3-4-5'!$C$11:$D$13,2,FALSE)*(VLOOKUP('Matriz Nº2 Análisis'!H32,'Tabla 2-3-4-5'!$C$11:$D$13,2,FALSE)))<3,"BAJO",IF((VLOOKUP(G32,'Tabla 2-3-4-5'!$C$11:$D$13,2,FALSE)*(VLOOKUP('Matriz Nº2 Análisis'!H32,'Tabla 2-3-4-5'!$C$11:$D$13,2,FALSE)))>5,"ALTO","MEDIO")),"") -> 
A33: ='Matriz Nº1 Identificación'!A33 -> 3. 6 | B33: =IF('Matriz Nº1 Identificación'!B33<>"",'Matriz Nº1 Identificación'!F33,"") ->  | E33: =IFERROR(IF((VLOOKUP(C33,'Tabla 2-3-4-5'!$C$11:$D$13,2,FALSE)*(VLOOKUP('Matriz Nº2 Análisis'!D33,'Tabla 2-3-4-5'!$C$11:$D$13,2,FALSE)))<3,"BAJO",IF((VLOOKUP(C33,'Tabla 2-3-4-5'!$C$11:$D$13,2,FALSE)*(VLOOKUP('Matriz Nº2 Análisis'!D33,'Tabla 2-3-4-5'!$C$11:$D$13,2,FALSE)))>5,"ALTO","MEDIO")),"") ->  | F33: =IF(B33<>"",'Matriz Nº1 Identificación'!E33,"") ->  | I33: =IFERROR(IF((VLOOKUP(G33,'Tabla 2-3-4-5'!$C$11:$D$13,2,FALSE)*(VLOOKUP('Matriz Nº2 Análisis'!H33,'Tabla 2-3-4-5'!$C$11:$D$13,2,FALSE)))<3,"BAJO",IF((VLOOKUP(G33,'Tabla 2-3-4-5'!$C$11:$D$13,2,FALSE)*(VLOOKUP('Matriz Nº2 Análisis'!H33,'Tabla 2-3-4-5'!$C$11:$D$13,2,FALSE)))>5,"ALTO","MEDIO")),"") -> 
A34: ='Matriz Nº1 Identificación'!A34 -> 3. 7 | B34: =IF('Matriz Nº1 Identificación'!B34<>"",'Matriz Nº1 Identificación'!F34,"") ->  | E34: =IFERROR(IF((VLOOKUP(C34,'Tabla 2-3-4-5'!$C$11:$D$13,2,FALSE)*(VLOOKUP('Matriz Nº2 Análisis'!D34,'Tabla 2-3-4-5'!$C$11:$D$13,2,FALSE)))<3,"BAJO",IF((VLOOKUP(C34,'Tabla 2-3-4-5'!$C$11:$D$13,2,FALSE)*(VLOOKUP('Matriz Nº2 Análisis'!D34,'Tabla 2-3-4-5'!$C$11:$D$13,2,FALSE)))>5,"ALTO","MEDIO")),"") ->  | F34: =IF(B34<>"",'Matriz Nº1 Identificación'!E34,"") ->  | I34: =IFERROR(IF((VLOOKUP(G34,'Tabla 2-3-4-5'!$C$11:$D$13,2,FALSE)*(VLOOKUP('Matriz Nº2 Análisis'!H34,'Tabla 2-3-4-5'!$C$11:$D$13,2,FALSE)))<3,"BAJO",IF((VLOOKUP(G34,'Tabla 2-3-4-5'!$C$11:$D$13,2,FALSE)*(VLOOKUP('Matriz Nº2 Análisis'!H34,'Tabla 2-3-4-5'!$C$11:$D$13,2,FALSE)))>5,"ALTO","MEDIO")),"") -> 
A35: ='Matriz Nº1 Identificación'!A35 -> Objetivo Estratégico: | B35: =+'Matriz Nº1 Identificación'!B35:H35 -> 01) Transformar la Imprenta Nacional en un plazo de cuatro años, mediante aplicación de cambios en la normativa e innovación de los productos y servicios que ofrece, para que estén acordes con las tendencias del mercado y con prácticas ambientalmente sostenibles.
A36: ='Matriz Nº1 Identificación'!A36 -> Objetivo táctico | B36: =+'Matriz Nº1 Identificación'!B36:H36 -> 4. Contar en inventario con distintos papeles y cartulinas para la producción de los impresos comerciales.
A37: ='Matriz Nº1 Identificación'!A37 -> 4. 1 | B37: =IF('Matriz Nº1 Identificación'!B37<>"",'Matriz Nº1 Identificación'!F37,"") ->  | C37: MEDIA | D37: ALTA | E37: =IFERROR(IF((VLOOKUP(C37,'Tabla 2-3-4-5'!$C$11:$D$13,2,FALSE)*(VLOOKUP('Matriz Nº2 Análisis'!D37,'Tabla 2-3-4-5'!$C$11:$D$13,2,FALSE)))<3,"BAJO",IF((VLOOKUP(C37,'Tabla 2-3-4-5'!$C$11:$D$13,2,FALSE)*(VLOOKUP('Matriz Nº2 Análisis'!D37,'Tabla 2-3-4-5'!$C$11:$D$13,2,FALSE)))>5,"ALTO","MEDIO")),"") -> ALTO | F37: =IF(B37<>"",'Matriz Nº1 Identificación'!E37,"") ->  | G37: BAJA | H37: MEDIA | I37: =IFERROR(IF((VLOOKUP(G37,'Tabla 2-3-4-5'!$C$11:$D$13,2,FALSE)*(VLOOKUP('Matriz Nº2 Análisis'!H37,'Tabla 2-3-4-5'!$C$11:$D$13,2,FALSE)))<3,"BAJO",IF((VLOOKUP(G37,'Tabla 2-3-4-5'!$C$11:$D$13,2,FALSE)*(VLOOKUP('Matriz Nº2 Análisis'!H37,'Tabla 2-3-4-5'!$C$11:$D$13,2,FALSE)))>5,"ALTO","MEDIO")),"") -> BAJO
A38: ='Matriz Nº1 Identificación'!A38 -> 4. 2 | B38: =IF('Matriz Nº1 Identificación'!B38<>"",'Matriz Nº1 Identificación'!F38,"") ->  | E38: =IFERROR(IF((VLOOKUP(C38,'Tabla 2-3-4-5'!$C$11:$D$13,2,FALSE)*(VLOOKUP('Matriz Nº2 Análisis'!D38,'Tabla 2-3-4-5'!$C$11:$D$13,2,FALSE)))<3,"BAJO",IF((VLOOKUP(C38,'Tabla 2-3-4-5'!$C$11:$D$13,2,FALSE)*(VLOOKUP('Matriz Nº2 Análisis'!D38,'Tabla 2-3-4-5'!$C$11:$D$13,2,FALSE)))>5,"ALTO","MEDIO")),"") ->  | F38: =IF(B38<>"",'Matriz Nº1 Identificación'!E38,"") ->  | I38: =IFERROR(IF((VLOOKUP(G38,'Tabla 2-3-4-5'!$C$11:$D$13,2,FALSE)*(VLOOKUP('Matriz Nº2 Análisis'!H38,'Tabla 2-3-4-5'!$C$11:$D$13,2,FALSE)))<3,"BAJO",IF((VLOOKUP(G38,'Tabla 2-3-4-5'!$C$11:$D$13,2,FALSE)*(VLOOKUP('Matriz Nº2 Análisis'!H38,'Tabla 2-3-4-5'!$C$11:$D$13,2,FALSE)))>5,"ALTO","MEDIO")),"") -> 
A39: ='Matriz Nº1 Identificación'!A39 -> 4. 3 | B39: =IF('Matriz Nº1 Identificación'!B39<>"",'Matriz Nº1 Identificación'!F39,"") ->  | E39: =IFERROR(IF((VLOOKUP(C39,'Tabla 2-3-4-5'!$C$11:$D$13,2,FALSE)*(VLOOKUP('Matriz Nº2 Análisis'!D39,'Tabla 2-3-4-5'!$C$11:$D$13,2,FALSE)))<3,"BAJO",IF((VLOOKUP(C39,'Tabla 2-3-4-5'!$C$11:$D$13,2,FALSE)*(VLOOKUP('Matriz Nº2 Análisis'!D39,'Tabla 2-3-4-5'!$C$11:$D$13,2,FALSE)))>5,"ALTO","MEDIO")),"") ->  | F39: =IF(B39<>"",'Matriz Nº1 Identificación'!E39,"") ->  | I39: =IFERROR(IF((VLOOKUP(G39,'Tabla 2-3-4-5'!$C$11:$D$13,2,FALSE)*(VLOOKUP('Matriz Nº2 Análisis'!H39,'Tabla 2-3-4-5'!$C$11:$D$13,2,FALSE)))<3,"BAJO",IF((VLOOKUP(G39,'Tabla 2-3-4-5'!$C$11:$D$13,2,FALSE)*(VLOOKUP('Matriz Nº2 Análisis'!H39,'Tabla 2-3-4-5'!$C$11:$D$13,2,FALSE)))>5,"ALTO","MEDIO")),"") -> 
A40: ='Matriz Nº1 Identificación'!A40 -> 4. 4 | B40: =IF('Matriz Nº1 Identificación'!B40<>"",'Matriz Nº1 Identificación'!F40,"") ->  | E40: =IFERROR(IF((VLOOKUP(C40,'Tabla 2-3-4-5'!$C$11:$D$13,2,FALSE)*(VLOOKUP('Matriz Nº2 Análisis'!D40,'Tabla 2-3-4-5'!$C$11:$D$13,2,FALSE)))<3,"BAJO",IF((VLOOKUP(C40,'Tabla 2-3-4-5'!$C$11:$D$13,2,FALSE)*(VLOOKUP('Matriz Nº2 Análisis'!D40,'Tabla 2-3-4-5'!$C$11:$D$13,2,FALSE)))>5,"ALTO","MEDIO")),"") ->  | F40: =IF(B40<>"",'Matriz Nº1 Identificación'!E40,"") ->  | I40: =IFERROR(IF((VLOOKUP(G40,'Tabla 2-3-4-5'!$C$11:$D$13,2,FALSE)*(VLOOKUP('Matriz Nº2 Análisis'!H40,'Tabla 2-3-4-5'!$C$11:$D$13,2,FALSE)))<3,"BAJO",IF((VLOOKUP(G40,'Tabla 2-3-4-5'!$C$11:$D$13,2,FALSE)*(VLOOKUP('Matriz Nº2 Análisis'!H40,'Tabla 2-3-4-5'!$C$11:$D$13,2,FALSE)))>5,"ALTO","MEDIO")),"") -> 
A41: ='Matriz Nº1 Identificación'!A41 -> 4. 5 | B41: =IF('Matriz Nº1 Identificación'!B41<>"",'Matriz Nº1 Identificación'!F41,"") ->  | E41: =IFERROR(IF((VLOOKUP(C41,'Tabla 2-3-4-5'!$C$11:$D$13,2,FALSE)*(VLOOKUP('Matriz Nº2 Análisis'!D41,'Tabla 2-3-4-5'!$C$11:$D$13,2,FALSE)))<3,"BAJO",IF((VLOOKUP(C41,'Tabla 2-3-4-5'!$C$11:$D$13,2,FALSE)*(VLOOKUP('Matriz Nº2 Análisis'!D41,'Tabla 2-3-4-5'!$C$11:$D$13,2,FALSE)))>5,"ALTO","MEDIO")),"") ->  | F41: =IF(B41<>"",'Matriz Nº1 Identificación'!E41,"") ->  | I41: =IFERROR(IF((VLOOKUP(G41,'Tabla 2-3-4-5'!$C$11:$D$13,2,FALSE)*(VLOOKUP('Matriz Nº2 Análisis'!H41,'Tabla 2-3-4-5'!$C$11:$D$13,2,FALSE)))<3,"BAJO",IF((VLOOKUP(G41,'Tabla 2-3-4-5'!$C$11:$D$13,2,FALSE)*(VLOOKUP('Matriz Nº2 Análisis'!H41,'Tabla 2-3-4-5'!$C$11:$D$13,2,FALSE)))>5,"ALTO","MEDIO")),"") -> 
A42: ='Matriz Nº1 Identificación'!A42 -> 4. 6 | B42: =IF('Matriz Nº1 Identificación'!B42<>"",'Matriz Nº1 Identificación'!F42,"") ->  | E42: =IFERROR(IF((VLOOKUP(C42,'Tabla 2-3-4-5'!$C$11:$D$13,2,FALSE)*(VLOOKUP('Matriz Nº2 Análisis'!D42,'Tabla 2-3-4-5'!$C$11:$D$13,2,FALSE)))<3,"BAJO",IF((VLOOKUP(C42,'Tabla 2-3-4-5'!$C$11:$D$13,2,FALSE)*(VLOOKUP('Matriz Nº2 Análisis'!D42,'Tabla 2-3-4-5'!$C$11:$D$13,2,FALSE)))>5,"ALTO","MEDIO")),"") ->  | F42: =IF(B42<>"",'Matriz Nº1 Identificación'!E42,"") ->  | I42: =IFERROR(IF((VLOOKUP(G42,'Tabla 2-3-4-5'!$C$11:$D$13,2,FALSE)*(VLOOKUP('Matriz Nº2 Análisis'!H42,'Tabla 2-3-4-5'!$C$11:$D$13,2,FALSE)))<3,"BAJO",IF((VLOOKUP(G42,'Tabla 2-3-4-5'!$C$11:$D$13,2,FALSE)*(VLOOKUP('Matriz Nº2 Análisis'!H42,'Tabla 2-3-4-5'!$C$11:$D$13,2,FALSE)))>5,"ALTO","MEDIO")),"") -> 
A43: ='Matriz Nº1 Identificación'!A43 -> 4. 7 | B43: =IF('Matriz Nº1 Identificación'!B43<>"",'Matriz Nº1 Identificación'!F43,"") ->  | E43: =IFERROR(IF((VLOOKUP(C43,'Tabla 2-3-4-5'!$C$11:$D$13,2,FALSE)*(VLOOKUP('Matriz Nº2 Análisis'!D43,'Tabla 2-3-4-5'!$C$11:$D$13,2,FALSE)))<3,"BAJO",IF((VLOOKUP(C43,'Tabla 2-3-4-5'!$C$11:$D$13,2,FALSE)*(VLOOKUP('Matriz Nº2 Análisis'!D43,'Tabla 2-3-4-5'!$C$11:$D$13,2,FALSE)))>5,"ALTO","MEDIO")),"") ->  | F43: =IF(B43<>"",'Matriz Nº1 Identificación'!E43,"") ->  | I43: =IFERROR(IF((VLOOKUP(G43,'Tabla 2-3-4-5'!$C$11:$D$13,2,FALSE)*(VLOOKUP('Matriz Nº2 Análisis'!H43,'Tabla 2-3-4-5'!$C$11:$D$13,2,FALSE)))<3,"BAJO",IF((VLOOKUP(G43,'Tabla 2-3-4-5'!$C$11:$D$13,2,FALSE)*(VLOOKUP('Matriz Nº2 Análisis'!H43,'Tabla 2-3-4-5'!$C$11:$D$13,2,FALSE)))>5,"ALTO","MEDIO")),"") -> 
A44: ='Matriz Nº1 Identificación'!A44 -> Objetivo Estratégico: | B44: =+'Matriz Nº1 Identificación'!B44:H44 -> 01) Transformar la Imprenta Nacional en un plazo de cuatro años, mediante aplicación de cambios en la normativa e innovación de los productos y servicios que ofrece, para que estén acordes con las tendencias del mercado y con prácticas ambientalmente sostenibles.
A45: ='Matriz Nº1 Identificación'!A45 -> Objetivo táctico | B45: =+'Matriz Nº1 Identificación'!B45:H45 -> 5. Contar con uniformes para el área productiva
A46: ='Matriz Nº1 Identificación'!A46 -> 5. 1 | B46: =IF('Matriz Nº1 Identificación'!B46<>"",'Matriz Nº1 Identificación'!F46,"") ->  | C46: ALTA | D46: MEDIA | E46: =IFERROR(IF((VLOOKUP(C46,'Tabla 2-3-4-5'!$C$11:$D$13,2,FALSE)*(VLOOKUP('Matriz Nº2 Análisis'!D46,'Tabla 2-3-4-5'!$C$11:$D$13,2,FALSE)))<3,"BAJO",IF((VLOOKUP(C46,'Tabla 2-3-4-5'!$C$11:$D$13,2,FALSE)*(VLOOKUP('Matriz Nº2 Análisis'!D46,'Tabla 2-3-4-5'!$C$11:$D$13,2,FALSE)))>5,"ALTO","MEDIO")),"") -> ALTO | F46: =IF(B46<>"",'Matriz Nº1 Identificación'!E46,"") ->  | G46: BAJA | H46: MEDIA | I46: =IFERROR(IF((VLOOKUP(G46,'Tabla 2-3-4-5'!$C$11:$D$13,2,FALSE)*(VLOOKUP('Matriz Nº2 Análisis'!H46,'Tabla 2-3-4-5'!$C$11:$D$13,2,FALSE)))<3,"BAJO",IF((VLOOKUP(G46,'Tabla 2-3-4-5'!$C$11:$D$13,2,FALSE)*(VLOOKUP('Matriz Nº2 Análisis'!H46,'Tabla 2-3-4-5'!$C$11:$D$13,2,FALSE)))>5,"ALTO","MEDIO")),"") -> BAJO
A47: ='Matriz Nº1 Identificación'!A47 -> 5. 2 | B47: =IF('Matriz Nº1 Identificación'!B47<>"",'Matriz Nº1 Identificación'!F47,"") ->  | E47: =IFERROR(IF((VLOOKUP(C47,'Tabla 2-3-4-5'!$C$11:$D$13,2,FALSE)*(VLOOKUP('Matriz Nº2 Análisis'!D47,'Tabla 2-3-4-5'!$C$11:$D$13,2,FALSE)))<3,"BAJO",IF((VLOOKUP(C47,'Tabla 2-3-4-5'!$C$11:$D$13,2,FALSE)*(VLOOKUP('Matriz Nº2 Análisis'!D47,'Tabla 2-3-4-5'!$C$11:$D$13,2,FALSE)))>5,"ALTO","MEDIO")),"") ->  | F47: =IF(B47<>"",'Matriz Nº1 Identificación'!E47,"") ->  | I47: =IFERROR(IF((VLOOKUP(G47,'Tabla 2-3-4-5'!$C$11:$D$13,2,FALSE)*(VLOOKUP('Matriz Nº2 Análisis'!H47,'Tabla 2-3-4-5'!$C$11:$D$13,2,FALSE)))<3,"BAJO",IF((VLOOKUP(G47,'Tabla 2-3-4-5'!$C$11:$D$13,2,FALSE)*(VLOOKUP('Matriz Nº2 Análisis'!H47,'Tabla 2-3-4-5'!$C$11:$D$13,2,FALSE)))>5,"ALTO","MEDIO")),"") -> 
A48: ='Matriz Nº1 Identificación'!A48 -> 5. 3 | B48: =IF('Matriz Nº1 Identificación'!B48<>"",'Matriz Nº1 Identificación'!F48,"") ->  | E48: =IFERROR(IF((VLOOKUP(C48,'Tabla 2-3-4-5'!$C$11:$D$13,2,FALSE)*(VLOOKUP('Matriz Nº2 Análisis'!D48,'Tabla 2-3-4-5'!$C$11:$D$13,2,FALSE)))<3,"BAJO",IF((VLOOKUP(C48,'Tabla 2-3-4-5'!$C$11:$D$13,2,FALSE)*(VLOOKUP('Matriz Nº2 Análisis'!D48,'Tabla 2-3-4-5'!$C$11:$D$13,2,FALSE)))>5,"ALTO","MEDIO")),"") ->  | F48: =IF(B48<>"",'Matriz Nº1 Identificación'!E48,"") ->  | I48: =IFERROR(IF((VLOOKUP(G48,'Tabla 2-3-4-5'!$C$11:$D$13,2,FALSE)*(VLOOKUP('Matriz Nº2 Análisis'!H48,'Tabla 2-3-4-5'!$C$11:$D$13,2,FALSE)))<3,"BAJO",IF((VLOOKUP(G48,'Tabla 2-3-4-5'!$C$11:$D$13,2,FALSE)*(VLOOKUP('Matriz Nº2 Análisis'!H48,'Tabla 2-3-4-5'!$C$11:$D$13,2,FALSE)))>5,"ALTO","MEDIO")),"") -> 
A49: ='Matriz Nº1 Identificación'!A49 -> 5. 4 | B49: =IF('Matriz Nº1 Identificación'!B49<>"",'Matriz Nº1 Identificación'!F49,"") ->  | E49: =IFERROR(IF((VLOOKUP(C49,'Tabla 2-3-4-5'!$C$11:$D$13,2,FALSE)*(VLOOKUP('Matriz Nº2 Análisis'!D49,'Tabla 2-3-4-5'!$C$11:$D$13,2,FALSE)))<3,"BAJO",IF((VLOOKUP(C49,'Tabla 2-3-4-5'!$C$11:$D$13,2,FALSE)*(VLOOKUP('Matriz Nº2 Análisis'!D49,'Tabla 2-3-4-5'!$C$11:$D$13,2,FALSE)))>5,"ALTO","MEDIO")),"") ->  | F49: =IF(B49<>"",'Matriz Nº1 Identificación'!E49,"") ->  | I49: =IFERROR(IF((VLOOKUP(G49,'Tabla 2-3-4-5'!$C$11:$D$13,2,FALSE)*(VLOOKUP('Matriz Nº2 Análisis'!H49,'Tabla 2-3-4-5'!$C$11:$D$13,2,FALSE)))<3,"BAJO",IF((VLOOKUP(G49,'Tabla 2-3-4-5'!$C$11:$D$13,2,FALSE)*(VLOOKUP('Matriz Nº2 Análisis'!H49,'Tabla 2-3-4-5'!$C$11:$D$13,2,FALSE)))>5,"ALTO","MEDIO")),"") -> 
A50: ='Matriz Nº1 Identificación'!A50 -> 5. 5 | B50: =IF('Matriz Nº1 Identificación'!B50<>"",'Matriz Nº1 Identificación'!F50,"") ->  | E50: =IFERROR(IF((VLOOKUP(C50,'Tabla 2-3-4-5'!$C$11:$D$13,2,FALSE)*(VLOOKUP('Matriz Nº2 Análisis'!D50,'Tabla 2-3-4-5'!$C$11:$D$13,2,FALSE)))<3,"BAJO",IF((VLOOKUP(C50,'Tabla 2-3-4-5'!$C$11:$D$13,2,FALSE)*(VLOOKUP('Matriz Nº2 Análisis'!D50,'Tabla 2-3-4-5'!$C$11:$D$13,2,FALSE)))>5,"ALTO","MEDIO")),"") ->  | F50: =IF(B50<>"",'Matriz Nº1 Identificación'!E50,"") ->  | I50: =IFERROR(IF((VLOOKUP(G50,'Tabla 2-3-4-5'!$C$11:$D$13,2,FALSE)*(VLOOKUP('Matriz Nº2 Análisis'!H50,'Tabla 2-3-4-5'!$C$11:$D$13,2,FALSE)))<3,"BAJO",IF((VLOOKUP(G50,'Tabla 2-3-4-5'!$C$11:$D$13,2,FALSE)*(VLOOKUP('Matriz Nº2 Análisis'!H50,'Tabla 2-3-4-5'!$C$11:$D$13,2,FALSE)))>5,"ALTO","MEDIO")),"") -> 
A51: ='Matriz Nº1 Identificación'!A51 -> 5. 6 | B51: =IF('Matriz Nº1 Identificación'!B51<>"",'Matriz Nº1 Identificación'!F51,"") ->  | E51: =IFERROR(IF((VLOOKUP(C51,'Tabla 2-3-4-5'!$C$11:$D$13,2,FALSE)*(VLOOKUP('Matriz Nº2 Análisis'!D51,'Tabla 2-3-4-5'!$C$11:$D$13,2,FALSE)))<3,"BAJO",IF((VLOOKUP(C51,'Tabla 2-3-4-5'!$C$11:$D$13,2,FALSE)*(VLOOKUP('Matriz Nº2 Análisis'!D51,'Tabla 2-3-4-5'!$C$11:$D$13,2,FALSE)))>5,"ALTO","MEDIO")),"") ->  | F51: =IF(B51<>"",'Matriz Nº1 Identificación'!E51,"") ->  | I51: =IFERROR(IF((VLOOKUP(G51,'Tabla 2-3-4-5'!$C$11:$D$13,2,FALSE)*(VLOOKUP('Matriz Nº2 Análisis'!H51,'Tabla 2-3-4-5'!$C$11:$D$13,2,FALSE)))<3,"BAJO",IF((VLOOKUP(G51,'Tabla 2-3-4-5'!$C$11:$D$13,2,FALSE)*(VLOOKUP('Matriz Nº2 Análisis'!H51,'Tabla 2-3-4-5'!$C$11:$D$13,2,FALSE)))>5,"ALTO","MEDIO")),"") -> 
A52: ='Matriz Nº1 Identificación'!A52 -> 5. 7 | B52: =IF('Matriz Nº1 Identificación'!B52<>"",'Matriz Nº1 Identificación'!F52,"") ->  | E52: =IFERROR(IF((VLOOKUP(C52,'Tabla 2-3-4-5'!$C$11:$D$13,2,FALSE)*(VLOOKUP('Matriz Nº2 Análisis'!D52,'Tabla 2-3-4-5'!$C$11:$D$13,2,FALSE)))<3,"BAJO",IF((VLOOKUP(C52,'Tabla 2-3-4-5'!$C$11:$D$13,2,FALSE)*(VLOOKUP('Matriz Nº2 Análisis'!D52,'Tabla 2-3-4-5'!$C$11:$D$13,2,FALSE)))>5,"ALTO","MEDIO")),"") ->  | F52: =IF(B52<>"",'Matriz Nº1 Identificación'!E52,"") ->  | I52: =IFERROR(IF((VLOOKUP(G52,'Tabla 2-3-4-5'!$C$11:$D$13,2,FALSE)*(VLOOKUP('Matriz Nº2 Análisis'!H52,'Tabla 2-3-4-5'!$C$11:$D$13,2,FALSE)))<3,"BAJO",IF((VLOOKUP(G52,'Tabla 2-3-4-5'!$C$11:$D$13,2,FALSE)*(VLOOKUP('Matriz Nº2 Análisis'!H52,'Tabla 2-3-4-5'!$C$11:$D$13,2,FALSE)))>5,"ALTO","MEDIO")),"") -> 
A53: ='Matriz Nº1 Identificación'!A53 -> Objetivo Estratégico: | B53: =+'Matriz Nº1 Identificación'!B53:H53 -> 01) Transformar la Imprenta Nacional en un plazo de cuatro años, mediante aplicación de cambios en la normativa e innovación de los productos y servicios que ofrece, para que estén acordes con las tendencias del mercado y con prácticas ambientalmente sostenibles.
A54: ='Matriz Nº1 Identificación'!A54 -> Objetivo táctico | B54: =+'Matriz Nº1 Identificación'!B54:H54 -> 6. Servicio de mantenimiento de CTP´s Luscher y Kodak Trenstter
A55: ='Matriz Nº1 Identificación'!A55 -> 6. 1 | B55: =IF('Matriz Nº1 Identificación'!B55<>"",'Matriz Nº1 Identificación'!F55,"") ->  | C55: ALTA | D55: ALTA | E55: =IFERROR(IF((VLOOKUP(C55,'Tabla 2-3-4-5'!$C$11:$D$13,2,FALSE)*(VLOOKUP('Matriz Nº2 Análisis'!D55,'Tabla 2-3-4-5'!$C$11:$D$13,2,FALSE)))<3,"BAJO",IF((VLOOKUP(C55,'Tabla 2-3-4-5'!$C$11:$D$13,2,FALSE)*(VLOOKUP('Matriz Nº2 Análisis'!D55,'Tabla 2-3-4-5'!$C$11:$D$13,2,FALSE)))>5,"ALTO","MEDIO")),"") -> ALTO | F55: =IF(B55<>"",'Matriz Nº1 Identificación'!E55,"") ->  | G55: BAJA | H55: MEDIA | I55: =IFERROR(IF((VLOOKUP(G55,'Tabla 2-3-4-5'!$C$11:$D$13,2,FALSE)*(VLOOKUP('Matriz Nº2 Análisis'!H55,'Tabla 2-3-4-5'!$C$11:$D$13,2,FALSE)))<3,"BAJO",IF((VLOOKUP(G55,'Tabla 2-3-4-5'!$C$11:$D$13,2,FALSE)*(VLOOKUP('Matriz Nº2 Análisis'!H55,'Tabla 2-3-4-5'!$C$11:$D$13,2,FALSE)))>5,"ALTO","MEDIO")),"") -> BAJO
A56: ='Matriz Nº1 Identificación'!A56 -> 6. 2 | B56: =IF('Matriz Nº1 Identificación'!B56<>"",'Matriz Nº1 Identificación'!F56,"") ->  | E56: =IFERROR(IF((VLOOKUP(C56,'Tabla 2-3-4-5'!$C$11:$D$13,2,FALSE)*(VLOOKUP('Matriz Nº2 Análisis'!D56,'Tabla 2-3-4-5'!$C$11:$D$13,2,FALSE)))<3,"BAJO",IF((VLOOKUP(C56,'Tabla 2-3-4-5'!$C$11:$D$13,2,FALSE)*(VLOOKUP('Matriz Nº2 Análisis'!D56,'Tabla 2-3-4-5'!$C$11:$D$13,2,FALSE)))>5,"ALTO","MEDIO")),"") ->  | F56: =IF(B56<>"",'Matriz Nº1 Identificación'!E56,"") ->  | I56: =IFERROR(IF((VLOOKUP(G56,'Tabla 2-3-4-5'!$C$11:$D$13,2,FALSE)*(VLOOKUP('Matriz Nº2 Análisis'!H56,'Tabla 2-3-4-5'!$C$11:$D$13,2,FALSE)))<3,"BAJO",IF((VLOOKUP(G56,'Tabla 2-3-4-5'!$C$11:$D$13,2,FALSE)*(VLOOKUP('Matriz Nº2 Análisis'!H56,'Tabla 2-3-4-5'!$C$11:$D$13,2,FALSE)))>5,"ALTO","MEDIO")),"") -> 
A57: ='Matriz Nº1 Identificación'!A57 -> 6. 3 | B57: =IF('Matriz Nº1 Identificación'!B57<>"",'Matriz Nº1 Identificación'!F57,"") ->  | E57: =IFERROR(IF((VLOOKUP(C57,'Tabla 2-3-4-5'!$C$11:$D$13,2,FALSE)*(VLOOKUP('Matriz Nº2 Análisis'!D57,'Tabla 2-3-4-5'!$C$11:$D$13,2,FALSE)))<3,"BAJO",IF((VLOOKUP(C57,'Tabla 2-3-4-5'!$C$11:$D$13,2,FALSE)*(VLOOKUP('Matriz Nº2 Análisis'!D57,'Tabla 2-3-4-5'!$C$11:$D$13,2,FALSE)))>5,"ALTO","MEDIO")),"") ->  | F57: =IF(B57<>"",'Matriz Nº1 Identificación'!E57,"") ->  | I57: =IFERROR(IF((VLOOKUP(G57,'Tabla 2-3-4-5'!$C$11:$D$13,2,FALSE)*(VLOOKUP('Matriz Nº2 Análisis'!H57,'Tabla 2-3-4-5'!$C$11:$D$13,2,FALSE)))<3,"BAJO",IF((VLOOKUP(G57,'Tabla 2-3-4-5'!$C$11:$D$13,2,FALSE)*(VLOOKUP('Matriz Nº2 Análisis'!H57,'Tabla 2-3-4-5'!$C$11:$D$13,2,FALSE)))>5,"ALTO","MEDIO")),"") -> 
A58: ='Matriz Nº1 Identificación'!A58 -> 6. 4 | B58: =IF('Matriz Nº1 Identificación'!B58<>"",'Matriz Nº1 Identificación'!F58,"") ->  | E58: =IFERROR(IF((VLOOKUP(C58,'Tabla 2-3-4-5'!$C$11:$D$13,2,FALSE)*(VLOOKUP('Matriz Nº2 Análisis'!D58,'Tabla 2-3-4-5'!$C$11:$D$13,2,FALSE)))<3,"BAJO",IF((VLOOKUP(C58,'Tabla 2-3-4-5'!$C$11:$D$13,2,FALSE)*(VLOOKUP('Matriz Nº2 Análisis'!D58,'Tabla 2-3-4-5'!$C$11:$D$13,2,FALSE)))>5,"ALTO","MEDIO")),"") ->  | F58: =IF(B58<>"",'Matriz Nº1 Identificación'!E58,"") ->  | I58: =IFERROR(IF((VLOOKUP(G58,'Tabla 2-3-4-5'!$C$11:$D$13,2,FALSE)*(VLOOKUP('Matriz Nº2 Análisis'!H58,'Tabla 2-3-4-5'!$C$11:$D$13,2,FALSE)))<3,"BAJO",IF((VLOOKUP(G58,'Tabla 2-3-4-5'!$C$11:$D$13,2,FALSE)*(VLOOKUP('Matriz Nº2 Análisis'!H58,'Tabla 2-3-4-5'!$C$11:$D$13,2,FALSE)))>5,"ALTO","MEDIO")),"") -> 
A59: ='Matriz Nº1 Identificación'!A59 -> 6. 5 | B59: =IF('Matriz Nº1 Identificación'!B59<>"",'Matriz Nº1 Identificación'!F59,"") ->  | E59: =IFERROR(IF((VLOOKUP(C59,'Tabla 2-3-4-5'!$C$11:$D$13,2,FALSE)*(VLOOKUP('Matriz Nº2 Análisis'!D59,'Tabla 2-3-4-5'!$C$11:$D$13,2,FALSE)))<3,"BAJO",IF((VLOOKUP(C59,'Tabla 2-3-4-5'!$C$11:$D$13,2,FALSE)*(VLOOKUP('Matriz Nº2 Análisis'!D59,'Tabla 2-3-4-5'!$C$11:$D$13,2,FALSE)))>5,"ALTO","MEDIO")),"") ->  | F59: =IF(B59<>"",'Matriz Nº1 Identificación'!E59,"") ->  | I59: =IFERROR(IF((VLOOKUP(G59,'Tabla 2-3-4-5'!$C$11:$D$13,2,FALSE)*(VLOOKUP('Matriz Nº2 Análisis'!H59,'Tabla 2-3-4-5'!$C$11:$D$13,2,FALSE)))<3,"BAJO",IF((VLOOKUP(G59,'Tabla 2-3-4-5'!$C$11:$D$13,2,FALSE)*(VLOOKUP('Matriz Nº2 Análisis'!H59,'Tabla 2-3-4-5'!$C$11:$D$13,2,FALSE)))>5,"ALTO","MEDIO")),"") -> 
A60: ='Matriz Nº1 Identificación'!A60 -> 6. 6 | B60: =IF('Matriz Nº1 Identificación'!B60<>"",'Matriz Nº1 Identificación'!F60,"") ->  | E60: =IFERROR(IF((VLOOKUP(C60,'Tabla 2-3-4-5'!$C$11:$D$13,2,FALSE)*(VLOOKUP('Matriz Nº2 Análisis'!D60,'Tabla 2-3-4-5'!$C$11:$D$13,2,FALSE)))<3,"BAJO",IF((VLOOKUP(C60,'Tabla 2-3-4-5'!$C$11:$D$13,2,FALSE)*(VLOOKUP('Matriz Nº2 Análisis'!D60,'Tabla 2-3-4-5'!$C$11:$D$13,2,FALSE)))>5,"ALTO","MEDIO")),"") ->  | F60: =IF(B60<>"",'Matriz Nº1 Identificación'!E60,"") ->  | I60: =IFERROR(IF((VLOOKUP(G60,'Tabla 2-3-4-5'!$C$11:$D$13,2,FALSE)*(VLOOKUP('Matriz Nº2 Análisis'!H60,'Tabla 2-3-4-5'!$C$11:$D$13,2,FALSE)))<3,"BAJO",IF((VLOOKUP(G60,'Tabla 2-3-4-5'!$C$11:$D$13,2,FALSE)*(VLOOKUP('Matriz Nº2 Análisis'!H60,'Tabla 2-3-4-5'!$C$11:$D$13,2,FALSE)))>5,"ALTO","MEDIO")),"") -> 
A61: ='Matriz Nº1 Identificación'!A61 -> 6. 7 | B61: =IF('Matriz Nº1 Identificación'!B61<>"",'Matriz Nº1 Identificación'!F61,"") ->  | E61: =IFERROR(IF((VLOOKUP(C61,'Tabla 2-3-4-5'!$C$11:$D$13,2,FALSE)*(VLOOKUP('Matriz Nº2 Análisis'!D61,'Tabla 2-3-4-5'!$C$11:$D$13,2,FALSE)))<3,"BAJO",IF((VLOOKUP(C61,'Tabla 2-3-4-5'!$C$11:$D$13,2,FALSE)*(VLOOKUP('Matriz Nº2 Análisis'!D61,'Tabla 2-3-4-5'!$C$11:$D$13,2,FALSE)))>5,"ALTO","MEDIO")),"") ->  | F61: =IF(B61<>"",'Matriz Nº1 Identificación'!E61,"") ->  | I61: =IFERROR(IF((VLOOKUP(G61,'Tabla 2-3-4-5'!$C$11:$D$13,2,FALSE)*(VLOOKUP('Matriz Nº2 Análisis'!H61,'Tabla 2-3-4-5'!$C$11:$D$13,2,FALSE)))<3,"BAJO",IF((VLOOKUP(G61,'Tabla 2-3-4-5'!$C$11:$D$13,2,FALSE)*(VLOOKUP('Matriz Nº2 Análisis'!H61,'Tabla 2-3-4-5'!$C$11:$D$13,2,FALSE)))>5,"ALTO","MEDIO")),"") -> 
A62: ='Matriz Nº1 Identificación'!A62 -> Objetivo Estratégico: | B62: =+'Matriz Nº1 Identificación'!B62:H62 -> 01) Transformar la Imprenta Nacional en un plazo de cuatro años, mediante aplicación de cambios en la normativa e innovación de los productos y servicios que ofrece, para que estén acordes con las tendencias del mercado y con prácticas ambientalmente sostenibles.
A63: ='Matriz Nº1 Identificación'!A63 -> Objetivo táctico | B63: =+'Matriz Nº1 Identificación'!B63:H63 -> 7. Mantenimiento y reparación de equipo de cómputo y sistemas de información
A64: ='Matriz Nº1 Identificación'!A64 -> 7. 1 | B64: =IF('Matriz Nº1 Identificación'!B64<>"",'Matriz Nº1 Identificación'!F64,"") ->  | C64: MEDIA | D64: MEDIA | E64: =IFERROR(IF((VLOOKUP(C64,'Tabla 2-3-4-5'!$C$11:$D$13,2,FALSE)*(VLOOKUP('Matriz Nº2 Análisis'!D64,'Tabla 2-3-4-5'!$C$11:$D$13,2,FALSE)))<3,"BAJO",IF((VLOOKUP(C64,'Tabla 2-3-4-5'!$C$11:$D$13,2,FALSE)*(VLOOKUP('Matriz Nº2 Análisis'!D64,'Tabla 2-3-4-5'!$C$11:$D$13,2,FALSE)))>5,"ALTO","MEDIO")),"") -> MEDIO | F64: =IF(B64<>"",'Matriz Nº1 Identificación'!E64,"") ->  | G64: BAJA | H64: MEDIA | I64: =IFERROR(IF((VLOOKUP(G64,'Tabla 2-3-4-5'!$C$11:$D$13,2,FALSE)*(VLOOKUP('Matriz Nº2 Análisis'!H64,'Tabla 2-3-4-5'!$C$11:$D$13,2,FALSE)))<3,"BAJO",IF((VLOOKUP(G64,'Tabla 2-3-4-5'!$C$11:$D$13,2,FALSE)*(VLOOKUP('Matriz Nº2 Análisis'!H64,'Tabla 2-3-4-5'!$C$11:$D$13,2,FALSE)))>5,"ALTO","MEDIO")),"") -> BAJO
A65: ='Matriz Nº1 Identificación'!A65 -> 7. 2 | B65: =IF('Matriz Nº1 Identificación'!B65<>"",'Matriz Nº1 Identificación'!F65,"") ->  | E65: =IFERROR(IF((VLOOKUP(C65,'Tabla 2-3-4-5'!$C$11:$D$13,2,FALSE)*(VLOOKUP('Matriz Nº2 Análisis'!D65,'Tabla 2-3-4-5'!$C$11:$D$13,2,FALSE)))<3,"BAJO",IF((VLOOKUP(C65,'Tabla 2-3-4-5'!$C$11:$D$13,2,FALSE)*(VLOOKUP('Matriz Nº2 Análisis'!D65,'Tabla 2-3-4-5'!$C$11:$D$13,2,FALSE)))>5,"ALTO","MEDIO")),"") ->  | F65: =IF(B65<>"",'Matriz Nº1 Identificación'!E65,"") ->  | I65: =IFERROR(IF((VLOOKUP(G65,'Tabla 2-3-4-5'!$C$11:$D$13,2,FALSE)*(VLOOKUP('Matriz Nº2 Análisis'!H65,'Tabla 2-3-4-5'!$C$11:$D$13,2,FALSE)))<3,"BAJO",IF((VLOOKUP(G65,'Tabla 2-3-4-5'!$C$11:$D$13,2,FALSE)*(VLOOKUP('Matriz Nº2 Análisis'!H65,'Tabla 2-3-4-5'!$C$11:$D$13,2,FALSE)))>5,"ALTO","MEDIO")),"") -> 
A66: ='Matriz Nº1 Identificación'!A66 -> 7. 3 | B66: =IF('Matriz Nº1 Identificación'!B66<>"",'Matriz Nº1 Identificación'!F66,"") ->  | E66: =IFERROR(IF((VLOOKUP(C66,'Tabla 2-3-4-5'!$C$11:$D$13,2,FALSE)*(VLOOKUP('Matriz Nº2 Análisis'!D66,'Tabla 2-3-4-5'!$C$11:$D$13,2,FALSE)))<3,"BAJO",IF((VLOOKUP(C66,'Tabla 2-3-4-5'!$C$11:$D$13,2,FALSE)*(VLOOKUP('Matriz Nº2 Análisis'!D66,'Tabla 2-3-4-5'!$C$11:$D$13,2,FALSE)))>5,"ALTO","MEDIO")),"") ->  | F66: =IF(B66<>"",'Matriz Nº1 Identificación'!E66,"") ->  | I66: =IFERROR(IF((VLOOKUP(G66,'Tabla 2-3-4-5'!$C$11:$D$13,2,FALSE)*(VLOOKUP('Matriz Nº2 Análisis'!H66,'Tabla 2-3-4-5'!$C$11:$D$13,2,FALSE)))<3,"BAJO",IF((VLOOKUP(G66,'Tabla 2-3-4-5'!$C$11:$D$13,2,FALSE)*(VLOOKUP('Matriz Nº2 Análisis'!H66,'Tabla 2-3-4-5'!$C$11:$D$13,2,FALSE)))>5,"ALTO","MEDIO")),"") -> 
A67: ='Matriz Nº1 Identificación'!A67 -> 7. 4 | B67: =IF('Matriz Nº1 Identificación'!B67<>"",'Matriz Nº1 Identificación'!F67,"") ->  | E67: =IFERROR(IF((VLOOKUP(C67,'Tabla 2-3-4-5'!$C$11:$D$13,2,FALSE)*(VLOOKUP('Matriz Nº2 Análisis'!D67,'Tabla 2-3-4-5'!$C$11:$D$13,2,FALSE)))<3,"BAJO",IF((VLOOKUP(C67,'Tabla 2-3-4-5'!$C$11:$D$13,2,FALSE)*(VLOOKUP('Matriz Nº2 Análisis'!D67,'Tabla 2-3-4-5'!$C$11:$D$13,2,FALSE)))>5,"ALTO","MEDIO")),"") ->  | F67: =IF(B67<>"",'Matriz Nº1 Identificación'!E67,"") ->  | I67: =IFERROR(IF((VLOOKUP(G67,'Tabla 2-3-4-5'!$C$11:$D$13,2,FALSE)*(VLOOKUP('Matriz Nº2 Análisis'!H67,'Tabla 2-3-4-5'!$C$11:$D$13,2,FALSE)))<3,"BAJO",IF((VLOOKUP(G67,'Tabla 2-3-4-5'!$C$11:$D$13,2,FALSE)*(VLOOKUP('Matriz Nº2 Análisis'!H67,'Tabla 2-3-4-5'!$C$11:$D$13,2,FALSE)))>5,"ALTO","MEDIO")),"") -> 
A68: ='Matriz Nº1 Identificación'!A68 -> 7. 5 | B68: =IF('Matriz Nº1 Identificación'!B68<>"",'Matriz Nº1 Identificación'!F68,"") ->  | E68: =IFERROR(IF((VLOOKUP(C68,'Tabla 2-3-4-5'!$C$11:$D$13,2,FALSE)*(VLOOKUP('Matriz Nº2 Análisis'!D68,'Tabla 2-3-4-5'!$C$11:$D$13,2,FALSE)))<3,"BAJO",IF((VLOOKUP(C68,'Tabla 2-3-4-5'!$C$11:$D$13,2,FALSE)*(VLOOKUP('Matriz Nº2 Análisis'!D68,'Tabla 2-3-4-5'!$C$11:$D$13,2,FALSE)))>5,"ALTO","MEDIO")),"") ->  | F68: =IF(B68<>"",'Matriz Nº1 Identificación'!E68,"") ->  | I68: =IFERROR(IF((VLOOKUP(G68,'Tabla 2-3-4-5'!$C$11:$D$13,2,FALSE)*(VLOOKUP('Matriz Nº2 Análisis'!H68,'Tabla 2-3-4-5'!$C$11:$D$13,2,FALSE)))<3,"BAJO",IF((VLOOKUP(G68,'Tabla 2-3-4-5'!$C$11:$D$13,2,FALSE)*(VLOOKUP('Matriz Nº2 Análisis'!H68,'Tabla 2-3-4-5'!$C$11:$D$13,2,FALSE)))>5,"ALTO","MEDIO")),"") -> 
A69: ='Matriz Nº1 Identificación'!A69 -> 7. 6 | B69: =IF('Matriz Nº1 Identificación'!B69<>"",'Matriz Nº1 Identificación'!F69,"") ->  | E69: =IFERROR(IF((VLOOKUP(C69,'Tabla 2-3-4-5'!$C$11:$D$13,2,FALSE)*(VLOOKUP('Matriz Nº2 Análisis'!D69,'Tabla 2-3-4-5'!$C$11:$D$13,2,FALSE)))<3,"BAJO",IF((VLOOKUP(C69,'Tabla 2-3-4-5'!$C$11:$D$13,2,FALSE)*(VLOOKUP('Matriz Nº2 Análisis'!D69,'Tabla 2-3-4-5'!$C$11:$D$13,2,FALSE)))>5,"ALTO","MEDIO")),"") ->  | F69: =IF(B69<>"",'Matriz Nº1 Identificación'!E69,"") ->  | I69: =IFERROR(IF((VLOOKUP(G69,'Tabla 2-3-4-5'!$C$11:$D$13,2,FALSE)*(VLOOKUP('Matriz Nº2 Análisis'!H69,'Tabla 2-3-4-5'!$C$11:$D$13,2,FALSE)))<3,"BAJO",IF((VLOOKUP(G69,'Tabla 2-3-4-5'!$C$11:$D$13,2,FALSE)*(VLOOKUP('Matriz Nº2 Análisis'!H69,'Tabla 2-3-4-5'!$C$11:$D$13,2,FALSE)))>5,"ALTO","MEDIO")),"") -> 
A70: ='Matriz Nº1 Identificación'!A70 -> 7. 7 | B70: =IF('Matriz Nº1 Identificación'!B70<>"",'Matriz Nº1 Identificación'!F70,"") ->  | E70: =IFERROR(IF((VLOOKUP(C70,'Tabla 2-3-4-5'!$C$11:$D$13,2,FALSE)*(VLOOKUP('Matriz Nº2 Análisis'!D70,'Tabla 2-3-4-5'!$C$11:$D$13,2,FALSE)))<3,"BAJO",IF((VLOOKUP(C70,'Tabla 2-3-4-5'!$C$11:$D$13,2,FALSE)*(VLOOKUP('Matriz Nº2 Análisis'!D70,'Tabla 2-3-4-5'!$C$11:$D$13,2,FALSE)))>5,"ALTO","MEDIO")),"") ->  | F70: =IF(B70<>"",'Matriz Nº1 Identificación'!E70,"") ->  | I70: =IFERROR(IF((VLOOKUP(G70,'Tabla 2-3-4-5'!$C$11:$D$13,2,FALSE)*(VLOOKUP('Matriz Nº2 Análisis'!H70,'Tabla 2-3-4-5'!$C$11:$D$13,2,FALSE)))<3,"BAJO",IF((VLOOKUP(G70,'Tabla 2-3-4-5'!$C$11:$D$13,2,FALSE)*(VLOOKUP('Matriz Nº2 Análisis'!H70,'Tabla 2-3-4-5'!$C$11:$D$13,2,FALSE)))>5,"ALTO","MEDIO")),"") -> 
A71: ='Matriz Nº1 Identificación'!A71 -> Objetivo Estratégico: | B71: =+'Matriz Nº1 Identificación'!B71:H71 -> 01) Transformar la Imprenta Nacional en un plazo de cuatro años, mediante aplicación de cambios en la normativa e innovación de los productos y servicios que ofrece, para que estén acordes con las tendencias del mercado y con prácticas ambientalmente sostenibles.
A72: ='Matriz Nº1 Identificación'!A72 -> Objetivo táctico | B72: =+'Matriz Nº1 Identificación'!B72:H72 -> 8. Producir material de artes gráficas e impresos comerciales que cumplan con los lineamientos de calidad según ordenes de pedido
A73: ='Matriz Nº1 Identificación'!A73 -> 8. 1 | B73: =IF('Matriz Nº1 Identificación'!B73<>"",'Matriz Nº1 Identificación'!F73,"") ->  | C73: ALTA | D73: MEDIA | E73: =IFERROR(IF((VLOOKUP(C73,'Tabla 2-3-4-5'!$C$11:$D$13,2,FALSE)*(VLOOKUP('Matriz Nº2 Análisis'!D73,'Tabla 2-3-4-5'!$C$11:$D$13,2,FALSE)))<3,"BAJO",IF((VLOOKUP(C73,'Tabla 2-3-4-5'!$C$11:$D$13,2,FALSE)*(VLOOKUP('Matriz Nº2 Análisis'!D73,'Tabla 2-3-4-5'!$C$11:$D$13,2,FALSE)))>5,"ALTO","MEDIO")),"") -> ALTO | F73: =IF(B73<>"",'Matriz Nº1 Identificación'!E73,"") ->  | G73: MEDIA | H73: MEDIA | I73: =IFERROR(IF((VLOOKUP(G73,'Tabla 2-3-4-5'!$C$11:$D$13,2,FALSE)*(VLOOKUP('Matriz Nº2 Análisis'!H73,'Tabla 2-3-4-5'!$C$11:$D$13,2,FALSE)))<3,"BAJO",IF((VLOOKUP(G73,'Tabla 2-3-4-5'!$C$11:$D$13,2,FALSE)*(VLOOKUP('Matriz Nº2 Análisis'!H73,'Tabla 2-3-4-5'!$C$11:$D$13,2,FALSE)))>5,"ALTO","MEDIO")),"") -> MEDIO
A74: ='Matriz Nº1 Identificación'!A74 -> 8. 2 | B74: =IF('Matriz Nº1 Identificación'!B74<>"",'Matriz Nº1 Identificación'!F74,"") ->  | E74: =IFERROR(IF((VLOOKUP(C74,'Tabla 2-3-4-5'!$C$11:$D$13,2,FALSE)*(VLOOKUP('Matriz Nº2 Análisis'!D74,'Tabla 2-3-4-5'!$C$11:$D$13,2,FALSE)))<3,"BAJO",IF((VLOOKUP(C74,'Tabla 2-3-4-5'!$C$11:$D$13,2,FALSE)*(VLOOKUP('Matriz Nº2 Análisis'!D74,'Tabla 2-3-4-5'!$C$11:$D$13,2,FALSE)))>5,"ALTO","MEDIO")),"") ->  | F74: =IF(B74<>"",'Matriz Nº1 Identificación'!E74,"") ->  | I74: =IFERROR(IF((VLOOKUP(G74,'Tabla 2-3-4-5'!$C$11:$D$13,2,FALSE)*(VLOOKUP('Matriz Nº2 Análisis'!H74,'Tabla 2-3-4-5'!$C$11:$D$13,2,FALSE)))<3,"BAJO",IF((VLOOKUP(G74,'Tabla 2-3-4-5'!$C$11:$D$13,2,FALSE)*(VLOOKUP('Matriz Nº2 Análisis'!H74,'Tabla 2-3-4-5'!$C$11:$D$13,2,FALSE)))>5,"ALTO","MEDIO")),"") -> 
A75: ='Matriz Nº1 Identificación'!A75 -> 8. 3 | B75: =IF('Matriz Nº1 Identificación'!B75<>"",'Matriz Nº1 Identificación'!F75,"") ->  | E75: =IFERROR(IF((VLOOKUP(C75,'Tabla 2-3-4-5'!$C$11:$D$13,2,FALSE)*(VLOOKUP('Matriz Nº2 Análisis'!D75,'Tabla 2-3-4-5'!$C$11:$D$13,2,FALSE)))<3,"BAJO",IF((VLOOKUP(C75,'Tabla 2-3-4-5'!$C$11:$D$13,2,FALSE)*(VLOOKUP('Matriz Nº2 Análisis'!D75,'Tabla 2-3-4-5'!$C$11:$D$13,2,FALSE)))>5,"ALTO","MEDIO")),"") ->  | F75: =IF(B75<>"",'Matriz Nº1 Identificación'!E75,"") ->  | I75: =IFERROR(IF((VLOOKUP(G75,'Tabla 2-3-4-5'!$C$11:$D$13,2,FALSE)*(VLOOKUP('Matriz Nº2 Análisis'!H75,'Tabla 2-3-4-5'!$C$11:$D$13,2,FALSE)))<3,"BAJO",IF((VLOOKUP(G75,'Tabla 2-3-4-5'!$C$11:$D$13,2,FALSE)*(VLOOKUP('Matriz Nº2 Análisis'!H75,'Tabla 2-3-4-5'!$C$11:$D$13,2,FALSE)))>5,"ALTO","MEDIO")),"") -> 
A76: ='Matriz Nº1 Identificación'!A76 -> 8. 4 | B76: =IF('Matriz Nº1 Identificación'!B76<>"",'Matriz Nº1 Identificación'!F76,"") ->  | E76: =IFERROR(IF((VLOOKUP(C76,'Tabla 2-3-4-5'!$C$11:$D$13,2,FALSE)*(VLOOKUP('Matriz Nº2 Análisis'!D76,'Tabla 2-3-4-5'!$C$11:$D$13,2,FALSE)))<3,"BAJO",IF((VLOOKUP(C76,'Tabla 2-3-4-5'!$C$11:$D$13,2,FALSE)*(VLOOKUP('Matriz Nº2 Análisis'!D76,'Tabla 2-3-4-5'!$C$11:$D$13,2,FALSE)))>5,"ALTO","MEDIO")),"") ->  | F76: =IF(B76<>"",'Matriz Nº1 Identificación'!E76,"") ->  | I76: =IFERROR(IF((VLOOKUP(G76,'Tabla 2-3-4-5'!$C$11:$D$13,2,FALSE)*(VLOOKUP('Matriz Nº2 Análisis'!H76,'Tabla 2-3-4-5'!$C$11:$D$13,2,FALSE)))<3,"BAJO",IF((VLOOKUP(G76,'Tabla 2-3-4-5'!$C$11:$D$13,2,FALSE)*(VLOOKUP('Matriz Nº2 Análisis'!H76,'Tabla 2-3-4-5'!$C$11:$D$13,2,FALSE)))>5,"ALTO","MEDIO")),"") -> 
A77: ='Matriz Nº1 Identificación'!A77 -> 8. 5 | B77: =IF('Matriz Nº1 Identificación'!B77<>"",'Matriz Nº1 Identificación'!F77,"") ->  | E77: =IFERROR(IF((VLOOKUP(C77,'Tabla 2-3-4-5'!$C$11:$D$13,2,FALSE)*(VLOOKUP('Matriz Nº2 Análisis'!D77,'Tabla 2-3-4-5'!$C$11:$D$13,2,FALSE)))<3,"BAJO",IF((VLOOKUP(C77,'Tabla 2-3-4-5'!$C$11:$D$13,2,FALSE)*(VLOOKUP('Matriz Nº2 Análisis'!D77,'Tabla 2-3-4-5'!$C$11:$D$13,2,FALSE)))>5,"ALTO","MEDIO")),"") ->  | F77: =IF(B77<>"",'Matriz Nº1 Identificación'!E77,"") ->  | I77: =IFERROR(IF((VLOOKUP(G77,'Tabla 2-3-4-5'!$C$11:$D$13,2,FALSE)*(VLOOKUP('Matriz Nº2 Análisis'!H77,'Tabla 2-3-4-5'!$C$11:$D$13,2,FALSE)))<3,"BAJO",IF((VLOOKUP(G77,'Tabla 2-3-4-5'!$C$11:$D$13,2,FALSE)*(VLOOKUP('Matriz Nº2 Análisis'!H77,'Tabla 2-3-4-5'!$C$11:$D$13,2,FALSE)))>5,"ALTO","MEDIO")),"") -> 
A78: ='Matriz Nº1 Identificación'!A78 -> 8. 6 | B78: =IF('Matriz Nº1 Identificación'!B78<>"",'Matriz Nº1 Identificación'!F78,"") ->  | E78: =IFERROR(IF((VLOOKUP(C78,'Tabla 2-3-4-5'!$C$11:$D$13,2,FALSE)*(VLOOKUP('Matriz Nº2 Análisis'!D78,'Tabla 2-3-4-5'!$C$11:$D$13,2,FALSE)))<3,"BAJO",IF((VLOOKUP(C78,'Tabla 2-3-4-5'!$C$11:$D$13,2,FALSE)*(VLOOKUP('Matriz Nº2 Análisis'!D78,'Tabla 2-3-4-5'!$C$11:$D$13,2,FALSE)))>5,"ALTO","MEDIO")),"") ->  | F78: =IF(B78<>"",'Matriz Nº1 Identificación'!E78,"") ->  | I78: =IFERROR(IF((VLOOKUP(G78,'Tabla 2-3-4-5'!$C$11:$D$13,2,FALSE)*(VLOOKUP('Matriz Nº2 Análisis'!H78,'Tabla 2-3-4-5'!$C$11:$D$13,2,FALSE)))<3,"BAJO",IF((VLOOKUP(G78,'Tabla 2-3-4-5'!$C$11:$D$13,2,FALSE)*(VLOOKUP('Matriz Nº2 Análisis'!H78,'Tabla 2-3-4-5'!$C$11:$D$13,2,FALSE)))>5,"ALTO","MEDIO")),"") -> 
A79: ='Matriz Nº1 Identificación'!A79 -> 8. 7 | B79: =IF('Matriz Nº1 Identificación'!B79<>"",'Matriz Nº1 Identificación'!F79,"") ->  | E79: =IFERROR(IF((VLOOKUP(C79,'Tabla 2-3-4-5'!$C$11:$D$13,2,FALSE)*(VLOOKUP('Matriz Nº2 Análisis'!D79,'Tabla 2-3-4-5'!$C$11:$D$13,2,FALSE)))<3,"BAJO",IF((VLOOKUP(C79,'Tabla 2-3-4-5'!$C$11:$D$13,2,FALSE)*(VLOOKUP('Matriz Nº2 Análisis'!D79,'Tabla 2-3-4-5'!$C$11:$D$13,2,FALSE)))>5,"ALTO","MEDIO")),"") ->  | F79: =IF(B79<>"",'Matriz Nº1 Identificación'!E79,"") ->  | I79: =IFERROR(IF((VLOOKUP(G79,'Tabla 2-3-4-5'!$C$11:$D$13,2,FALSE)*(VLOOKUP('Matriz Nº2 Análisis'!H79,'Tabla 2-3-4-5'!$C$11:$D$13,2,FALSE)))<3,"BAJO",IF((VLOOKUP(G79,'Tabla 2-3-4-5'!$C$11:$D$13,2,FALSE)*(VLOOKUP('Matriz Nº2 Análisis'!H79,'Tabla 2-3-4-5'!$C$11:$D$13,2,FALSE)))>5,"ALTO","MEDIO")),"") -> 
A80: ='Matriz Nº1 Identificación'!A80 -> Objetivo Estratégico: | B80: =+'Matriz Nº1 Identificación'!B80:H80 -> 03) Realizar gestión de calidad en la Imprenta Nacional mediante la documentación, estandarización y control de los procesos.
A81: ='Matriz Nº1 Identificación'!A81 -> Objetivo táctico | B81: =+'Matriz Nº1 Identificación'!B81:H81 -> 9. Producir material de artes gráficas e impresos comerciales que cumplan con los lineamientos de calidad y conseguir una comunicación eficaz hacia el público.
A82: ='Matriz Nº1 Identificación'!A82 -> 9. 1 | B82: =IF('Matriz Nº1 Identificación'!B82<>"",'Matriz Nº1 Identificación'!F82,"") ->  | C82: ALTA | D82: ALTA | E82: =IFERROR(IF((VLOOKUP(C82,'Tabla 2-3-4-5'!$C$11:$D$13,2,FALSE)*(VLOOKUP('Matriz Nº2 Análisis'!D82,'Tabla 2-3-4-5'!$C$11:$D$13,2,FALSE)))<3,"BAJO",IF((VLOOKUP(C82,'Tabla 2-3-4-5'!$C$11:$D$13,2,FALSE)*(VLOOKUP('Matriz Nº2 Análisis'!D82,'Tabla 2-3-4-5'!$C$11:$D$13,2,FALSE)))>5,"ALTO","MEDIO")),"") -> ALTO | F82: =IF(B82<>"",'Matriz Nº1 Identificación'!E82,"") ->  | G82: BAJA | H82: MEDIA | I82: =IFERROR(IF((VLOOKUP(G82,'Tabla 2-3-4-5'!$C$11:$D$13,2,FALSE)*(VLOOKUP('Matriz Nº2 Análisis'!H82,'Tabla 2-3-4-5'!$C$11:$D$13,2,FALSE)))<3,"BAJO",IF((VLOOKUP(G82,'Tabla 2-3-4-5'!$C$11:$D$13,2,FALSE)*(VLOOKUP('Matriz Nº2 Análisis'!H82,'Tabla 2-3-4-5'!$C$11:$D$13,2,FALSE)))>5,"ALTO","MEDIO")),"") -> BAJO
A83: ='Matriz Nº1 Identificación'!A83 -> 9. 2 | B83: =IF('Matriz Nº1 Identificación'!B83<>"",'Matriz Nº1 Identificación'!F83,"") ->  | E83: =IFERROR(IF((VLOOKUP(C83,'Tabla 2-3-4-5'!$C$11:$D$13,2,FALSE)*(VLOOKUP('Matriz Nº2 Análisis'!D83,'Tabla 2-3-4-5'!$C$11:$D$13,2,FALSE)))<3,"BAJO",IF((VLOOKUP(C83,'Tabla 2-3-4-5'!$C$11:$D$13,2,FALSE)*(VLOOKUP('Matriz Nº2 Análisis'!D83,'Tabla 2-3-4-5'!$C$11:$D$13,2,FALSE)))>5,"ALTO","MEDIO")),"") ->  | F83: =IF(B83<>"",'Matriz Nº1 Identificación'!E83,"") ->  | I83: =IFERROR(IF((VLOOKUP(G83,'Tabla 2-3-4-5'!$C$11:$D$13,2,FALSE)*(VLOOKUP('Matriz Nº2 Análisis'!H83,'Tabla 2-3-4-5'!$C$11:$D$13,2,FALSE)))<3,"BAJO",IF((VLOOKUP(G83,'Tabla 2-3-4-5'!$C$11:$D$13,2,FALSE)*(VLOOKUP('Matriz Nº2 Análisis'!H83,'Tabla 2-3-4-5'!$C$11:$D$13,2,FALSE)))>5,"ALTO","MEDIO")),"") -> 
A84: ='Matriz Nº1 Identificación'!A84 -> 9. 3 | B84: =IF('Matriz Nº1 Identificación'!B84<>"",'Matriz Nº1 Identificación'!F84,"") ->  | E84: =IFERROR(IF((VLOOKUP(C84,'Tabla 2-3-4-5'!$C$11:$D$13,2,FALSE)*(VLOOKUP('Matriz Nº2 Análisis'!D84,'Tabla 2-3-4-5'!$C$11:$D$13,2,FALSE)))<3,"BAJO",IF((VLOOKUP(C84,'Tabla 2-3-4-5'!$C$11:$D$13,2,FALSE)*(VLOOKUP('Matriz Nº2 Análisis'!D84,'Tabla 2-3-4-5'!$C$11:$D$13,2,FALSE)))>5,"ALTO","MEDIO")),"") ->  | F84: =IF(B84<>"",'Matriz Nº1 Identificación'!E84,"") ->  | I84: =IFERROR(IF((VLOOKUP(G84,'Tabla 2-3-4-5'!$C$11:$D$13,2,FALSE)*(VLOOKUP('Matriz Nº2 Análisis'!H84,'Tabla 2-3-4-5'!$C$11:$D$13,2,FALSE)))<3,"BAJO",IF((VLOOKUP(G84,'Tabla 2-3-4-5'!$C$11:$D$13,2,FALSE)*(VLOOKUP('Matriz Nº2 Análisis'!H84,'Tabla 2-3-4-5'!$C$11:$D$13,2,FALSE)))>5,"ALTO","MEDIO")),"") -> 
A85: ='Matriz Nº1 Identificación'!A85 -> 9. 4 | B85: =IF('Matriz Nº1 Identificación'!B85<>"",'Matriz Nº1 Identificación'!F85,"") ->  | E85: =IFERROR(IF((VLOOKUP(C85,'Tabla 2-3-4-5'!$C$11:$D$13,2,FALSE)*(VLOOKUP('Matriz Nº2 Análisis'!D85,'Tabla 2-3-4-5'!$C$11:$D$13,2,FALSE)))<3,"BAJO",IF((VLOOKUP(C85,'Tabla 2-3-4-5'!$C$11:$D$13,2,FALSE)*(VLOOKUP('Matriz Nº2 Análisis'!D85,'Tabla 2-3-4-5'!$C$11:$D$13,2,FALSE)))>5,"ALTO","MEDIO")),"") ->  | F85: =IF(B85<>"",'Matriz Nº1 Identificación'!E85,"") ->  | I85: =IFERROR(IF((VLOOKUP(G85,'Tabla 2-3-4-5'!$C$11:$D$13,2,FALSE)*(VLOOKUP('Matriz Nº2 Análisis'!H85,'Tabla 2-3-4-5'!$C$11:$D$13,2,FALSE)))<3,"BAJO",IF((VLOOKUP(G85,'Tabla 2-3-4-5'!$C$11:$D$13,2,FALSE)*(VLOOKUP('Matriz Nº2 Análisis'!H85,'Tabla 2-3-4-5'!$C$11:$D$13,2,FALSE)))>5,"ALTO","MEDIO")),"") -> 
A86: ='Matriz Nº1 Identificación'!A86 -> 9. 5 | B86: =IF('Matriz Nº1 Identificación'!B86<>"",'Matriz Nº1 Identificación'!F86,"") ->  | E86: =IFERROR(IF((VLOOKUP(C86,'Tabla 2-3-4-5'!$C$11:$D$13,2,FALSE)*(VLOOKUP('Matriz Nº2 Análisis'!D86,'Tabla 2-3-4-5'!$C$11:$D$13,2,FALSE)))<3,"BAJO",IF((VLOOKUP(C86,'Tabla 2-3-4-5'!$C$11:$D$13,2,FALSE)*(VLOOKUP('Matriz Nº2 Análisis'!D86,'Tabla 2-3-4-5'!$C$11:$D$13,2,FALSE)))>5,"ALTO","MEDIO")),"") ->  | F86: =IF(B86<>"",'Matriz Nº1 Identificación'!E86,"") ->  | I86: =IFERROR(IF((VLOOKUP(G86,'Tabla 2-3-4-5'!$C$11:$D$13,2,FALSE)*(VLOOKUP('Matriz Nº2 Análisis'!H86,'Tabla 2-3-4-5'!$C$11:$D$13,2,FALSE)))<3,"BAJO",IF((VLOOKUP(G86,'Tabla 2-3-4-5'!$C$11:$D$13,2,FALSE)*(VLOOKUP('Matriz Nº2 Análisis'!H86,'Tabla 2-3-4-5'!$C$11:$D$13,2,FALSE)))>5,"ALTO","MEDIO")),"") -> 
A87: ='Matriz Nº1 Identificación'!A87 -> 9. 6 | B87: =IF('Matriz Nº1 Identificación'!B87<>"",'Matriz Nº1 Identificación'!F87,"") ->  | E87: =IFERROR(IF((VLOOKUP(C87,'Tabla 2-3-4-5'!$C$11:$D$13,2,FALSE)*(VLOOKUP('Matriz Nº2 Análisis'!D87,'Tabla 2-3-4-5'!$C$11:$D$13,2,FALSE)))<3,"BAJO",IF((VLOOKUP(C87,'Tabla 2-3-4-5'!$C$11:$D$13,2,FALSE)*(VLOOKUP('Matriz Nº2 Análisis'!D87,'Tabla 2-3-4-5'!$C$11:$D$13,2,FALSE)))>5,"ALTO","MEDIO")),"") ->  | F87: =IF(B87<>"",'Matriz Nº1 Identificación'!E87,"") ->  | I87: =IFERROR(IF((VLOOKUP(G87,'Tabla 2-3-4-5'!$C$11:$D$13,2,FALSE)*(VLOOKUP('Matriz Nº2 Análisis'!H87,'Tabla 2-3-4-5'!$C$11:$D$13,2,FALSE)))<3,"BAJO",IF((VLOOKUP(G87,'Tabla 2-3-4-5'!$C$11:$D$13,2,FALSE)*(VLOOKUP('Matriz Nº2 Análisis'!H87,'Tabla 2-3-4-5'!$C$11:$D$13,2,FALSE)))>5,"ALTO","MEDIO")),"") -> 
A88: ='Matriz Nº1 Identificación'!A88 -> 9. 7 | B88: =IF('Matriz Nº1 Identificación'!B88<>"",'Matriz Nº1 Identificación'!F88,"") ->  | E88: =IFERROR(IF((VLOOKUP(C88,'Tabla 2-3-4-5'!$C$11:$D$13,2,FALSE)*(VLOOKUP('Matriz Nº2 Análisis'!D88,'Tabla 2-3-4-5'!$C$11:$D$13,2,FALSE)))<3,"BAJO",IF((VLOOKUP(C88,'Tabla 2-3-4-5'!$C$11:$D$13,2,FALSE)*(VLOOKUP('Matriz Nº2 Análisis'!D88,'Tabla 2-3-4-5'!$C$11:$D$13,2,FALSE)))>5,"ALTO","MEDIO")),"") ->  | F88: =IF(B88<>"",'Matriz Nº1 Identificación'!E88,"") ->  | I88: =IFERROR(IF((VLOOKUP(G88,'Tabla 2-3-4-5'!$C$11:$D$13,2,FALSE)*(VLOOKUP('Matriz Nº2 Análisis'!H88,'Tabla 2-3-4-5'!$C$11:$D$13,2,FALSE)))<3,"BAJO",IF((VLOOKUP(G88,'Tabla 2-3-4-5'!$C$11:$D$13,2,FALSE)*(VLOOKUP('Matriz Nº2 Análisis'!H88,'Tabla 2-3-4-5'!$C$11:$D$13,2,FALSE)))>5,"ALTO","MEDIO")),"") -> 
A89: ='Matriz Nº1 Identificación'!A89 -> Objetivo Estratégico: | B89: =+'Matriz Nº1 Identificación'!B89:H89 -> 01) Transformar la Imprenta Nacional en un plazo de cuatro años, mediante aplicación de cambios en la normativa e innovación de los productos y servicios que ofrece, para que estén acordes con las tendencias del mercado y con prácticas ambientalmente sostenibles.
A90: ='Matriz Nº1 Identificación'!A90 -> Objetivo táctico | B90: =+'Matriz Nº1 Identificación'!B90:H90 -> 10. Producir material de artes gráficas e impresos comerciales que cumplan con los lineamientos de calidad y conseguir una comunicación eficaz hacia el público.
A91: ='Matriz Nº1 Identificación'!A91 -> 10. 1 | B91: =IF('Matriz Nº1 Identificación'!B91<>"",'Matriz Nº1 Identificación'!F91,"") ->  | C91: ALTA | D91: MEDIA | E91: =IFERROR(IF((VLOOKUP(C91,'Tabla 2-3-4-5'!$C$11:$D$13,2,FALSE)*(VLOOKUP('Matriz Nº2 Análisis'!D91,'Tabla 2-3-4-5'!$C$11:$D$13,2,FALSE)))<3,"BAJO",IF((VLOOKUP(C91,'Tabla 2-3-4-5'!$C$11:$D$13,2,FALSE)*(VLOOKUP('Matriz Nº2 Análisis'!D91,'Tabla 2-3-4-5'!$C$11:$D$13,2,FALSE)))>5,"ALTO","MEDIO")),"") -> ALTO | F91: =IF(B91<>"",'Matriz Nº1 Identificación'!E91,"") ->  | G91: BAJA | H91: MEDIA | I91: =IFERROR(IF((VLOOKUP(G91,'Tabla 2-3-4-5'!$C$11:$D$13,2,FALSE)*(VLOOKUP('Matriz Nº2 Análisis'!H91,'Tabla 2-3-4-5'!$C$11:$D$13,2,FALSE)))<3,"BAJO",IF((VLOOKUP(G91,'Tabla 2-3-4-5'!$C$11:$D$13,2,FALSE)*(VLOOKUP('Matriz Nº2 Análisis'!H91,'Tabla 2-3-4-5'!$C$11:$D$13,2,FALSE)))>5,"ALTO","MEDIO")),"") -> BAJO
A92: ='Matriz Nº1 Identificación'!A92 -> 10. 2 | B92: =IF('Matriz Nº1 Identificación'!B92<>"",'Matriz Nº1 Identificación'!F92,"") ->  | E92: =IFERROR(IF((VLOOKUP(C92,'Tabla 2-3-4-5'!$C$11:$D$13,2,FALSE)*(VLOOKUP('Matriz Nº2 Análisis'!D92,'Tabla 2-3-4-5'!$C$11:$D$13,2,FALSE)))<3,"BAJO",IF((VLOOKUP(C92,'Tabla 2-3-4-5'!$C$11:$D$13,2,FALSE)*(VLOOKUP('Matriz Nº2 Análisis'!D92,'Tabla 2-3-4-5'!$C$11:$D$13,2,FALSE)))>5,"ALTO","MEDIO")),"") ->  | F92: =IF(B92<>"",'Matriz Nº1 Identificación'!E92,"") ->  | I92: =IFERROR(IF((VLOOKUP(G92,'Tabla 2-3-4-5'!$C$11:$D$13,2,FALSE)*(VLOOKUP('Matriz Nº2 Análisis'!H92,'Tabla 2-3-4-5'!$C$11:$D$13,2,FALSE)))<3,"BAJO",IF((VLOOKUP(G92,'Tabla 2-3-4-5'!$C$11:$D$13,2,FALSE)*(VLOOKUP('Matriz Nº2 Análisis'!H92,'Tabla 2-3-4-5'!$C$11:$D$13,2,FALSE)))>5,"ALTO","MEDIO")),"") -> 
A93: ='Matriz Nº1 Identificación'!A93 -> 10. 3 | B93: =IF('Matriz Nº1 Identificación'!B93<>"",'Matriz Nº1 Identificación'!F93,"") ->  | E93: =IFERROR(IF((VLOOKUP(C93,'Tabla 2-3-4-5'!$C$11:$D$13,2,FALSE)*(VLOOKUP('Matriz Nº2 Análisis'!D93,'Tabla 2-3-4-5'!$C$11:$D$13,2,FALSE)))<3,"BAJO",IF((VLOOKUP(C93,'Tabla 2-3-4-5'!$C$11:$D$13,2,FALSE)*(VLOOKUP('Matriz Nº2 Análisis'!D93,'Tabla 2-3-4-5'!$C$11:$D$13,2,FALSE)))>5,"ALTO","MEDIO")),"") ->  | F93: =IF(B93<>"",'Matriz Nº1 Identificación'!E93,"") ->  | I93: =IFERROR(IF((VLOOKUP(G93,'Tabla 2-3-4-5'!$C$11:$D$13,2,FALSE)*(VLOOKUP('Matriz Nº2 Análisis'!H93,'Tabla 2-3-4-5'!$C$11:$D$13,2,FALSE)))<3,"BAJO",IF((VLOOKUP(G93,'Tabla 2-3-4-5'!$C$11:$D$13,2,FALSE)*(VLOOKUP('Matriz Nº2 Análisis'!H93,'Tabla 2-3-4-5'!$C$11:$D$13,2,FALSE)))>5,"ALTO","MEDIO")),"") -> 
A94: ='Matriz Nº1 Identificación'!A94 -> 10. 4 | B94: =IF('Matriz Nº1 Identificación'!B94<>"",'Matriz Nº1 Identificación'!F94,"") ->  | E94: =IFERROR(IF((VLOOKUP(C94,'Tabla 2-3-4-5'!$C$11:$D$13,2,FALSE)*(VLOOKUP('Matriz Nº2 Análisis'!D94,'Tabla 2-3-4-5'!$C$11:$D$13,2,FALSE)))<3,"BAJO",IF((VLOOKUP(C94,'Tabla 2-3-4-5'!$C$11:$D$13,2,FALSE)*(VLOOKUP('Matriz Nº2 Análisis'!D94,'Tabla 2-3-4-5'!$C$11:$D$13,2,FALSE)))>5,"ALTO","MEDIO")),"") ->  | F94: =IF(B94<>"",'Matriz Nº1 Identificación'!E94,"") ->  | I94: =IFERROR(IF((VLOOKUP(G94,'Tabla 2-3-4-5'!$C$11:$D$13,2,FALSE)*(VLOOKUP('Matriz Nº2 Análisis'!H94,'Tabla 2-3-4-5'!$C$11:$D$13,2,FALSE)))<3,"BAJO",IF((VLOOKUP(G94,'Tabla 2-3-4-5'!$C$11:$D$13,2,FALSE)*(VLOOKUP('Matriz Nº2 Análisis'!H94,'Tabla 2-3-4-5'!$C$11:$D$13,2,FALSE)))>5,"ALTO","MEDIO")),"") -> 
A95: ='Matriz Nº1 Identificación'!A95 -> 10. 5 | B95: =IF('Matriz Nº1 Identificación'!B95<>"",'Matriz Nº1 Identificación'!F95,"") ->  | E95: =IFERROR(IF((VLOOKUP(C95,'Tabla 2-3-4-5'!$C$11:$D$13,2,FALSE)*(VLOOKUP('Matriz Nº2 Análisis'!D95,'Tabla 2-3-4-5'!$C$11:$D$13,2,FALSE)))<3,"BAJO",IF((VLOOKUP(C95,'Tabla 2-3-4-5'!$C$11:$D$13,2,FALSE)*(VLOOKUP('Matriz Nº2 Análisis'!D95,'Tabla 2-3-4-5'!$C$11:$D$13,2,FALSE)))>5,"ALTO","MEDIO")),"") ->  | F95: =IF(B95<>"",'Matriz Nº1 Identificación'!E95,"") ->  | I95: =IFERROR(IF((VLOOKUP(G95,'Tabla 2-3-4-5'!$C$11:$D$13,2,FALSE)*(VLOOKUP('Matriz Nº2 Análisis'!H95,'Tabla 2-3-4-5'!$C$11:$D$13,2,FALSE)))<3,"BAJO",IF((VLOOKUP(G95,'Tabla 2-3-4-5'!$C$11:$D$13,2,FALSE)*(VLOOKUP('Matriz Nº2 Análisis'!H95,'Tabla 2-3-4-5'!$C$11:$D$13,2,FALSE)))>5,"ALTO","MEDIO")),"") -> 
A96: ='Matriz Nº1 Identificación'!A96 -> 10. 6 | B96: =IF('Matriz Nº1 Identificación'!B96<>"",'Matriz Nº1 Identificación'!F96,"") ->  | E96: =IFERROR(IF((VLOOKUP(C96,'Tabla 2-3-4-5'!$C$11:$D$13,2,FALSE)*(VLOOKUP('Matriz Nº2 Análisis'!D96,'Tabla 2-3-4-5'!$C$11:$D$13,2,FALSE)))<3,"BAJO",IF((VLOOKUP(C96,'Tabla 2-3-4-5'!$C$11:$D$13,2,FALSE)*(VLOOKUP('Matriz Nº2 Análisis'!D96,'Tabla 2-3-4-5'!$C$11:$D$13,2,FALSE)))>5,"ALTO","MEDIO")),"") ->  | F96: =IF(B96<>"",'Matriz Nº1 Identificación'!E96,"") ->  | I96: =IFERROR(IF((VLOOKUP(G96,'Tabla 2-3-4-5'!$C$11:$D$13,2,FALSE)*(VLOOKUP('Matriz Nº2 Análisis'!H96,'Tabla 2-3-4-5'!$C$11:$D$13,2,FALSE)))<3,"BAJO",IF((VLOOKUP(G96,'Tabla 2-3-4-5'!$C$11:$D$13,2,FALSE)*(VLOOKUP('Matriz Nº2 Análisis'!H96,'Tabla 2-3-4-5'!$C$11:$D$13,2,FALSE)))>5,"ALTO","MEDIO")),"") -> 
A97: ='Matriz Nº1 Identificación'!A97 -> 10. 7 | B97: =IF('Matriz Nº1 Identificación'!B97<>"",'Matriz Nº1 Identificación'!F97,"") ->  | E97: =IFERROR(IF((VLOOKUP(C97,'Tabla 2-3-4-5'!$C$11:$D$13,2,FALSE)*(VLOOKUP('Matriz Nº2 Análisis'!D97,'Tabla 2-3-4-5'!$C$11:$D$13,2,FALSE)))<3,"BAJO",IF((VLOOKUP(C97,'Tabla 2-3-4-5'!$C$11:$D$13,2,FALSE)*(VLOOKUP('Matriz Nº2 Análisis'!D97,'Tabla 2-3-4-5'!$C$11:$D$13,2,FALSE)))>5,"ALTO","MEDIO")),"") ->  | F97: =IF(B97<>"",'Matriz Nº1 Identificación'!E97,"") ->  | I97: =IFERROR(IF((VLOOKUP(G97,'Tabla 2-3-4-5'!$C$11:$D$13,2,FALSE)*(VLOOKUP('Matriz Nº2 Análisis'!H97,'Tabla 2-3-4-5'!$C$11:$D$13,2,FALSE)))<3,"BAJO",IF((VLOOKUP(G97,'Tabla 2-3-4-5'!$C$11:$D$13,2,FALSE)*(VLOOKUP('Matriz Nº2 Análisis'!H97,'Tabla 2-3-4-5'!$C$11:$D$13,2,FALSE)))>5,"ALTO","MEDIO")),"") -> 
A98: ='Matriz Nº1 Identificación'!A98 -> Objetivo Estratégico: | B98: =+'Matriz Nº1 Identificación'!B98:H98 -> 01) Transformar la Imprenta Nacional en un plazo de cuatro años, mediante aplicación de cambios en la normativa e innovación de los productos y servicios que ofrece, para que estén acordes con las tendencias del mercado y con prácticas ambientalmente sostenibles.
A99: ='Matriz Nº1 Identificación'!A99 -> Objetivo táctico | B99: =+'Matriz Nº1 Identificación'!B99:H99 -> 11. Producir material de artes gráficas e impresos comerciales que cumplan con los lineamientos de calidad y conseguir una comunicación eficaz hacia el público.
A100: ='Matriz Nº1 Identificación'!A100 -> 11. 1 | B100: =IF('Matriz Nº1 Identificación'!B100<>"",'Matriz Nº1 Identificación'!F100,"") ->  | C100: ALTA | D100: ALTA | E100: =IFERROR(IF((VLOOKUP(C100,'Tabla 2-3-4-5'!$C$11:$D$13,2,FALSE)*(VLOOKUP('Matriz Nº2 Análisis'!D100,'Tabla 2-3-4-5'!$C$11:$D$13,2,FALSE)))<3,"BAJO",IF((VLOOKUP(C100,'Tabla 2-3-4-5'!$C$11:$D$13,2,FALSE)*(VLOOKUP('Matriz Nº2 Análisis'!D100,'Tabla 2-3-4-5'!$C$11:$D$13,2,FALSE)))>5,"ALTO","MEDIO")),"") -> ALTO | F100: =IF(B100<>"",'Matriz Nº1 Identificación'!E100,"") ->  | G100: BAJA | H100: MEDIA | I100: =IFERROR(IF((VLOOKUP(G100,'Tabla 2-3-4-5'!$C$11:$D$13,2,FALSE)*(VLOOKUP('Matriz Nº2 Análisis'!H100,'Tabla 2-3-4-5'!$C$11:$D$13,2,FALSE)))<3,"BAJO",IF((VLOOKUP(G100,'Tabla 2-3-4-5'!$C$11:$D$13,2,FALSE)*(VLOOKUP('Matriz Nº2 Análisis'!H100,'Tabla 2-3-4-5'!$C$11:$D$13,2,FALSE)))>5,"ALTO","MEDIO")),"") -> BAJO
A101: ='Matriz Nº1 Identificación'!A101 -> 11. 2 | B101: =IF('Matriz Nº1 Identificación'!B101<>"",'Matriz Nº1 Identificación'!F101,"") ->  | E101: =IFERROR(IF((VLOOKUP(C101,'Tabla 2-3-4-5'!$C$11:$D$13,2,FALSE)*(VLOOKUP('Matriz Nº2 Análisis'!D101,'Tabla 2-3-4-5'!$C$11:$D$13,2,FALSE)))<3,"BAJO",IF((VLOOKUP(C101,'Tabla 2-3-4-5'!$C$11:$D$13,2,FALSE)*(VLOOKUP('Matriz Nº2 Análisis'!D101,'Tabla 2-3-4-5'!$C$11:$D$13,2,FALSE)))>5,"ALTO","MEDIO")),"") ->  | F101: =IF(B101<>"",'Matriz Nº1 Identificación'!E101,"") ->  | I101: =IFERROR(IF((VLOOKUP(G101,'Tabla 2-3-4-5'!$C$11:$D$13,2,FALSE)*(VLOOKUP('Matriz Nº2 Análisis'!H101,'Tabla 2-3-4-5'!$C$11:$D$13,2,FALSE)))<3,"BAJO",IF((VLOOKUP(G101,'Tabla 2-3-4-5'!$C$11:$D$13,2,FALSE)*(VLOOKUP('Matriz Nº2 Análisis'!H101,'Tabla 2-3-4-5'!$C$11:$D$13,2,FALSE)))>5,"ALTO","MEDIO")),"") -> 
A102: ='Matriz Nº1 Identificación'!A102 -> 11. 3 | B102: =IF('Matriz Nº1 Identificación'!B102<>"",'Matriz Nº1 Identificación'!F102,"") ->  | E102: =IFERROR(IF((VLOOKUP(C102,'Tabla 2-3-4-5'!$C$11:$D$13,2,FALSE)*(VLOOKUP('Matriz Nº2 Análisis'!D102,'Tabla 2-3-4-5'!$C$11:$D$13,2,FALSE)))<3,"BAJO",IF((VLOOKUP(C102,'Tabla 2-3-4-5'!$C$11:$D$13,2,FALSE)*(VLOOKUP('Matriz Nº2 Análisis'!D102,'Tabla 2-3-4-5'!$C$11:$D$13,2,FALSE)))>5,"ALTO","MEDIO")),"") ->  | F102: =IF(B102<>"",'Matriz Nº1 Identificación'!E102,"") ->  | I102: =IFERROR(IF((VLOOKUP(G102,'Tabla 2-3-4-5'!$C$11:$D$13,2,FALSE)*(VLOOKUP('Matriz Nº2 Análisis'!H102,'Tabla 2-3-4-5'!$C$11:$D$13,2,FALSE)))<3,"BAJO",IF((VLOOKUP(G102,'Tabla 2-3-4-5'!$C$11:$D$13,2,FALSE)*(VLOOKUP('Matriz Nº2 Análisis'!H102,'Tabla 2-3-4-5'!$C$11:$D$13,2,FALSE)))>5,"ALTO","MEDIO")),"") -> 
A103: ='Matriz Nº1 Identificación'!A103 -> 11. 4 | B103: =IF('Matriz Nº1 Identificación'!B103<>"",'Matriz Nº1 Identificación'!F103,"") ->  | E103: =IFERROR(IF((VLOOKUP(C103,'Tabla 2-3-4-5'!$C$11:$D$13,2,FALSE)*(VLOOKUP('Matriz Nº2 Análisis'!D103,'Tabla 2-3-4-5'!$C$11:$D$13,2,FALSE)))<3,"BAJO",IF((VLOOKUP(C103,'Tabla 2-3-4-5'!$C$11:$D$13,2,FALSE)*(VLOOKUP('Matriz Nº2 Análisis'!D103,'Tabla 2-3-4-5'!$C$11:$D$13,2,FALSE)))>5,"ALTO","MEDIO")),"") ->  | F103: =IF(B103<>"",'Matriz Nº1 Identificación'!E103,"") ->  | I103: =IFERROR(IF((VLOOKUP(G103,'Tabla 2-3-4-5'!$C$11:$D$13,2,FALSE)*(VLOOKUP('Matriz Nº2 Análisis'!H103,'Tabla 2-3-4-5'!$C$11:$D$13,2,FALSE)))<3,"BAJO",IF((VLOOKUP(G103,'Tabla 2-3-4-5'!$C$11:$D$13,2,FALSE)*(VLOOKUP('Matriz Nº2 Análisis'!H103,'Tabla 2-3-4-5'!$C$11:$D$13,2,FALSE)))>5,"ALTO","MEDIO")),"") -> 
A104: ='Matriz Nº1 Identificación'!A104 -> 11. 5 | B104: =IF('Matriz Nº1 Identificación'!B104<>"",'Matriz Nº1 Identificación'!F104,"") ->  | E104: =IFERROR(IF((VLOOKUP(C104,'Tabla 2-3-4-5'!$C$11:$D$13,2,FALSE)*(VLOOKUP('Matriz Nº2 Análisis'!D104,'Tabla 2-3-4-5'!$C$11:$D$13,2,FALSE)))<3,"BAJO",IF((VLOOKUP(C104,'Tabla 2-3-4-5'!$C$11:$D$13,2,FALSE)*(VLOOKUP('Matriz Nº2 Análisis'!D104,'Tabla 2-3-4-5'!$C$11:$D$13,2,FALSE)))>5,"ALTO","MEDIO")),"") ->  | F104: =IF(B104<>"",'Matriz Nº1 Identificación'!E104,"") ->  | I104: =IFERROR(IF((VLOOKUP(G104,'Tabla 2-3-4-5'!$C$11:$D$13,2,FALSE)*(VLOOKUP('Matriz Nº2 Análisis'!H104,'Tabla 2-3-4-5'!$C$11:$D$13,2,FALSE)))<3,"BAJO",IF((VLOOKUP(G104,'Tabla 2-3-4-5'!$C$11:$D$13,2,FALSE)*(VLOOKUP('Matriz Nº2 Análisis'!H104,'Tabla 2-3-4-5'!$C$11:$D$13,2,FALSE)))>5,"ALTO","MEDIO")),"") -> 
A105: ='Matriz Nº1 Identificación'!A105 -> 11. 6 | B105: =IF('Matriz Nº1 Identificación'!B105<>"",'Matriz Nº1 Identificación'!F105,"") ->  | E105: =IFERROR(IF((VLOOKUP(C105,'Tabla 2-3-4-5'!$C$11:$D$13,2,FALSE)*(VLOOKUP('Matriz Nº2 Análisis'!D105,'Tabla 2-3-4-5'!$C$11:$D$13,2,FALSE)))<3,"BAJO",IF((VLOOKUP(C105,'Tabla 2-3-4-5'!$C$11:$D$13,2,FALSE)*(VLOOKUP('Matriz Nº2 Análisis'!D105,'Tabla 2-3-4-5'!$C$11:$D$13,2,FALSE)))>5,"ALTO","MEDIO")),"") ->  | F105: =IF(B105<>"",'Matriz Nº1 Identificación'!E105,"") ->  | I105: =IFERROR(IF((VLOOKUP(G105,'Tabla 2-3-4-5'!$C$11:$D$13,2,FALSE)*(VLOOKUP('Matriz Nº2 Análisis'!H105,'Tabla 2-3-4-5'!$C$11:$D$13,2,FALSE)))<3,"BAJO",IF((VLOOKUP(G105,'Tabla 2-3-4-5'!$C$11:$D$13,2,FALSE)*(VLOOKUP('Matriz Nº2 Análisis'!H105,'Tabla 2-3-4-5'!$C$11:$D$13,2,FALSE)))>5,"ALTO","MEDIO")),"") -> 
A106: ='Matriz Nº1 Identificación'!A106 -> 11. 7 | B106: =IF('Matriz Nº1 Identificación'!B106<>"",'Matriz Nº1 Identificación'!F106,"") ->  | E106: =IFERROR(IF((VLOOKUP(C106,'Tabla 2-3-4-5'!$C$11:$D$13,2,FALSE)*(VLOOKUP('Matriz Nº2 Análisis'!D106,'Tabla 2-3-4-5'!$C$11:$D$13,2,FALSE)))<3,"BAJO",IF((VLOOKUP(C106,'Tabla 2-3-4-5'!$C$11:$D$13,2,FALSE)*(VLOOKUP('Matriz Nº2 Análisis'!D106,'Tabla 2-3-4-5'!$C$11:$D$13,2,FALSE)))>5,"ALTO","MEDIO")),"") ->  | F106: =IF(B106<>"",'Matriz Nº1 Identificación'!E106,"") ->  | I106: =IFERROR(IF((VLOOKUP(G106,'Tabla 2-3-4-5'!$C$11:$D$13,2,FALSE)*(VLOOKUP('Matriz Nº2 Análisis'!H106,'Tabla 2-3-4-5'!$C$11:$D$13,2,FALSE)))<3,"BAJO",IF((VLOOKUP(G106,'Tabla 2-3-4-5'!$C$11:$D$13,2,FALSE)*(VLOOKUP('Matriz Nº2 Análisis'!H106,'Tabla 2-3-4-5'!$C$11:$D$13,2,FALSE)))>5,"ALTO","MEDIO")),"") -> 
A107: ='Matriz Nº1 Identificación'!A107 -> Objetivo Estratégico: | B107: =+'Matriz Nº1 Identificación'!B107:H107 -> 01) Transformar la Imprenta Nacional en un plazo de cuatro años, mediante aplicación de cambios en la normativa e innovación de los productos y servicios que ofrece, para que estén acordes con las tendencias del mercado y con prácticas ambientalmente sostenibles.
A108: ='Matriz Nº1 Identificación'!A108 -> Objetivo táctico | B108: =+'Matriz Nº1 Identificación'!B108:H108 -> 12. Producir material de artes gráficas e impresos comerciales que cumplan con los lineamientos de calidad y conseguir una comunicación eficaz hacia el público.
A109: ='Matriz Nº1 Identificación'!A109 -> 12. 1 | B109: =IF('Matriz Nº1 Identificación'!B109<>"",'Matriz Nº1 Identificación'!F109,"") ->  | C109: ALTA | D109: ALTA | E109: =IFERROR(IF((VLOOKUP(C109,'Tabla 2-3-4-5'!$C$11:$D$13,2,FALSE)*(VLOOKUP('Matriz Nº2 Análisis'!D109,'Tabla 2-3-4-5'!$C$11:$D$13,2,FALSE)))<3,"BAJO",IF((VLOOKUP(C109,'Tabla 2-3-4-5'!$C$11:$D$13,2,FALSE)*(VLOOKUP('Matriz Nº2 Análisis'!D109,'Tabla 2-3-4-5'!$C$11:$D$13,2,FALSE)))>5,"ALTO","MEDIO")),"") -> ALTO | F109: =IF(B109<>"",'Matriz Nº1 Identificación'!E109,"") ->  | G109: BAJA | H109: MEDIA | I109: =IFERROR(IF((VLOOKUP(G109,'Tabla 2-3-4-5'!$C$11:$D$13,2,FALSE)*(VLOOKUP('Matriz Nº2 Análisis'!H109,'Tabla 2-3-4-5'!$C$11:$D$13,2,FALSE)))<3,"BAJO",IF((VLOOKUP(G109,'Tabla 2-3-4-5'!$C$11:$D$13,2,FALSE)*(VLOOKUP('Matriz Nº2 Análisis'!H109,'Tabla 2-3-4-5'!$C$11:$D$13,2,FALSE)))>5,"ALTO","MEDIO")),"") -> BAJO
A110: ='Matriz Nº1 Identificación'!A110 -> 12. 2 | B110: =IF('Matriz Nº1 Identificación'!B110<>"",'Matriz Nº1 Identificación'!F110,"") ->  | E110: =IFERROR(IF((VLOOKUP(C110,'Tabla 2-3-4-5'!$C$11:$D$13,2,FALSE)*(VLOOKUP('Matriz Nº2 Análisis'!D110,'Tabla 2-3-4-5'!$C$11:$D$13,2,FALSE)))<3,"BAJO",IF((VLOOKUP(C110,'Tabla 2-3-4-5'!$C$11:$D$13,2,FALSE)*(VLOOKUP('Matriz Nº2 Análisis'!D110,'Tabla 2-3-4-5'!$C$11:$D$13,2,FALSE)))>5,"ALTO","MEDIO")),"") ->  | F110: =IF(B110<>"",'Matriz Nº1 Identificación'!E110,"") ->  | I110: =IFERROR(IF((VLOOKUP(G110,'Tabla 2-3-4-5'!$C$11:$D$13,2,FALSE)*(VLOOKUP('Matriz Nº2 Análisis'!H110,'Tabla 2-3-4-5'!$C$11:$D$13,2,FALSE)))<3,"BAJO",IF((VLOOKUP(G110,'Tabla 2-3-4-5'!$C$11:$D$13,2,FALSE)*(VLOOKUP('Matriz Nº2 Análisis'!H110,'Tabla 2-3-4-5'!$C$11:$D$13,2,FALSE)))>5,"ALTO","MEDIO")),"") -> 
A111: ='Matriz Nº1 Identificación'!A111 -> 12. 3 | B111: =IF('Matriz Nº1 Identificación'!B111<>"",'Matriz Nº1 Identificación'!F111,"") ->  | E111: =IFERROR(IF((VLOOKUP(C111,'Tabla 2-3-4-5'!$C$11:$D$13,2,FALSE)*(VLOOKUP('Matriz Nº2 Análisis'!D111,'Tabla 2-3-4-5'!$C$11:$D$13,2,FALSE)))<3,"BAJO",IF((VLOOKUP(C111,'Tabla 2-3-4-5'!$C$11:$D$13,2,FALSE)*(VLOOKUP('Matriz Nº2 Análisis'!D111,'Tabla 2-3-4-5'!$C$11:$D$13,2,FALSE)))>5,"ALTO","MEDIO")),"") ->  | F111: =IF(B111<>"",'Matriz Nº1 Identificación'!E111,"") ->  | I111: =IFERROR(IF((VLOOKUP(G111,'Tabla 2-3-4-5'!$C$11:$D$13,2,FALSE)*(VLOOKUP('Matriz Nº2 Análisis'!H111,'Tabla 2-3-4-5'!$C$11:$D$13,2,FALSE)))<3,"BAJO",IF((VLOOKUP(G111,'Tabla 2-3-4-5'!$C$11:$D$13,2,FALSE)*(VLOOKUP('Matriz Nº2 Análisis'!H111,'Tabla 2-3-4-5'!$C$11:$D$13,2,FALSE)))>5,"ALTO","MEDIO")),"") -> 
A112: ='Matriz Nº1 Identificación'!A112 -> 12. 4 | B112: =IF('Matriz Nº1 Identificación'!B112<>"",'Matriz Nº1 Identificación'!F112,"") ->  | E112: =IFERROR(IF((VLOOKUP(C112,'Tabla 2-3-4-5'!$C$11:$D$13,2,FALSE)*(VLOOKUP('Matriz Nº2 Análisis'!D112,'Tabla 2-3-4-5'!$C$11:$D$13,2,FALSE)))<3,"BAJO",IF((VLOOKUP(C112,'Tabla 2-3-4-5'!$C$11:$D$13,2,FALSE)*(VLOOKUP('Matriz Nº2 Análisis'!D112,'Tabla 2-3-4-5'!$C$11:$D$13,2,FALSE)))>5,"ALTO","MEDIO")),"") ->  | F112: =IF(B112<>"",'Matriz Nº1 Identificación'!E112,"") ->  | I112: =IFERROR(IF((VLOOKUP(G112,'Tabla 2-3-4-5'!$C$11:$D$13,2,FALSE)*(VLOOKUP('Matriz Nº2 Análisis'!H112,'Tabla 2-3-4-5'!$C$11:$D$13,2,FALSE)))<3,"BAJO",IF((VLOOKUP(G112,'Tabla 2-3-4-5'!$C$11:$D$13,2,FALSE)*(VLOOKUP('Matriz Nº2 Análisis'!H112,'Tabla 2-3-4-5'!$C$11:$D$13,2,FALSE)))>5,"ALTO","MEDIO")),"") -> 
A113: ='Matriz Nº1 Identificación'!A113 -> 12. 5 | B113: =IF('Matriz Nº1 Identificación'!B113<>"",'Matriz Nº1 Identificación'!F113,"") ->  | E113: =IFERROR(IF((VLOOKUP(C113,'Tabla 2-3-4-5'!$C$11:$D$13,2,FALSE)*(VLOOKUP('Matriz Nº2 Análisis'!D113,'Tabla 2-3-4-5'!$C$11:$D$13,2,FALSE)))<3,"BAJO",IF((VLOOKUP(C113,'Tabla 2-3-4-5'!$C$11:$D$13,2,FALSE)*(VLOOKUP('Matriz Nº2 Análisis'!D113,'Tabla 2-3-4-5'!$C$11:$D$13,2,FALSE)))>5,"ALTO","MEDIO")),"") ->  | F113: =IF(B113<>"",'Matriz Nº1 Identificación'!E113,"") ->  | I113: =IFERROR(IF((VLOOKUP(G113,'Tabla 2-3-4-5'!$C$11:$D$13,2,FALSE)*(VLOOKUP('Matriz Nº2 Análisis'!H113,'Tabla 2-3-4-5'!$C$11:$D$13,2,FALSE)))<3,"BAJO",IF((VLOOKUP(G113,'Tabla 2-3-4-5'!$C$11:$D$13,2,FALSE)*(VLOOKUP('Matriz Nº2 Análisis'!H113,'Tabla 2-3-4-5'!$C$11:$D$13,2,FALSE)))>5,"ALTO","MEDIO")),"") -> 
A114: ='Matriz Nº1 Identificación'!A114 -> 12. 6 | B114: =IF('Matriz Nº1 Identificación'!B114<>"",'Matriz Nº1 Identificación'!F114,"") ->  | E114: =IFERROR(IF((VLOOKUP(C114,'Tabla 2-3-4-5'!$C$11:$D$13,2,FALSE)*(VLOOKUP('Matriz Nº2 Análisis'!D114,'Tabla 2-3-4-5'!$C$11:$D$13,2,FALSE)))<3,"BAJO",IF((VLOOKUP(C114,'Tabla 2-3-4-5'!$C$11:$D$13,2,FALSE)*(VLOOKUP('Matriz Nº2 Análisis'!D114,'Tabla 2-3-4-5'!$C$11:$D$13,2,FALSE)))>5,"ALTO","MEDIO")),"") ->  | F114: =IF(B114<>"",'Matriz Nº1 Identificación'!E114,"") ->  | I114: =IFERROR(IF((VLOOKUP(G114,'Tabla 2-3-4-5'!$C$11:$D$13,2,FALSE)*(VLOOKUP('Matriz Nº2 Análisis'!H114,'Tabla 2-3-4-5'!$C$11:$D$13,2,FALSE)))<3,"BAJO",IF((VLOOKUP(G114,'Tabla 2-3-4-5'!$C$11:$D$13,2,FALSE)*(VLOOKUP('Matriz Nº2 Análisis'!H114,'Tabla 2-3-4-5'!$C$11:$D$13,2,FALSE)))>5,"ALTO","MEDIO")),"") -> 
A115: ='Matriz Nº1 Identificación'!A115 -> 12. 7 | B115: =IF('Matriz Nº1 Identificación'!B115<>"",'Matriz Nº1 Identificación'!F115,"") ->  | E115: =IFERROR(IF((VLOOKUP(C115,'Tabla 2-3-4-5'!$C$11:$D$13,2,FALSE)*(VLOOKUP('Matriz Nº2 Análisis'!D115,'Tabla 2-3-4-5'!$C$11:$D$13,2,FALSE)))<3,"BAJO",IF((VLOOKUP(C115,'Tabla 2-3-4-5'!$C$11:$D$13,2,FALSE)*(VLOOKUP('Matriz Nº2 Análisis'!D115,'Tabla 2-3-4-5'!$C$11:$D$13,2,FALSE)))>5,"ALTO","MEDIO")),"") ->  | F115: =IF(B115<>"",'Matriz Nº1 Identificación'!E115,"") ->  | I115: =IFERROR(IF((VLOOKUP(G115,'Tabla 2-3-4-5'!$C$11:$D$13,2,FALSE)*(VLOOKUP('Matriz Nº2 Análisis'!H115,'Tabla 2-3-4-5'!$C$11:$D$13,2,FALSE)))<3,"BAJO",IF((VLOOKUP(G115,'Tabla 2-3-4-5'!$C$11:$D$13,2,FALSE)*(VLOOKUP('Matriz Nº2 Análisis'!H115,'Tabla 2-3-4-5'!$C$11:$D$13,2,FALSE)))>5,"ALTO","MEDIO")),"") -> 
